Workbook

Sheet Introduction
C4: Joint Monitoring Programme for Water Supply, Sanitation and Hygiene
C6: Estimates on household water, sanitation and hygiene by wealth quintile and sub-national region in
C7: =+Water!B5 -> Montenegro
C9: Updated May 2021
C11: Follow the links below to find the following information:
C13: JMP Estimates
C14: WASH status and trends by wealth quintile (customized quintiles made without water and sanitation assets)
C15: Water
C16: Sanitation
C17: Hygiene
C19: Data inputs
C20: customized wealth quintiles and subnational data:
C21: =IF(INDIRECT(CONCATENATE("Water","!B105"))=0,"",INDIRECT(CONCATENATE("Water","!B105"))) -> MICS06
C22: =IF(INDIRECT(CONCATENATE("Water","!B106"))=0,"",INDIRECT(CONCATENATE("Water","!B106"))) -> MICS13
C23: =IF(INDIRECT(CONCATENATE("Water","!B107"))=0,"",INDIRECT(CONCATENATE("Water","!B107"))) -> MICS18
C24: =IF(INDIRECT(CONCATENATE("Water","!B108"))=0,"",INDIRECT(CONCATENATE("Water","!B108"))) -> 
C25: =IF(INDIRECT(CONCATENATE("Water","!B109"))=0,"",INDIRECT(CONCATENATE("Water","!B109"))) -> 
C26: =IF(INDIRECT(CONCATENATE("Water","!B110"))=0,"",INDIRECT(CONCATENATE("Water","!B110"))) -> 
C27: =IF(INDIRECT(CONCATENATE("Water","!B111"))=0,"",INDIRECT(CONCATENATE("Water","!B111"))) -> 
C28: =IF(INDIRECT(CONCATENATE("Water","!B112"))=0,"",INDIRECT(CONCATENATE("Water","!B112"))) -> 
C29: =IF(INDIRECT(CONCATENATE("Water","!B113"))=0,"",INDIRECT(CONCATENATE("Water","!B113"))) -> 
C30: =IF(INDIRECT(CONCATENATE("Water","!B114"))=0,"",INDIRECT(CONCATENATE("Water","!B114"))) -> 
C31: =IF(INDIRECT(CONCATENATE("Water","!B115"))=0,"",INDIRECT(CONCATENATE("Water","!B115"))) -> 
C32: =IF(INDIRECT(CONCATENATE("Water","!B116"))=0,"",INDIRECT(CONCATENATE("Water","!B116"))) -> 
L55: =+IF(ISNUMBER(M48), "", "Insufficient data to estimate safely managed sanitation services at national level") -> Insufficient data to estimate safely managed sanitation services at national level

Sheet Water
A1: BGD
B4: Summary of trends in use of drinking water by wealth quintile (%)
B5: =IF(ISERROR(INDIRECT(CONCATENATE($B105,"!A2"))),"",INDIRECT(CONCATENATE($B105,"!A2"))) -> Montenegro
B7: =B118 -> National use of drinking water sources, 2000–2020 | J7: =B218 -> Urban use of drinking water sources, 2000–2020 | R7: =B318 -> Rural use of drinking water sources, 2000–2020
B31: =IF(ISERROR(INDIRECT(CONCATENATE($B105,"!A2"))),"",INDIRECT(CONCATENATE($B105,"!A2"))) -> Montenegro | F31: Poorest | J31: Poor | N31: Middle | R31: Rich | V31: Richest
F32: Basic | G32: Limited | H32: Unimproved | I32: Surface water | J32: Basic | K32: Limited | L32: Unimproved | M32: Surface water | N32: Basic | O32: Limited | P32: Unimproved | Q32: Surface water | R32: Basic | S32: Limited | T32: Unimproved | U32: Surface water | V32: Basic | W32: Limited | X32: Unimproved | Y32: Surface water
B33: NATIONAL | D33: Estimate | E33: =C99 -> 2000 | F33: =E99 -> 93.07024443 | G33: =F99 -> 0.7067040866 | H33: 4.571298011 | I33: 1.651753473 | J33: =J99 -> 98.84526606 | K33: =K99 -> 0.5569923501 | L33: 0.5977415935 | M33: 0 | N33: =O99 -> 99.13365804 | O33: =P99 -> 0.3219679161 | P33: 0.5443740395 | Q33: 0 | R33: =T99 -> 99.48607604 | S33: =U99 -> 0.5139239584 | T33: 0 | U33: 0 | V33: =Y99 -> 99.33421398 | W33: =Z99 -> 0.6657860216 | X33: 0 | Y33: 0
E34: =C100 -> 2020 | F34: =E100 -> 99.24639893 | G34: 0.7536010691 | H34: 0 | I34: 0 | J34: =J100 -> 98.46602018 | K34: 0.5548553024 | L34: 0.9791245132 | M34: 0 | N34: =O100 -> 99.38774988 | O34: 0.3227931597 | P34: 0.2894569556 | Q34: 0 | R34: =T100 -> 98.6058596 | S34: 0.509376947 | T34: 0.8847634547 | U34: 0 | V34: =Y100 -> 98.64601039 | W34: 0.6611733478 | X34: 0.6928162634 | Y34: 0
B36: URBAN | D36: Estimate | E36: =C199 -> 2000 | F36: =E199 -> 99.19532973 | G36: =F199 -> 0.8046702714 | H36: 0 | I36: 0 | J36: =J199 -> 99.42519025 | K36: =K199 -> 0.5748097479 | L36: 0 | M36: 0 | N36: =O199 -> 99.55557613 | O36: =P199 -> 0.4444238651 | P36: 0 | Q36: 0 | R36: =T199 -> 99.56666667 | S36: =U199 -> 0.4333333333 | T36: 0 | U36: 0 | V36: =Y199 -> 99.50540946 | W36: =Z199 -> 0.4945905442 | X36: 0 | Y36: 0
E37: =C200 -> 2020 | F37: =E200 -> 99.19532973 | G37: 0.8046702714 | H37: 0 | I37: 0 | J37: =J200 -> 99.05289554 | K37: 0.5726573897 | L37: 0.374447068 | M37: 0 | N37: =O200 -> 99.55557613 | O37: 0.4444238651 | P37: 0 | Q37: 0 | R37: =T200 -> 99.27941534 | S37: 0.4320831602 | T37: 0.2885015005 | U37: 0 | V37: =Y200 -> 99.22603271 | W37: 0.4932019052 | X37: 0.2807653871 | Y37: 0
B39: RURAL | D39: Estimate | E39: =C299 -> 2000 | F39: =E299 -> 86.98921109 | G39: =F299 -> 1.014562193 | H39: 11.01933742 | I39: 0.976889294 | J39: =J299 -> 93.79873954 | K39: =K299 -> 0.476036937 | L39: 2.380916774 | M39: 3.344306745 | N39: =O299 -> 99.76295127 | O39: =P299 -> 0.03326540556 | P39: 0.203783328 | Q39: 0 | R39: =T299 -> 98.47801609 | S39: =U299 -> 0.4890235987 | T39: 1.032960312 | U39: 0 | V39: =Y299 -> 99.19244532 | W39: =Z299 -> 0.8075546813 | X39: 0 | Y39: 0
E40: =C300 -> 2020 | F40: =E300 -> 98.84713785 | G40: 1.152862151 | H40: 0 | I40: 0 | J40: =J300 -> 99.49505376 | K40: 0.5049462378 | L40: 0 | M40: 0 | N40: =O300 -> 97.59506871 | O40: 0.03254253708 | P40: 2.372388755 | Q40: 0 | R40: =T300 -> 97.52656709 | S40: 0.484298879 | T40: 1.989134031 | U40: 0 | V40: =Y300 -> 97.1401493 | W40: 0.7908463398 | X40: 2.069004356 | Y40: 0
A97: NATIONAL | D97: Poorest | I97: Poor | N97: Middle | S97: Rich | X97: Richest
D98: Improved | E98: Basic | F98: Limited | G98: Unimproved | H98: Surface water | I98: Improved | J98: Basic | K98: Limited | L98: Unimproved | M98: Surface water | N98: Improved | O98: Basic | P98: Limited | Q98: Unimproved | R98: Surface water | S98: Improved | T98: Basic | U98: Limited | V98: Unimproved | W98: Surface water | X98: Improved | Y98: Basic | Z98: Limited | AA98: Unimproved | AB98: Surface water
A99: Forecast period: | C99: 2000 | D99: =IF((D101+H101)>100,D101*100/(D101+H101),D101) -> 93.77694852 | E99: =D99*AVERAGEIF(E105:E116,">0")/100 -> 93.07024443 | F99: =D99*(100-AVERAGEIF(E105:E116,">0"))/100 -> 0.7067040866 | G99: =100-(E99+F99+H99) -> 4.571298011 | H99: =IF((D101+H101)>100,H101*100/(D101+H101),H101) -> 1.651753473 | I99: =IF((I101+M101)>100,I101*100/(I101+M101),I101) -> 99.40225841 | J99: =I99*AVERAGEIF(J105:J116,">0")/100 -> 98.84526606 | K99: =I99*(100-AVERAGEIF(J105:J116,">0"))/100 -> 0.5569923501 | L99: =100-(J99+K99+M99) -> 0.5977415935 | M99: =IF((I101+M101)>100,M101*100/(I101+M101),M101) -> 0 | N99: =IF((N101+R101)>100,N101*100/(N101+R101),N101) -> 99.45562596 | O99: =N99*AVERAGEIF(O105:O116,">0")/100 -> 99.13365804 | P99: =N99*(100-AVERAGEIF(O105:O116,">0"))/100 -> 0.3219679161 | Q99: =100-(O99+P99+R99) -> 0.5443740395 | R99: =IF((N101+R101)>100,R101*100/(N101+R101),R101) -> 0 | S99: =IF((S101+W101)>100,S101*100/(S101+W101),S101) -> 100 | T99: =S99*AVERAGEIF(T105:T116,">0")/100 -> 99.48607604 | U99: =S99*(100-AVERAGEIF(T105:T116,">0"))/100 -> 0.5139239584 | V99: =100-(T99+U99+W99) -> 0 | W99: =IF((S101+W101)>100,W101*100/(S101+W101),W101) -> 0 | X99: =IF((X101+AB101)>100,X101*100/(X101+AB101),X101) -> 100 | Y99: =X99*AVERAGEIF(Y105:Y116,">0")/100 -> 99.33421398 | Z99: =X99*(100-AVERAGEIF(Y105:Y116,">0"))/100 -> 0.6657860216 | AA99: =100-(Y99+Z99+AB99) -> 0 | AB99: =IF((X101+AB101)>100,AB101*100/(X101+AB101),AB101) -> 0
C100: 2020 | D100: =IF((D102+H102)>100,D102*100/(D102+H102),D102) -> 100 | E100: =D100*AVERAGEIF(E105:E116,">0")/100 -> 99.24639893 | F100: =D100*(100-AVERAGEIF(E105:E116,">0"))/100 -> 0.7536010691 | G100: =100-(E100+F100+H100) -> 0 | H100: =IF((D102+H102)>100,H102*100/(D102+H102),H102) -> 0 | I100: =IF((I102+M102)>100,I102*100/(I102+M102),I102) -> 99.02087549 | J100: =I100*AVERAGEIF(J105:J116,">0")/100 -> 98.46602018 | K100: =I100*(100-AVERAGEIF(J105:J116,">0"))/100 -> 0.5548553024 | L100: =100-(J100+K100+M100) -> 0.9791245132 | M100: =IF((I102+M102)>100,M102*100/(I102+M102),M102) -> 0 | N100: =IF((N102+R102)>100,N102*100/(N102+R102),N102) -> 99.71054304 | O100: =N100*AVERAGEIF(O105:O116,">0")/100 -> 99.38774988 | P100: =N100*(100-AVERAGEIF(O105:O116,">0"))/100 -> 0.3227931597 | Q100: =100-(O100+P100+R100) -> 0.2894569556 | R100: =IF((N102+R102)>100,R102*100/(N102+R102),R102) -> 0 | S100: =IF((S102+W102)>100,S102*100/(S102+W102),S102) -> 99.11523655 | T100: =S100*AVERAGEIF(T105:T116,">0")/100 -> 98.6058596 | U100: =S100*(100-AVERAGEIF(T105:T116,">0"))/100 -> 0.509376947 | V100: =100-(T100+U100+W100) -> 0.8847634547 | W100: =IF((S102+W102)>100,W102*100/(S102+W102),W102) -> 0 | X100: =IF((X102+AB102)>100,X102*100/(X102+AB102),X102) -> 99.30718374 | Y100: =X100*AVERAGEIF(Y105:Y116,">0")/100 -> 98.64601039 | Z100: =X100*(100-AVERAGEIF(Y105:Y116,">0"))/100 -> 0.6611733478 | AA100: =100-(Y100+Z100+AB100) -> 0.6928162634 | AB100: =IF((X102+AB102)>100,AB102*100/(X102+AB102),AB102) -> 0
A101: Regression period: | C101: =MinRegYear(C99,C105:C116) -> 2004 | D101: =IF(MAX(C105:C116)-MIN(C105:C116)<5,AVERAGEIF(C105:C116,">0",D105:D116), IF(FORECAST($C101,D$105:D$116,$C$105:$C$116)<0,0, IF(FORECAST($C101,D$105:D$116,$C$105:$C$116)>100,100, FORECAST($C101,D$105:D$116,$C$105:$C$116)))) -> 93.77694852 | H101: =IF(MAX(C105:C116)-MIN(C105:C116)<5,AVERAGEIF(C105:C116,">0",H105:H116), IF(FORECAST($C101,H$105:H$116,$C$105:$C$116)<0,0, IF(FORECAST($C101,H$105:H$116,$C$105:$C$116)>100,100, FORECAST($C101,H$105:H$116,$C$105:$C$116)))) -> 1.651753473 | I101: =IF(MAX(C105:C116)-MIN(C105:C116)<5,AVERAGEIF(C105:C116,">0",I105:I116), IF(FORECAST($C101,I$105:I$116,$C$105:$C$116)<0,0, IF(FORECAST($C101,I$105:I$116,$C$105:$C$116)>100,100, FORECAST($C101,I$105:I$116,$C$105:$C$116)))) -> 99.40225841 | M101: =IF(MAX(C105:C116)-MIN(C105:C116)<5,AVERAGEIF(C105:C116,">0",M105:M116), IF(FORECAST($C101,M$105:M$116,$C$105:$C$116)<0,0, IF(FORECAST($C101,M$105:M$116,$C$105:$C$116)>100,100, FORECAST($C101,M$105:M$116,$C$105:$C$116)))) -> 0 | N101: =IF(MAX(C105:C116)-MIN(C105:C116)<5,AVERAGEIF(C105:C116,">0",N105:N116), IF(FORECAST($C101,N$105:N$116,$C$105:$C$116)<0,0, IF(FORECAST($C101,N$105:N$116,$C$105:$C$116)>100,100, FORECAST($C101,N$105:N$116,$C$105:$C$116)))) -> 99.45562596 | R101: =IF(MAX(C105:C116)-MIN(C105:C116)<5,AVERAGEIF(C105:C116,">0",R105:R116), IF(FORECAST($C101,R$105:R$116,$C$105:$C$116)<0,0, IF(FORECAST($C101,R$105:R$116,$C$105:$C$116)>100,100, FORECAST($C101,R$105:R$116,$C$105:$C$116)))) -> 0 | S101: =IF(MAX(C105:C116)-MIN(C105:C116)<5,AVERAGEIF(C105:C116,">0",S105:S116), IF(FORECAST($C101,S$105:S$116,$C$105:$C$116)<0,0, IF(FORECAST($C101,S$105:S$116,$C$105:$C$116)>100,100, FORECAST($C101,S$105:S$116,$C$105:$C$116)))) -> 100 | W101: =IF(MAX(C105:C116)-MIN(C105:C116)<5,AVERAGEIF(C105:C116,">0",W105:W116), IF(FORECAST($C101,W$105:W$116,$C$105:$C$116)<0,0, IF(FORECAST($C101,W$105:W$116,$C$105:$C$116)>100,100, FORECAST($C101,W$105:W$116,$C$105:$C$116)))) -> 0 | X101: =IF(MAX(C105:C116)-MIN(C105:C116)<5,AVERAGEIF(C105:C116,">0",X105:X116), IF(FORECAST($C101,X$105:X$116,$C$105:$C$116)<0,0, IF(FORECAST($C101,X$105:X$116,$C$105:$C$116)>100,100, FORECAST($C101,X$105:X$116,$C$105:$C$116)))) -> 100 | AB101: =IF(MAX(C105:C116)-MIN(C105:C116)<5,AVERAGEIF(C105:C116,">0",AB105:AB116), IF(FORECAST($C101,AB$105:AB$116,$C$105:$C$116)<0,0, IF(FORECAST($C101,AB$105:AB$116,$C$105:$C$116)>100,100, FORECAST($C101,AB$105:AB$116,$C$105:$C$116)))) -> 0
C102: =MaxRegYear(C100,C105:C116) -> 2020 | D102: =IF(MAX(C105:C116)-MIN(C105:C116)<5,AVERAGEIF(C105:C116,">0",D105:D116), IF(FORECAST($C102,D$105:D$116,$C$105:$C$116)<0,0, IF(FORECAST($C102,D$105:D$116,$C$105:$C$116)>100,100, FORECAST($C102,D$105:D$116,$C$105:$C$116)))) -> 100 | H102: =IF(MAX(C105:C116)-MIN(C105:C116)<5,AVERAGEIF(C105:C116,">0",H105:H116), IF(FORECAST($C102,H$105:H$116,$C$105:$C$116)<0,0, IF(FORECAST($C102,H$105:H$116,$C$105:$C$116)>100,100, FORECAST($C102,H$105:H$116,$C$105:$C$116)))) -> 0 | I102: =IF(MAX(C105:C116)-MIN(C105:C116)<5,AVERAGEIF(C105:C116,">0",I105:I116), IF(FORECAST($C102,I$105:I$116,$C$105:$C$116)<0,0, IF(FORECAST($C102,I$105:I$116,$C$105:$C$116)>100,100, FORECAST($C102,I$105:I$116,$C$105:$C$116)))) -> 99.02087549 | M102: =IF(MAX(C105:C116)-MIN(C105:C116)<5,AVERAGEIF(C105:C116,">0",M105:M116), IF(FORECAST($C102,M$105:M$116,$C$105:$C$116)<0,0, IF(FORECAST($C102,M$105:M$116,$C$105:$C$116)>100,100, FORECAST($C102,M$105:M$116,$C$105:$C$116)))) -> 0 | N102: =IF(MAX(C105:C116)-MIN(C105:C116)<5,AVERAGEIF(C105:C116,">0",N105:N116), IF(FORECAST($C102,N$105:N$116,$C$105:$C$116)<0,0, IF(FORECAST($C102,N$105:N$116,$C$105:$C$116)>100,100, FORECAST($C102,N$105:N$116,$C$105:$C$116)))) -> 99.71054304 | R102: =IF(MAX(C105:C116)-MIN(C105:C116)<5,AVERAGEIF(C105:C116,">0",R105:R116), IF(FORECAST($C102,R$105:R$116,$C$105:$C$116)<0,0, IF(FORECAST($C102,R$105:R$116,$C$105:$C$116)>100,100, FORECAST($C102,R$105:R$116,$C$105:$C$116)))) -> 0 | S102: =IF(MAX(C105:C116)-MIN(C105:C116)<5,AVERAGEIF(C105:C116,">0",S105:S116), IF(FORECAST($C102,S$105:S$116,$C$105:$C$116)<0,0, IF(FORECAST($C102,S$105:S$116,$C$105:$C$116)>100,100, FORECAST($C102,S$105:S$116,$C$105:$C$116)))) -> 99.11523655 | W102: =IF(MAX(C105:C116)-MIN(C105:C116)<5,AVERAGEIF(C105:C116,">0",W105:W116), IF(FORECAST($C102,W$105:W$116,$C$105:$C$116)<0,0, IF(FORECAST($C102,W$105:W$116,$C$105:$C$116)>100,100, FORECAST($C102,W$105:W$116,$C$105:$C$116)))) -> 0 | X102: =IF(MAX(C105:C116)-MIN(C105:C116)<5,AVERAGEIF(C105:C116,">0",X105:X116), IF(FORECAST($C102,X$105:X$116,$C$105:$C$116)<0,0, IF(FORECAST($C102,X$105:X$116,$C$105:$C$116)>100,100, FORECAST($C102,X$105:X$116,$C$105:$C$116)))) -> 99.30718374 | AB102: =IF(MAX(C105:C116)-MIN(C105:C116)<5,AVERAGEIF(C105:C116,">0",AB105:AB116), IF(FORECAST($C102,AB$105:AB$116,$C$105:$C$116)<0,0, IF(FORECAST($C102,AB$105:AB$116,$C$105:$C$116)>100,100, FORECAST($C102,AB$105:AB$116,$C$105:$C$116)))) -> 0
B104: Survey | C104: Year | D104: Improved | E104: % Improved < = 30min | H104: Surface water | I104: Improved | J104: % Improved < = 30min | M104: Surface water | N104: Improved | O104: % Improved < = 30min | R104: Surface water | S104: Improved | T104: % Improved < = 30min | W104: Surface water | X104: Improved | Y104: % Improved < = 30min | AB104: Surface water
B105: MICS06 | C105: 2006 | D105: =IF(ISERROR(INDIRECT(CONCATENATE($B105,"!C16"))),"",INDIRECT(CONCATENATE($B105,"!C16"))) -> 94.26010181 | E105: =IF(ISERROR(INDIRECT(CONCATENATE($B105,"!C23"))),"",INDIRECT(CONCATENATE($B105,"!C23"))) -> 99.30952038 | H105: =IF(ISERROR(INDIRECT(CONCATENATE($B105,"!C21"))),"",INDIRECT(CONCATENATE($B105,"!C21"))) -> 1.284697146 | I105: =IF(ISERROR(INDIRECT(CONCATENATE($B105,"!D16"))),"",INDIRECT(CONCATENATE($B105,"!D16"))) -> 99.22447326 | J105: =IF(ISERROR(INDIRECT(CONCATENATE($B105,"!D23"))),"",INDIRECT(CONCATENATE($B105,"!D23"))) -> 99.71807939 | M105: =IF(ISERROR(INDIRECT(CONCATENATE($B105,"!D21"))),"",INDIRECT(CONCATENATE($B105,"!D21"))) -> 0 | N105: =IF(ISERROR(INDIRECT(CONCATENATE($B105,"!E16"))),"",INDIRECT(CONCATENATE($B105,"!E16"))) -> 99.44541427 | O105: =IF(ISERROR(INDIRECT(CONCATENATE($B105,"!E23"))),"",INDIRECT(CONCATENATE($B105,"!E23"))) -> 100 | R105: =IF(ISERROR(INDIRECT(CONCATENATE($B105,"!E21"))),"",INDIRECT(CONCATENATE($B105,"!E21"))) -> 0 | S105: =IF(ISERROR(INDIRECT(CONCATENATE($B105,"!F16"))),"",INDIRECT(CONCATENATE($B105,"!F16"))) -> 100 | T105: =IF(ISERROR(INDIRECT(CONCATENATE($B105,"!F23"))),"",INDIRECT(CONCATENATE($B105,"!F23"))) -> 100 | W105: =IF(ISERROR(INDIRECT(CONCATENATE($B105,"!F21"))),"",INDIRECT(CONCATENATE($B105,"!F21"))) -> 0 | X105: =IF(ISERROR(INDIRECT(CONCATENATE($B105,"!G16"))),"",INDIRECT(CONCATENATE($B105,"!G16"))) -> 100 | Y105: =IF(ISERROR(INDIRECT(CONCATENATE($B105,"!G23"))),"",INDIRECT(CONCATENATE($B105,"!G23"))) -> 99.72625937 | AB105: =IF(ISERROR(INDIRECT(CONCATENATE($B105,"!G221"))),"",INDIRECT(CONCATENATE($B105,"!G21"))) -> 0
B106: MICS13 | C106: 2013 | D106: 98.3 | E106: 98.6 | H106: 0 | I106: 99.5 | J106: 99.2 | M106: 0 | N106: 99.7 | O106: 99.1 | R106: 0 | S106: 100 | T106: 98.7 | W106: 0 | X106: 99.9 | Y106: 98.6 | AB106: 0
B107: MICS18 | C107: 2018 | D107: 99.06534409 | E107: 99.82967642 | H107: N/A | I107: 98.88639115 | J107: 99.40089538 | M107: N/A | N107: 99.61977155 | O107: 99.92880934 | R107: N/A | S107: 99.04985994 | T107: 99.75822812 | W107: N/A | X107: 99.29934017 | Y107: 99.67638256 | AB107: N/A
D111: =IF(ISERROR(INDIRECT(CONCATENATE($B111,"!C16"))),"",INDIRECT(CONCATENATE($B111,"!C16"))) ->  | E111: =IF(ISERROR(INDIRECT(CONCATENATE($B111,"!C23"))),"",INDIRECT(CONCATENATE($B111,"!C23"))) ->  | H111: =IF(ISERROR(INDIRECT(CONCATENATE($B111,"!C21"))),"",INDIRECT(CONCATENATE($B111,"!C21"))) ->  | I111: =IF(ISERROR(INDIRECT(CONCATENATE($B111,"!D16"))),"",INDIRECT(CONCATENATE($B111,"!D16"))) ->  | J111: =IF(ISERROR(INDIRECT(CONCATENATE($B111,"!D23"))),"",INDIRECT(CONCATENATE($B111,"!D23"))) ->  | M111: =IF(ISERROR(INDIRECT(CONCATENATE($B111,"!D21"))),"",INDIRECT(CONCATENATE($B111,"!D21"))) ->  | N111: =IF(ISERROR(INDIRECT(CONCATENATE($B111,"!E16"))),"",INDIRECT(CONCATENATE($B111,"!E16"))) ->  | O111: =IF(ISERROR(INDIRECT(CONCATENATE($B111,"!E23"))),"",INDIRECT(CONCATENATE($B111,"!E23"))) ->  | R111: =IF(ISERROR(INDIRECT(CONCATENATE($B111,"!E21"))),"",INDIRECT(CONCATENATE($B111,"!E21"))) ->  | S111: =IF(ISERROR(INDIRECT(CONCATENATE($B111,"!F16"))),"",INDIRECT(CONCATENATE($B111,"!F16"))) ->  | T111: =IF(ISERROR(INDIRECT(CONCATENATE($B111,"!F23"))),"",INDIRECT(CONCATENATE($B111,"!F23"))) ->  | W111: =IF(ISERROR(INDIRECT(CONCATENATE($B111,"!F21"))),"",INDIRECT(CONCATENATE($B111,"!F21"))) ->  | X111: =IF(ISERROR(INDIRECT(CONCATENATE($B111,"!G16"))),"",INDIRECT(CONCATENATE($B111,"!G16"))) ->  | Y111: =IF(ISERROR(INDIRECT(CONCATENATE($B111,"!G23"))),"",INDIRECT(CONCATENATE($B111,"!G23"))) ->  | AB111: =IF(ISERROR(INDIRECT(CONCATENATE($B111,"!G221"))),"",INDIRECT(CONCATENATE($B111,"!G21"))) -> 
D112: =IF(ISERROR(INDIRECT(CONCATENATE($B112,"!C16"))),"",INDIRECT(CONCATENATE($B112,"!C16"))) ->  | E112: =IF(ISERROR(INDIRECT(CONCATENATE($B112,"!C23"))),"",INDIRECT(CONCATENATE($B112,"!C23"))) ->  | H112: =IF(ISERROR(INDIRECT(CONCATENATE($B112,"!C21"))),"",INDIRECT(CONCATENATE($B112,"!C21"))) ->  | I112: =IF(ISERROR(INDIRECT(CONCATENATE($B112,"!D16"))),"",INDIRECT(CONCATENATE($B112,"!D16"))) ->  | J112: =IF(ISERROR(INDIRECT(CONCATENATE($B112,"!D23"))),"",INDIRECT(CONCATENATE($B112,"!D23"))) ->  | M112: =IF(ISERROR(INDIRECT(CONCATENATE($B112,"!D21"))),"",INDIRECT(CONCATENATE($B112,"!D21"))) ->  | N112: =IF(ISERROR(INDIRECT(CONCATENATE($B112,"!E16"))),"",INDIRECT(CONCATENATE($B112,"!E16"))) ->  | O112: =IF(ISERROR(INDIRECT(CONCATENATE($B112,"!E23"))),"",INDIRECT(CONCATENATE($B112,"!E23"))) ->  | R112: =IF(ISERROR(INDIRECT(CONCATENATE($B112,"!E21"))),"",INDIRECT(CONCATENATE($B112,"!E21"))) ->  | S112: =IF(ISERROR(INDIRECT(CONCATENATE($B112,"!F16"))),"",INDIRECT(CONCATENATE($B112,"!F16"))) ->  | T112: =IF(ISERROR(INDIRECT(CONCATENATE($B112,"!F23"))),"",INDIRECT(CONCATENATE($B112,"!F23"))) ->  | W112: =IF(ISERROR(INDIRECT(CONCATENATE($B112,"!F21"))),"",INDIRECT(CONCATENATE($B112,"!F21"))) ->  | X112: =IF(ISERROR(INDIRECT(CONCATENATE($B112,"!G16"))),"",INDIRECT(CONCATENATE($B112,"!G16"))) ->  | Y112: =IF(ISERROR(INDIRECT(CONCATENATE($B112,"!G23"))),"",INDIRECT(CONCATENATE($B112,"!G23"))) ->  | AB112: =IF(ISERROR(INDIRECT(CONCATENATE($B112,"!G221"))),"",INDIRECT(CONCATENATE($B112,"!G21"))) -> 
B118: =CONCATENATE("National use of drinking water sources, ",C99,"–",C100) -> National use of drinking water sources, 2000–2020 | S118: Data points used for regression
E153: =IF(ISERROR(INDIRECT(CONCATENATE($B153,"!M18"))),"",INDIRECT(CONCATENATE($B153,"!M18"))) ->  | F153: =IF(ISERROR(INDIRECT(CONCATENATE($B153,"!M19"))),"",INDIRECT(CONCATENATE($B153,"!M19"))) ->  | G153: =IF(ISERROR(INDIRECT(CONCATENATE($B153,"!M20"))),"",INDIRECT(CONCATENATE($B153,"!M20"))) ->  | H153: =IF(ISERROR(INDIRECT(CONCATENATE($B153,"!M21"))),"",INDIRECT(CONCATENATE($B153,"!M21"))) ->  | J153: =IF(ISERROR(INDIRECT(CONCATENATE($B153,"!N18"))),"",INDIRECT(CONCATENATE($B153,"!N18"))) ->  | K153: =IF(ISERROR(INDIRECT(CONCATENATE($B153,"!N19"))),"",INDIRECT(CONCATENATE($B153,"!N19"))) ->  | L153: =IF(ISERROR(INDIRECT(CONCATENATE($B153,"!N20"))),"",INDIRECT(CONCATENATE($B153,"!N20"))) ->  | M153: =IF(ISERROR(INDIRECT(CONCATENATE($B153,"!N21"))),"",INDIRECT(CONCATENATE($B153,"!N21"))) ->  | O153: =IF(ISERROR(INDIRECT(CONCATENATE($B153,"!O18"))),"",INDIRECT(CONCATENATE($B153,"!O18"))) ->  | P153: =IF(ISERROR(INDIRECT(CONCATENATE($B153,"!O19"))),"",INDIRECT(CONCATENATE($B153,"!O19"))) ->  | Q153: =IF(ISERROR(INDIRECT(CONCATENATE($B153,"!O20"))),"",INDIRECT(CONCATENATE($B153,"!O20"))) ->  | R153: =IF(ISERROR(INDIRECT(CONCATENATE($B153,"!O21"))),"",INDIRECT(CONCATENATE($B153,"!O21"))) ->  | T153: =IF(ISERROR(INDIRECT(CONCATENATE($B153,"!P18"))),"",INDIRECT(CONCATENATE($B153,"!P18"))) ->  | U153: =IF(ISERROR(INDIRECT(CONCATENATE($B153,"!P19"))),"",INDIRECT(CONCATENATE($B153,"!P19"))) ->  | V153: =IF(ISERROR(INDIRECT(CONCATENATE($B153,"!P20"))),"",INDIRECT(CONCATENATE($B153,"!P20"))) ->  | W153: =IF(ISERROR(INDIRECT(CONCATENATE($B153,"!P21"))),"",INDIRECT(CONCATENATE($B153,"!P21"))) ->  | Y153: =IF(ISERROR(INDIRECT(CONCATENATE($B153,"!Q18"))),"",INDIRECT(CONCATENATE($B153,"!Q18"))) ->  | Z153: =IF(ISERROR(INDIRECT(CONCATENATE($B153,"!Q19"))),"",INDIRECT(CONCATENATE($B153,"!Q19"))) ->  | AA153: =IF(ISERROR(INDIRECT(CONCATENATE($B153,"!Q20"))),"",INDIRECT(CONCATENATE($B153,"!Q20"))) ->  | AB153: =IF(ISERROR(INDIRECT(CONCATENATE($B153,"!Q21"))),"",INDIRECT(CONCATENATE($B153,"!Q1"))) -> 
A197: URBAN | D197: Poorest | I197: Poor | N197: Middle | S197: Rich | X197: Richest
D198: Improved | E198: Basic | F198: Limited | G198: Unimproved | H198: Surface water | I198: Improved | J198: Basic | K198: Limited | L198: Unimproved | M198: Surface water | N198: Improved | O198: Basic | P198: Limited | Q198: Unimproved | R198: Surface water | S198: Improved | T198: Basic | U198: Limited | V198: Unimproved | W198: Surface water | X198: Improved | Y198: Basic | Z198: Limited | AA198: Unimproved | AB198: Surface water
A199: Forecast period: | C199: 2000 | D199: =IF((D201+H201)>100,D201*100/(D201+H201),D201) -> 100 | E199: =D199*AVERAGEIF(E205:E216,">0")/100 -> 99.19532973 | F199: =D199*(100-AVERAGEIF(E205:E216,">0"))/100 -> 0.8046702714 | G199: =100-(E199+F199+H199) -> 0 | H199: =IF((D201+H201)>100,H201*100/(D201+H201),H201) -> 0 | I199: =IF((I201+M201)>100,I201*100/(I201+M201),I201) -> 100 | J199: =I199*AVERAGEIF(J205:J216,">0")/100 -> 99.42519025 | K199: =I199*(100-AVERAGEIF(J205:J216,">0"))/100 -> 0.5748097479 | L199: =100-(J199+K199+M199) -> 0 | M199: =IF((I201+M201)>100,M201*100/(I201+M201),M201) -> 0 | N199: =IF((N201+R201)>100,N201*100/(N201+R201),N201) -> 100 | O199: =N199*AVERAGEIF(O205:O216,">0")/100 -> 99.55557613 | P199: =N199*(100-AVERAGEIF(O205:O216,">0"))/100 -> 0.4444238651 | Q199: =100-(O199+P199+R199) -> 0 | R199: =IF((N201+R201)>100,R201*100/(N201+R201),R201) -> 0 | S199: =IF((S201+W201)>100,S201*100/(S201+W201),S201) -> 100 | T199: =S199*AVERAGEIF(T205:T216,">0")/100 -> 99.56666667 | U199: =S199*(100-AVERAGEIF(T205:T216,">0"))/100 -> 0.4333333333 | V199: =100-(T199+U199+W199) -> 0 | W199: =IF((S201+W201)>100,W201*100/(S201+W201),W201) -> 0 | X199: =IF((X201+AB201)>100,X201*100/(X201+AB201),X201) -> 100 | Y199: =X199*AVERAGEIF(Y205:Y216,">0")/100 -> 99.50540946 | Z199: =X199*(100-AVERAGEIF(Y205:Y216,">0"))/100 -> 0.4945905442 | AA199: =100-(Y199+Z199+AB199) -> 0 | AB199: =IF((X201+AB201)>100,AB201*100/(X201+AB201),AB201) -> 0
C200: 2020 | D200: =IF((D202+H202)>100,D202*100/(D202+H202),D202) -> 100 | E200: =D200*AVERAGEIF(E205:E216,">0")/100 -> 99.19532973 | F200: =D200*(100-AVERAGEIF(E205:E216,">0"))/100 -> 0.8046702714 | G200: =100-(E200+F200+H200) -> 0 | H200: =IF((D202+H202)>100,H202*100/(D202+H202),H202) -> 0 | I200: =IF((I202+M202)>100,I202*100/(I202+M202),I202) -> 99.62555293 | J200: =I200*AVERAGEIF(J205:J216,">0")/100 -> 99.05289554 | K200: =I200*(100-AVERAGEIF(J205:J216,">0"))/100 -> 0.5726573897 | L200: =100-(J200+K200+M200) -> 0.374447068 | M200: =IF((I202+M202)>100,M202*100/(I202+M202),M202) -> 0 | N200: =IF((N202+R202)>100,N202*100/(N202+R202),N202) -> 100 | O200: =N200*AVERAGEIF(O205:O216,">0")/100 -> 99.55557613 | P200: =N200*(100-AVERAGEIF(O205:O216,">0"))/100 -> 0.4444238651 | Q200: =100-(O200+P200+R200) -> 0 | R200: =IF((N202+R202)>100,R202*100/(N202+R202),R202) -> 0 | S200: =IF((S202+W202)>100,S202*100/(S202+W202),S202) -> 99.7114985 | T200: =S200*AVERAGEIF(T205:T216,">0")/100 -> 99.27941534 | U200: =S200*(100-AVERAGEIF(T205:T216,">0"))/100 -> 0.4320831602 | V200: =100-(T200+U200+W200) -> 0.2885015005 | W200: =IF((S202+W202)>100,W202*100/(S202+W202),W202) -> 0 | X200: =IF((X202+AB202)>100,X202*100/(X202+AB202),X202) -> 99.71923461 | Y200: =X200*AVERAGEIF(Y205:Y216,">0")/100 -> 99.22603271 | Z200: =X200*(100-AVERAGEIF(Y205:Y216,">0"))/100 -> 0.4932019052 | AA200: =100-(Y200+Z200+AB200) -> 0.2807653871 | AB200: =IF((X202+AB202)>100,AB202*100/(X202+AB202),AB202) -> 0
A201: Regression period: | C201: =MinRegYear(C199,C205:C216) -> 2004 | D201: =IF(MAX(C205:C216)-MIN(C205:C216)<5,AVERAGEIF(C205:C216,">0",D205:D216), IF(FORECAST($C201,D$205:D$216,$C$205:$C$216)<0,0, IF(FORECAST($C201,D$205:D$216,$C$205:$C$216)>100,100, FORECAST($C201,D$205:D$216,$C$205:$C$216)))) -> 100 | H201: =IF(MAX(C205:C216)-MIN(C205:C216)<5,AVERAGEIF(C205:C216,">0",H205:H216), IF(FORECAST($C201,H$205:H$216,$C$205:$C$216)<0,0, IF(FORECAST($C201,H$205:H$216,$C$205:$C$216)>100,100, FORECAST($C201,H$205:H$216,$C$205:$C$216)))) -> 0 | I201: =IF(MAX(C205:C216)-MIN(C205:C216)<5,AVERAGEIF(C205:C216,">0",I205:I216), IF(FORECAST($C201,I$205:I$216,$C$205:$C$216)<0,0, IF(FORECAST($C201,I$205:I$216,$C$205:$C$216)>100,100, FORECAST($C201,I$205:I$216,$C$205:$C$216)))) -> 100 | M201: =IF(MAX(C205:C216)-MIN(C205:C216)<5,AVERAGEIF(C205:C216,">0",M205:M216), IF(FORECAST($C201,M$205:M$216,$C$205:$C$216)<0,0, IF(FORECAST($C201,M$205:M$216,$C$205:$C$216)>100,100, FORECAST($C201,M$205:M$216,$C$205:$C$216)))) -> 0 | N201: =IF(MAX(C205:C216)-MIN(C205:C216)<5,AVERAGEIF(C205:C216,">0",N205:N216), IF(FORECAST($C201,N$205:N$216,$C$205:$C$216)<0,0, IF(FORECAST($C201,N$205:N$216,$C$205:$C$216)>100,100, FORECAST($C201,N$205:N$216,$C$205:$C$216)))) -> 100 | R201: =IF(MAX(C205:C216)-MIN(C205:C216)<5,AVERAGEIF(C205:C216,">0",R205:R216), IF(FORECAST($C201,R$205:R$216,$C$205:$C$216)<0,0, IF(FORECAST($C201,R$205:R$216,$C$205:$C$216)>100,100, FORECAST($C201,R$205:R$216,$C$205:$C$216)))) -> 0 | S201: =IF(MAX(C205:C216)-MIN(C205:C216)<5,AVERAGEIF(C205:C216,">0",S205:S216), IF(FORECAST($C201,S$205:S$216,$C$205:$C$216)<0,0, IF(FORECAST($C201,S$205:S$216,$C$205:$C$216)>100,100, FORECAST($C201,S$205:S$216,$C$205:$C$216)))) -> 100 | W201: =IF(MAX(C205:C216)-MIN(C205:C216)<5,AVERAGEIF(C205:C216,">0",W205:W216), IF(FORECAST($C201,W$205:W$216,$C$205:$C$216)<0,0, IF(FORECAST($C201,W$205:W$216,$C$205:$C$216)>100,100, FORECAST($C201,W$205:W$216,$C$205:$C$216)))) -> 0 | X201: =IF(MAX(C205:C216)-MIN(C205:C216)<5,AVERAGEIF(C205:C216,">0",X205:X216), IF(FORECAST($C201,X$205:X$216,$C$205:$C$216)<0,0, IF(FORECAST($C201,X$205:X$216,$C$205:$C$216)>100,100, FORECAST($C201,X$205:X$216,$C$205:$C$216)))) -> 100 | AB201: =IF(MAX(C205:C216)-MIN(C205:C216)<5,AVERAGEIF(C205:C216,">0",AB205:AB216), IF(FORECAST($C201,AB$205:AB$216,$C$205:$C$216)<0,0, IF(FORECAST($C201,AB$205:AB$216,$C$205:$C$216)>100,100, FORECAST($C201,AB$205:AB$216,$C$205:$C$216)))) -> 0
C202: =MaxRegYear(C200,C205:C216) -> 2020 | D202: =IF(MAX(C205:C216)-MIN(C205:C216)<5,AVERAGEIF(C205:C216,">0",D205:D216), IF(FORECAST($C202,D$205:D$216,$C$205:$C$216)<0,0, IF(FORECAST($C202,D$205:D$216,$C$205:$C$216)>100,100, FORECAST($C202,D$205:D$216,$C$205:$C$216)))) -> 100 | H202: =IF(MAX(C205:C216)-MIN(C205:C216)<5,AVERAGEIF(C205:C216,">0",H205:H216), IF(FORECAST($C202,H$205:H$216,$C$205:$C$216)<0,0, IF(FORECAST($C202,H$205:H$216,$C$205:$C$216)>100,100, FORECAST($C202,H$205:H$216,$C$205:$C$216)))) -> 0 | I202: =IF(MAX(C205:C216)-MIN(C205:C216)<5,AVERAGEIF(C205:C216,">0",I205:I216), IF(FORECAST($C202,I$205:I$216,$C$205:$C$216)<0,0, IF(FORECAST($C202,I$205:I$216,$C$205:$C$216)>100,100, FORECAST($C202,I$205:I$216,$C$205:$C$216)))) -> 99.62555293 | M202: =IF(MAX(C205:C216)-MIN(C205:C216)<5,AVERAGEIF(C205:C216,">0",M205:M216), IF(FORECAST($C202,M$205:M$216,$C$205:$C$216)<0,0, IF(FORECAST($C202,M$205:M$216,$C$205:$C$216)>100,100, FORECAST($C202,M$205:M$216,$C$205:$C$216)))) -> 0 | N202: =IF(MAX(C205:C216)-MIN(C205:C216)<5,AVERAGEIF(C205:C216,">0",N205:N216), IF(FORECAST($C202,N$205:N$216,$C$205:$C$216)<0,0, IF(FORECAST($C202,N$205:N$216,$C$205:$C$216)>100,100, FORECAST($C202,N$205:N$216,$C$205:$C$216)))) -> 100 | R202: =IF(MAX(C205:C216)-MIN(C205:C216)<5,AVERAGEIF(C205:C216,">0",R205:R216), IF(FORECAST($C202,R$205:R$216,$C$205:$C$216)<0,0, IF(FORECAST($C202,R$205:R$216,$C$205:$C$216)>100,100, FORECAST($C202,R$205:R$216,$C$205:$C$216)))) -> 0 | S202: =IF(MAX(C205:C216)-MIN(C205:C216)<5,AVERAGEIF(C205:C216,">0",S205:S216), IF(FORECAST($C202,S$205:S$216,$C$205:$C$216)<0,0, IF(FORECAST($C202,S$205:S$216,$C$205:$C$216)>100,100, FORECAST($C202,S$205:S$216,$C$205:$C$216)))) -> 99.7114985 | W202: =IF(MAX(C205:C216)-MIN(C205:C216)<5,AVERAGEIF(C205:C216,">0",W205:W216), IF(FORECAST($C202,W$205:W$216,$C$205:$C$216)<0,0, IF(FORECAST($C202,W$205:W$216,$C$205:$C$216)>100,100, FORECAST($C202,W$205:W$216,$C$205:$C$216)))) -> 0 | X202: =IF(MAX(C205:C216)-MIN(C205:C216)<5,AVERAGEIF(C205:C216,">0",X205:X216), IF(FORECAST($C202,X$205:X$216,$C$205:$C$216)<0,0, IF(FORECAST($C202,X$205:X$216,$C$205:$C$216)>100,100, FORECAST($C202,X$205:X$216,$C$205:$C$216)))) -> 99.71923461 | AB202: =IF(MAX(C205:C216)-MIN(C205:C216)<5,AVERAGEIF(C205:C216,">0",AB205:AB216), IF(FORECAST($C202,AB$205:AB$216,$C$205:$C$216)<0,0, IF(FORECAST($C202,AB$205:AB$216,$C$205:$C$216)>100,100, FORECAST($C202,AB$205:AB$216,$C$205:$C$216)))) -> 0
B204: Survey | C204: Year | D204: Improved | E204: % Improved < = 30min | H204: Surface water | I204: Improved | J204: % Improved < = 30min | M204: Surface water | N204: Improved | O204: % Improved < = 30min | R204: Surface water | S204: Improved | T204: % Improved < = 30min | W204: Surface water | X204: Improved | Y204: % Improved < = 30min | AB204: Surface water
B205: MICS06 | C205: 2006 | D205: =IF(ISERROR(INDIRECT(CONCATENATE($B205,"!H16"))),"",INDIRECT(CONCATENATE($B205,"!H16"))) -> 100 | E205: =IF(ISERROR(INDIRECT(CONCATENATE($B205,"!H23"))),"",INDIRECT(CONCATENATE($B205,"!H23"))) -> 99.78598919 | H205: =IF(ISERROR(INDIRECT(CONCATENATE($B205,"!H21"))),"",INDIRECT(CONCATENATE($B205,"!H21"))) -> 0 | I205: =IF(ISERROR(INDIRECT(CONCATENATE($B205,"!I16"))),"",INDIRECT(CONCATENATE($B205,"!I16"))) -> 100 | J205: =IF(ISERROR(INDIRECT(CONCATENATE($B205,"!I23"))),"",INDIRECT(CONCATENATE($B205,"!I23"))) -> 100 | M205: =IF(ISERROR(INDIRECT(CONCATENATE($B205,"!I21"))),"",INDIRECT(CONCATENATE($B205,"!I21"))) -> 0 | N205: =IF(ISERROR(INDIRECT(CONCATENATE($B205,"!J16"))),"",INDIRECT(CONCATENATE($B205,"!J16"))) -> 100 | O205: =IF(ISERROR(INDIRECT(CONCATENATE($B205,"!J23"))),"",INDIRECT(CONCATENATE($B205,"!J23"))) -> 100 | R205: =IF(ISERROR(INDIRECT(CONCATENATE($B205,"!J21"))),"",INDIRECT(CONCATENATE($B205,"!J21"))) -> 0 | S205: =IF(ISERROR(INDIRECT(CONCATENATE($B205,"!K16"))),"",INDIRECT(CONCATENATE($B205,"!K16"))) -> 100 | T205: =IF(ISERROR(INDIRECT(CONCATENATE($B205,"!K23"))),"",INDIRECT(CONCATENATE($B205,"!K23"))) -> 100 | W205: =IF(ISERROR(INDIRECT(CONCATENATE($B205,"!K21"))),"",INDIRECT(CONCATENATE($B205,"!K21"))) -> 0 | X205: =IF(ISERROR(INDIRECT(CONCATENATE($B205,"!L16"))),"",INDIRECT(CONCATENATE($B205,"!L16"))) -> 100 | Y205: =IF(ISERROR(INDIRECT(CONCATENATE($B205,"!L23"))),"",INDIRECT(CONCATENATE($B205,"!L23"))) -> 100 | AB205: =IF(ISERROR(INDIRECT(CONCATENATE($B205,"!L221"))),"",INDIRECT(CONCATENATE($B205,"!L21"))) -> 0
B206: MICS13 | C206: 2013 | D206: 100 | E206: 97.8 | H206: 0 | I206: 100 | J206: 98.9 | M206: 0 | N206: 100 | O206: 98.7 | R206: 0 | S206: 100 | T206: 98.7 | W206: 0 | X206: 99.9 | Y206: 99 | AB206: 0
B207: MICS18 | C207: 2018 | D207: 100 | E207: 100 | H207: N/A | I207: 99.59788443 | J207: 99.37557076 | M207: N/A | N207: 100 | O207: 99.9667284 | R207: N/A | S207: 99.69018065 | T207: 100 | W207: N/A | X207: 99.74183816 | Y207: 99.51622837 | AB207: N/A
B218: =CONCATENATE("Urban use of drinking water sources, ",C199,"–",C200) -> Urban use of drinking water sources, 2000–2020 | S218: Data points used for regression
E253: =IF(ISERROR(INDIRECT(CONCATENATE($B253,"!M18"))),"",INDIRECT(CONCATENATE($B253,"!M18"))) ->  | F253: =IF(ISERROR(INDIRECT(CONCATENATE($B253,"!M19"))),"",INDIRECT(CONCATENATE($B253,"!M19"))) ->  | G253: =IF(ISERROR(INDIRECT(CONCATENATE($B253,"!M20"))),"",INDIRECT(CONCATENATE($B253,"!M20"))) ->  | H253: =IF(ISERROR(INDIRECT(CONCATENATE($B253,"!M21"))),"",INDIRECT(CONCATENATE($B253,"!M21"))) ->  | J253: =IF(ISERROR(INDIRECT(CONCATENATE($B253,"!N18"))),"",INDIRECT(CONCATENATE($B253,"!N18"))) ->  | K253: =IF(ISERROR(INDIRECT(CONCATENATE($B253,"!N19"))),"",INDIRECT(CONCATENATE($B253,"!N19"))) ->  | L253: =IF(ISERROR(INDIRECT(CONCATENATE($B253,"!N20"))),"",INDIRECT(CONCATENATE($B253,"!N20"))) ->  | M253: =IF(ISERROR(INDIRECT(CONCATENATE($B253,"!N21"))),"",INDIRECT(CONCATENATE($B253,"!N21"))) ->  | O253: =IF(ISERROR(INDIRECT(CONCATENATE($B253,"!O18"))),"",INDIRECT(CONCATENATE($B253,"!O18"))) ->  | P253: =IF(ISERROR(INDIRECT(CONCATENATE($B253,"!O19"))),"",INDIRECT(CONCATENATE($B253,"!O19"))) ->  | Q253: =IF(ISERROR(INDIRECT(CONCATENATE($B253,"!O20"))),"",INDIRECT(CONCATENATE($B253,"!O20"))) ->  | R253: =IF(ISERROR(INDIRECT(CONCATENATE($B253,"!O21"))),"",INDIRECT(CONCATENATE($B253,"!O21"))) ->  | T253: =IF(ISERROR(INDIRECT(CONCATENATE($B253,"!P18"))),"",INDIRECT(CONCATENATE($B253,"!P18"))) ->  | U253: =IF(ISERROR(INDIRECT(CONCATENATE($B253,"!P19"))),"",INDIRECT(CONCATENATE($B253,"!P19"))) ->  | V253: =IF(ISERROR(INDIRECT(CONCATENATE($B253,"!P20"))),"",INDIRECT(CONCATENATE($B253,"!P20"))) ->  | W253: =IF(ISERROR(INDIRECT(CONCATENATE($B253,"!P21"))),"",INDIRECT(CONCATENATE($B253,"!P21"))) ->  | Y253: =IF(ISERROR(INDIRECT(CONCATENATE($B253,"!Q18"))),"",INDIRECT(CONCATENATE($B253,"!Q18"))) ->  | Z253: =IF(ISERROR(INDIRECT(CONCATENATE($B253,"!Q19"))),"",INDIRECT(CONCATENATE($B253,"!Q19"))) ->  | AA253: =IF(ISERROR(INDIRECT(CONCATENATE($B253,"!Q20"))),"",INDIRECT(CONCATENATE($B253,"!Q20"))) ->  | AB253: =IF(ISERROR(INDIRECT(CONCATENATE($B253,"!Q21"))),"",INDIRECT(CONCATENATE($B253,"!Q1"))) -> 
E254: =IF(ISERROR(INDIRECT(CONCATENATE($B254,"!M18"))),"",INDIRECT(CONCATENATE($B254,"!M18"))) ->  | F254: =IF(ISERROR(INDIRECT(CONCATENATE($B254,"!M19"))),"",INDIRECT(CONCATENATE($B254,"!M19"))) ->  | G254: =IF(ISERROR(INDIRECT(CONCATENATE($B254,"!M20"))),"",INDIRECT(CONCATENATE($B254,"!M20"))) ->  | H254: =IF(ISERROR(INDIRECT(CONCATENATE($B254,"!M21"))),"",INDIRECT(CONCATENATE($B254,"!M21"))) ->  | J254: =IF(ISERROR(INDIRECT(CONCATENATE($B254,"!N18"))),"",INDIRECT(CONCATENATE($B254,"!N18"))) ->  | K254: =IF(ISERROR(INDIRECT(CONCATENATE($B254,"!N19"))),"",INDIRECT(CONCATENATE($B254,"!N19"))) ->  | L254: =IF(ISERROR(INDIRECT(CONCATENATE($B254,"!N20"))),"",INDIRECT(CONCATENATE($B254,"!N20"))) ->  | M254: =IF(ISERROR(INDIRECT(CONCATENATE($B254,"!N21"))),"",INDIRECT(CONCATENATE($B254,"!N21"))) ->  | O254: =IF(ISERROR(INDIRECT(CONCATENATE($B254,"!O18"))),"",INDIRECT(CONCATENATE($B254,"!O18"))) ->  | P254: =IF(ISERROR(INDIRECT(CONCATENATE($B254,"!O19"))),"",INDIRECT(CONCATENATE($B254,"!O19"))) ->  | Q254: =IF(ISERROR(INDIRECT(CONCATENATE($B254,"!O20"))),"",INDIRECT(CONCATENATE($B254,"!O20"))) ->  | R254: =IF(ISERROR(INDIRECT(CONCATENATE($B254,"!O21"))),"",INDIRECT(CONCATENATE($B254,"!O21"))) ->  | T254: =IF(ISERROR(INDIRECT(CONCATENATE($B254,"!P18"))),"",INDIRECT(CONCATENATE($B254,"!P18"))) ->  | U254: =IF(ISERROR(INDIRECT(CONCATENATE($B254,"!P19"))),"",INDIRECT(CONCATENATE($B254,"!P19"))) ->  | V254: =IF(ISERROR(INDIRECT(CONCATENATE($B254,"!P20"))),"",INDIRECT(CONCATENATE($B254,"!P20"))) ->  | W254: =IF(ISERROR(INDIRECT(CONCATENATE($B254,"!P21"))),"",INDIRECT(CONCATENATE($B254,"!P21"))) ->  | Y254: =IF(ISERROR(INDIRECT(CONCATENATE($B254,"!Q18"))),"",INDIRECT(CONCATENATE($B254,"!Q18"))) ->  | Z254: =IF(ISERROR(INDIRECT(CONCATENATE($B254,"!Q19"))),"",INDIRECT(CONCATENATE($B254,"!Q19"))) ->  | AA254: =IF(ISERROR(INDIRECT(CONCATENATE($B254,"!Q20"))),"",INDIRECT(CONCATENATE($B254,"!Q20"))) ->  | AB254: =IF(ISERROR(INDIRECT(CONCATENATE($B254,"!Q21"))),"",INDIRECT(CONCATENATE($B254,"!Q1"))) -> 
E255: =IF(ISERROR(INDIRECT(CONCATENATE($B255,"!M18"))),"",INDIRECT(CONCATENATE($B255,"!M18"))) ->  | F255: =IF(ISERROR(INDIRECT(CONCATENATE($B255,"!M19"))),"",INDIRECT(CONCATENATE($B255,"!M19"))) ->  | G255: =IF(ISERROR(INDIRECT(CONCATENATE($B255,"!M20"))),"",INDIRECT(CONCATENATE($B255,"!M20"))) ->  | H255: =IF(ISERROR(INDIRECT(CONCATENATE($B255,"!M21"))),"",INDIRECT(CONCATENATE($B255,"!M21"))) ->  | J255: =IF(ISERROR(INDIRECT(CONCATENATE($B255,"!N18"))),"",INDIRECT(CONCATENATE($B255,"!N18"))) ->  | K255: =IF(ISERROR(INDIRECT(CONCATENATE($B255,"!N19"))),"",INDIRECT(CONCATENATE($B255,"!N19"))) ->  | L255: =IF(ISERROR(INDIRECT(CONCATENATE($B255,"!N20"))),"",INDIRECT(CONCATENATE($B255,"!N20"))) ->  | M255: =IF(ISERROR(INDIRECT(CONCATENATE($B255,"!N21"))),"",INDIRECT(CONCATENATE($B255,"!N21"))) ->  | O255: =IF(ISERROR(INDIRECT(CONCATENATE($B255,"!O18"))),"",INDIRECT(CONCATENATE($B255,"!O18"))) ->  | P255: =IF(ISERROR(INDIRECT(CONCATENATE($B255,"!O19"))),"",INDIRECT(CONCATENATE($B255,"!O19"))) ->  | Q255: =IF(ISERROR(INDIRECT(CONCATENATE($B255,"!O20"))),"",INDIRECT(CONCATENATE($B255,"!O20"))) ->  | R255: =IF(ISERROR(INDIRECT(CONCATENATE($B255,"!O21"))),"",INDIRECT(CONCATENATE($B255,"!O21"))) ->  | T255: =IF(ISERROR(INDIRECT(CONCATENATE($B255,"!P18"))),"",INDIRECT(CONCATENATE($B255,"!P18"))) ->  | U255: =IF(ISERROR(INDIRECT(CONCATENATE($B255,"!P19"))),"",INDIRECT(CONCATENATE($B255,"!P19"))) ->  | V255: =IF(ISERROR(INDIRECT(CONCATENATE($B255,"!P20"))),"",INDIRECT(CONCATENATE($B255,"!P20"))) ->  | W255: =IF(ISERROR(INDIRECT(CONCATENATE($B255,"!P21"))),"",INDIRECT(CONCATENATE($B255,"!P21"))) ->  | Y255: =IF(ISERROR(INDIRECT(CONCATENATE($B255,"!Q18"))),"",INDIRECT(CONCATENATE($B255,"!Q18"))) ->  | Z255: =IF(ISERROR(INDIRECT(CONCATENATE($B255,"!Q19"))),"",INDIRECT(CONCATENATE($B255,"!Q19"))) ->  | AA255: =IF(ISERROR(INDIRECT(CONCATENATE($B255,"!Q20"))),"",INDIRECT(CONCATENATE($B255,"!Q20"))) ->  | AB255: =IF(ISERROR(INDIRECT(CONCATENATE($B255,"!Q21"))),"",INDIRECT(CONCATENATE($B255,"!Q1"))) -> 
E256: =IF(ISERROR(INDIRECT(CONCATENATE($B256,"!M18"))),"",INDIRECT(CONCATENATE($B256,"!M18"))) ->  | F256: =IF(ISERROR(INDIRECT(CONCATENATE($B256,"!M19"))),"",INDIRECT(CONCATENATE($B256,"!M19"))) ->  | G256: =IF(ISERROR(INDIRECT(CONCATENATE($B256,"!M20"))),"",INDIRECT(CONCATENATE($B256,"!M20"))) ->  | H256: =IF(ISERROR(INDIRECT(CONCATENATE($B256,"!M21"))),"",INDIRECT(CONCATENATE($B256,"!M21"))) ->  | J256: =IF(ISERROR(INDIRECT(CONCATENATE($B256,"!N18"))),"",INDIRECT(CONCATENATE($B256,"!N18"))) ->  | K256: =IF(ISERROR(INDIRECT(CONCATENATE($B256,"!N19"))),"",INDIRECT(CONCATENATE($B256,"!N19"))) ->  | L256: =IF(ISERROR(INDIRECT(CONCATENATE($B256,"!N20"))),"",INDIRECT(CONCATENATE($B256,"!N20"))) ->  | M256: =IF(ISERROR(INDIRECT(CONCATENATE($B256,"!N21"))),"",INDIRECT(CONCATENATE($B256,"!N21"))) ->  | O256: =IF(ISERROR(INDIRECT(CONCATENATE($B256,"!O18"))),"",INDIRECT(CONCATENATE($B256,"!O18"))) ->  | P256: =IF(ISERROR(INDIRECT(CONCATENATE($B256,"!O19"))),"",INDIRECT(CONCATENATE($B256,"!O19"))) ->  | Q256: =IF(ISERROR(INDIRECT(CONCATENATE($B256,"!O20"))),"",INDIRECT(CONCATENATE($B256,"!O20"))) ->  | R256: =IF(ISERROR(INDIRECT(CONCATENATE($B256,"!O21"))),"",INDIRECT(CONCATENATE($B256,"!O21"))) ->  | T256: =IF(ISERROR(INDIRECT(CONCATENATE($B256,"!P18"))),"",INDIRECT(CONCATENATE($B256,"!P18"))) ->  | U256: =IF(ISERROR(INDIRECT(CONCATENATE($B256,"!P19"))),"",INDIRECT(CONCATENATE($B256,"!P19"))) ->  | V256: =IF(ISERROR(INDIRECT(CONCATENATE($B256,"!P20"))),"",INDIRECT(CONCATENATE($B256,"!P20"))) ->  | W256: =IF(ISERROR(INDIRECT(CONCATENATE($B256,"!P21"))),"",INDIRECT(CONCATENATE($B256,"!P21"))) ->  | Y256: =IF(ISERROR(INDIRECT(CONCATENATE($B256,"!Q18"))),"",INDIRECT(CONCATENATE($B256,"!Q18"))) ->  | Z256: =IF(ISERROR(INDIRECT(CONCATENATE($B256,"!Q19"))),"",INDIRECT(CONCATENATE($B256,"!Q19"))) ->  | AA256: =IF(ISERROR(INDIRECT(CONCATENATE($B256,"!Q20"))),"",INDIRECT(CONCATENATE($B256,"!Q20"))) ->  | AB256: =IF(ISERROR(INDIRECT(CONCATENATE($B256,"!Q21"))),"",INDIRECT(CONCATENATE($B256,"!Q1"))) -> 
E257: =IF(ISERROR(INDIRECT(CONCATENATE($B257,"!M18"))),"",INDIRECT(CONCATENATE($B257,"!M18"))) ->  | F257: =IF(ISERROR(INDIRECT(CONCATENATE($B257,"!M19"))),"",INDIRECT(CONCATENATE($B257,"!M19"))) ->  | G257: =IF(ISERROR(INDIRECT(CONCATENATE($B257,"!M20"))),"",INDIRECT(CONCATENATE($B257,"!M20"))) ->  | H257: =IF(ISERROR(INDIRECT(CONCATENATE($B257,"!M21"))),"",INDIRECT(CONCATENATE($B257,"!M21"))) ->  | J257: =IF(ISERROR(INDIRECT(CONCATENATE($B257,"!N18"))),"",INDIRECT(CONCATENATE($B257,"!N18"))) ->  | K257: =IF(ISERROR(INDIRECT(CONCATENATE($B257,"!N19"))),"",INDIRECT(CONCATENATE($B257,"!N19"))) ->  | L257: =IF(ISERROR(INDIRECT(CONCATENATE($B257,"!N20"))),"",INDIRECT(CONCATENATE($B257,"!N20"))) ->  | M257: =IF(ISERROR(INDIRECT(CONCATENATE($B257,"!N21"))),"",INDIRECT(CONCATENATE($B257,"!N21"))) ->  | O257: =IF(ISERROR(INDIRECT(CONCATENATE($B257,"!O18"))),"",INDIRECT(CONCATENATE($B257,"!O18"))) ->  | P257: =IF(ISERROR(INDIRECT(CONCATENATE($B257,"!O19"))),"",INDIRECT(CONCATENATE($B257,"!O19"))) ->  | Q257: =IF(ISERROR(INDIRECT(CONCATENATE($B257,"!O20"))),"",INDIRECT(CONCATENATE($B257,"!O20"))) ->  | R257: =IF(ISERROR(INDIRECT(CONCATENATE($B257,"!O21"))),"",INDIRECT(CONCATENATE($B257,"!O21"))) ->  | T257: =IF(ISERROR(INDIRECT(CONCATENATE($B257,"!P18"))),"",INDIRECT(CONCATENATE($B257,"!P18"))) ->  | U257: =IF(ISERROR(INDIRECT(CONCATENATE($B257,"!P19"))),"",INDIRECT(CONCATENATE($B257,"!P19"))) ->  | V257: =IF(ISERROR(INDIRECT(CONCATENATE($B257,"!P20"))),"",INDIRECT(CONCATENATE($B257,"!P20"))) ->  | W257: =IF(ISERROR(INDIRECT(CONCATENATE($B257,"!P21"))),"",INDIRECT(CONCATENATE($B257,"!P21"))) ->  | Y257: =IF(ISERROR(INDIRECT(CONCATENATE($B257,"!Q18"))),"",INDIRECT(CONCATENATE($B257,"!Q18"))) ->  | Z257: =IF(ISERROR(INDIRECT(CONCATENATE($B257,"!Q19"))),"",INDIRECT(CONCATENATE($B257,"!Q19"))) ->  | AA257: =IF(ISERROR(INDIRECT(CONCATENATE($B257,"!Q20"))),"",INDIRECT(CONCATENATE($B257,"!Q20"))) ->  | AB257: =IF(ISERROR(INDIRECT(CONCATENATE($B257,"!Q21"))),"",INDIRECT(CONCATENATE($B257,"!Q1"))) -> 
A297: RURAL | D297: Poorest | I297: Poor | N297: Middle | S297: Rich | X297: Richest
D298: Improved | E298: Basic | F298: Limited | G298: Unimproved | H298: Surface water | I298: Improved | J298: Basic | K298: Limited | L298: Unimproved | M298: Surface water | N298: Improved | O298: Basic | P298: Limited | Q298: Unimproved | R298: Surface water | S298: Improved | T298: Basic | U298: Limited | V298: Unimproved | W298: Surface water | X298: Improved | Y298: Basic | Z298: Limited | AA298: Unimproved | AB298: Surface water
A299: Forecast period: | C299: 2000 | D299: =IF((D301+H301)>100,D301*100/(D301+H301),D301) -> 88.00377328 | E299: =D299*AVERAGEIF(E305:E316,">0")/100 -> 86.98921109 | F299: =D299*(100-AVERAGEIF(E305:E316,">0"))/100 -> 1.014562193 | G299: =100-(E299+F299+H299) -> 11.01933742 | H299: =IF((D301+H301)>100,H301*100/(D301+H301),H301) -> 0.976889294 | I299: =IF((I301+M301)>100,I301*100/(I301+M301),I301) -> 94.27477648 | J299: =I299*AVERAGEIF(J305:J316,">0")/100 -> 93.79873954 | K299: =I299*(100-AVERAGEIF(J305:J316,">0"))/100 -> 0.476036937 | L299: =100-(J299+K299+M299) -> 2.380916774 | M299: =IF((I301+M301)>100,M301*100/(I301+M301),M301) -> 3.344306745 | N299: =IF((N301+R301)>100,N301*100/(N301+R301),N301) -> 99.79621667 | O299: =N299*AVERAGEIF(O305:O316,">0")/100 -> 99.76295127 | P299: =N299*(100-AVERAGEIF(O305:O316,">0"))/100 -> 0.03326540556 | Q299: =100-(O299+P299+R299) -> 0.203783328 | R299: =IF((N301+R301)>100,R301*100/(N301+R301),R301) -> 0 | S299: =IF((S301+W301)>100,S301*100/(S301+W301),S301) -> 98.96703969 | T299: =S299*AVERAGEIF(T305:T316,">0")/100 -> 98.47801609 | U299: =S299*(100-AVERAGEIF(T305:T316,">0"))/100 -> 0.4890235987 | V299: =100-(T299+U299+W299) -> 1.032960312 | W299: =IF((S301+W301)>100,W301*100/(S301+W301),W301) -> 0 | X299: =IF((X301+AB301)>100,X301*100/(X301+AB301),X301) -> 100 | Y299: =X299*AVERAGEIF(Y305:Y316,">0")/100 -> 99.19244532 | Z299: =X299*(100-AVERAGEIF(Y305:Y316,">0"))/100 -> 0.8075546813 | AA299: =100-(Y299+Z299+AB299) -> 0 | AB299: =IF((X301+AB301)>100,AB301*100/(X301+AB301),AB301) -> 0
C300: 2020 | D300: =IF((D302+H302)>100,D302*100/(D302+H302),D302) -> 100 | E300: =D300*AVERAGEIF(E305:E316,">0")/100 -> 98.84713785 | F300: =D300*(100-AVERAGEIF(E305:E316,">0"))/100 -> 1.152862151 | G300: =100-(E300+F300+H300) -> 0 | H300: =IF((D302+H302)>100,H302*100/(D302+H302),H302) -> 0 | I300: =IF((I302+M302)>100,I302*100/(I302+M302),I302) -> 100 | J300: =I300*AVERAGEIF(J305:J316,">0")/100 -> 99.49505376 | K300: =I300*(100-AVERAGEIF(J305:J316,">0"))/100 -> 0.5049462378 | L300: =100-(J300+K300+M300) -> 0 | M300: =IF((I302+M302)>100,M302*100/(I302+M302),M302) -> 0 | N300: =IF((N302+R302)>100,N302*100/(N302+R302),N302) -> 97.62761125 | O300: =N300*AVERAGEIF(O305:O316,">0")/100 -> 97.59506871 | P300: =N300*(100-AVERAGEIF(O305:O316,">0"))/100 -> 0.03254253708 | Q300: =100-(O300+P300+R300) -> 2.372388755 | R300: =IF((N302+R302)>100,R302*100/(N302+R302),R302) -> 0 | S300: =IF((S302+W302)>100,S302*100/(S302+W302),S302) -> 98.01086597 | T300: =S300*AVERAGEIF(T305:T316,">0")/100 -> 97.52656709 | U300: =S300*(100-AVERAGEIF(T305:T316,">0"))/100 -> 0.484298879 | V300: =100-(T300+U300+W300) -> 1.989134031 | W300: =IF((S302+W302)>100,W302*100/(S302+W302),W302) -> 0 | X300: =IF((X302+AB302)>100,X302*100/(X302+AB302),X302) -> 97.93099564 | Y300: =X300*AVERAGEIF(Y305:Y316,">0")/100 -> 97.1401493 | Z300: =X300*(100-AVERAGEIF(Y305:Y316,">0"))/100 -> 0.7908463398 | AA300: =100-(Y300+Z300+AB300) -> 2.069004356 | AB300: =IF((X302+AB302)>100,AB302*100/(X302+AB302),AB302) -> 0
A301: Regression period: | C301: =MinRegYear(C299,C305:C316) -> 2004 | D301: =IF(MAX(C305:C316)-MIN(C305:C316)<5,AVERAGEIF(C305:C316,">0",D305:D316), IF(FORECAST($C301,D$305:D$316,$C$305:$C$316)<0,0, IF(FORECAST($C301,D$305:D$316,$C$305:$C$316)>100,100, FORECAST($C301,D$305:D$316,$C$305:$C$316)))) -> 88.00377328 | H301: =IF(MAX(C305:C316)-MIN(C305:C316)<5,AVERAGEIF(C305:C316,">0",H305:H316), IF(FORECAST($C301,H$305:H$316,$C$305:$C$316)<0,0, IF(FORECAST($C301,H$305:H$316,$C$305:$C$316)>100,100, FORECAST($C301,H$305:H$316,$C$305:$C$316)))) -> 0.976889294 | I301: =IF(MAX(C305:C316)-MIN(C305:C316)<5,AVERAGEIF(C305:C316,">0",I305:I316), IF(FORECAST($C301,I$305:I$316,$C$305:$C$316)<0,0, IF(FORECAST($C301,I$305:I$316,$C$305:$C$316)>100,100, FORECAST($C301,I$305:I$316,$C$305:$C$316)))) -> 94.27477648 | M301: =IF(MAX(C305:C316)-MIN(C305:C316)<5,AVERAGEIF(C305:C316,">0",M305:M316), IF(FORECAST($C301,M$305:M$316,$C$305:$C$316)<0,0, IF(FORECAST($C301,M$305:M$316,$C$305:$C$316)>100,100, FORECAST($C301,M$305:M$316,$C$305:$C$316)))) -> 3.344306745 | N301: =IF(MAX(C305:C316)-MIN(C305:C316)<5,AVERAGEIF(C305:C316,">0",N305:N316), IF(FORECAST($C301,N$305:N$316,$C$305:$C$316)<0,0, IF(FORECAST($C301,N$305:N$316,$C$305:$C$316)>100,100, FORECAST($C301,N$305:N$316,$C$305:$C$316)))) -> 99.79621667 | R301: =IF(MAX(C305:C316)-MIN(C305:C316)<5,AVERAGEIF(C305:C316,">0",R305:R316), IF(FORECAST($C301,R$305:R$316,$C$305:$C$316)<0,0, IF(FORECAST($C301,R$305:R$316,$C$305:$C$316)>100,100, FORECAST($C301,R$305:R$316,$C$305:$C$316)))) -> 0 | S301: =IF(MAX(C305:C316)-MIN(C305:C316)<5,AVERAGEIF(C305:C316,">0",S305:S316), IF(FORECAST($C301,S$305:S$316,$C$305:$C$316)<0,0, IF(FORECAST($C301,S$305:S$316,$C$305:$C$316)>100,100, FORECAST($C301,S$305:S$316,$C$305:$C$316)))) -> 98.96703969 | W301: =IF(MAX(C305:C316)-MIN(C305:C316)<5,AVERAGEIF(C305:C316,">0",W305:W316), IF(FORECAST($C301,W$305:W$316,$C$305:$C$316)<0,0, IF(FORECAST($C301,W$305:W$316,$C$305:$C$316)>100,100, FORECAST($C301,W$305:W$316,$C$305:$C$316)))) -> 0 | X301: =IF(MAX(C305:C316)-MIN(C305:C316)<5,AVERAGEIF(C305:C316,">0",X305:X316), IF(FORECAST($C301,X$305:X$316,$C$305:$C$316)<0,0, IF(FORECAST($C301,X$305:X$316,$C$305:$C$316)>100,100, FORECAST($C301,X$305:X$316,$C$305:$C$316)))) -> 100 | AB301: =IF(MAX(C305:C316)-MIN(C305:C316)<5,AVERAGEIF(C305:C316,">0",AB305:AB316), IF(FORECAST($C301,AB$305:AB$316,$C$305:$C$316)<0,0, IF(FORECAST($C301,AB$305:AB$316,$C$305:$C$316)>100,100, FORECAST($C301,AB$305:AB$316,$C$305:$C$316)))) -> 0
C302: =MaxRegYear(C300,C305:C316) -> 2020 | D302: =IF(MAX(C305:C316)-MIN(C305:C316)<5,AVERAGEIF(C305:C316,">0",D305:D316), IF(FORECAST($C302,D$305:D$316,$C$305:$C$316)<0,0, IF(FORECAST($C302,D$305:D$316,$C$305:$C$316)>100,100, FORECAST($C302,D$305:D$316,$C$305:$C$316)))) -> 100 | H302: =IF(MAX(C305:C316)-MIN(C305:C316)<5,AVERAGEIF(C305:C316,">0",H305:H316), IF(FORECAST($C302,H$305:H$316,$C$305:$C$316)<0,0, IF(FORECAST($C302,H$305:H$316,$C$305:$C$316)>100,100, FORECAST($C302,H$305:H$316,$C$305:$C$316)))) -> 0 | I302: =IF(MAX(C305:C316)-MIN(C305:C316)<5,AVERAGEIF(C305:C316,">0",I305:I316), IF(FORECAST($C302,I$305:I$316,$C$305:$C$316)<0,0, IF(FORECAST($C302,I$305:I$316,$C$305:$C$316)>100,100, FORECAST($C302,I$305:I$316,$C$305:$C$316)))) -> 100 | M302: =IF(MAX(C305:C316)-MIN(C305:C316)<5,AVERAGEIF(C305:C316,">0",M305:M316), IF(FORECAST($C302,M$305:M$316,$C$305:$C$316)<0,0, IF(FORECAST($C302,M$305:M$316,$C$305:$C$316)>100,100, FORECAST($C302,M$305:M$316,$C$305:$C$316)))) -> 0 | N302: =IF(MAX(C305:C316)-MIN(C305:C316)<5,AVERAGEIF(C305:C316,">0",N305:N316), IF(FORECAST($C302,N$305:N$316,$C$305:$C$316)<0,0, IF(FORECAST($C302,N$305:N$316,$C$305:$C$316)>100,100, FORECAST($C302,N$305:N$316,$C$305:$C$316)))) -> 97.62761125 | R302: =IF(MAX(C305:C316)-MIN(C305:C316)<5,AVERAGEIF(C305:C316,">0",R305:R316), IF(FORECAST($C302,R$305:R$316,$C$305:$C$316)<0,0, IF(FORECAST($C302,R$305:R$316,$C$305:$C$316)>100,100, FORECAST($C302,R$305:R$316,$C$305:$C$316)))) -> 0 | S302: =IF(MAX(C305:C316)-MIN(C305:C316)<5,AVERAGEIF(C305:C316,">0",S305:S316), IF(FORECAST($C302,S$305:S$316,$C$305:$C$316)<0,0, IF(FORECAST($C302,S$305:S$316,$C$305:$C$316)>100,100, FORECAST($C302,S$305:S$316,$C$305:$C$316)))) -> 98.01086597 | W302: =IF(MAX(C305:C316)-MIN(C305:C316)<5,AVERAGEIF(C305:C316,">0",W305:W316), IF(FORECAST($C302,W$305:W$316,$C$305:$C$316)<0,0, IF(FORECAST($C302,W$305:W$316,$C$305:$C$316)>100,100, FORECAST($C302,W$305:W$316,$C$305:$C$316)))) -> 0 | X302: =IF(MAX(C305:C316)-MIN(C305:C316)<5,AVERAGEIF(C305:C316,">0",X305:X316), IF(FORECAST($C302,X$305:X$316,$C$305:$C$316)<0,0, IF(FORECAST($C302,X$305:X$316,$C$305:$C$316)>100,100, FORECAST($C302,X$305:X$316,$C$305:$C$316)))) -> 97.93099564 | AB302: =IF(MAX(C305:C316)-MIN(C305:C316)<5,AVERAGEIF(C305:C316,">0",AB305:AB316), IF(FORECAST($C302,AB$305:AB$316,$C$305:$C$316)<0,0, IF(FORECAST($C302,AB$305:AB$316,$C$305:$C$316)>100,100, FORECAST($C302,AB$305:AB$316,$C$305:$C$316)))) -> 0
B304: Survey | C304: Year | D304: Improved | E304: % Improved < = 30min | H304: Surface water | I304: Improved | J304: % Improved < = 30min | M304: Surface water | N304: Improved | O304: % Improved < = 30min | R304: Surface water | S304: Improved | T304: % Improved < = 30min | W304: Surface water | X304: Improved | Y304: % Improved < = 30min | AB304: Surface water
B305: MICS06 | C305: 2006 | D305: =IF(ISERROR(INDIRECT(CONCATENATE($B305,"!M16"))),"",INDIRECT(CONCATENATE($B305,"!M16"))) -> 88.81605419 | E305: =IF(ISERROR(INDIRECT(CONCATENATE($B305,"!M23"))),"",INDIRECT(CONCATENATE($B305,"!M23"))) -> 98.4577991 | H305: =IF(ISERROR(INDIRECT(CONCATENATE($B305,"!M21"))),"",INDIRECT(CONCATENATE($B305,"!M21"))) -> 0.7820250064 | I305: =IF(ISERROR(INDIRECT(CONCATENATE($B305,"!N16"))),"",INDIRECT(CONCATENATE($B305,"!N16"))) -> 94.88696464 | J305: =IF(ISERROR(INDIRECT(CONCATENATE($B305,"!N23"))),"",INDIRECT(CONCATENATE($B305,"!N23"))) -> 99.22475687 | M305: =IF(ISERROR(INDIRECT(CONCATENATE($B305,"!N21"))),"",INDIRECT(CONCATENATE($B305,"!N21"))) -> 2.601127468 | N305: =IF(ISERROR(INDIRECT(CONCATENATE($B305,"!O16"))),"",INDIRECT(CONCATENATE($B305,"!O16"))) -> 99.09863104 | O305: =IF(ISERROR(INDIRECT(CONCATENATE($B305,"!O23"))),"",INDIRECT(CONCATENATE($B305,"!O23"))) -> 100 | R305: =IF(ISERROR(INDIRECT(CONCATENATE($B305,"!O21"))),"",INDIRECT(CONCATENATE($B305,"!O21"))) -> 0 | S305: =IF(ISERROR(INDIRECT(CONCATENATE($B305,"!P16"))),"",INDIRECT(CONCATENATE($B305,"!P16"))) -> 98.52634796 | T305: =IF(ISERROR(INDIRECT(CONCATENATE($B305,"!P23"))),"",INDIRECT(CONCATENATE($B305,"!P23"))) -> 100 | W305: =IF(ISERROR(INDIRECT(CONCATENATE($B305,"!P21"))),"",INDIRECT(CONCATENATE($B305,"!P21"))) -> 0 | X305: =IF(ISERROR(INDIRECT(CONCATENATE($B305,"!Q16"))),"",INDIRECT(CONCATENATE($B305,"!Q16"))) -> 100 | Y305: =IF(ISERROR(INDIRECT(CONCATENATE($B305,"!Q23"))),"",INDIRECT(CONCATENATE($B305,"!Q23"))) -> 99.27733596 | AB305: =IF(ISERROR(INDIRECT(CONCATENATE($B305,"!Q221"))),"",INDIRECT(CONCATENATE($B305,"!Q21"))) -> 0
B306: MICS13 | C306: 2013 | D306: 96.6 | E306: 98.6 | H306: 0.1 | I306: 97.9 | J306: 99.8 | M306: 0 | N306: 99.6 | O306: 99.9 | R306: 0 | S306: 99.2 | T306: 99.4 | W306: 0 | X306: 100 | Y306: 98.3 | AB306: 0
B307: MICS18 | C307: 2018 | D307: 97.69979624 | E307: 99.48361445 | H307: N/A | I307: 99.26648636 | J307: 99.46040441 | M307: N/A | N307: 97.30157299 | O307: 100 | R307: N/A | S307: 97.68074967 | T307: 99.11761677 | W307: N/A | X307: 97.77811355 | Y307: 100 | AB307: N/A
B318: =CONCATENATE("Rural use of drinking water sources, ",C299,"–",C300) -> Rural use of drinking water sources, 2000–2020 | S318: Data points used for regression

Sheet Sanitation
B4: Summary of trends in use of sanitation facilities by wealth quintile (%)
B5: =IF(ISERROR(INDIRECT(CONCATENATE($B105,"!A2"))),"",INDIRECT(CONCATENATE($B105,"!A2"))) -> Montenegro
B7: =B118 -> National use of sanitation facilities, 2000–2020 | J7: =B218 -> Urban use of sanitation facilities, 2000–2020 | R7: =B318 -> Rural use of sanitation facilities, 2000–2020
B31: =IF(ISERROR(INDIRECT(CONCATENATE($B105,"!A2"))),"",INDIRECT(CONCATENATE($B105,"!A2"))) -> Montenegro | F31: Poorest | J31: Poor | N31: Middle | R31: Rich | V31: Richest
F32: Basic | G32: Limited | H32: Unimproved | I32: Open defecation | J32: Basic | K32: Limited | L32: Unimproved | M32: Open defecation | N32: Basic | O32: Limited | P32: Unimproved | Q32: Open defecation | R32: Basic | S32: Limited | T32: Unimproved | U32: Open defecation | V32: Basic | W32: Limited | X32: Unimproved | Y32: Open defecation
B33: NATIONAL | D33: Estimate | E33: =C99 -> 2000 | F33: =E99 -> 90.17259835 | G33: =F99 -> 3.144586596 | H33: 5.582114728 | I33: 1.100700327 | J33: =J99 -> 98.91591569 | K33: =K99 -> 0.457703242 | L33: 0.6263810722 | M33: 0 | N33: =O99 -> 99.52465473 | O33: =P99 -> 0.467307578 | P33: 0.008037692266 | Q33: 0 | R33: =T99 -> 99.3240354 | S33: =U99 -> 0.4495609386 | T33: 0 | U33: 0.2264036601 | V33: =Y99 -> 99.86816118 | W33: =Z99 -> 0.1318388212 | X33: 0 | Y33: 0
E34: =C100 -> 2020 | F34: =E100 -> 86.32121394 | G34: 3.010277372 | H34: 10.51940443 | I34: 0.1491042614 | J34: =J100 -> 95.05965698 | K34: 0.4398595806 | L34: 4.500483438 | M34: 0 | N34: =O100 -> 97.60848583 | O34: 0.4583104079 | P34: 1.933203758 | Q34: 0 | R34: =T100 -> 98.53230799 | S34: 0.4459774181 | T34: 1.02171459 | U34: 0 | V34: =Y100 -> 99.39074035 | W34: 0.1312085643 | X34: 0.4780510878 | Y34: 0
B36: URBAN | D36: Estimate | E36: =C199 -> 2000 | F36: =E199 -> 94.00444411 | G36: =F199 -> 4.134097991 | H36: 1.86137888 | I36: 7.901477378e-05 | J36: =J199 -> 99.46518711 | K36: =K199 -> 0.1372749318 | L36: 0.3975379606 | M36: 0 | N36: =O199 -> 98.88597983 | O36: =P199 -> 0.6745141377 | P36: 0.07590485802 | Q36: 0.3636011752 | R36: =T199 -> 99.59380412 | S36: =U199 -> 0.394224988 | T36: 0.0119708958 | U36: 0 | V36: =Y199 -> 99.91587 | W36: =Z199 -> 0.08412999852 | X36: 0 | Y36: 0
E37: =C200 -> 2020 | F37: =E200 -> 92.40197396 | G37: 4.06362506 | H37: 3.193270699 | I37: 0.3411302845 | J37: =J200 -> 98.55611745 | K37: 0.1360202971 | L37: 1.307862256 | M37: 0 | N37: =O200 -> 98.4701641 | O37: 0.6716778045 | P37: 0.8581580975 | Q37: 0 | R37: =T200 -> 99.36889902 | S37: 0.3933347398 | T37: 0.2377662375 | U37: 0 | V37: =Y200 -> 99.18687881 | W37: 0.08351618184 | X37: 0.7296050123 | Y37: 0
B39: RURAL | D39: Estimate | E39: =C299 -> 2000 | F39: =E299 -> 91.66605268 | G39: =F299 -> 2.165336888 | H39: 4.842045907 | I39: 1.326564524 | J39: =J299 -> 91.20598105 | K39: =K299 -> 0.3267991725 | L39: 6.908277763 | M39: 1.558942012 | N39: =O299 -> 99.82920286 | O39: =P299 -> 0 | P39: 0.1707971415 | Q39: 0 | R39: =T299 -> 99.40088442 | S39: =U299 -> 0.5991155828 | T39: 0 | U39: 0 | V39: =Y299 -> 99.78150026 | W39: =Z299 -> 0.2184997435 | X39: 0 | Y39: 0
E40: =C300 -> 2020 | F40: =E300 -> 78.20567675 | G40: 1.847375684 | H40: 19.56329791 | I40: 0.3836496629 | J40: =J300 -> 90.59126385 | K40: 0.3245965859 | L40: 9.084139565 | M40: 0 | N40: =O300 -> 91.67815254 | O40: 0 | P40: 8.321847456 | Q40: 0 | R40: =T300 -> 95.86258445 | S40: 0.5777893073 | T40: 3.559626243 | U40: 0 | V40: =Y300 -> 98.78869787 | W40: 0.2163257226 | X40: 0.9949764086 | Y40: 0
A97: NATIONAL | D97: Poorest | I97: Poor | N97: Middle | S97: Rich | X97: Richest
D98: Improved | E98: Basic | F98: Limited | G98: Unimproved | H98: Open defecation | I98: Improved | J98: Basic | K98: Limited | L98: Unimproved | M98: Open defecation | N98: Improved | O98: Basic | P98: Limited | Q98: Unimproved | R98: Open defecation | S98: Improved | T98: Basic | U98: Limited | V98: Unimproved | W98: Open defecation | X98: Improved | Y98: Basic | Z98: Limited | AA98: Unimproved | AB98: Open defecation
A99: Forecast period: | C99: 2000 | D99: =IF((D101+H101)>100,D101*100/(D101+H101),D101) -> 93.31718494 | E99: =D99*AVERAGEIF(E105:E116,">0")/100 -> 90.17259835 | F99: =D99*(100-AVERAGEIF(E105:E116,">0"))/100 -> 3.144586596 | G99: =100-(E99+F99+H99) -> 5.582114728 | H99: =IF((D101+H101)>100,H101*100/(D101+H101),H101) -> 1.100700327 | I99: =IF((I101+M101)>100,I101*100/(I101+M101),I101) -> 99.37361893 | J99: =I99*AVERAGEIF(J105:J116,">0")/100 -> 98.91591569 | K99: =I99*(100-AVERAGEIF(J105:J116,">0"))/100 -> 0.457703242 | L99: =100-(J99+K99+M99) -> 0.6263810722 | M99: =IF((I101+M101)>100,M101*100/(I101+M101),M101) -> 0 | N99: =IF((N101+R101)>100,N101*100/(N101+R101),N101) -> 99.99196231 | O99: =N99*AVERAGEIF(O105:O116,">0")/100 -> 99.52465473 | P99: =N99*(100-AVERAGEIF(O105:O116,">0"))/100 -> 0.467307578 | Q99: =100-(O99+P99+R99) -> 0.008037692266 | R99: =IF((N101+R101)>100,R101*100/(N101+R101),R101) -> 0 | S99: =IF((S101+W101)>100,S101*100/(S101+W101),S101) -> 99.77359634 | T99: =S99*AVERAGEIF(T105:T116,">0")/100 -> 99.3240354 | U99: =S99*(100-AVERAGEIF(T105:T116,">0"))/100 -> 0.4495609386 | V99: =100-(T99+U99+W99) -> 0 | W99: =IF((S101+W101)>100,W101*100/(S101+W101),W101) -> 0.2264036601 | X99: =IF((X101+AB101)>100,X101*100/(X101+AB101),X101) -> 100 | Y99: =X99*AVERAGEIF(Y105:Y116,">0")/100 -> 99.86816118 | Z99: =X99*(100-AVERAGEIF(Y105:Y116,">0"))/100 -> 0.1318388212 | AA99: =100-(Y99+Z99+AB99) -> 0 | AB99: =IF((X101+AB101)>100,AB101*100/(X101+AB101),AB101) -> 0
C100: 2020 | D100: =IF((D102+H102)>100,D102*100/(D102+H102),D102) -> 89.33149131 | E100: =D100*AVERAGEIF(E105:E116,">0")/100 -> 86.32121394 | F100: =D100*(100-AVERAGEIF(E105:E116,">0"))/100 -> 3.010277372 | G100: =100-(E100+F100+H100) -> 10.51940443 | H100: =IF((D102+H102)>100,H102*100/(D102+H102),H102) -> 0.1491042614 | I100: =IF((I102+M102)>100,I102*100/(I102+M102),I102) -> 95.49951656 | J100: =I100*AVERAGEIF(J105:J116,">0")/100 -> 95.05965698 | K100: =I100*(100-AVERAGEIF(J105:J116,">0"))/100 -> 0.4398595806 | L100: =100-(J100+K100+M100) -> 4.500483438 | M100: =IF((I102+M102)>100,M102*100/(I102+M102),M102) -> 0 | N100: =IF((N102+R102)>100,N102*100/(N102+R102),N102) -> 98.06679624 | O100: =N100*AVERAGEIF(O105:O116,">0")/100 -> 97.60848583 | P100: =N100*(100-AVERAGEIF(O105:O116,">0"))/100 -> 0.4583104079 | Q100: =100-(O100+P100+R100) -> 1.933203758 | R100: =IF((N102+R102)>100,R102*100/(N102+R102),R102) -> 0 | S100: =IF((S102+W102)>100,S102*100/(S102+W102),S102) -> 98.97828541 | T100: =S100*AVERAGEIF(T105:T116,">0")/100 -> 98.53230799 | U100: =S100*(100-AVERAGEIF(T105:T116,">0"))/100 -> 0.4459774181 | V100: =100-(T100+U100+W100) -> 1.02171459 | W100: =IF((S102+W102)>100,W102*100/(S102+W102),W102) -> 0 | X100: =IF((X102+AB102)>100,X102*100/(X102+AB102),X102) -> 99.52194891 | Y100: =X100*AVERAGEIF(Y105:Y116,">0")/100 -> 99.39074035 | Z100: =X100*(100-AVERAGEIF(Y105:Y116,">0"))/100 -> 0.1312085643 | AA100: =100-(Y100+Z100+AB100) -> 0.4780510878 | AB100: =IF((X102+AB102)>100,AB102*100/(X102+AB102),AB102) -> 0
A101: Regression period: | C101: =MinRegYear(C99,C105:C116) -> 2004 | D101: =IF(MAX(C105:C116)-MIN(C105:C116)<5,AVERAGEIF(C105:C116,">0",D105:D116), IF(FORECAST($C101,D$105:D$116,$C$105:$C$116)<0,0, IF(FORECAST($C101,D$105:D$116,$C$105:$C$116)>100,100, FORECAST($C101,D$105:D$116,$C$105:$C$116)))) -> 93.31718494 | H101: =IF(MAX(C105:C116)-MIN(C105:C116)<5,AVERAGEIF(C105:C116,">0",H105:H116), IF(FORECAST($C101,H$105:H$116,$C$105:$C$116)<0,0, IF(FORECAST($C101,H$105:H$116,$C$105:$C$116)>100,100, FORECAST($C101,H$105:H$116,$C$105:$C$116)))) -> 1.100700327 | I101: =IF(MAX(C105:C116)-MIN(C105:C116)<5,AVERAGEIF(C105:C116,">0",I105:I116), IF(FORECAST($C101,I$105:I$116,$C$105:$C$116)<0,0, IF(FORECAST($C101,I$105:I$116,$C$105:$C$116)>100,100, FORECAST($C101,I$105:I$116,$C$105:$C$116)))) -> 99.37361893 | M101: =IF(MAX(C105:C116)-MIN(C105:C116)<5,AVERAGEIF(C105:C116,">0",M105:M116), IF(FORECAST($C101,M$105:M$116,$C$105:$C$116)<0,0, IF(FORECAST($C101,M$105:M$116,$C$105:$C$116)>100,100, FORECAST($C101,M$105:M$116,$C$105:$C$116)))) -> 0 | N101: =IF(MAX(C105:C116)-MIN(C105:C116)<5,AVERAGEIF(C105:C116,">0",N105:N116), IF(FORECAST($C101,N$105:N$116,$C$105:$C$116)<0,0, IF(FORECAST($C101,N$105:N$116,$C$105:$C$116)>100,100, FORECAST($C101,N$105:N$116,$C$105:$C$116)))) -> 99.99196231 | R101: =IF(MAX(C105:C116)-MIN(C105:C116)<5,AVERAGEIF(C105:C116,">0",R105:R116), IF(FORECAST($C101,R$105:R$116,$C$105:$C$116)<0,0, IF(FORECAST($C101,R$105:R$116,$C$105:$C$116)>100,100, FORECAST($C101,R$105:R$116,$C$105:$C$116)))) -> 0 | S101: =IF(MAX(C105:C116)-MIN(C105:C116)<5,AVERAGEIF(C105:C116,">0",S105:S116), IF(FORECAST($C101,S$105:S$116,$C$105:$C$116)<0,0, IF(FORECAST($C101,S$105:S$116,$C$105:$C$116)>100,100, FORECAST($C101,S$105:S$116,$C$105:$C$116)))) -> 99.90820545 | W101: =IF(MAX(C105:C116)-MIN(C105:C116)<5,AVERAGEIF(C105:C116,">0",W105:W116), IF(FORECAST($C101,W$105:W$116,$C$105:$C$116)<0,0, IF(FORECAST($C101,W$105:W$116,$C$105:$C$116)>100,100, FORECAST($C101,W$105:W$116,$C$105:$C$116)))) -> 0.2267091116 | X101: =IF(MAX(C105:C116)-MIN(C105:C116)<5,AVERAGEIF(C105:C116,">0",X105:X116), IF(FORECAST($C101,X$105:X$116,$C$105:$C$116)<0,0, IF(FORECAST($C101,X$105:X$116,$C$105:$C$116)>100,100, FORECAST($C101,X$105:X$116,$C$105:$C$116)))) -> 100 | AB101: =IF(MAX(C105:C116)-MIN(C105:C116)<5,AVERAGEIF(C105:C116,">0",AB105:AB116), IF(FORECAST($C101,AB$105:AB$116,$C$105:$C$116)<0,0, IF(FORECAST($C101,AB$105:AB$116,$C$105:$C$116)>100,100, FORECAST($C101,AB$105:AB$116,$C$105:$C$116)))) -> 0
C102: =MaxRegYear(C100,C105:C116) -> 2020 | D102: =IF(MAX(C105:C116)-MIN(C105:C116)<5,AVERAGEIF(C105:C116,">0",D105:D116), IF(FORECAST($C102,D$105:D$116,$C$105:$C$116)<0,0, IF(FORECAST($C102,D$105:D$116,$C$105:$C$116)>100,100, FORECAST($C102,D$105:D$116,$C$105:$C$116)))) -> 89.33149131 | H102: =IF(MAX(C105:C116)-MIN(C105:C116)<5,AVERAGEIF(C105:C116,">0",H105:H116), IF(FORECAST($C102,H$105:H$116,$C$105:$C$116)<0,0, IF(FORECAST($C102,H$105:H$116,$C$105:$C$116)>100,100, FORECAST($C102,H$105:H$116,$C$105:$C$116)))) -> 0.1491042614 | I102: =IF(MAX(C105:C116)-MIN(C105:C116)<5,AVERAGEIF(C105:C116,">0",I105:I116), IF(FORECAST($C102,I$105:I$116,$C$105:$C$116)<0,0, IF(FORECAST($C102,I$105:I$116,$C$105:$C$116)>100,100, FORECAST($C102,I$105:I$116,$C$105:$C$116)))) -> 95.49951656 | M102: =IF(MAX(C105:C116)-MIN(C105:C116)<5,AVERAGEIF(C105:C116,">0",M105:M116), IF(FORECAST($C102,M$105:M$116,$C$105:$C$116)<0,0, IF(FORECAST($C102,M$105:M$116,$C$105:$C$116)>100,100, FORECAST($C102,M$105:M$116,$C$105:$C$116)))) -> 0 | N102: =IF(MAX(C105:C116)-MIN(C105:C116)<5,AVERAGEIF(C105:C116,">0",N105:N116), IF(FORECAST($C102,N$105:N$116,$C$105:$C$116)<0,0, IF(FORECAST($C102,N$105:N$116,$C$105:$C$116)>100,100, FORECAST($C102,N$105:N$116,$C$105:$C$116)))) -> 98.06679624 | R102: =IF(MAX(C105:C116)-MIN(C105:C116)<5,AVERAGEIF(C105:C116,">0",R105:R116), IF(FORECAST($C102,R$105:R$116,$C$105:$C$116)<0,0, IF(FORECAST($C102,R$105:R$116,$C$105:$C$116)>100,100, FORECAST($C102,R$105:R$116,$C$105:$C$116)))) -> 0 | S102: =IF(MAX(C105:C116)-MIN(C105:C116)<5,AVERAGEIF(C105:C116,">0",S105:S116), IF(FORECAST($C102,S$105:S$116,$C$105:$C$116)<0,0, IF(FORECAST($C102,S$105:S$116,$C$105:$C$116)>100,100, FORECAST($C102,S$105:S$116,$C$105:$C$116)))) -> 98.97828541 | W102: =IF(MAX(C105:C116)-MIN(C105:C116)<5,AVERAGEIF(C105:C116,">0",W105:W116), IF(FORECAST($C102,W$105:W$116,$C$105:$C$116)<0,0, IF(FORECAST($C102,W$105:W$116,$C$105:$C$116)>100,100, FORECAST($C102,W$105:W$116,$C$105:$C$116)))) -> 0 | X102: =IF(MAX(C105:C116)-MIN(C105:C116)<5,AVERAGEIF(C105:C116,">0",X105:X116), IF(FORECAST($C102,X$105:X$116,$C$105:$C$116)<0,0, IF(FORECAST($C102,X$105:X$116,$C$105:$C$116)>100,100, FORECAST($C102,X$105:X$116,$C$105:$C$116)))) -> 99.52194891 | AB102: =IF(MAX(C105:C116)-MIN(C105:C116)<5,AVERAGEIF(C105:C116,">0",AB105:AB116), IF(FORECAST($C102,AB$105:AB$116,$C$105:$C$116)<0,0, IF(FORECAST($C102,AB$105:AB$116,$C$105:$C$116)>100,100, FORECAST($C102,AB$105:AB$116,$C$105:$C$116)))) -> 0
B104: Survey | C104: Year | D104: Improved | E104: Not shared | H104: Open defecation | I104: Improved | J104: Not shared | M104: Open defecation | N104: Improved | O104: Not shared | R104: Open defecation | S104: Improved | T104: Not shared | W104: Open defecation | X104: Improved | Y104: Not shared | AB104: Open defecation
B105: MICS06 | C105: 2006 | D105: =IF(ISERROR(INDIRECT(CONCATENATE($B105,"!C122"))),"",INDIRECT(CONCATENATE($B105,"!C122"))) -> 93.87101658 | E105: =IF(ISERROR(INDIRECT(CONCATENATE($B105,"!C129"))),"",INDIRECT(CONCATENATE($B105,"!C129"))) -> N/A | H105: =IF(ISERROR(INDIRECT(CONCATENATE($B105,"!C127"))),"",INDIRECT(CONCATENATE($B105,"!C127"))) -> 1.087751059 | I105: =IF(ISERROR(INDIRECT(CONCATENATE($B105,"!D122"))),"",INDIRECT(CONCATENATE($B105,"!D122"))) -> 99.39728909 | J105: =IF(ISERROR(INDIRECT(CONCATENATE($B105,"!D129"))),"",INDIRECT(CONCATENATE($B105,"!D129"))) -> N/A | M105: =IF(ISERROR(INDIRECT(CONCATENATE($B105,"!D127"))),"",INDIRECT(CONCATENATE($B105,"!D127"))) -> 0 | N105: =IF(ISERROR(INDIRECT(CONCATENATE($B105,"!E122"))),"",INDIRECT(CONCATENATE($B105,"!E122"))) -> 99.93052398 | O105: =IF(ISERROR(INDIRECT(CONCATENATE($B105,"!E129"))),"",INDIRECT(CONCATENATE($B105,"!E129"))) -> N/A | R105: =IF(ISERROR(INDIRECT(CONCATENATE($B105,"!E127"))),"",INDIRECT(CONCATENATE($B105,"!E127"))) -> 0 | S105: =IF(ISERROR(INDIRECT(CONCATENATE($B105,"!F122"))),"",INDIRECT(CONCATENATE($B105,"!F122"))) -> 99.78604941 | T105: =IF(ISERROR(INDIRECT(CONCATENATE($B105,"!F129"))),"",INDIRECT(CONCATENATE($B105,"!F129"))) -> N/A | W105: =IF(ISERROR(INDIRECT(CONCATENATE($B105,"!F127"))),"",INDIRECT(CONCATENATE($B105,"!F127"))) -> 0.2139505902 | X105: =IF(ISERROR(INDIRECT(CONCATENATE($B105,"!G122"))),"",INDIRECT(CONCATENATE($B105,"!G122"))) -> 100 | Y105: =IF(ISERROR(INDIRECT(CONCATENATE($B105,"!G129"))),"",INDIRECT(CONCATENATE($B105,"!G129"))) -> N/A | AB105: =IF(ISERROR(INDIRECT(CONCATENATE($B105,"!G2127"))),"",INDIRECT(CONCATENATE($B105,"!G127"))) -> 0
B106: MICS13 | C106: 2013 | D106: 88.55032827 | E106: 97.56880833 | H106: 0.3110269643 | I106: 95.97539725 | J106: 99.60871626 | M106: 0 | N106: 98.47895856 | O106: 99.45881938 | R106: 0 | S106: 99.3993239 | T106: 99.52349711 | W106: 0 | X106: 99.68762573 | Y106: 99.73632236 | AB106: 0
B107: MICS18 | C107: 2018 | D107: 91.30256369 | E107: 95.69162575 | H107: 0.4164541056 | I107: 96.6948855 | J107: 99.47010718 | M107: 0 | N107: 98.5583324 | O107: 99.60649034 | R107: 0 | S107: 99.08624297 | T107: 99.57534075 | W107: 0 | X107: 99.62203842 | Y107: 100 | AB107: 0
B118: =CONCATENATE("National use of sanitation facilities, ",C99,"–",C100) -> National use of sanitation facilities, 2000–2020 | S118: Data points used for regression
A197: URBAN | D197: Poorest | I197: Poor | N197: Middle | S197: Rich | X197: Richest
D198: Improved | E198: Basic | F198: Limited | G198: Unimproved | H198: Open defecation | I198: Improved | J198: Basic | K198: Limited | L198: Unimproved | M198: Open defecation | N198: Improved | O198: Basic | P198: Limited | Q198: Unimproved | R198: Open defecation | S198: Improved | T198: Basic | U198: Limited | V198: Unimproved | W198: Open defecation | X198: Improved | Y198: Basic | Z198: Limited | AA198: Unimproved | AB198: Open defecation
A199: Forecast period: | C199: 2000 | D199: =IF((D201+H201)>100,D201*100/(D201+H201),D201) -> 98.13854211 | E199: =D199*AVERAGEIF(E205:E216,">0")/100 -> 94.00444411 | F199: =D199*(100-AVERAGEIF(E205:E216,">0"))/100 -> 4.134097991 | G199: =100-(E199+F199+H199) -> 1.86137888 | H199: =IF((D201+H201)>100,H201*100/(D201+H201),H201) -> 7.901477378e-05 | I199: =IF((I201+M201)>100,I201*100/(I201+M201),I201) -> 99.60246204 | J199: =I199*AVERAGEIF(J205:J216,">0")/100 -> 99.46518711 | K199: =I199*(100-AVERAGEIF(J205:J216,">0"))/100 -> 0.1372749318 | L199: =100-(J199+K199+M199) -> 0.3975379606 | M199: =IF((I201+M201)>100,M201*100/(I201+M201),M201) -> 0 | N199: =IF((N201+R201)>100,N201*100/(N201+R201),N201) -> 99.56049397 | O199: =N199*AVERAGEIF(O205:O216,">0")/100 -> 98.88597983 | P199: =N199*(100-AVERAGEIF(O205:O216,">0"))/100 -> 0.6745141377 | Q199: =100-(O199+P199+R199) -> 0.07590485802 | R199: =IF((N201+R201)>100,R201*100/(N201+R201),R201) -> 0.3636011752 | S199: =IF((S201+W201)>100,S201*100/(S201+W201),S201) -> 99.9880291 | T199: =S199*AVERAGEIF(T205:T216,">0")/100 -> 99.59380412 | U199: =S199*(100-AVERAGEIF(T205:T216,">0"))/100 -> 0.394224988 | V199: =100-(T199+U199+W199) -> 0.0119708958 | W199: =IF((S201+W201)>100,W201*100/(S201+W201),W201) -> 0 | X199: =IF((X201+AB201)>100,X201*100/(X201+AB201),X201) -> 100 | Y199: =X199*AVERAGEIF(Y205:Y216,">0")/100 -> 99.91587 | Z199: =X199*(100-AVERAGEIF(Y205:Y216,">0"))/100 -> 0.08412999852 | AA199: =100-(Y199+Z199+AB199) -> 0 | AB199: =IF((X201+AB201)>100,AB201*100/(X201+AB201),AB201) -> 0
C200: 2020 | D200: =IF((D202+H202)>100,D202*100/(D202+H202),D202) -> 96.46559902 | E200: =D200*AVERAGEIF(E205:E216,">0")/100 -> 92.40197396 | F200: =D200*(100-AVERAGEIF(E205:E216,">0"))/100 -> 4.06362506 | G200: =100-(E200+F200+H200) -> 3.193270699 | H200: =IF((D202+H202)>100,H202*100/(D202+H202),H202) -> 0.3411302845 | I200: =IF((I202+M202)>100,I202*100/(I202+M202),I202) -> 98.69213774 | J200: =I200*AVERAGEIF(J205:J216,">0")/100 -> 98.55611745 | K200: =I200*(100-AVERAGEIF(J205:J216,">0"))/100 -> 0.1360202971 | L200: =100-(J200+K200+M200) -> 1.307862256 | M200: =IF((I202+M202)>100,M202*100/(I202+M202),M202) -> 0 | N200: =IF((N202+R202)>100,N202*100/(N202+R202),N202) -> 99.1418419 | O200: =N200*AVERAGEIF(O205:O216,">0")/100 -> 98.4701641 | P200: =N200*(100-AVERAGEIF(O205:O216,">0"))/100 -> 0.6716778045 | Q200: =100-(O200+P200+R200) -> 0.8581580975 | R200: =IF((N202+R202)>100,R202*100/(N202+R202),R202) -> 0 | S200: =IF((S202+W202)>100,S202*100/(S202+W202),S202) -> 99.76223376 | T200: =S200*AVERAGEIF(T205:T216,">0")/100 -> 99.36889902 | U200: =S200*(100-AVERAGEIF(T205:T216,">0"))/100 -> 0.3933347398 | V200: =100-(T200+U200+W200) -> 0.2377662375 | W200: =IF((S202+W202)>100,W202*100/(S202+W202),W202) -> 0 | X200: =IF((X202+AB202)>100,X202*100/(X202+AB202),X202) -> 99.27039499 | Y200: =X200*AVERAGEIF(Y205:Y216,">0")/100 -> 99.18687881 | Z200: =X200*(100-AVERAGEIF(Y205:Y216,">0"))/100 -> 0.08351618184 | AA200: =100-(Y200+Z200+AB200) -> 0.7296050123 | AB200: =IF((X202+AB202)>100,AB202*100/(X202+AB202),AB202) -> 0
A201: Regression period: | C201: =MinRegYear(C199,C205:C216) -> 2004 | D201: =IF(MAX(C205:C216)-MIN(C205:C216)<5,AVERAGEIF(C205:C216,">0",D205:D216), IF(FORECAST($C201,D$205:D$216,$C$205:$C$216)<0,0, IF(FORECAST($C201,D$205:D$216,$C$205:$C$216)>100,100, FORECAST($C201,D$205:D$216,$C$205:$C$216)))) -> 98.13854211 | H201: =IF(MAX(C205:C216)-MIN(C205:C216)<5,AVERAGEIF(C205:C216,">0",H205:H216), IF(FORECAST($C201,H$205:H$216,$C$205:$C$216)<0,0, IF(FORECAST($C201,H$205:H$216,$C$205:$C$216)>100,100, FORECAST($C201,H$205:H$216,$C$205:$C$216)))) -> 7.901477378e-05 | I201: =IF(MAX(C205:C216)-MIN(C205:C216)<5,AVERAGEIF(C205:C216,">0",I205:I216), IF(FORECAST($C201,I$205:I$216,$C$205:$C$216)<0,0, IF(FORECAST($C201,I$205:I$216,$C$205:$C$216)>100,100, FORECAST($C201,I$205:I$216,$C$205:$C$216)))) -> 99.60246204 | M201: =IF(MAX(C205:C216)-MIN(C205:C216)<5,AVERAGEIF(C205:C216,">0",M205:M216), IF(FORECAST($C201,M$205:M$216,$C$205:$C$216)<0,0, IF(FORECAST($C201,M$205:M$216,$C$205:$C$216)>100,100, FORECAST($C201,M$205:M$216,$C$205:$C$216)))) -> 0 | N201: =IF(MAX(C205:C216)-MIN(C205:C216)<5,AVERAGEIF(C205:C216,">0",N205:N216), IF(FORECAST($C201,N$205:N$216,$C$205:$C$216)<0,0, IF(FORECAST($C201,N$205:N$216,$C$205:$C$216)>100,100, FORECAST($C201,N$205:N$216,$C$205:$C$216)))) -> 99.56049397 | R201: =IF(MAX(C205:C216)-MIN(C205:C216)<5,AVERAGEIF(C205:C216,">0",R205:R216), IF(FORECAST($C201,R$205:R$216,$C$205:$C$216)<0,0, IF(FORECAST($C201,R$205:R$216,$C$205:$C$216)>100,100, FORECAST($C201,R$205:R$216,$C$205:$C$216)))) -> 0.3636011752 | S201: =IF(MAX(C205:C216)-MIN(C205:C216)<5,AVERAGEIF(C205:C216,">0",S205:S216), IF(FORECAST($C201,S$205:S$216,$C$205:$C$216)<0,0, IF(FORECAST($C201,S$205:S$216,$C$205:$C$216)>100,100, FORECAST($C201,S$205:S$216,$C$205:$C$216)))) -> 99.9880291 | W201: =IF(MAX(C205:C216)-MIN(C205:C216)<5,AVERAGEIF(C205:C216,">0",W205:W216), IF(FORECAST($C201,W$205:W$216,$C$205:$C$216)<0,0, IF(FORECAST($C201,W$205:W$216,$C$205:$C$216)>100,100, FORECAST($C201,W$205:W$216,$C$205:$C$216)))) -> 0 | X201: =IF(MAX(C205:C216)-MIN(C205:C216)<5,AVERAGEIF(C205:C216,">0",X205:X216), IF(FORECAST($C201,X$205:X$216,$C$205:$C$216)<0,0, IF(FORECAST($C201,X$205:X$216,$C$205:$C$216)>100,100, FORECAST($C201,X$205:X$216,$C$205:$C$216)))) -> 100 | AB201: =IF(MAX(C205:C216)-MIN(C205:C216)<5,AVERAGEIF(C205:C216,">0",AB205:AB216), IF(FORECAST($C201,AB$205:AB$216,$C$205:$C$216)<0,0, IF(FORECAST($C201,AB$205:AB$216,$C$205:$C$216)>100,100, FORECAST($C201,AB$205:AB$216,$C$205:$C$216)))) -> 0
C202: =MaxRegYear(C200,C205:C216) -> 2020 | D202: =IF(MAX(C205:C216)-MIN(C205:C216)<5,AVERAGEIF(C205:C216,">0",D205:D216), IF(FORECAST($C202,D$205:D$216,$C$205:$C$216)<0,0, IF(FORECAST($C202,D$205:D$216,$C$205:$C$216)>100,100, FORECAST($C202,D$205:D$216,$C$205:$C$216)))) -> 96.46559902 | H202: =IF(MAX(C205:C216)-MIN(C205:C216)<5,AVERAGEIF(C205:C216,">0",H205:H216), IF(FORECAST($C202,H$205:H$216,$C$205:$C$216)<0,0, IF(FORECAST($C202,H$205:H$216,$C$205:$C$216)>100,100, FORECAST($C202,H$205:H$216,$C$205:$C$216)))) -> 0.3411302845 | I202: =IF(MAX(C205:C216)-MIN(C205:C216)<5,AVERAGEIF(C205:C216,">0",I205:I216), IF(FORECAST($C202,I$205:I$216,$C$205:$C$216)<0,0, IF(FORECAST($C202,I$205:I$216,$C$205:$C$216)>100,100, FORECAST($C202,I$205:I$216,$C$205:$C$216)))) -> 98.69213774 | M202: =IF(MAX(C205:C216)-MIN(C205:C216)<5,AVERAGEIF(C205:C216,">0",M205:M216), IF(FORECAST($C202,M$205:M$216,$C$205:$C$216)<0,0, IF(FORECAST($C202,M$205:M$216,$C$205:$C$216)>100,100, FORECAST($C202,M$205:M$216,$C$205:$C$216)))) -> 0 | N202: =IF(MAX(C205:C216)-MIN(C205:C216)<5,AVERAGEIF(C205:C216,">0",N205:N216), IF(FORECAST($C202,N$205:N$216,$C$205:$C$216)<0,0, IF(FORECAST($C202,N$205:N$216,$C$205:$C$216)>100,100, FORECAST($C202,N$205:N$216,$C$205:$C$216)))) -> 99.1418419 | R202: =IF(MAX(C205:C216)-MIN(C205:C216)<5,AVERAGEIF(C205:C216,">0",R205:R216), IF(FORECAST($C202,R$205:R$216,$C$205:$C$216)<0,0, IF(FORECAST($C202,R$205:R$216,$C$205:$C$216)>100,100, FORECAST($C202,R$205:R$216,$C$205:$C$216)))) -> 0 | S202: =IF(MAX(C205:C216)-MIN(C205:C216)<5,AVERAGEIF(C205:C216,">0",S205:S216), IF(FORECAST($C202,S$205:S$216,$C$205:$C$216)<0,0, IF(FORECAST($C202,S$205:S$216,$C$205:$C$216)>100,100, FORECAST($C202,S$205:S$216,$C$205:$C$216)))) -> 99.76223376 | W202: =IF(MAX(C205:C216)-MIN(C205:C216)<5,AVERAGEIF(C205:C216,">0",W205:W216), IF(FORECAST($C202,W$205:W$216,$C$205:$C$216)<0,0, IF(FORECAST($C202,W$205:W$216,$C$205:$C$216)>100,100, FORECAST($C202,W$205:W$216,$C$205:$C$216)))) -> 0 | X202: =IF(MAX(C205:C216)-MIN(C205:C216)<5,AVERAGEIF(C205:C216,">0",X205:X216), IF(FORECAST($C202,X$205:X$216,$C$205:$C$216)<0,0, IF(FORECAST($C202,X$205:X$216,$C$205:$C$216)>100,100, FORECAST($C202,X$205:X$216,$C$205:$C$216)))) -> 99.27039499 | AB202: =IF(MAX(C205:C216)-MIN(C205:C216)<5,AVERAGEIF(C205:C216,">0",AB205:AB216), IF(FORECAST($C202,AB$205:AB$216,$C$205:$C$216)<0,0, IF(FORECAST($C202,AB$205:AB$216,$C$205:$C$216)>100,100, FORECAST($C202,AB$205:AB$216,$C$205:$C$216)))) -> 0
B204: Survey | C204: Year | D204: Improved | E204: Not shared | H204: Open defecation | I204: Improved | J204: Not shared | M204: Open defecation | N204: Improved | O204: Not shared | R204: Open defecation | S204: Improved | T204: Not shared | W204: Open defecation | X204: Improved | Y204: Not shared | AB204: Open defecation
B205: MICS06 | C205: 2006 | D205: =IF(ISERROR(INDIRECT(CONCATENATE($B205,"!H122"))),"",INDIRECT(CONCATENATE($B205,"!H122"))) -> 98.88584516 | E205: =IF(ISERROR(INDIRECT(CONCATENATE($B205,"!H129"))),"",INDIRECT(CONCATENATE($B205,"!H129"))) -> N/A | H205: =IF(ISERROR(INDIRECT(CONCATENATE($B205,"!H127"))),"",INDIRECT(CONCATENATE($B205,"!H127"))) -> 0 | I205: =IF(ISERROR(INDIRECT(CONCATENATE($B205,"!I122"))),"",INDIRECT(CONCATENATE($B205,"!I122"))) -> 99.88820044 | J205: =IF(ISERROR(INDIRECT(CONCATENATE($B205,"!I129"))),"",INDIRECT(CONCATENATE($B205,"!I129"))) -> N/A | M205: =IF(ISERROR(INDIRECT(CONCATENATE($B205,"!I127"))),"",INDIRECT(CONCATENATE($B205,"!I127"))) -> 0 | N205: =IF(ISERROR(INDIRECT(CONCATENATE($B205,"!J122"))),"",INDIRECT(CONCATENATE($B205,"!J122"))) -> 99.65686123 | O205: =IF(ISERROR(INDIRECT(CONCATENATE($B205,"!J129"))),"",INDIRECT(CONCATENATE($B205,"!J129"))) -> N/A | R205: =IF(ISERROR(INDIRECT(CONCATENATE($B205,"!J127"))),"",INDIRECT(CONCATENATE($B205,"!J127"))) -> 0.3431387714 | S205: =IF(ISERROR(INDIRECT(CONCATENATE($B205,"!K122"))),"",INDIRECT(CONCATENATE($B205,"!K122"))) -> 100 | T205: =IF(ISERROR(INDIRECT(CONCATENATE($B205,"!K129"))),"",INDIRECT(CONCATENATE($B205,"!K129"))) -> N/A | W205: =IF(ISERROR(INDIRECT(CONCATENATE($B205,"!K127"))),"",INDIRECT(CONCATENATE($B205,"!K127"))) -> 0 | X205: =IF(ISERROR(INDIRECT(CONCATENATE($B205,"!L122"))),"",INDIRECT(CONCATENATE($B205,"!L122"))) -> 100 | Y205: =IF(ISERROR(INDIRECT(CONCATENATE($B205,"!L129"))),"",INDIRECT(CONCATENATE($B205,"!L129"))) -> N/A | AB205: =IF(ISERROR(INDIRECT(CONCATENATE($B205,"!L2127"))),"",INDIRECT(CONCATENATE($B205,"!L127"))) -> 0
B206: MICS13 | C206: 2013 | D206: 94.90210137 | E206: 96.64269152 | H206: 0.2944253704 | I206: 98.13153517 | J206: 99.72435434 | M206: 0 | N206: 98.96812513 | O206: 99.16401622 | R206: 0 | S206: 99.76455047 | T206: 99.32857145 | W206: 0 | X206: 99.50175289 | Y206: 99.83174 | AB206: 0
B207: MICS18 | C207: 2018 | D207: 98.01370622 | E207: 94.93228422 | H207: 0.2387042829 | I207: 99.36526879 | J207: 100 | M207: 0 | N207: 99.40235169 | O207: 99.48100027 | R207: 0 | S207: 99.84673162 | T207: 99.88288418 | W207: 0 | X207: 99.43247218 | Y207: 100 | AB207: 0
B218: =CONCATENATE("Urban use of sanitation facilities, ",C199,"–",C200) -> Urban use of sanitation facilities, 2000–2020 | S218: Data points used for regression
A297: RURAL | D297: Poorest | I297: Poor | N297: Middle | S297: Rich | X297: Richest
D298: Improved | E298: Basic | F298: Limited | G298: Unimproved | H298: Open defecation | I298: Improved | J298: Basic | K298: Limited | L298: Unimproved | M298: Open defecation | N298: Improved | O298: Basic | P298: Limited | Q298: Unimproved | R298: Open defecation | S298: Improved | T298: Basic | U298: Limited | V298: Unimproved | W298: Open defecation | X298: Improved | Y298: Basic | Z298: Limited | AA298: Unimproved | AB298: Open defecation
A299: Forecast period: | C299: 2000 | D299: =IF((D301+H301)>100,D301*100/(D301+H301),D301) -> 93.83138957 | E299: =D299*AVERAGEIF(E305:E316,">0")/100 -> 91.66605268 | F299: =D299*(100-AVERAGEIF(E305:E316,">0"))/100 -> 2.165336888 | G299: =100-(E299+F299+H299) -> 4.842045907 | H299: =IF((D301+H301)>100,H301*100/(D301+H301),H301) -> 1.326564524 | I299: =IF((I301+M301)>100,I301*100/(I301+M301),I301) -> 91.53278022 | J299: =I299*AVERAGEIF(J305:J316,">0")/100 -> 91.20598105 | K299: =I299*(100-AVERAGEIF(J305:J316,">0"))/100 -> 0.3267991725 | L299: =100-(J299+K299+M299) -> 6.908277763 | M299: =IF((I301+M301)>100,M301*100/(I301+M301),M301) -> 1.558942012 | N299: =IF((N301+R301)>100,N301*100/(N301+R301),N301) -> 99.82920286 | O299: =N299*AVERAGEIF(O305:O316,">0")/100 -> 99.82920286 | P299: =N299*(100-AVERAGEIF(O305:O316,">0"))/100 -> 0 | Q299: =100-(O299+P299+R299) -> 0.1707971415 | R299: =IF((N301+R301)>100,R301*100/(N301+R301),R301) -> 0 | S299: =IF((S301+W301)>100,S301*100/(S301+W301),S301) -> 100 | T299: =S299*AVERAGEIF(T305:T316,">0")/100 -> 99.40088442 | U299: =S299*(100-AVERAGEIF(T305:T316,">0"))/100 -> 0.5991155828 | V299: =100-(T299+U299+W299) -> 0 | W299: =IF((S301+W301)>100,W301*100/(S301+W301),W301) -> 0 | X299: =IF((X301+AB301)>100,X301*100/(X301+AB301),X301) -> 100 | Y299: =X299*AVERAGEIF(Y305:Y316,">0")/100 -> 99.78150026 | Z299: =X299*(100-AVERAGEIF(Y305:Y316,">0"))/100 -> 0.2184997435 | AA299: =100-(Y299+Z299+AB299) -> 0 | AB299: =IF((X301+AB301)>100,AB301*100/(X301+AB301),AB301) -> 0
C300: 2020 | D300: =IF((D302+H302)>100,D302*100/(D302+H302),D302) -> 80.05305243 | E300: =D300*AVERAGEIF(E305:E316,">0")/100 -> 78.20567675 | F300: =D300*(100-AVERAGEIF(E305:E316,">0"))/100 -> 1.847375684 | G300: =100-(E300+F300+H300) -> 19.56329791 | H300: =IF((D302+H302)>100,H302*100/(D302+H302),H302) -> 0.3836496629 | I300: =IF((I302+M302)>100,I302*100/(I302+M302),I302) -> 90.91586044 | J300: =I300*AVERAGEIF(J305:J316,">0")/100 -> 90.59126385 | K300: =I300*(100-AVERAGEIF(J305:J316,">0"))/100 -> 0.3245965859 | L300: =100-(J300+K300+M300) -> 9.084139565 | M300: =IF((I302+M302)>100,M302*100/(I302+M302),M302) -> 0 | N300: =IF((N302+R302)>100,N302*100/(N302+R302),N302) -> 91.67815254 | O300: =N300*AVERAGEIF(O305:O316,">0")/100 -> 91.67815254 | P300: =N300*(100-AVERAGEIF(O305:O316,">0"))/100 -> 0 | Q300: =100-(O300+P300+R300) -> 8.321847456 | R300: =IF((N302+R302)>100,R302*100/(N302+R302),R302) -> 0 | S300: =IF((S302+W302)>100,S302*100/(S302+W302),S302) -> 96.44037376 | T300: =S300*AVERAGEIF(T305:T316,">0")/100 -> 95.86258445 | U300: =S300*(100-AVERAGEIF(T305:T316,">0"))/100 -> 0.5777893073 | V300: =100-(T300+U300+W300) -> 3.559626243 | W300: =IF((S302+W302)>100,W302*100/(S302+W302),W302) -> 0 | X300: =IF((X302+AB302)>100,X302*100/(X302+AB302),X302) -> 99.00502359 | Y300: =X300*AVERAGEIF(Y305:Y316,">0")/100 -> 98.78869787 | Z300: =X300*(100-AVERAGEIF(Y305:Y316,">0"))/100 -> 0.2163257226 | AA300: =100-(Y300+Z300+AB300) -> 0.9949764086 | AB300: =IF((X302+AB302)>100,AB302*100/(X302+AB302),AB302) -> 0
A301: Regression period: | C301: =MinRegYear(C299,C305:C316) -> 2004 | D301: =IF(MAX(C305:C316)-MIN(C305:C316)<5,AVERAGEIF(C305:C316,">0",D305:D316), IF(FORECAST($C301,D$305:D$316,$C$305:$C$316)<0,0, IF(FORECAST($C301,D$305:D$316,$C$305:$C$316)>100,100, FORECAST($C301,D$305:D$316,$C$305:$C$316)))) -> 93.83138957 | H301: =IF(MAX(C305:C316)-MIN(C305:C316)<5,AVERAGEIF(C305:C316,">0",H305:H316), IF(FORECAST($C301,H$305:H$316,$C$305:$C$316)<0,0, IF(FORECAST($C301,H$305:H$316,$C$305:$C$316)>100,100, FORECAST($C301,H$305:H$316,$C$305:$C$316)))) -> 1.326564524 | I301: =IF(MAX(C305:C316)-MIN(C305:C316)<5,AVERAGEIF(C305:C316,">0",I305:I316), IF(FORECAST($C301,I$305:I$316,$C$305:$C$316)<0,0, IF(FORECAST($C301,I$305:I$316,$C$305:$C$316)>100,100, FORECAST($C301,I$305:I$316,$C$305:$C$316)))) -> 91.53278022 | M301: =IF(MAX(C305:C316)-MIN(C305:C316)<5,AVERAGEIF(C305:C316,">0",M305:M316), IF(FORECAST($C301,M$305:M$316,$C$305:$C$316)<0,0, IF(FORECAST($C301,M$305:M$316,$C$305:$C$316)>100,100, FORECAST($C301,M$305:M$316,$C$305:$C$316)))) -> 1.558942012 | N301: =IF(MAX(C305:C316)-MIN(C305:C316)<5,AVERAGEIF(C305:C316,">0",N305:N316), IF(FORECAST($C301,N$305:N$316,$C$305:$C$316)<0,0, IF(FORECAST($C301,N$305:N$316,$C$305:$C$316)>100,100, FORECAST($C301,N$305:N$316,$C$305:$C$316)))) -> 99.82920286 | R301: =IF(MAX(C305:C316)-MIN(C305:C316)<5,AVERAGEIF(C305:C316,">0",R305:R316), IF(FORECAST($C301,R$305:R$316,$C$305:$C$316)<0,0, IF(FORECAST($C301,R$305:R$316,$C$305:$C$316)>100,100, FORECAST($C301,R$305:R$316,$C$305:$C$316)))) -> 0 | S301: =IF(MAX(C305:C316)-MIN(C305:C316)<5,AVERAGEIF(C305:C316,">0",S305:S316), IF(FORECAST($C301,S$305:S$316,$C$305:$C$316)<0,0, IF(FORECAST($C301,S$305:S$316,$C$305:$C$316)>100,100, FORECAST($C301,S$305:S$316,$C$305:$C$316)))) -> 100 | W301: =IF(MAX(C305:C316)-MIN(C305:C316)<5,AVERAGEIF(C305:C316,">0",W305:W316), IF(FORECAST($C301,W$305:W$316,$C$305:$C$316)<0,0, IF(FORECAST($C301,W$305:W$316,$C$305:$C$316)>100,100, FORECAST($C301,W$305:W$316,$C$305:$C$316)))) -> 0 | X301: =IF(MAX(C305:C316)-MIN(C305:C316)<5,AVERAGEIF(C305:C316,">0",X305:X316), IF(FORECAST($C301,X$305:X$316,$C$305:$C$316)<0,0, IF(FORECAST($C301,X$305:X$316,$C$305:$C$316)>100,100, FORECAST($C301,X$305:X$316,$C$305:$C$316)))) -> 100 | AB301: =IF(MAX(C305:C316)-MIN(C305:C316)<5,AVERAGEIF(C305:C316,">0",AB305:AB316), IF(FORECAST($C301,AB$305:AB$316,$C$305:$C$316)<0,0, IF(FORECAST($C301,AB$305:AB$316,$C$305:$C$316)>100,100, FORECAST($C301,AB$305:AB$316,$C$305:$C$316)))) -> 0
C302: =MaxRegYear(C300,C305:C316) -> 2020 | D302: =IF(MAX(C305:C316)-MIN(C305:C316)<5,AVERAGEIF(C305:C316,">0",D305:D316), IF(FORECAST($C302,D$305:D$316,$C$305:$C$316)<0,0, IF(FORECAST($C302,D$305:D$316,$C$305:$C$316)>100,100, FORECAST($C302,D$305:D$316,$C$305:$C$316)))) -> 80.05305243 | H302: =IF(MAX(C305:C316)-MIN(C305:C316)<5,AVERAGEIF(C305:C316,">0",H305:H316), IF(FORECAST($C302,H$305:H$316,$C$305:$C$316)<0,0, IF(FORECAST($C302,H$305:H$316,$C$305:$C$316)>100,100, FORECAST($C302,H$305:H$316,$C$305:$C$316)))) -> 0.3836496629 | I302: =IF(MAX(C305:C316)-MIN(C305:C316)<5,AVERAGEIF(C305:C316,">0",I305:I316), IF(FORECAST($C302,I$305:I$316,$C$305:$C$316)<0,0, IF(FORECAST($C302,I$305:I$316,$C$305:$C$316)>100,100, FORECAST($C302,I$305:I$316,$C$305:$C$316)))) -> 90.91586044 | M302: =IF(MAX(C305:C316)-MIN(C305:C316)<5,AVERAGEIF(C305:C316,">0",M305:M316), IF(FORECAST($C302,M$305:M$316,$C$305:$C$316)<0,0, IF(FORECAST($C302,M$305:M$316,$C$305:$C$316)>100,100, FORECAST($C302,M$305:M$316,$C$305:$C$316)))) -> 0 | N302: =IF(MAX(C305:C316)-MIN(C305:C316)<5,AVERAGEIF(C305:C316,">0",N305:N316), IF(FORECAST($C302,N$305:N$316,$C$305:$C$316)<0,0, IF(FORECAST($C302,N$305:N$316,$C$305:$C$316)>100,100, FORECAST($C302,N$305:N$316,$C$305:$C$316)))) -> 91.67815254 | R302: =IF(MAX(C305:C316)-MIN(C305:C316)<5,AVERAGEIF(C305:C316,">0",R305:R316), IF(FORECAST($C302,R$305:R$316,$C$305:$C$316)<0,0, IF(FORECAST($C302,R$305:R$316,$C$305:$C$316)>100,100, FORECAST($C302,R$305:R$316,$C$305:$C$316)))) -> 0 | S302: =IF(MAX(C305:C316)-MIN(C305:C316)<5,AVERAGEIF(C305:C316,">0",S305:S316), IF(FORECAST($C302,S$305:S$316,$C$305:$C$316)<0,0, IF(FORECAST($C302,S$305:S$316,$C$305:$C$316)>100,100, FORECAST($C302,S$305:S$316,$C$305:$C$316)))) -> 96.44037376 | W302: =IF(MAX(C305:C316)-MIN(C305:C316)<5,AVERAGEIF(C305:C316,">0",W305:W316), IF(FORECAST($C302,W$305:W$316,$C$305:$C$316)<0,0, IF(FORECAST($C302,W$305:W$316,$C$305:$C$316)>100,100, FORECAST($C302,W$305:W$316,$C$305:$C$316)))) -> 0 | X302: =IF(MAX(C305:C316)-MIN(C305:C316)<5,AVERAGEIF(C305:C316,">0",X305:X316), IF(FORECAST($C302,X$305:X$316,$C$305:$C$316)<0,0, IF(FORECAST($C302,X$305:X$316,$C$305:$C$316)>100,100, FORECAST($C302,X$305:X$316,$C$305:$C$316)))) -> 99.00502359 | AB302: =IF(MAX(C305:C316)-MIN(C305:C316)<5,AVERAGEIF(C305:C316,">0",AB305:AB316), IF(FORECAST($C302,AB$305:AB$316,$C$305:$C$316)<0,0, IF(FORECAST($C302,AB$305:AB$316,$C$305:$C$316)>100,100, FORECAST($C302,AB$305:AB$316,$C$305:$C$316)))) -> 0
B304: Survey | C304: Year | D304: Improved | E304: Not shared | H304: Open defecation | I304: Improved | J304: Not shared | M304: Open defecation | N304: Improved | O304: Not shared | R304: Open defecation | S304: Improved | T304: Not shared | W304: Open defecation | X304: Improved | Y304: Not shared | AB304: Open defecation
B305: MICS06 | C305: 2006 | D305: =IF(ISERROR(INDIRECT(CONCATENATE($B305,"!M122"))),"",INDIRECT(CONCATENATE($B305,"!M122"))) -> 92.48254254 | E305: =IF(ISERROR(INDIRECT(CONCATENATE($B305,"!M129"))),"",INDIRECT(CONCATENATE($B305,"!M129"))) -> N/A | H305: =IF(ISERROR(INDIRECT(CONCATENATE($B305,"!M127"))),"",INDIRECT(CONCATENATE($B305,"!M127"))) -> 1.399328672 | I305: =IF(ISERROR(INDIRECT(CONCATENATE($B305,"!N122"))),"",INDIRECT(CONCATENATE($B305,"!N122"))) -> 92.68039382 | J305: =IF(ISERROR(INDIRECT(CONCATENATE($B305,"!N129"))),"",INDIRECT(CONCATENATE($B305,"!N129"))) -> N/A | M305: =IF(ISERROR(INDIRECT(CONCATENATE($B305,"!N127"))),"",INDIRECT(CONCATENATE($B305,"!N127"))) -> 1.471209345 | N305: =IF(ISERROR(INDIRECT(CONCATENATE($B305,"!O122"))),"",INDIRECT(CONCATENATE($B305,"!O122"))) -> 99.01842591 | O305: =IF(ISERROR(INDIRECT(CONCATENATE($B305,"!O129"))),"",INDIRECT(CONCATENATE($B305,"!O129"))) -> N/A | R305: =IF(ISERROR(INDIRECT(CONCATENATE($B305,"!O127"))),"",INDIRECT(CONCATENATE($B305,"!O127"))) -> 0 | S305: =IF(ISERROR(INDIRECT(CONCATENATE($B305,"!P122"))),"",INDIRECT(CONCATENATE($B305,"!P122"))) -> 100 | T305: =IF(ISERROR(INDIRECT(CONCATENATE($B305,"!P129"))),"",INDIRECT(CONCATENATE($B305,"!P129"))) -> N/A | W305: =IF(ISERROR(INDIRECT(CONCATENATE($B305,"!P127"))),"",INDIRECT(CONCATENATE($B305,"!P127"))) -> 0 | X305: =IF(ISERROR(INDIRECT(CONCATENATE($B305,"!Q122"))),"",INDIRECT(CONCATENATE($B305,"!Q122"))) -> 100 | Y305: =IF(ISERROR(INDIRECT(CONCATENATE($B305,"!Q129"))),"",INDIRECT(CONCATENATE($B305,"!Q129"))) -> N/A | AB305: =IF(ISERROR(INDIRECT(CONCATENATE($B305,"!Q2127"))),"",INDIRECT(CONCATENATE($B305,"!Q127"))) -> 0
B306: MICS13 | C306: 2013 | D306: 85.18480665 | E306: 98.68818515 | H306: 0.3386665021 | I306: 88.24641427 | J306: 100 | M306: 0 | N306: 94.74478663 | O306: 100 | R306: 0 | S306: 98.45300321 | T306: 100 | W306: 0 | X306: 99.96936805 | Y306: 99.56300051 | AB306: 0
B307: MICS18 | C307: 2018 | D307: 82.29816774 | E307: 96.69643636 | H307: 0.7683939279 | I307: 92.70759541 | J307: 99.28594068 | M307: 0 | N307: 92.98837992 | O307: 100 | R307: 0 | S307: 96.84796648 | T307: 98.80176883 | W307: 0 | X307: 98.94478204 | Y307: 100 | AB307: 0
B318: =CONCATENATE("Rural use of sanitation facilities, ",C299,"–",C300) -> Rural use of sanitation facilities, 2000–2020 | S318: Data points used for regression

Sheet Hygiene
B4: Access to hygiene facilities by wealth quintile (%)
B5: =IF(ISERROR(INDIRECT(CONCATENATE($E$32,"!A2"))),"",INDIRECT(CONCATENATE($E$32,"!A2"))) -> Montenegro
B7: =CONCATENATE("National ",IF(ISERROR(INDIRECT(CONCATENATE($E$32,"!A2"))),"",INDIRECT(CONCATENATE($E$32,"!A210")))) -> National Access to hygiene facilities | K7: =CONCATENATE("Urban ",IF(ISERROR(INDIRECT(CONCATENATE($E$32,"!A2"))),"",INDIRECT(CONCATENATE($E$32,"!A210")))) -> Urban Access to hygiene facilities | S7: =CONCATENATE("Rural ",IF(ISERROR(INDIRECT(CONCATENATE($E$32,"!A2"))),"",INDIRECT(CONCATENATE($E$32,"!A210")))) -> Rural Access to hygiene facilities
E32: =INDEX(B88:B100,A88) -> MICS18 | G32: =IF(ISERROR(INDIRECT(CONCATENATE($E$32,"!A2"))),"",INDIRECT(CONCATENATE($E$32,"!A2"))) -> Montenegro | K32: Poorest | N32: Poor | Q32: Middle | T32: Rich | W32: Richest
K33: Basic | L33: Limited | M33: No facility | N33: Basic | O33: Limited | P33: No facility | Q33: Basic | R33: Limited | S33: No facility | T33: Basic | U33: Limited | V33: No facility | W33: Basic | X33: Limited | Y33: No facility
B34: >>> Select Survey : | G34: NATIONAL | J34: =IF(ISERROR(INDIRECT(CONCATENATE(#REF!,"!A2"))),"",INDIRECT(CONCATENATE(#REF!,"!A210"))) ->  | K34: =IF(ISERROR(INDIRECT(CONCATENATE($E$32,"!C222"))),"",INDIRECT(CONCATENATE($E$32,"!C222"))) -> 99.50323352 | L34: =IF(ISERROR(INDIRECT(CONCATENATE($E$32,"!C223"))),"",INDIRECT(CONCATENATE($E$32,"!C223"))) -> 0.4967664793 | M34: =IF(ISERROR(INDIRECT(CONCATENATE($E$32,"!C224"))),"",INDIRECT(CONCATENATE($E$32,"!C224"))) -> N/A | N34: =IF(ISERROR(INDIRECT(CONCATENATE($E$32,"!D222"))),"",INDIRECT(CONCATENATE($E$32,"!D222"))) -> 99.96935647 | O34: =IF(ISERROR(INDIRECT(CONCATENATE($E$32,"!D223"))),"",INDIRECT(CONCATENATE($E$32,"!D223"))) -> 0.0306435304 | P34: =IF(ISERROR(INDIRECT(CONCATENATE($E$32,"!D224"))),"",INDIRECT(CONCATENATE($E$32,"!D224"))) -> N/A | Q34: =IF(ISERROR(INDIRECT(CONCATENATE($E$32,"!E222"))),"",INDIRECT(CONCATENATE($E$32,"!E222"))) -> 99.85092911 | R34: =IF(ISERROR(INDIRECT(CONCATENATE($E$32,"!E223"))),"",INDIRECT(CONCATENATE($E$32,"!E223"))) -> 0.149070892 | S34: =IF(ISERROR(INDIRECT(CONCATENATE($E$32,"!E224"))),"",INDIRECT(CONCATENATE($E$32,"!E224"))) -> N/A | T34: =IF(ISERROR(INDIRECT(CONCATENATE($E$32,"!F222"))),"",INDIRECT(CONCATENATE($E$32,"!F222"))) -> 100 | U34: =IF(ISERROR(INDIRECT(CONCATENATE($E$32,"!F223"))),"",INDIRECT(CONCATENATE($E$32,"!F223"))) -> 0 | V34: =IF(ISERROR(INDIRECT(CONCATENATE($E$32,"!F224"))),"",INDIRECT(CONCATENATE($E$32,"!F224"))) -> N/A | W34: =IF(ISERROR(INDIRECT(CONCATENATE($E$32,"!G222"))),"",INDIRECT(CONCATENATE($E$32,"!G222"))) -> 100 | X34: =IF(ISERROR(INDIRECT(CONCATENATE($E$32,"!G223"))),"",INDIRECT(CONCATENATE($E$32,"!G223"))) -> 0 | Y34: =IF(ISERROR(INDIRECT(CONCATENATE($E$32,"!G224"))),"",INDIRECT(CONCATENATE($E$32,"!G224"))) -> N/A
G37: URBAN | J37: =IF(ISERROR(INDIRECT(CONCATENATE(#REF!,"!A2"))),"",INDIRECT(CONCATENATE(#REF!,"!A210"))) ->  | K37: =IF(ISERROR(INDIRECT(CONCATENATE($E$32,"!H222"))),"",INDIRECT(CONCATENATE($E$32,"!H222"))) -> 99.87121658 | L37: =IF(ISERROR(INDIRECT(CONCATENATE($E$32,"!H223"))),"",INDIRECT(CONCATENATE($E$32,"!H223"))) -> 0.128783417 | M37: =IF(ISERROR(INDIRECT(CONCATENATE($E$32,"!H224"))),"",INDIRECT(CONCATENATE($E$32,"!H224"))) -> N/A | N37: =IF(ISERROR(INDIRECT(CONCATENATE($E$32,"!I222"))),"",INDIRECT(CONCATENATE($E$32,"!I222"))) -> 100 | O37: =IF(ISERROR(INDIRECT(CONCATENATE($E$32,"!I223"))),"",INDIRECT(CONCATENATE($E$32,"!I223"))) -> 0 | P37: =IF(ISERROR(INDIRECT(CONCATENATE($E$32,"!I224"))),"",INDIRECT(CONCATENATE($E$32,"!I224"))) -> N/A | Q37: =IF(ISERROR(INDIRECT(CONCATENATE($E$32,"!J222"))),"",INDIRECT(CONCATENATE($E$32,"!J222"))) -> 99.77575529 | R37: =IF(ISERROR(INDIRECT(CONCATENATE($E$32,"!J223"))),"",INDIRECT(CONCATENATE($E$32,"!J223"))) -> 0.2242447052 | S37: =IF(ISERROR(INDIRECT(CONCATENATE($E$32,"!J224"))),"",INDIRECT(CONCATENATE($E$32,"!J224"))) -> N/A | T37: =IF(ISERROR(INDIRECT(CONCATENATE($E$32,"!K222"))),"",INDIRECT(CONCATENATE($E$32,"!K222"))) -> 100 | U37: =IF(ISERROR(INDIRECT(CONCATENATE($E$32,"!K223"))),"",INDIRECT(CONCATENATE($E$32,"!K223"))) -> 0 | V37: =IF(ISERROR(INDIRECT(CONCATENATE($E$32,"!K224"))),"",INDIRECT(CONCATENATE($E$32,"!K224"))) -> N/A | W37: =IF(ISERROR(INDIRECT(CONCATENATE($E$32,"!L222"))),"",INDIRECT(CONCATENATE($E$32,"!L222"))) -> 100 | X37: =IF(ISERROR(INDIRECT(CONCATENATE($E$32,"!L223"))),"",INDIRECT(CONCATENATE($E$32,"!L223"))) -> 0 | Y37: =IF(ISERROR(INDIRECT(CONCATENATE($E$32,"!L224"))),"",INDIRECT(CONCATENATE($E$32,"!L224"))) -> N/A
G40: RURAL | J40: =IF(ISERROR(INDIRECT(CONCATENATE(#REF!,"!A2"))),"",INDIRECT(CONCATENATE(#REF!,"!A210"))) ->  | K40: =IF(ISERROR(INDIRECT(CONCATENATE($E$32,"!M222"))),"",INDIRECT(CONCATENATE($E$32,"!M222"))) -> 98.77150321 | L40: =IF(ISERROR(INDIRECT(CONCATENATE($E$32,"!M223"))),"",INDIRECT(CONCATENATE($E$32,"!M223"))) -> 1.22849679 | M40: =IF(ISERROR(INDIRECT(CONCATENATE($E$32,"!M224"))),"",INDIRECT(CONCATENATE($E$32,"!M224"))) -> N/A | N40: =IF(ISERROR(INDIRECT(CONCATENATE($E$32,"!N222"))),"",INDIRECT(CONCATENATE($E$32,"!N222"))) -> 99.90849685 | O40: =IF(ISERROR(INDIRECT(CONCATENATE($E$32,"!N223"))),"",INDIRECT(CONCATENATE($E$32,"!N223"))) -> 0.09150314539 | P40: =IF(ISERROR(INDIRECT(CONCATENATE($E$32,"!N224"))),"",INDIRECT(CONCATENATE($E$32,"!N224"))) -> N/A | Q40: =IF(ISERROR(INDIRECT(CONCATENATE($E$32,"!O222"))),"",INDIRECT(CONCATENATE($E$32,"!O222"))) -> 100 | R40: =IF(ISERROR(INDIRECT(CONCATENATE($E$32,"!O223"))),"",INDIRECT(CONCATENATE($E$32,"!O223"))) -> 0 | S40: =IF(ISERROR(INDIRECT(CONCATENATE($E$32,"!O224"))),"",INDIRECT(CONCATENATE($E$32,"!O224"))) -> N/A | T40: =IF(ISERROR(INDIRECT(CONCATENATE($E$32,"!P222"))),"",INDIRECT(CONCATENATE($E$32,"!P222"))) -> 100 | U40: =IF(ISERROR(INDIRECT(CONCATENATE($E$32,"!P223"))),"",INDIRECT(CONCATENATE($E$32,"!P223"))) -> 0 | V40: =IF(ISERROR(INDIRECT(CONCATENATE($E$32,"!P224"))),"",INDIRECT(CONCATENATE($E$32,"!P224"))) -> N/A | W40: =IF(ISERROR(INDIRECT(CONCATENATE($E$32,"!Q222"))),"",INDIRECT(CONCATENATE($E$32,"!Q222"))) -> 100 | X40: =IF(ISERROR(INDIRECT(CONCATENATE($E$32,"!Q223"))),"",INDIRECT(CONCATENATE($E$32,"!Q223"))) -> 0 | Y40: =IF(ISERROR(INDIRECT(CONCATENATE($E$32,"!Q224"))),"",INDIRECT(CONCATENATE($E$32,"!Q224"))) -> N/A
A88: 3 | B88: MICS06
B89: MICS13
B90: MICS18
B91: Template

Sheet MICS06
A2: =A1026 -> Montenegro
A3: =A1034 -> 2006
A4: Use of drinking water sources
A5: by wealth quintile and sub-national region
A6: Notes:
A7: WHO/UNICEF JMP customised wealth index excludes water,
A8: sanitation and hygiene assets.
A9: Survey used for analysis: | B9: =A1025 -> MICS06
A10: =B1028 -> 
A11: =B1027 -> 
A14: Use of drinking water sources | C14: NATIONAL wealth index quintile | H14: URBAN wealth index quintile | M14: RURAL wealth index quintile | R14: SUB-REGIONS: | BA14: Raw numbers of respondents: | BB14: Use of drinking water sources | BC14: NATIONAL wealth index quintile | BH14: URBAN wealth index quintile | BM14: RURAL wealth index quintile | BR14: SUB-REGIONS:
A15: Weighted percentage (used in graphs) | C15: Poorest | D15: Poor | E15: Middle | F15: Rich | G15: Richest | H15: Poorest | I15: Poor | J15: Middle | K15: Rich | L15: Richest | M15: Poorest | N15: Poor | O15: Middle | P15: Rich | Q15: Richest | R15: Central | S15: North | T15: South | BA15: Water data, raw numbers (weighted) | BC15: Poorest | BD15: Poor | BE15: Middle | BF15: Rich | BG15: Richest | BH15: Poorest | BI15: Poor | BJ15: Middle | BK15: Rich | BL15: Richest | BM15: Poorest | BN15: Poor | BO15: Middle | BP15: Rich | BQ15: Richest | BR15: Central | BS15: North | BT15: South
A16: Water | B16: Improved | C16: 94.26010181 | D16: 99.22447326 | E16: 99.44541427 | F16: 100 | G16: 100 | H16: 100 | I16: 100 | J16: 100 | K16: 100 | L16: 100 | M16: 88.81605419 | N16: 94.88696464 | O16: 99.09863104 | P16: 98.52634796 | Q16: 100 | R16: 99.39442859 | S16: 96.82656379 | T16: 99.2657892 | BA16: Water | BB16: Improved | BC16: N/A | BD16: N/A | BE16: N/A | BF16: N/A | BG16: N/A | BH16: N/A | BI16: N/A | BJ16: N/A | BK16: N/A | BL16: N/A | BM16: N/A | BN16: N/A | BO16: N/A | BP16: N/A | BQ16: N/A | BR16: N/A | BS16: N/A | BT16: N/A
B17: Not Improved | C17: 5.739898186 | D17: 0.7755267442 | E17: 0.5545857289 | F17: 0 | G17: 0 | H17: 0 | I17: 0 | J17: 0 | K17: 0 | L17: 0 | M17: 11.18394581 | N17: 5.11303536 | O17: 0.9013689565 | P17: 1.473652039 | Q17: 0 | R17: 0.6055714057 | S17: 3.173436211 | T17: 0.7342107955 | BB17: Not Improved | BC17: N/A | BD17: N/A | BE17: N/A | BF17: N/A | BG17: N/A | BH17: N/A | BI17: N/A | BJ17: N/A | BK17: N/A | BL17: N/A | BM17: N/A | BN17: N/A | BO17: N/A | BP17: N/A | BQ17: N/A | BR17: N/A | BS17: N/A | BT17: N/A
A18: Water ladder | B18: Basic | C18: 93.60925502 | D18: 98.94473901 | E18: 99.44541427 | F18: 100 | G18: 99.72625937 | H18: 99.78598919 | I18: 100 | J18: 100 | K18: 100 | L18: 100 | M18: 87.4463322 | N18: 94.15135997 | O18: 99.09863104 | P18: 98.52634796 | Q18: 99.27733596 | R18: 99.21323378 | S18: 96.48429435 | T18: 99.03987819 | BA18: Water ladder | BB18: Basic | BC18: N/A | BD18: N/A | BE18: N/A | BF18: N/A | BG18: N/A | BH18: N/A | BI18: N/A | BJ18: N/A | BK18: N/A | BL18: N/A | BM18: N/A | BN18: N/A | BO18: N/A | BP18: N/A | BQ18: N/A | BR18: N/A | BS18: N/A | BT18: N/A
B19: Limited | C19: 0.6508467961 | D19: 0.2797342448 | E19: 0 | F19: 0 | G19: 0.2737406296 | H19: 0.2140108143 | I19: 0 | J19: 0 | K19: 0 | L19: 0 | M19: 1.369721989 | N19: 0.7356046725 | O19: 0 | P19: 0 | Q19: 0.7226640439 | R19: 0.1811948116 | S19: 0.342269434 | T19: 0.225911014 | BB19: Limited | BC19: N/A | BD19: N/A | BE19: N/A | BF19: N/A | BG19: N/A | BH19: N/A | BI19: N/A | BJ19: N/A | BK19: N/A | BL19: N/A | BM19: N/A | BN19: N/A | BO19: N/A | BP19: N/A | BQ19: N/A | BR19: N/A | BS19: N/A | BT19: N/A
B20: Unimproved | C20: 4.45520104 | D20: 0.7755267442 | E20: 0.5545857289 | F20: 0 | G20: 0 | H20: 0 | I20: 0 | J20: 0 | K20: 0 | L20: 0 | M20: 10.40192081 | N20: 2.511907891 | O20: 0.9013689565 | P20: 1.473652039 | Q20: 0 | R20: 0.1712432083 | S20: 2.978021917 | T20: 0.7342107955 | BB20: Unimproved | BC20: N/A | BD20: N/A | BE20: N/A | BF20: N/A | BG20: N/A | BH20: N/A | BI20: N/A | BJ20: N/A | BK20: N/A | BL20: N/A | BM20: N/A | BN20: N/A | BO20: N/A | BP20: N/A | BQ20: N/A | BR20: N/A | BS20: N/A | BT20: N/A
B21: Surface water | C21: 1.284697146 | D21: 0 | E21: 0 | F21: 0 | G21: 0 | H21: 0 | I21: 0 | J21: 0 | K21: 0 | L21: 0 | M21: 0.7820250064 | N21: 2.601127468 | O21: 0 | P21: 0 | Q21: 0 | R21: 0.4343281974 | S21: 0.1954142946 | T21: 0 | BB21: Surface water | BC21: N/A | BD21: N/A | BE21: N/A | BF21: N/A | BG21: N/A | BH21: N/A | BI21: N/A | BJ21: N/A | BK21: N/A | BL21: N/A | BM21: N/A | BN21: N/A | BO21: N/A | BP21: N/A | BQ21: N/A | BR21: N/A | BS21: N/A | BT21: N/A
A22: Improved water point at more than 30 minutes | B22: Yes | C22: 0.6904796235 | D22: 0.2819206146 | E22: 0 | F22: 0 | G22: 0.2737406296 | H22: 0.2140108143 | I22: 0 | J22: 0 | K22: 0 | L22: 0 | M22: 1.542200903 | N22: 0.7752431277 | O22: 0 | P22: 0 | Q22: 0.7226640439 | R22: 0.1822987608 | S22: 0.3534871223 | T22: 0.2275819452 | BA22: Improved water point at more than 30 minutes | BB22: Yes | BC22: N/A | BD22: N/A | BE22: N/A | BF22: N/A | BG22: N/A | BH22: N/A | BI22: N/A | BJ22: N/A | BK22: N/A | BL22: N/A | BM22: N/A | BN22: N/A | BO22: N/A | BP22: N/A | BQ22: N/A | BR22: N/A | BS22: N/A | BT22: N/A
B23: No | C23: 99.30952038 | D23: 99.71807939 | E23: 100 | F23: 100 | G23: 99.72625937 | H23: 99.78598919 | I23: 100 | J23: 100 | K23: 100 | L23: 100 | M23: 98.4577991 | N23: 99.22475687 | O23: 100 | P23: 100 | Q23: 99.27733596 | R23: 99.81770124 | S23: 99.64651288 | T23: 99.77241805 | BB23: No | BC23: N/A | BD23: N/A | BE23: N/A | BF23: N/A | BG23: N/A | BH23: N/A | BI23: N/A | BJ23: N/A | BK23: N/A | BL23: N/A | BM23: N/A | BN23: N/A | BO23: N/A | BP23: N/A | BQ23: N/A | BR23: N/A | BS23: N/A | BT23: N/A
A24: Manually calculated ratios | B24: Improved wells
B25: Improved springs
B26: Other
C27: NATIONAL wealth index quintile | H27: URBAN wealth index quintile | M27: RURAL wealth index quintile | R27: SUB-REGIONS: | BA27: Raw numbers of respondents: | BB27: Use of drinking water sources | BC27: NATIONAL wealth index quintile | BH27: URBAN wealth index quintile | BM27: RURAL wealth index quintile | BR27: SUB-REGIONS:
A28: Percentage based on weighted population | C28: Poorest | D28: Poor | E28: Middle | F28: Rich | G28: Richest | H28: Poorest | I28: Poor | J28: Middle | K28: Rich | L28: Richest | M28: Poorest | N28: Poor | O28: Middle | P28: Rich | Q28: Richest | R28: Central | S28: North | T28: South | BA28: Water data, raw numbers (weighted) | BC28: Poorest | BD28: Poor | BE28: Middle | BF28: Rich | BG28: Richest | BH28: Poorest | BI28: Poor | BJ28: Middle | BK28: Rich | BL28: Richest | BM28: Poorest | BN28: Poor | BO28: Middle | BP28: Rich | BQ28: Richest | BR28: Central | BS28: North | BT28: South
A29: Piped water | B29: Yes | C29: 71.21390043 | D29: 89.96731004 | E29: 88.10615124 | F29: 91.52313213 | G29: 94.44529481 | H29: 99.87202355 | I29: 98.86782673 | J29: 99.84022393 | K29: 99.70593767 | L29: 100 | M29: 46.50062051 | N29: 73.20743973 | O29: 79.73266596 | P29: 64.91566502 | Q29: 67.35675619 | R29: 87.86009383 | S29: 82.78104234 | T29: 90.86673219 | BA29: Piped water | BB29: Yes | BC29: N/A | BD29: N/A | BE29: N/A | BF29: N/A | BG29: N/A | BH29: N/A | BI29: N/A | BJ29: N/A | BK29: N/A | BL29: N/A | BM29: N/A | BN29: N/A | BO29: N/A | BP29: N/A | BQ29: N/A | BR29: N/A | BS29: N/A | BT29: N/A
B30: No | C30: 28.78609957 | D30: 10.03268996 | E30: 11.89384876 | F30: 8.476867873 | G30: 5.554705185 | H30: 0.127976453 | I30: 1.132173269 | J30: 0.1597760715 | K30: 0.2940623301 | L30: 0 | M30: 53.49937949 | N30: 26.79256027 | O30: 20.26733404 | P30: 35.08433498 | Q30: 32.64324381 | R30: 12.13990617 | S30: 17.21895766 | T30: 9.133267811 | BB30: No | BC30: N/A | BD30: N/A | BE30: N/A | BF30: N/A | BG30: N/A | BH30: N/A | BI30: N/A | BJ30: N/A | BK30: N/A | BL30: N/A | BM30: N/A | BN30: N/A | BO30: N/A | BP30: N/A | BQ30: N/A | BR30: N/A | BS30: N/A | BT30: N/A
A31: Piped water on premises | B31: Yes | C31: 66.03663807 | D31: 89.6875758 | E31: 87.94316561 | F31: 91.15600908 | G31: 94.44529481 | H31: 92.81555099 | I31: 98.86782673 | J31: 99.84022393 | K31: 99.70593767 | L31: 100 | M31: 44.39776468 | N31: 73.20743973 | O31: 78.99587847 | P31: 64.48257759 | Q31: 66.38700273 | R31: 85.81279742 | S31: 82.3912405 | T31: 90.25941083 | BA31: Piped water on premises | BB31: Yes | BC31: N/A | BD31: N/A | BE31: N/A | BF31: N/A | BG31: N/A | BH31: N/A | BI31: N/A | BJ31: N/A | BK31: N/A | BL31: N/A | BM31: N/A | BN31: N/A | BO31: N/A | BP31: N/A | BQ31: N/A | BR31: N/A | BS31: N/A | BT31: N/A
B32: No | C32: 33.96336193 | D32: 10.3124242 | E32: 12.05683439 | F32: 8.843990917 | G32: 5.554705185 | H32: 7.184449005 | I32: 1.132173269 | J32: 0.1597760715 | K32: 0.2940623301 | L32: 0 | M32: 55.60223532 | N32: 26.79256027 | O32: 21.00412153 | P32: 35.51742241 | Q32: 33.61299727 | R32: 14.18720258 | S32: 17.6087595 | T32: 9.740589165 | BB32: No | BC32: N/A | BD32: N/A | BE32: N/A | BF32: N/A | BG32: N/A | BH32: N/A | BI32: N/A | BJ32: N/A | BK32: N/A | BL32: N/A | BM32: N/A | BN32: N/A | BO32: N/A | BP32: N/A | BQ32: N/A | BR32: N/A | BS32: N/A | BT32: N/A
A33: Piped water into dwelling | B33: Yes | C33: N/A | D33: N/A | E33: N/A | F33: N/A | G33: N/A | H33: N/A | I33: N/A | J33: N/A | K33: N/A | L33: N/A | M33: N/A | N33: N/A | O33: N/A | P33: N/A | Q33: N/A | R33: N/A | S33: N/A | T33: N/A | BA33: Piped water into dwelling | BB33: Yes | BC33: N/A | BD33: N/A | BE33: N/A | BF33: N/A | BG33: N/A | BH33: N/A | BI33: N/A | BJ33: N/A | BK33: N/A | BL33: N/A | BM33: N/A | BN33: N/A | BO33: N/A | BP33: N/A | BQ33: N/A | BR33: N/A | BS33: N/A | BT33: N/A
B34: No | C34: N/A | D34: N/A | E34: N/A | F34: N/A | G34: N/A | H34: N/A | I34: N/A | J34: N/A | K34: N/A | L34: N/A | M34: N/A | N34: N/A | O34: N/A | P34: N/A | Q34: N/A | R34: N/A | S34: N/A | T34: N/A | BB34: No | BC34: N/A | BD34: N/A | BE34: N/A | BF34: N/A | BG34: N/A | BH34: N/A | BI34: N/A | BJ34: N/A | BK34: N/A | BL34: N/A | BM34: N/A | BN34: N/A | BO34: N/A | BP34: N/A | BQ34: N/A | BR34: N/A | BS34: N/A | BT34: N/A
A35: Water source on premises | B35: Yes | C35: 83.80320452 | D35: 97.27225474 | E35: 97.99934465 | F35: 99.18383599 | G35: 99.53958173 | H35: 92.81555099 | I35: 99.4410022 | J35: 99.84022393 | K35: 100 | L35: 100 | M35: 75.52341525 | N35: 91.85731118 | O35: 94.43892244 | P35: 94.67944153 | Q35: 97.81476117 | R35: 95.34969262 | S35: 94.1651398 | T35: 97.70037557 | BA35: Water source on premises | BB35: Yes | BC35: N/A | BD35: N/A | BE35: N/A | BF35: N/A | BG35: N/A | BH35: N/A | BI35: N/A | BJ35: N/A | BK35: N/A | BL35: N/A | BM35: N/A | BN35: N/A | BO35: N/A | BP35: N/A | BQ35: N/A | BR35: N/A | BS35: N/A | BT35: N/A
B36: No | C36: 16.19679548 | D36: 2.727745265 | E36: 2.000655351 | F36: 0.8161640129 | G36: 0.4604182745 | H36: 7.184449005 | I36: 0.558997798 | J36: 0.1597760715 | K36: 0 | L36: 0 | M36: 24.47658475 | N36: 8.142688823 | O36: 5.56107756 | P36: 5.320558466 | Q36: 2.185238832 | R36: 4.650307382 | S36: 5.834860196 | T36: 2.299624433 | BB36: No | BC36: N/A | BD36: N/A | BE36: N/A | BF36: N/A | BG36: N/A | BH36: N/A | BI36: N/A | BJ36: N/A | BK36: N/A | BL36: N/A | BM36: N/A | BN36: N/A | BO36: N/A | BP36: N/A | BQ36: N/A | BR36: N/A | BS36: N/A | BT36: N/A
A37: Improved Water source on premises | B37: Yes | C37: 87.83192565 | D37: 97.77383111 | E37: 98.54586596 | F37: 99.18383599 | G37: 99.53958173 | H37: 92.81555099 | I37: 99.4410022 | J37: 99.84022393 | K37: 100 | L37: 100 | M37: 82.42556269 | N37: 95.71635836 | O37: 95.2979082 | P37: 96.09555565 | Q37: 97.81476117 | R37: 95.93062103 | S37: 96.52513198 | T37: 98.25232146 | BA37: Improved water source on premises | BB37: Yes | BC37: N/A | BD37: N/A | BE37: N/A | BF37: N/A | BG37: N/A | BH37: N/A | BI37: N/A | BJ37: N/A | BK37: N/A | BL37: N/A | BM37: N/A | BN37: N/A | BO37: N/A | BP37: N/A | BQ37: N/A | BR37: N/A | BS37: N/A | BT37: N/A
B38: No | C38: 12.16807435 | D38: 2.22616889 | E38: 1.454134042 | F38: 0.8161640129 | G38: 0.4604182745 | H38: 7.184449005 | I38: 0.558997798 | J38: 0.1597760715 | K38: 0 | L38: 0 | M38: 17.57443731 | N38: 4.283641644 | O38: 4.702091799 | P38: 3.904444351 | Q38: 2.185238832 | R38: 4.069378972 | S38: 3.474868019 | T38: 1.747678543 | BB38: No | BC38: N/A | BD38: N/A | BE38: N/A | BF38: N/A | BG38: N/A | BH38: N/A | BI38: N/A | BJ38: N/A | BK38: N/A | BL38: N/A | BM38: N/A | BN38: N/A | BO38: N/A | BP38: N/A | BQ38: N/A | BR38: N/A | BS38: N/A | BT38: N/A
A39: Piped water on premises available when needed | B39: Yes | C39: N/A | D39: N/A | E39: N/A | F39: N/A | G39: N/A | H39: N/A | I39: N/A | J39: N/A | K39: N/A | L39: N/A | M39: N/A | N39: N/A | O39: N/A | P39: N/A | Q39: N/A | R39: N/A | S39: N/A | T39: N/A | BA39: Piped water on premises available when needed | BB39: Yes | BC39: N/A | BD39: N/A | BE39: N/A | BF39: N/A | BG39: N/A | BH39: N/A | BI39: N/A | BJ39: N/A | BK39: N/A | BL39: N/A | BM39: N/A | BN39: N/A | BO39: N/A | BP39: N/A | BQ39: N/A | BR39: N/A | BS39: N/A | BT39: N/A
B40: No | C40: N/A | D40: N/A | E40: N/A | F40: N/A | G40: N/A | H40: N/A | I40: N/A | J40: N/A | K40: N/A | L40: N/A | M40: N/A | N40: N/A | O40: N/A | P40: N/A | Q40: N/A | R40: N/A | S40: N/A | T40: N/A | BB40: No | BC40: N/A | BD40: N/A | BE40: N/A | BF40: N/A | BG40: N/A | BH40: N/A | BI40: N/A | BJ40: N/A | BK40: N/A | BL40: N/A | BM40: N/A | BN40: N/A | BO40: N/A | BP40: N/A | BQ40: N/A | BR40: N/A | BS40: N/A | BT40: N/A
A41: Water point at more than 30 minutes | B41: Yes | C41: 0.6508467961 | D41: 0.2797342448 | E41: 0.2129864367 | F41: 0 | G41: 0.2737406296 | H41: 0.2140108143 | I41: 0 | J41: 0 | K41: 0 | L41: 0 | M41: 1.369721989 | N41: 0.7356046725 | O41: 0 | P41: 0.5659501866 | Q41: 0.7226640439 | R41: 0.2748854527 | S41: 0.342269434 | T41: 0.225911014 | BA41: Water point at more than 30 minutes | BB41: Yes | BC41: N/A | BD41: N/A | BE41: N/A | BF41: N/A | BG41: N/A | BH41: N/A | BI41: N/A | BJ41: N/A | BK41: N/A | BL41: N/A | BM41: N/A | BN41: N/A | BO41: N/A | BP41: N/A | BQ41: N/A | BR41: N/A | BS41: N/A | BT41: N/A
B42: No | C42: 99.3491532 | D42: 99.72026576 | E42: 99.78701356 | F42: 100 | G42: 99.72625937 | H42: 99.78598919 | I42: 100 | J42: 100 | K42: 100 | L42: 100 | M42: 98.63027801 | N42: 99.26439533 | O42: 100 | P42: 99.43404981 | Q42: 99.27733596 | R42: 99.72511455 | S42: 99.65773057 | T42: 99.77408899 | BB42: No | BC42: N/A | BD42: N/A | BE42: N/A | BF42: N/A | BG42: N/A | BH42: N/A | BI42: N/A | BJ42: N/A | BK42: N/A | BL42: N/A | BM42: N/A | BN42: N/A | BO42: N/A | BP42: N/A | BQ42: N/A | BR42: N/A | BS42: N/A | BT42: N/A
A43: Water source available when needed | B43: Yes | C43: N/A | D43: N/A | E43: N/A | F43: N/A | G43: N/A | H43: N/A | I43: N/A | J43: N/A | K43: N/A | L43: N/A | M43: N/A | N43: N/A | O43: N/A | P43: N/A | Q43: N/A | R43: N/A | S43: N/A | T43: N/A | BA43: Water source available when needed | BB43: Yes | BC43: N/A | BD43: N/A | BE43: N/A | BF43: N/A | BG43: N/A | BH43: N/A | BI43: N/A | BJ43: N/A | BK43: N/A | BL43: N/A | BM43: N/A | BN43: N/A | BO43: N/A | BP43: N/A | BQ43: N/A | BR43: N/A | BS43: N/A | BT43: N/A
B44: No | C44: N/A | D44: N/A | E44: N/A | F44: N/A | G44: N/A | H44: N/A | I44: N/A | J44: N/A | K44: N/A | L44: N/A | M44: N/A | N44: N/A | O44: N/A | P44: N/A | Q44: N/A | R44: N/A | S44: N/A | T44: N/A | BB44: No | BC44: N/A | BD44: N/A | BE44: N/A | BF44: N/A | BG44: N/A | BH44: N/A | BI44: N/A | BJ44: N/A | BK44: N/A | BL44: N/A | BM44: N/A | BN44: N/A | BO44: N/A | BP44: N/A | BQ44: N/A | BR44: N/A | BS44: N/A | BT44: N/A
A45: Improved water source available when needed | B45: Yes | C45: N/A | D45: N/A | E45: N/A | F45: N/A | G45: N/A | H45: N/A | I45: N/A | J45: N/A | K45: N/A | L45: N/A | M45: N/A | N45: N/A | O45: N/A | P45: N/A | Q45: N/A | R45: N/A | S45: N/A | T45: N/A | BA45: Improved water source available when needed | BB45: Yes | BC45: N/A | BD45: N/A | BE45: N/A | BF45: N/A | BG45: N/A | BH45: N/A | BI45: N/A | BJ45: N/A | BK45: N/A | BL45: N/A | BM45: N/A | BN45: N/A | BO45: N/A | BP45: N/A | BQ45: N/A | BR45: N/A | BS45: N/A | BT45: N/A
B46: No | C46: N/A | D46: N/A | E46: N/A | F46: N/A | G46: N/A | H46: N/A | I46: N/A | J46: N/A | K46: N/A | L46: N/A | M46: N/A | N46: N/A | O46: N/A | P46: N/A | Q46: N/A | R46: N/A | S46: N/A | T46: N/A | BB46: No | BC46: N/A | BD46: N/A | BE46: N/A | BF46: N/A | BG46: N/A | BH46: N/A | BI46: N/A | BJ46: N/A | BK46: N/A | BL46: N/A | BM46: N/A | BN46: N/A | BO46: N/A | BP46: N/A | BQ46: N/A | BR46: N/A | BS46: N/A | BT46: N/A
A47: Microbiological quality at point of collection | B47: Not contaminated (No E. coli in 100 mL) | C47: N/A | D47: N/A | E47: N/A | F47: N/A | G47: N/A | H47: N/A | I47: N/A | J47: N/A | K47: N/A | L47: N/A | M47: N/A | N47: N/A | O47: N/A | P47: N/A | Q47: N/A | R47: N/A | S47: N/A | T47: N/A | BA47: Microbiological quality at point of collection | BB47: Not contaminated (No E. coli in 100 mL) | BC47: N/A | BD47: N/A | BE47: N/A | BF47: N/A | BG47: N/A | BH47: N/A | BI47: N/A | BJ47: N/A | BK47: N/A | BL47: N/A | BM47: N/A | BN47: N/A | BO47: N/A | BP47: N/A | BQ47: N/A | BR47: N/A | BS47: N/A | BT47: N/A
B48: Contaminated (E. coli detected in 100 mL) | C48: N/A | D48: N/A | E48: N/A | F48: N/A | G48: N/A | H48: N/A | I48: N/A | J48: N/A | K48: N/A | L48: N/A | M48: N/A | N48: N/A | O48: N/A | P48: N/A | Q48: N/A | R48: N/A | S48: N/A | T48: N/A | BB48: Contaminated (E. coli detected in 100 mL) | BC48: N/A | BD48: N/A | BE48: N/A | BF48: N/A | BG48: N/A | BH48: N/A | BI48: N/A | BJ48: N/A | BK48: N/A | BL48: N/A | BM48: N/A | BN48: N/A | BO48: N/A | BP48: N/A | BQ48: N/A | BR48: N/A | BS48: N/A | BT48: N/A
B49: Highly contaminated (>100 CFU/100 mL) | C49: N/A | D49: N/A | E49: N/A | F49: N/A | G49: N/A | H49: N/A | I49: N/A | J49: N/A | K49: N/A | L49: N/A | M49: N/A | N49: N/A | O49: N/A | P49: N/A | Q49: N/A | R49: N/A | S49: N/A | T49: N/A | BB49: Highly contaminated (>100 CFU/100 mL) | BC49: N/A | BD49: N/A | BE49: N/A | BF49: N/A | BG49: N/A | BH49: N/A | BI49: N/A | BJ49: N/A | BK49: N/A | BL49: N/A | BM49: N/A | BN49: N/A | BO49: N/A | BP49: N/A | BQ49: N/A | BR49: N/A | BS49: N/A | BT49: N/A
A50: Microbiological quality of improved water sources at point of collection | B50: Not contaminated (No E. coli in 100 mL) | C50: N/A | D50: N/A | E50: N/A | F50: N/A | G50: N/A | H50: N/A | I50: N/A | J50: N/A | K50: N/A | L50: N/A | M50: N/A | N50: N/A | O50: N/A | P50: N/A | Q50: N/A | R50: N/A | S50: N/A | T50: N/A | BA50: Microbiological quality of improved water sources at point of collection | BB50: Not contaminated (No E. coli in 100 mL) | BC50: N/A | BD50: N/A | BE50: N/A | BF50: N/A | BG50: N/A | BH50: N/A | BI50: N/A | BJ50: N/A | BK50: N/A | BL50: N/A | BM50: N/A | BN50: N/A | BO50: N/A | BP50: N/A | BQ50: N/A | BR50: N/A | BS50: N/A | BT50: N/A
B51: Contaminated (E. coli detected in 100 mL) | C51: N/A | D51: N/A | E51: N/A | F51: N/A | G51: N/A | H51: N/A | I51: N/A | J51: N/A | K51: N/A | L51: N/A | M51: N/A | N51: N/A | O51: N/A | P51: N/A | Q51: N/A | R51: N/A | S51: N/A | T51: N/A | BB51: Contaminated (E. coli detected in 100 mL) | BC51: N/A | BD51: N/A | BE51: N/A | BF51: N/A | BG51: N/A | BH51: N/A | BI51: N/A | BJ51: N/A | BK51: N/A | BL51: N/A | BM51: N/A | BN51: N/A | BO51: N/A | BP51: N/A | BQ51: N/A | BR51: N/A | BS51: N/A | BT51: N/A
B52: Highly contaminated (>100 CFU/100 mL) | C52: N/A | D52: N/A | E52: N/A | F52: N/A | G52: N/A | H52: N/A | I52: N/A | J52: N/A | K52: N/A | L52: N/A | M52: N/A | N52: N/A | O52: N/A | P52: N/A | Q52: N/A | R52: N/A | S52: N/A | T52: N/A | BB52: Highly contaminated (>100 CFU/100 mL) | BC52: N/A | BD52: N/A | BE52: N/A | BF52: N/A | BG52: N/A | BH52: N/A | BI52: N/A | BJ52: N/A | BK52: N/A | BL52: N/A | BM52: N/A | BN52: N/A | BO52: N/A | BP52: N/A | BQ52: N/A | BR52: N/A | BS52: N/A | BT52: N/A
A53: Microbiological quality of piped on premises at point of collection | B53: Not contaminated (No E. coli in 100 mL) | C53: N/A | D53: N/A | E53: N/A | F53: N/A | G53: N/A | H53: N/A | I53: N/A | J53: N/A | K53: N/A | L53: N/A | M53: N/A | N53: N/A | O53: N/A | P53: N/A | Q53: N/A | R53: N/A | S53: N/A | T53: N/A | BA53: Microbiological quality of piped on premises at point of collection | BB53: Not contaminated (No E. coli in 100 mL) | BC53: N/A | BD53: N/A | BE53: N/A | BF53: N/A | BG53: N/A | BH53: N/A | BI53: N/A | BJ53: N/A | BK53: N/A | BL53: N/A | BM53: N/A | BN53: N/A | BO53: N/A | BP53: N/A | BQ53: N/A | BR53: N/A | BS53: N/A | BT53: N/A
B54: Contaminated (E. coli detected in 100 mL) | C54: N/A | D54: N/A | E54: N/A | F54: N/A | G54: N/A | H54: N/A | I54: N/A | J54: N/A | K54: N/A | L54: N/A | M54: N/A | N54: N/A | O54: N/A | P54: N/A | Q54: N/A | R54: N/A | S54: N/A | T54: N/A | BB54: Contaminated (E. coli detected in 100 mL) | BC54: N/A | BD54: N/A | BE54: N/A | BF54: N/A | BG54: N/A | BH54: N/A | BI54: N/A | BJ54: N/A | BK54: N/A | BL54: N/A | BM54: N/A | BN54: N/A | BO54: N/A | BP54: N/A | BQ54: N/A | BR54: N/A | BS54: N/A | BT54: N/A
B55: Highly contaminated (>100 CFU/100 mL) | C55: N/A | D55: N/A | E55: N/A | F55: N/A | G55: N/A | H55: N/A | I55: N/A | J55: N/A | K55: N/A | L55: N/A | M55: N/A | N55: N/A | O55: N/A | P55: N/A | Q55: N/A | R55: N/A | S55: N/A | T55: N/A | BB55: Highly contaminated (>100 CFU/100 mL) | BC55: N/A | BD55: N/A | BE55: N/A | BF55: N/A | BG55: N/A | BH55: N/A | BI55: N/A | BJ55: N/A | BK55: N/A | BL55: N/A | BM55: N/A | BN55: N/A | BO55: N/A | BP55: N/A | BQ55: N/A | BR55: N/A | BS55: N/A | BT55: N/A
C56: NATIONAL wealth index quintile | H56: URBAN wealth index quintile | M56: RURAL wealth index quintile | R56: SUB-REGIONS: | BA56: Raw numbers of respondents: | BB56: Use of drinking water sources | BC56: NATIONAL wealth index quintile | BH56: URBAN wealth index quintile | BM56: RURAL wealth index quintile | BR56: SUB-REGIONS:
A57: Percentage based on weighted population | C57: Poorest | D57: Poor | E57: Middle | F57: Rich | G57: Richest | H57: Poorest | I57: Poor | J57: Middle | K57: Rich | L57: Richest | M57: Poorest | N57: Poor | O57: Middle | P57: Rich | Q57: Richest | R57: Central | S57: North | T57: South | BA57: Water data, raw numbers (weighted) | BC57: Poorest | BD57: Poor | BE57: Middle | BF57: Rich | BG57: Richest | BH57: Poorest | BI57: Poor | BJ57: Middle | BK57: Rich | BL57: Richest | BM57: Poorest | BN57: Poor | BO57: Middle | BP57: Rich | BQ57: Richest | BR57: Central | BS57: North | BT57: South
A58: Main source of drinking water | B58: Public watersupply | C58: 45.05276067 | D58: 80.96015464 | E58: 84.34630647 | F58: 84.1995442 | G58: 90.66829455 | H58: 91.28307495 | I58: 97.2884251 | J58: 95.46932488 | K58: 95.44850065 | L58: 96.45411067 | M58: 18.12649532 | N58: 38.74056415 | O58: 65.68877188 | P58: 56.93812184 | Q58: 56.84960362 | R58: 83.77052923 | S58: 64.35530449 | T58: 80.2681267
B59: Local watersupply | C59: 20.9838774 | D59: 8.380394186 | E59: 1.442700009 | F59: 0.8281865861 | G59: 1.022838539 | H59: 1.532476042 | I59: 0 | J59: 0 | K59: 0 | L59: 0 | M59: 26.27126936 | N59: 34.46687558 | O59: 13.30710659 | P59: 5.592300491 | Q59: 3.98457198 | R59: 1.456654526 | S59: 18.03593601 | T59: 1.691288316
B60: Public tap/standpipe | C60: 5.177262354 | D60: 0.2797342448 | E60: 0.1629856318 | F60: 0 | G60: 0 | H60: 7.056472552 | I60: 0 | J60: 0 | K60: 0 | L60: 0 | M60: 2.10285583 | N60: 0 | O60: 0.7367874858 | P60: 0.433087431 | Q60: 0 | R60: 2.047296413 | S60: 0.3898018379 | T60: 0.3041680586
B61: Tubewell/borehole | C61: 3.715408326 | D61: 4.137599419 | E61: 8.353963385 | F61: 7.691415776 | G61: 5.098751443 | H61: 0.127976453 | I61: 0.558997798 | J61: 0 | K61: 0 | L61: 0 | M61: 6.917865565 | N61: 3.774412464 | O61: 9.092745339 | P61: 25.49261688 | Q61: 30.29356116 | R61: 9.682419705 | S61: 1.946958408 | T61: 3.318253522
B62: Protected well or spring | C62: 18.88102356 | D62: 4.189602353 | E62: 2.742166712 | F62: 0.09962204107 | G62: 0.4559537429 | H62: 0 | I62: 0 | J62: 0.1597760715 | K62: 0.2940623301 | L62: 0 | M62: 34.56075006 | N62: 17.55442531 | O62: 8.763680009 | P62: 7.28651921 | Q62: 0.7226640439 | R62: 1.054535626 | S62: 12.09856304 | T62: 4.673397086
B63: Unprotected well or spring | C63: 3.83091543 | D63: 0.4121540376 | E63: 0.3415992923 | F63: 0 | G63: 0 | H63: 0 | I63: 0 | J63: 0 | K63: 0 | L63: 0 | M63: 8.750979128 | N63: 1.556362885 | O63: 0.9013689565 | P63: 0.9077018529 | Q63: 0 | R63: 0.03070724669 | S63: 2.395886038 | T63: 0.7342107955
B64: Tanker-truck | C64: 0.4497694966 | D64: 0.9299614411 | E64: 0.1064932183 | F64: 0 | G64: 0 | H64: 0 | I64: 0.5731754711 | J64: 0 | K64: 0 | L64: 0 | M64: 0.8368180528 | N64: 0.3506871381 | O64: 1.509539739 | P64: 0.2829750933 | Q64: 0 | R64: 0.4960226501 | S64: 0 | T64: 0.2944509004
B65: Surface water | C65: 1.284697146 | D65: 0 | E65: 0 | F65: 0 | G65: 0 | H65: 0 | I65: 0 | J65: 0 | K65: 0 | L65: 0 | M65: 0.7820250064 | N65: 2.601127468 | O65: 0 | P65: 0 | Q65: 0 | R65: 0.4343281974 | S65: 0.1954142946 | T65: 0
B66: Bottled water | C66: 0 | D66: 0.3470269769 | E66: 2.290798847 | F66: 7.181231395 | G66: 2.754161726 | H66: 0 | I66: 1.579401629 | J66: 4.370899053 | K66: 4.257437022 | L66: 3.545889331 | M66: 0 | N66: 0 | O66: 0 | P66: 2.500727018 | Q66: 8.149599195 | R66: 0.886970445 | S66: 0 | T66: 8.716104619
B67: Other | C67: 0.6242856096 | D67: 0.3633727067 | E67: 0.2129864367 | F67: 0 | G67: 0 | H67: 0 | I67: 0 | J67: 0 | K67: 0 | L67: 0 | M67: 1.65094168 | N67: 0.9555450068 | O67: 0 | P67: 0.5659501866 | Q67: 0 | R67: 0.1405359616 | S67: 0.5821358787 | T67: 0
A108: =A1026 -> Montenegro
A109: =A1034 -> 2006
A110: Use of sanitation facilities
A111: by wealth quintile and sub-national region
A112: Notes:
A113: WHO/UNICEF JMP customised wealth index excludes water,
A114: sanitation and hygiene assets.
A115: Survey used for analysis: | B115: =A1025 -> MICS06
A116: =B1030 -> Ratio of Improved latrines based on: | B116: MICS13
A117: =B1029 -> Ratio of Shared improved based on: | B117: MICS13
A120: Use of sanitation facilities | C120: NATIONAL wealth index quintile | H120: URBAN wealth index quintile | M120: RURAL wealth index quintile | R120: SUB-REGIONS: | BA120: Raw numbers of respondents: | BB120: Use of sanitation facilities | BC120: NATIONAL wealth index quintile | BH120: URBAN wealth index quintile | BM120: RURAL wealth index quintile | BR120: SUB-REGIONS:
A121: Weighted percentage (used in graphs) | C121: Poorest | D121: Poor | E121: Middle | F121: Rich | G121: Richest | H121: Poorest | I121: Poor | J121: Middle | K121: Rich | L121: Richest | M121: Poorest | N121: Poor | O121: Middle | P121: Rich | Q121: Richest | R121: Central | S121: North | T121: South | BA121: Sanitation data, raw numbers (weighted) | BC121: Poorest | BD121: Poor | BE121: Middle | BF121: Rich | BG121: Richest | BH121: Poorest | BI121: Poor | BJ121: Middle | BK121: Rich | BL121: Richest | BM121: Poorest | BN121: Poor | BO121: Middle | BP121: Rich | BQ121: Richest | BR121: Central | BS121: North | BT121: South
A122: Sanitation | B122: Improved | C122: =C153+C154+C155+C156*MICS13!C130/100 -> 93.87101658 | D122: =D153+D154+D155+D156*MICS13!D130/100 -> 99.39728909 | E122: =E153+E154+E155+E156*MICS13!E130/100 -> 99.93052398 | F122: =F153+F154+F155+F156*MICS13!F130/100 -> 99.78604941 | G122: =G153+G154+G155+G156*MICS13!G130/100 -> 100 | H122: =H153+H154+H155+H156*MICS13!H130/100 -> 98.88584516 | I122: =I153+I154+I155+I156*MICS13!I130/100 -> 99.88820044 | J122: =J153+J154+J155+J156*MICS13!J130/100 -> 99.65686123 | K122: =K153+K154+K155+K156*MICS13!K130/100 -> 100 | L122: =L153+L154+L155+L156*MICS13!L130/100 -> 100 | M122: =M153+M154+M155+M156*MICS13!M130/100 -> 92.48254254 | N122: =N153+N154+N155+N156*MICS13!N130/100 -> 92.68039382 | O122: =O153+O154+O155+O156*MICS13!O130/100 -> 99.01842591 | P122: =P153+P154+P155+P156*MICS13!P130/100 -> 100 | Q122: =Q153+Q154+Q155+Q156*MICS13!Q130/100 -> 100 | R122: =R153+R154+R155+R156*MICS13!R130/100 -> 99.2907802 | S122: =S153+S154+S155+S156*MICS13!S130/100 -> 96.8253813 | T122: =T153+T154+T155+T156*MICS13!T130/100 -> 99.82297168 | BA122: Sanitation | BB122: Improved | BC122: N/A | BD122: N/A | BE122: N/A | BF122: N/A | BG122: N/A | BH122: N/A | BI122: N/A | BJ122: N/A | BK122: N/A | BL122: N/A | BM122: N/A | BN122: N/A | BO122: N/A | BP122: N/A | BQ122: N/A | BR122: N/A | BS122: N/A | BT122: N/A
B123: Not Improved | C123: =100-C122 -> 6.128983423 | D123: =100-D122 -> 0.6027109126 | E123: 0.06947601931 | F123: 0.2139505902 | G123: 1.136868377e-13 | H123: 1.114154842 | I123: 0.1117995596 | J123: 0.3431387714 | K123: 0 | L123: -1.136868377e-13 | M123: 7.517457455 | N123: 7.319606179 | O123: 0.9815740853 | P123: 0 | Q123: 0 | R123: 0.7092198032 | S123: 3.174618695 | T123: 0.1770283183 | BB123: Not Improved | BC123: N/A | BD123: N/A | BE123: N/A | BF123: N/A | BG123: N/A | BH123: N/A | BI123: N/A | BJ123: N/A | BK123: N/A | BL123: N/A | BM123: N/A | BN123: N/A | BO123: N/A | BP123: N/A | BQ123: N/A | BR123: N/A | BS123: N/A | BT123: N/A
A124: Sanitation ladder | B124: Basic | C124: =C122*MICS13!C129/100 -> 91.58883224 | D124: =D122*MICS13!D129/100 -> 99.00836366 | E124: =E122*MICS13!E129/100 -> 99.38971935 | F124: =F122*MICS13!F129/100 -> 99.310566 | G124: =G122*MICS13!G129/100 -> 99.73632236 | H124: =H122*MICS13!H129/100 -> 95.56594229 | I124: =I122*MICS13!I129/100 -> 99.61286295 | J124: =J122*MICS13!J129/100 -> 98.82374603 | K124: =K122*MICS13!K129/100 -> 99.32857145 | L124: =L122*MICS13!L129/100 -> 99.83174 | M124: =M122*MICS13!M129/100 -> 91.26934282 | N124: =N122*MICS13!N129/100 -> 92.68039382 | O124: =O122*MICS13!O129/100 -> 99.01842591 | P124: =P122*MICS13!P129/100 -> 100 | Q124: =Q122*MICS13!Q129/100 -> 99.56300051 | R124: =R122*MICS13!R129/100 -> 98.24923507 | S124: =S122*MICS13!S129/100 -> 96.30517866 | T124: =T122*MICS13!T129/100 -> 99.27148394 | BA124: Sanitation ladder | BB124: Basic | BC124: N/A | BD124: N/A | BE124: N/A | BF124: N/A | BG124: N/A | BH124: N/A | BI124: N/A | BJ124: N/A | BK124: N/A | BL124: N/A | BM124: N/A | BN124: N/A | BO124: N/A | BP124: N/A | BQ124: N/A | BR124: N/A | BS124: N/A | BT124: N/A
B125: Limited | C125: =C122*MICS13!C128/100 -> 2.282184334 | D125: =D122*MICS13!D128/100 -> 0.3889254322 | E125: =E122*MICS13!E128/100 -> 0.5408046279 | F125: =F122*MICS13!F128/100 -> 0.4754834139 | G125: =G122*MICS13!G128/100 -> 0.2636776425 | H125: =H122*MICS13!H128/100 -> 3.319902865 | I125: =I122*MICS13!I128/100 -> 0.2753374891 | J125: =J122*MICS13!J128/100 -> 0.8331151982 | K125: =K122*MICS13!K128/100 -> 0.6714285546 | L125: =L122*MICS13!L128/100 -> 0.168259997 | M125: =M122*MICS13!M128/100 -> 1.213199728 | N125: =N122*MICS13!N128/100 -> 0 | O125: =O122*MICS13!O128/100 -> 0 | P125: =P122*MICS13!P128/100 -> 0 | Q125: =Q122*MICS13!Q128/100 -> 0.436999487 | R125: =R122*MICS13!R128/100 -> 1.041545122 | S125: =S122*MICS13!S128/100 -> 0.5202026453 | T125: =T122*MICS13!T128/100 -> 0.5514877408 | BB125: Limited | BC125: N/A | BD125: N/A | BE125: N/A | BF125: N/A | BG125: N/A | BH125: N/A | BI125: N/A | BJ125: N/A | BK125: N/A | BL125: N/A | BM125: N/A | BN125: N/A | BO125: N/A | BP125: N/A | BQ125: N/A | BR125: N/A | BS125: N/A | BT125: N/A
B126: Unimproved | C126: =100-(C124+C125+C127) -> 5.041232364 | D126: =100-(D124+D125+D127) -> 0.6027109126 | E126: 0.06947601931 | F126: 1.421085472e-13 | G126: 0 | H126: 1.114154842 | I126: 0.1117995596 | J126: 0 | K126: 0 | L126: 0 | M126: 6.118128784 | N126: 5.848396834 | O126: 0.9815740853 | P126: 0 | Q126: 0 | R126: 0.4635618297 | S126: 2.827215505 | T126: 0 | BB126: Unimproved | BC126: N/A | BD126: N/A | BE126: N/A | BF126: N/A | BG126: N/A | BH126: N/A | BI126: N/A | BJ126: N/A | BK126: N/A | BL126: N/A | BM126: N/A | BN126: N/A | BO126: N/A | BP126: N/A | BQ126: N/A | BR126: N/A | BS126: N/A | BT126: N/A
B127: Open defecation | C127: =C157 -> 1.087751059 | D127: =D157 -> 0 | E127: 0 | F127: 0.2139505902 | G127: 0 | H127: 0 | I127: 0 | J127: 0.3431387714 | K127: 0 | L127: 0 | M127: 1.399328672 | N127: 1.471209345 | O127: 0 | P127: 0 | Q127: 0 | R127: 0.2456579735 | S127: 0.3474031904 | T127: 0.1770283183 | BB127: Open defecation | BC127: N/A | BD127: N/A | BE127: N/A | BF127: N/A | BG127: N/A | BH127: N/A | BI127: N/A | BJ127: N/A | BK127: N/A | BL127: N/A | BM127: N/A | BN127: N/A | BO127: N/A | BP127: N/A | BQ127: N/A | BR127: N/A | BS127: N/A | BT127: N/A
A128: Shared among Improved Sanitation | B128: Yes | C128: N/A | D128: N/A | E128: N/A | F128: N/A | G128: N/A | H128: N/A | I128: N/A | J128: N/A | K128: N/A | L128: N/A | M128: N/A | N128: N/A | O128: N/A | P128: N/A | Q128: N/A | R128: N/A | S128: N/A | T128: N/A | BA128: Shared among improved sanitation facilities | BB128: Yes | BC128: N/A | BD128: N/A | BE128: N/A | BF128: N/A | BG128: N/A | BH128: N/A | BI128: N/A | BJ128: N/A | BK128: N/A | BL128: N/A | BM128: N/A | BN128: N/A | BO128: N/A | BP128: N/A | BQ128: N/A | BR128: N/A | BS128: N/A | BT128: N/A
B129: No | C129: N/A | D129: N/A | E129: N/A | F129: N/A | G129: N/A | H129: N/A | I129: N/A | J129: N/A | K129: N/A | L129: N/A | M129: N/A | N129: N/A | O129: N/A | P129: N/A | Q129: N/A | R129: N/A | S129: N/A | T129: N/A | BB129: No | BC129: N/A | BD129: N/A | BE129: N/A | BF129: N/A | BG129: N/A | BH129: N/A | BI129: N/A | BJ129: N/A | BK129: N/A | BL129: N/A | BM129: N/A | BN129: N/A | BO129: N/A | BP129: N/A | BQ129: N/A | BR129: N/A | BS129: N/A | BT129: N/A
A130: Manually calculated ratios | B130: Improved latrines
B131: Other
B132: Other
C133: NATIONAL wealth index quintile | H133: URBAN wealth index quintile | M133: RURAL wealth index quintile | R133: SUB-REGIONS: | BA133: Raw numbers of respondents: | BB133: Use of sanitation facilities | BC133: NATIONAL wealth index quintile | BH133: URBAN wealth index quintile | BM133: RURAL wealth index quintile | BR133: SUB-REGIONS:
A134: Percentage based on weighted population | C134: Poorest | D134: Poor | E134: Middle | F134: Rich | G134: Richest | H134: Poorest | I134: Poor | J134: Middle | K134: Rich | L134: Richest | M134: Poorest | N134: Poor | O134: Middle | P134: Rich | Q134: Richest | R134: Central | S134: North | T134: South | BA134: Sanitation data, raw numbers (weighted) | BC134: Poorest | BD134: Poor | BE134: Middle | BF134: Rich | BG134: Richest | BH134: Poorest | BI134: Poor | BJ134: Middle | BK134: Rich | BL134: Richest | BM134: Poorest | BN134: Poor | BO134: Middle | BP134: Rich | BQ134: Richest | BR134: Central | BS134: North | BT134: South
A135: Sanitation type | B135: Sewer connection | C135: 28.67652962 | D135: 53.98394855 | E135: 46.19706812 | F135: 58.5302431 | G135: 68.93975763 | H135: 58.36803441 | I135: 55.63660753 | J135: 66.95525215 | K135: 72.60642584 | L135: 79.07713372 | M135: 8.868266959 | N135: 29.42239188 | O135: 44.83098225 | P135: 21.88565384 | Q135: 25.98698506 | R135: 37.2107546 | S135: 59.97652731 | T135: 66.79411715 | BA135: Sanitation type | BB135: Sewer connection | BC135: N/A | BD135: N/A | BE135: N/A | BF135: N/A | BG135: N/A | BH135: N/A | BI135: N/A | BJ135: N/A | BK135: N/A | BL135: N/A | BM135: N/A | BN135: N/A | BO135: N/A | BP135: N/A | BQ135: N/A | BR135: N/A | BS135: N/A | BT135: N/A
B136: Septic tank connection | C136: 32.20233755 | D136: 42.58210447 | E136: 53.38607577 | F136: 41.25580631 | G136: 30.96056239 | H136: 33.66470544 | I136: 43.69259512 | J136: 32.70160908 | K136: 27.23270688 | L136: 20.92286628 | M136: 18.70825643 | N136: 50.18922695 | O136: 49.58656456 | P136: 77.18689109 | Q136: 74.01301494 | R136: 58.67600388 | S136: 18.68771208 | T136: 31.85812818 | BB136: Septic tank connection | BC136: N/A | BD136: N/A | BE136: N/A | BF136: N/A | BG136: N/A | BH136: N/A | BI136: N/A | BJ136: N/A | BK136: N/A | BL136: N/A | BM136: N/A | BN136: N/A | BO136: N/A | BP136: N/A | BQ136: N/A | BR136: N/A | BS136: N/A | BT136: N/A
B137: Improved latrines | C137: N/A | D137: N/A | E137: N/A | F137: N/A | G137: N/A | H137: N/A | I137: N/A | J137: N/A | K137: N/A | L137: N/A | M137: N/A | N137: N/A | O137: N/A | P137: N/A | Q137: N/A | R137: N/A | S137: N/A | T137: N/A | BB137: Improved latrines | BC137: N/A | BD137: N/A | BE137: N/A | BF137: N/A | BG137: N/A | BH137: N/A | BI137: N/A | BJ137: N/A | BK137: N/A | BL137: N/A | BM137: N/A | BN137: N/A | BO137: N/A | BP137: N/A | BQ137: N/A | BR137: N/A | BS137: N/A | BT137: N/A
B138: Unimproved facilities | C138: N/A | D138: N/A | E138: N/A | F138: N/A | G138: N/A | H138: N/A | I138: N/A | J138: N/A | K138: N/A | L138: N/A | M138: N/A | N138: N/A | O138: N/A | P138: N/A | Q138: N/A | R138: N/A | S138: N/A | T138: N/A | BB138: Unimproved facilities | BC138: N/A | BD138: N/A | BE138: N/A | BF138: N/A | BG138: N/A | BH138: N/A | BI138: N/A | BJ138: N/A | BK138: N/A | BL138: N/A | BM138: N/A | BN138: N/A | BO138: N/A | BP138: N/A | BQ138: N/A | BR138: N/A | BS138: N/A | BT138: N/A
B139: Open defecation | C139: 1.08508736 | D139: 0 | E139: 0 | F139: 0.2139505902 | G139: 0 | H139: 0 | I139: 0 | J139: 0.3431387714 | K139: 0 | L139: 0 | M139: 1.390266678 | N139: 1.471209345 | O139: 0 | P139: 0 | Q139: 0 | R139: 0.2456579735 | S139: 0.3474031904 | T139: 0.1766705402 | BB139: Open defecation | BC139: N/A | BD139: N/A | BE139: N/A | BF139: N/A | BG139: N/A | BH139: N/A | BI139: N/A | BJ139: N/A | BK139: N/A | BL139: N/A | BM139: N/A | BN139: N/A | BO139: N/A | BP139: N/A | BQ139: N/A | BR139: N/A | BS139: N/A | BT139: N/A
A140: Septic tank emptying practices | B140: Not emptied/treated and disposed in situ | C140: N/A | D140: N/A | E140: N/A | F140: N/A | G140: N/A | H140: N/A | I140: N/A | J140: N/A | K140: N/A | L140: N/A | M140: N/A | N140: N/A | O140: N/A | P140: N/A | Q140: N/A | R140: N/A | S140: N/A | T140: N/A | BA140: Septic tank emptying practices | BB140: Not emptied/treated and disposed in situ | BC140: N/A | BD140: N/A | BE140: N/A | BF140: N/A | BG140: N/A | BH140: N/A | BI140: N/A | BJ140: N/A | BK140: N/A | BL140: N/A | BM140: N/A | BN140: N/A | BO140: N/A | BP140: N/A | BQ140: N/A | BR140: N/A | BS140: N/A | BT140: N/A
B141: Emptied and buried on site | C141: N/A | D141: N/A | E141: N/A | F141: N/A | G141: N/A | H141: N/A | I141: N/A | J141: N/A | K141: N/A | L141: N/A | M141: N/A | N141: N/A | O141: N/A | P141: N/A | Q141: N/A | R141: N/A | S141: N/A | T141: N/A | BB141: Emptied and buried on site | BC141: N/A | BD141: N/A | BE141: N/A | BF141: N/A | BG141: N/A | BH141: N/A | BI141: N/A | BJ141: N/A | BK141: N/A | BL141: N/A | BM141: N/A | BN141: N/A | BO141: N/A | BP141: N/A | BQ141: N/A | BR141: N/A | BS141: N/A | BT141: N/A
B142: Emptied and discharged locally | C142: N/A | D142: N/A | E142: N/A | F142: N/A | G142: N/A | H142: N/A | I142: N/A | J142: N/A | K142: N/A | L142: N/A | M142: N/A | N142: N/A | O142: N/A | P142: N/A | Q142: N/A | R142: N/A | S142: N/A | T142: N/A | BB142: Emptied and discharged locally | BC142: N/A | BD142: N/A | BE142: N/A | BF142: N/A | BG142: N/A | BH142: N/A | BI142: N/A | BJ142: N/A | BK142: N/A | BL142: N/A | BM142: N/A | BN142: N/A | BO142: N/A | BP142: N/A | BQ142: N/A | BR142: N/A | BS142: N/A | BT142: N/A
B143: Emptied and removed offsite | C143: N/A | D143: N/A | E143: N/A | F143: N/A | G143: N/A | H143: N/A | I143: N/A | J143: N/A | K143: N/A | L143: N/A | M143: N/A | N143: N/A | O143: N/A | P143: N/A | Q143: N/A | R143: N/A | S143: N/A | T143: N/A | BB143: Emptied and removed offsite | BC143: N/A | BD143: N/A | BE143: N/A | BF143: N/A | BG143: N/A | BH143: N/A | BI143: N/A | BJ143: N/A | BK143: N/A | BL143: N/A | BM143: N/A | BN143: N/A | BO143: N/A | BP143: N/A | BQ143: N/A | BR143: N/A | BS143: N/A | BT143: N/A
A144: Latrine emptying practices | B144: Not emptied/treated and disposed in situ | C144: N/A | D144: N/A | E144: N/A | F144: N/A | G144: N/A | H144: N/A | I144: N/A | J144: N/A | K144: N/A | L144: N/A | M144: N/A | N144: N/A | O144: N/A | P144: N/A | Q144: N/A | R144: N/A | S144: N/A | T144: N/A | BA144: Latrine emptying practices | BB144: Not emptied/treated and disposed in situ | BC144: N/A | BD144: N/A | BE144: N/A | BF144: N/A | BG144: N/A | BH144: N/A | BI144: N/A | BJ144: N/A | BK144: N/A | BL144: N/A | BM144: N/A | BN144: N/A | BO144: N/A | BP144: N/A | BQ144: N/A | BR144: N/A | BS144: N/A | BT144: N/A
B145: Emptied and buried on site | C145: N/A | D145: N/A | E145: N/A | F145: N/A | G145: N/A | H145: N/A | I145: N/A | J145: N/A | K145: N/A | L145: N/A | M145: N/A | N145: N/A | O145: N/A | P145: N/A | Q145: N/A | R145: N/A | S145: N/A | T145: N/A | BB145: Emptied and buried on site | BC145: N/A | BD145: N/A | BE145: N/A | BF145: N/A | BG145: N/A | BH145: N/A | BI145: N/A | BJ145: N/A | BK145: N/A | BL145: N/A | BM145: N/A | BN145: N/A | BO145: N/A | BP145: N/A | BQ145: N/A | BR145: N/A | BS145: N/A | BT145: N/A
B146: Emptied and discharged locally | C146: N/A | D146: N/A | E146: N/A | F146: N/A | G146: N/A | H146: N/A | I146: N/A | J146: N/A | K146: N/A | L146: N/A | M146: N/A | N146: N/A | O146: N/A | P146: N/A | Q146: N/A | R146: N/A | S146: N/A | T146: N/A | BB146: Emptied and discharged locally | BC146: N/A | BD146: N/A | BE146: N/A | BF146: N/A | BG146: N/A | BH146: N/A | BI146: N/A | BJ146: N/A | BK146: N/A | BL146: N/A | BM146: N/A | BN146: N/A | BO146: N/A | BP146: N/A | BQ146: N/A | BR146: N/A | BS146: N/A | BT146: N/A
B147: Emptied and removed offsite | C147: N/A | D147: N/A | E147: N/A | F147: N/A | G147: N/A | H147: N/A | I147: N/A | J147: N/A | K147: N/A | L147: N/A | M147: N/A | N147: N/A | O147: N/A | P147: N/A | Q147: N/A | R147: N/A | S147: N/A | T147: N/A | BB147: Emptied and removed offsite | BC147: N/A | BD147: N/A | BE147: N/A | BF147: N/A | BG147: N/A | BH147: N/A | BI147: N/A | BJ147: N/A | BK147: N/A | BL147: N/A | BM147: N/A | BN147: N/A | BO147: N/A | BP147: N/A | BQ147: N/A | BR147: N/A | BS147: N/A | BT147: N/A
A148: Shared among improved sanitation facilities | B148: Yes | C148: N/A | D148: N/A | E148: N/A | F148: N/A | G148: N/A | H148: N/A | I148: N/A | J148: N/A | K148: N/A | L148: N/A | M148: N/A | N148: N/A | O148: N/A | P148: N/A | Q148: N/A | R148: N/A | S148: N/A | T148: N/A | BA148: Shared among improved sanitation facilities | BB148: Yes | BC148: N/A | BD148: N/A | BE148: N/A | BF148: N/A | BG148: N/A | BH148: N/A | BI148: N/A | BJ148: N/A | BK148: N/A | BL148: N/A | BM148: N/A | BN148: N/A | BO148: N/A | BP148: N/A | BQ148: N/A | BR148: N/A | BS148: N/A | BT148: N/A
B149: No | C149: N/A | D149: N/A | E149: N/A | F149: N/A | G149: N/A | H149: N/A | I149: N/A | J149: N/A | K149: N/A | L149: N/A | M149: N/A | N149: N/A | O149: N/A | P149: N/A | Q149: N/A | R149: N/A | S149: N/A | T149: N/A | BB149: No | BC149: N/A | BD149: N/A | BE149: N/A | BF149: N/A | BG149: N/A | BH149: N/A | BI149: N/A | BJ149: N/A | BK149: N/A | BL149: N/A | BM149: N/A | BN149: N/A | BO149: N/A | BP149: N/A | BQ149: N/A | BR149: N/A | BS149: N/A | BT149: N/A
B150: DK/missing | C150: N/A | D150: N/A | E150: N/A | F150: N/A | G150: N/A | H150: N/A | I150: N/A | J150: N/A | K150: N/A | L150: N/A | M150: N/A | N150: N/A | O150: N/A | P150: N/A | Q150: N/A | R150: N/A | S150: N/A | T150: N/A | BB150: DK/missing | BC150: N/A | BD150: N/A | BE150: N/A | BF150: N/A | BG150: N/A | BH150: N/A | BI150: N/A | BJ150: N/A | BK150: N/A | BL150: N/A | BM150: N/A | BN150: N/A | BO150: N/A | BP150: N/A | BQ150: N/A | BR150: N/A | BS150: N/A | BT150: N/A
A151: Shared among all sanitation facilities | B151: Yes | C151: 11.68212971 | D151: 3.13190314 | E151: 1.193954625 | F151: 0.9173036714 | G151: 1.669506099 | H151: 11.80026707 | I151: 1.516914755 | J151: 1.333195725 | K151: 1.545327285 | L151: 1.21174365 | M151: 10.82337747 | N151: 4.929436841 | O151: 2.693817047 | P151: 1.261420719 | Q151: 0.7226640439 | R151: 4.067302979 | S151: 4.455831141 | T151: 2.055557149 | BA151: Shared among all sanitation facilities | BB151: Yes | BC151: N/A | BD151: N/A | BE151: N/A | BF151: N/A | BG151: N/A | BH151: N/A | BI151: N/A | BJ151: N/A | BK151: N/A | BL151: N/A | BM151: N/A | BN151: N/A | BO151: N/A | BP151: N/A | BQ151: N/A | BR151: N/A | BS151: N/A | BT151: N/A
B152: No | C152: 88.31787029 | D152: 96.86809686 | E152: 98.80604538 | F152: 99.08269633 | G152: 98.3304939 | H152: 88.19973293 | I152: 98.48308524 | J152: 98.66680427 | K152: 98.45467271 | L152: 98.78825635 | M152: 89.17662253 | N152: 95.07056316 | O152: 97.30618295 | P152: 98.73857928 | Q152: 99.27733596 | R152: 95.93269702 | S152: 95.54416886 | T152: 97.94444285 | BB152: No | BC152: N/A | BD152: N/A | BE152: N/A | BF152: N/A | BG152: N/A | BH152: N/A | BI152: N/A | BJ152: N/A | BK152: N/A | BL152: N/A | BM152: N/A | BN152: N/A | BO152: N/A | BP152: N/A | BQ152: N/A | BR152: N/A | BS152: N/A | BT152: N/A
A153: Kind of toilet facility | B153: Flush to piped sewer system | C153: 28.74692546 | D153: 53.98394855 | E153: 46.19706812 | F153: 58.5302431 | G153: 68.93975763 | H153: 58.36803441 | I153: 55.63660753 | J153: 66.95525215 | K153: 72.60642584 | L153: 79.07713372 | M153: 8.926071824 | N153: 29.42239188 | O153: 44.83098225 | P153: 21.88565384 | Q153: 25.98698506 | R153: 37.2107546 | S153: 59.97652731 | T153: 66.9293829 | BA153: Kind of toilet facility | BB153: Flush to piped sewer system | BC153: 515.430035 | BD153: 970.13857 | BE153: 831.711234 | BF153: 1052.588629 | BG153: 1239.06929 | BH153: 651.49617 | BI153: 622.463125 | BJ153: 750.769624 | BK153: 808.613772 | BL153: 883.164226 | BM153: 60.274481 | BN153: 201.070453 | BO153: 305.879783 | BP153: 148.283019 | BQ153: 176.923105 | BR153: 1522.938507 | BS153: 1631.324463 | BT153: 1454.674788
B154: Flush to septic tank | C154: 32.28138863 | D154: 42.58210447 | E154: 53.38607577 | F154: 41.25580631 | G154: 30.96056239 | H154: 33.66470544 | I154: 43.69259512 | J154: 32.70160908 | K154: 27.23270688 | L154: 20.92286628 | M154: 18.83020001 | N154: 50.18922695 | O154: 49.58656456 | P154: 77.18689109 | Q154: 74.01301494 | R154: 58.67600388 | S154: 18.68771208 | T154: 31.92264455 | BB154: Flush to septic tank | BC154: 578.802672 | BD154: 765.237502 | BE154: 961.138894 | BF154: 741.930843 | BG154: 556.460936 | BH154: 375.760926 | BI154: 488.833351 | BJ154: 366.683329 | BK154: 303.289159 | BL154: 233.674719 | BM154: 127.153417 | BN154: 342.98947 | BO154: 338.326908 | BP154: 522.968394 | BQ154: 503.891174 | BR154: 2401.454813 | BS154: 508.294215 | BT154: 693.821819
B155: Pit latrine with watertight tank | C155: 0.8470373066 | D155: 0 | E155: 0 | F155: 0 | G155: 0 | H155: 0 | I155: 0 | J155: 0 | K155: 0 | L155: 0 | M155: 1.811804558 | N155: 0.432088369 | O155: 0 | P155: 0 | Q155: 0 | R155: 0 | S155: 0.5583696767 | T155: 0 | BB155: Pit latrine with watertight tank | BC155: 15.18731 | BD155: 0 | BE155: 0 | BF155: 0 | BG155: 0 | BH155: 0 | BI155: 0 | BJ155: 0 | BK155: 0 | BL155: 0 | BM155: 12.23445 | BN155: 2.95286 | BO155: 0 | BP155: 0 | BQ155: 0 | BR155: 0 | BS155: 15.18731 | BT155: 0
B156: Traditional pit latrine | C156: 34.13168336 | D156: 2.831236075 | E156: 0.3473800966 | F156: 0 | G156: 0.09967997962 | H156: 7.967260151 | I156: 0.558997798 | J156: 0 | K156: 0.1608672754 | L156: 0 | M156: 66.62512696 | N156: 12.63668662 | O156: 4.60087911 | P156: 0.9274550687 | Q156: 0 | R156: 3.801887736 | S156: 18.16951166 | T156: 0.9709442288 | BB156: Traditional pit latrine | BC156: 611.978306 | BD156: 50.879778 | BE156: 6.254075 | BF156: 0 | BG156: 1.79157 | BH156: 88.929489 | BI156: 6.254075 | BJ156: 0 | BK156: 1.79157 | BL156: 0 | BM156: 449.894985 | BN156: 86.358183 | BO156: 31.391592 | BP156: 6.283835 | BQ156: 0 | BR156: 155.601285 | BS156: 494.199484 | BT156: 21.10296
B157: No facilities | C157: 1.087751059 | D157: 0 | E157: 0 | F157: 0.2139505902 | G157: 0 | H157: 0 | I157: 0 | J157: 0.3431387714 | K157: 0 | L157: 0 | M157: 1.399328672 | N157: 1.471209345 | O157: 0 | P157: 0 | Q157: 0 | R157: 0.2456579735 | S157: 0.3474031904 | T157: 0.1770283183 | BB157: No facilities | BC157: 19.503288 | BD157: 0 | BE157: 0 | BF157: 3.847617 | BG157: 0 | BH157: 0 | BI157: 0 | BJ157: 3.847617 | BK157: 0 | BL157: 0 | BM157: 9.449152 | BN157: 10.054136 | BO157: 0 | BP157: 0 | BQ157: 0 | BR157: 10.054136 | BS157: 9.449152 | BT157: 3.847617
B158: Other | C158: 2.905214185 | D158: 0.6027109126 | E158: 0.06947601931 | F158: 0 | G158: 0 | H158: 0 | I158: 0.1117995596 | J158: 0 | K158: 0 | L158: 0 | M158: 2.40746797 | N158: 5.848396834 | O158: 0.9815740853 | P158: 0 | Q158: 0 | R158: 0.06569580877 | S158: 2.260476085 | T158: 0 | BB158: Other | BC158: 52.090254 | BD158: 10.83124 | BE158: 1.250815 | BF158: 0 | BG158: 0 | BH158: 0 | BI158: 1.250815 | BJ158: 0 | BK158: 0 | BL158: 0 | BM158: 16.256746 | BN158: 39.967512 | BO158: 6.697236 | BP158: 0 | BQ158: 0 | BR158: 2.688757 | BS158: 61.483552 | BT158: 0
BB159: Total | BC159: 1792.991865 | BD159: 1797.08709 | BE159: 1800.355018 | BF159: 1798.367089 | BG159: 1797.321796 | BH159: 1116.186585 | BI159: 1118.801366 | BJ159: 1121.30057 | BK159: 1113.694501 | BL159: 1116.838945 | BM159: 675.263231 | BN159: 683.392614 | BO159: 682.295519 | BP159: 677.535248 | BQ159: 680.814279 | BR159: 4092.737498 | BS159: 2719.938176 | BT159: 2173.447184
A208: =A1026 -> Montenegro
A209: =A1034 -> 2006
A210: Access to hygiene facilities
A211: by wealth quintile and sub-national region
A212: Notes:
A213: WHO/UNICEF JMP customised wealth index excludes water,
A214: sanitation and hygiene assets.
A215: Survey used for analysis: | B215: =A1025 -> MICS06
A220: Access to handwashing | C220: NATIONAL wealth index quintile | H220: URBAN wealth index quintile | M220: RURAL wealth index quintile | R220: SUB-REGIONS: | BA220: Raw numbers of respondents: | BB220: Access to handwashing | BC220: NATIONAL wealth index quintile | BH220: URBAN wealth index quintile | BM220: RURAL wealth index quintile | BR220: SUB-REGIONS:
A221: Weighted percentage (used in graphs) | C221: Poorest | D221: Poor | E221: Middle | F221: Rich | G221: Richest | H221: Poorest | I221: Poor | J221: Middle | K221: Rich | L221: Richest | M221: Poorest | N221: Poor | O221: Middle | P221: Rich | Q221: Richest | R221: Central | S221: North | T221: South | BA221: Hygiene data, raw numbers (weighted) | BC221: Poorest | BD221: Poor | BE221: Middle | BF221: Rich | BG221: Richest | BH221: Poorest | BI221: Poor | BJ221: Middle | BK221: Rich | BL221: Richest | BM221: Poorest | BN221: Poor | BO221: Middle | BP221: Rich | BQ221: Richest | BR221: Central | BS221: North | BT221: South
A222: Hygiene ladder | B222: Basic | C222: N/A | D222: N/A | E222: N/A | F222: N/A | G222: N/A | H222: N/A | I222: N/A | J222: N/A | K222: N/A | L222: N/A | M222: N/A | N222: N/A | O222: N/A | P222: N/A | Q222: N/A | R222: N/A | S222: N/A | T222: N/A | BA222: Hygiene ladder | BB222: Basic | BC222: N/A | BD222: N/A | BE222: N/A | BF222: N/A | BG222: N/A | BH222: N/A | BI222: N/A | BJ222: N/A | BK222: N/A | BL222: N/A | BM222: N/A | BN222: N/A | BO222: N/A | BP222: N/A | BQ222: N/A | BR222: N/A | BS222: N/A | BT222: N/A
B223: Limited | C223: N/A | D223: N/A | E223: N/A | F223: N/A | G223: N/A | H223: N/A | I223: N/A | J223: N/A | K223: N/A | L223: N/A | M223: N/A | N223: N/A | O223: N/A | P223: N/A | Q223: N/A | R223: N/A | S223: N/A | T223: N/A | BB223: Limited | BC223: N/A | BD223: N/A | BE223: N/A | BF223: N/A | BG223: N/A | BH223: N/A | BI223: N/A | BJ223: N/A | BK223: N/A | BL223: N/A | BM223: N/A | BN223: N/A | BO223: N/A | BP223: N/A | BQ223: N/A | BR223: N/A | BS223: N/A | BT223: N/A
B224: No facility | C224: N/A | D224: N/A | E224: N/A | F224: N/A | G224: N/A | H224: N/A | I224: N/A | J224: N/A | K224: N/A | L224: N/A | M224: N/A | N224: N/A | O224: N/A | P224: N/A | Q224: N/A | R224: N/A | S224: N/A | T224: N/A | BB224: No facility | BC224: N/A | BD224: N/A | BE224: N/A | BF224: N/A | BG224: N/A | BH224: N/A | BI224: N/A | BJ224: N/A | BK224: N/A | BL224: N/A | BM224: N/A | BN224: N/A | BO224: N/A | BP224: N/A | BQ224: N/A | BR224: N/A | BS224: N/A | BT224: N/A
BA225: Observed handwashing place | BB225: Fixed | BC225: N/A | BD225: N/A | BE225: N/A | BF225: N/A | BG225: N/A | BH225: N/A | BI225: N/A | BJ225: N/A | BK225: N/A | BL225: N/A | BM225: N/A | BN225: N/A | BO225: N/A | BP225: N/A | BQ225: N/A | BR225: N/A | BS225: N/A | BT225: N/A
BB226: Mobile | BC226: N/A | BD226: N/A | BE226: N/A | BF226: N/A | BG226: N/A | BH226: N/A | BI226: N/A | BJ226: N/A | BK226: N/A | BL226: N/A | BM226: N/A | BN226: N/A | BO226: N/A | BP226: N/A | BQ226: N/A | BR226: N/A | BS226: N/A | BT226: N/A
BA227: Water / Soap | BB227: Water and soap | BC227: N/A | BD227: N/A | BE227: N/A | BF227: N/A | BG227: N/A | BH227: N/A | BI227: N/A | BJ227: N/A | BK227: N/A | BL227: N/A | BM227: N/A | BN227: N/A | BO227: N/A | BP227: N/A | BQ227: N/A | BR227: N/A | BS227: N/A | BT227: N/A
BB228: Water only | BC228: N/A | BD228: N/A | BE228: N/A | BF228: N/A | BG228: N/A | BH228: N/A | BI228: N/A | BJ228: N/A | BK228: N/A | BL228: N/A | BM228: N/A | BN228: N/A | BO228: N/A | BP228: N/A | BQ228: N/A | BR228: N/A | BS228: N/A | BT228: N/A
BB229: Soap only | BC229: N/A | BD229: N/A | BE229: N/A | BF229: N/A | BG229: N/A | BH229: N/A | BI229: N/A | BJ229: N/A | BK229: N/A | BL229: N/A | BM229: N/A | BN229: N/A | BO229: N/A | BP229: N/A | BQ229: N/A | BR229: N/A | BS229: N/A | BT229: N/A
BB230: Neither | BC230: N/A | BD230: N/A | BE230: N/A | BF230: N/A | BG230: N/A | BH230: N/A | BI230: N/A | BJ230: N/A | BK230: N/A | BL230: N/A | BM230: N/A | BN230: N/A | BO230: N/A | BP230: N/A | BQ230: N/A | BR230: N/A | BS230: N/A | BT230: N/A
BA259: Raw numbers of respondents: | BB259: Menstrual health and hygiene | BC259: NATIONAL wealth index quintile | BH259: URBAN wealth index quintile | BM259: RURAL wealth index quintile | BR259: SUB-REGIONS:
BA260: MHH data, raw numbers (weighted) | BC260: Poorest | BD260: Poor | BE260: Middle | BF260: Rich | BG260: Richest | BH260: Poorest | BI260: Poor | BJ260: Middle | BK260: Rich | BL260: Richest | BM260: Poorest | BN260: Poor | BO260: Middle | BP260: Rich | BQ260: Richest | BR260: Central | BS260: North | BT260: South
BA261: Private place to wash and change | BB261: Yes | BC261: N/A | BD261: N/A | BE261: N/A | BF261: N/A | BG261: N/A | BH261: N/A | BI261: N/A | BJ261: N/A | BK261: N/A | BL261: N/A | BM261: N/A | BN261: N/A | BO261: N/A | BP261: N/A | BQ261: N/A | BR261: N/A | BS261: N/A | BT261: N/A
BB262: No | BC262: N/A | BD262: N/A | BE262: N/A | BF262: N/A | BG262: N/A | BH262: N/A | BI262: N/A | BJ262: N/A | BK262: N/A | BL262: N/A | BM262: N/A | BN262: N/A | BO262: N/A | BP262: N/A | BQ262: N/A | BR262: N/A | BS262: N/A | BT262: N/A
BB263: DK/not sure/missing | BC263: N/A | BD263: N/A | BE263: N/A | BF263: N/A | BG263: N/A | BH263: N/A | BI263: N/A | BJ263: N/A | BK263: N/A | BL263: N/A | BM263: N/A | BN263: N/A | BO263: N/A | BP263: N/A | BQ263: N/A | BR263: N/A | BS263: N/A | BT263: N/A
BA264: Use of menstrual materials | BB264: Materials reusable | BC264: N/A | BD264: N/A | BE264: N/A | BF264: N/A | BG264: N/A | BH264: N/A | BI264: N/A | BJ264: N/A | BK264: N/A | BL264: N/A | BM264: N/A | BN264: N/A | BO264: N/A | BP264: N/A | BQ264: N/A | BR264: N/A | BS264: N/A | BT264: N/A
BB265: Materials not reusable | BC265: N/A | BD265: N/A | BE265: N/A | BF265: N/A | BG265: N/A | BH265: N/A | BI265: N/A | BJ265: N/A | BK265: N/A | BL265: N/A | BM265: N/A | BN265: N/A | BO265: N/A | BP265: N/A | BQ265: N/A | BR265: N/A | BS265: N/A | BT265: N/A
BB266: No materials used | BC266: N/A | BD266: N/A | BE266: N/A | BF266: N/A | BG266: N/A | BH266: N/A | BI266: N/A | BJ266: N/A | BK266: N/A | BL266: N/A | BM266: N/A | BN266: N/A | BO266: N/A | BP266: N/A | BQ266: N/A | BR266: N/A | BS266: N/A | BT266: N/A
BB267: DK/not sure/missing | BC267: N/A | BD267: N/A | BE267: N/A | BF267: N/A | BG267: N/A | BH267: N/A | BI267: N/A | BJ267: N/A | BK267: N/A | BL267: N/A | BM267: N/A | BN267: N/A | BO267: N/A | BP267: N/A | BQ267: N/A | BR267: N/A | BS267: N/A | BT267: N/A
BA268: Use of menstrual materials with private place to wash and change | BB268: Materials reusable | BC268: N/A | BD268: N/A | BE268: N/A | BF268: N/A | BG268: N/A | BH268: N/A | BI268: N/A | BJ268: N/A | BK268: N/A | BL268: N/A | BM268: N/A | BN268: N/A | BO268: N/A | BP268: N/A | BQ268: N/A | BR268: N/A | BS268: N/A | BT268: N/A
BB269: Materials not reusable | BC269: N/A | BD269: N/A | BE269: N/A | BF269: N/A | BG269: N/A | BH269: N/A | BI269: N/A | BJ269: N/A | BK269: N/A | BL269: N/A | BM269: N/A | BN269: N/A | BO269: N/A | BP269: N/A | BQ269: N/A | BR269: N/A | BS269: N/A | BT269: N/A
BB270: No materials used | BC270: N/A | BD270: N/A | BE270: N/A | BF270: N/A | BG270: N/A | BH270: N/A | BI270: N/A | BJ270: N/A | BK270: N/A | BL270: N/A | BM270: N/A | BN270: N/A | BO270: N/A | BP270: N/A | BQ270: N/A | BR270: N/A | BS270: N/A | BT270: N/A
BA271: Awareness of menstruation before menarche | BB271: Yes | BC271: N/A | BD271: N/A | BE271: N/A | BF271: N/A | BG271: N/A | BH271: N/A | BI271: N/A | BJ271: N/A | BK271: N/A | BL271: N/A | BM271: N/A | BN271: N/A | BO271: N/A | BP271: N/A | BQ271: N/A | BR271: N/A | BS271: N/A | BT271: N/A
BB272: No | BC272: N/A | BD272: N/A | BE272: N/A | BF272: N/A | BG272: N/A | BH272: N/A | BI272: N/A | BJ272: N/A | BK272: N/A | BL272: N/A | BM272: N/A | BN272: N/A | BO272: N/A | BP272: N/A | BQ272: N/A | BR272: N/A | BS272: N/A | BT272: N/A
BB273: DK/not sure/missing | BC273: N/A | BD273: N/A | BE273: N/A | BF273: N/A | BG273: N/A | BH273: N/A | BI273: N/A | BJ273: N/A | BK273: N/A | BL273: N/A | BM273: N/A | BN273: N/A | BO273: N/A | BP273: N/A | BQ273: N/A | BR273: N/A | BS273: N/A | BT273: N/A
BA274: Participation in (all) activities during menstruation | BB274: Yes | BC274: N/A | BD274: N/A | BE274: N/A | BF274: N/A | BG274: N/A | BH274: N/A | BI274: N/A | BJ274: N/A | BK274: N/A | BL274: N/A | BM274: N/A | BN274: N/A | BO274: N/A | BP274: N/A | BQ274: N/A | BR274: N/A | BS274: N/A | BT274: N/A
BB275: No | BC275: N/A | BD275: N/A | BE275: N/A | BF275: N/A | BG275: N/A | BH275: N/A | BI275: N/A | BJ275: N/A | BK275: N/A | BL275: N/A | BM275: N/A | BN275: N/A | BO275: N/A | BP275: N/A | BQ275: N/A | BR275: N/A | BS275: N/A | BT275: N/A
BB276: DK/not sure/missing/no such activity | BC276: N/A | BD276: N/A | BE276: N/A | BF276: N/A | BG276: N/A | BH276: N/A | BI276: N/A | BJ276: N/A | BK276: N/A | BL276: N/A | BM276: N/A | BN276: N/A | BO276: N/A | BP276: N/A | BQ276: N/A | BR276: N/A | BS276: N/A | BT276: N/A
BA277: Participation in specific activities during menstruation | BB277: Did not go to school (amongst those usually attending school) | BC277: N/A | BD277: N/A | BE277: N/A | BF277: N/A | BG277: N/A | BH277: N/A | BI277: N/A | BJ277: N/A | BK277: N/A | BL277: N/A | BM277: N/A | BN277: N/A | BO277: N/A | BP277: N/A | BQ277: N/A | BR277: N/A | BS277: N/A | BT277: N/A
BB278: Did not go to work (amongst those who usually work) | BC278: N/A | BD278: N/A | BE278: N/A | BF278: N/A | BG278: N/A | BH278: N/A | BI278: N/A | BJ278: N/A | BK278: N/A | BL278: N/A | BM278: N/A | BN278: N/A | BO278: N/A | BP278: N/A | BQ278: N/A | BR278: N/A | BS278: N/A | BT278: N/A
BB279: Did not participate in social activities | BC279: N/A | BD279: N/A | BE279: N/A | BF279: N/A | BG279: N/A | BH279: N/A | BI279: N/A | BJ279: N/A | BK279: N/A | BL279: N/A | BM279: N/A | BN279: N/A | BO279: N/A | BP279: N/A | BQ279: N/A | BR279: N/A | BS279: N/A | BT279: N/A
BB280: Did not cook food | BC280: N/A | BD280: N/A | BE280: N/A | BF280: N/A | BG280: N/A | BH280: N/A | BI280: N/A | BJ280: N/A | BK280: N/A | BL280: N/A | BM280: N/A | BN280: N/A | BO280: N/A | BP280: N/A | BQ280: N/A | BR280: N/A | BS280: N/A | BT280: N/A
BB281: Did not eat with others | BC281: N/A | BD281: N/A | BE281: N/A | BF281: N/A | BG281: N/A | BH281: N/A | BI281: N/A | BJ281: N/A | BK281: N/A | BL281: N/A | BM281: N/A | BN281: N/A | BO281: N/A | BP281: N/A | BQ281: N/A | BR281: N/A | BS281: N/A | BT281: N/A
BB282: Did not bathe in regular place | BC282: N/A | BD282: N/A | BE282: N/A | BF282: N/A | BG282: N/A | BH282: N/A | BI282: N/A | BJ282: N/A | BK282: N/A | BL282: N/A | BM282: N/A | BN282: N/A | BO282: N/A | BP282: N/A | BQ282: N/A | BR282: N/A | BS282: N/A | BT282: N/A
BB283: Did not participate in other activities | BC283: N/A | BD283: N/A | BE283: N/A | BF283: N/A | BG283: N/A | BH283: N/A | BI283: N/A | BJ283: N/A | BK283: N/A | BL283: N/A | BM283: N/A | BN283: N/A | BO283: N/A | BP283: N/A | BQ283: N/A | BR283: N/A | BS283: N/A | BT283: N/A
BB284: DK/not sure/missing/no such activity | BC284: N/A | BD284: N/A | BE284: N/A | BF284: N/A | BG284: N/A | BH284: N/A | BI284: N/A | BJ284: N/A | BK284: N/A | BL284: N/A | BM284: N/A | BN284: N/A | BO284: N/A | BP284: N/A | BQ284: N/A | BR284: N/A | BS284: N/A | BT284: N/A
BA339: Raw numbers of respondents: | BB339: Basic water, sanitation and hygiene | BC339: NATIONAL wealth index quintile | BH339: URBAN wealth index quintile | BM339: RURAL wealth index quintile | BR339: SUB-REGIONS:
BA340: WatSan data, raw numbers (weighted) | BC340: Poorest | BD340: Poor | BE340: Middle | BF340: Rich | BG340: Richest | BH340: Poorest | BI340: Poor | BJ340: Middle | BK340: Rich | BL340: Richest | BM340: Poorest | BN340: Poor | BO340: Middle | BP340: Rich | BQ340: Richest | BR340: Central | BS340: North | BT340: South
BA341: Use of Basic Water Sanitation and Hygiene | BB341: Yes | BC341: N/A | BD341: N/A | BE341: N/A | BF341: N/A | BG341: N/A | BH341: N/A | BI341: N/A | BJ341: N/A | BK341: N/A | BL341: N/A | BM341: N/A | BN341: N/A | BO341: N/A | BP341: N/A | BQ341: N/A | BR341: N/A | BS341: N/A | BT341: N/A
BB342: No | BC342: N/A | BD342: N/A | BE342: N/A | BF342: N/A | BG342: N/A | BH342: N/A | BI342: N/A | BJ342: N/A | BK342: N/A | BL342: N/A | BM342: N/A | BN342: N/A | BO342: N/A | BP342: N/A | BQ342: N/A | BR342: N/A | BS342: N/A | BT342: N/A
BA343: Use of Basic Water and Sanitation | BB343: Yes | BC343: N/A | BD343: N/A | BE343: N/A | BF343: N/A | BG343: N/A | BH343: N/A | BI343: N/A | BJ343: N/A | BK343: N/A | BL343: N/A | BM343: N/A | BN343: N/A | BO343: N/A | BP343: N/A | BQ343: N/A | BR343: N/A | BS343: N/A | BT343: N/A
BB344: No | BC344: N/A | BD344: N/A | BE344: N/A | BF344: N/A | BG344: N/A | BH344: N/A | BI344: N/A | BJ344: N/A | BK344: N/A | BL344: N/A | BM344: N/A | BN344: N/A | BO344: N/A | BP344: N/A | BQ344: N/A | BR344: N/A | BS344: N/A | BT344: N/A
BA345: Use of Basic Water and Hygiene | BB345: Yes | BC345: N/A | BD345: N/A | BE345: N/A | BF345: N/A | BG345: N/A | BH345: N/A | BI345: N/A | BJ345: N/A | BK345: N/A | BL345: N/A | BM345: N/A | BN345: N/A | BO345: N/A | BP345: N/A | BQ345: N/A | BR345: N/A | BS345: N/A | BT345: N/A
BB346: No | BC346: N/A | BD346: N/A | BE346: N/A | BF346: N/A | BG346: N/A | BH346: N/A | BI346: N/A | BJ346: N/A | BK346: N/A | BL346: N/A | BM346: N/A | BN346: N/A | BO346: N/A | BP346: N/A | BQ346: N/A | BR346: N/A | BS346: N/A | BT346: N/A
BA347: Use of Basic Sanitation and Hygiene | BB347: Yes | BC347: N/A | BD347: N/A | BE347: N/A | BF347: N/A | BG347: N/A | BH347: N/A | BI347: N/A | BJ347: N/A | BK347: N/A | BL347: N/A | BM347: N/A | BN347: N/A | BO347: N/A | BP347: N/A | BQ347: N/A | BR347: N/A | BS347: N/A | BT347: N/A
BB348: No | BC348: N/A | BD348: N/A | BE348: N/A | BF348: N/A | BG348: N/A | BH348: N/A | BI348: N/A | BJ348: N/A | BK348: N/A | BL348: N/A | BM348: N/A | BN348: N/A | BO348: N/A | BP348: N/A | BQ348: N/A | BR348: N/A | BS348: N/A | BT348: N/A
BA349: Use of Basic Water | BB349: Yes | BC349: N/A | BD349: N/A | BE349: N/A | BF349: N/A | BG349: N/A | BH349: N/A | BI349: N/A | BJ349: N/A | BK349: N/A | BL349: N/A | BM349: N/A | BN349: N/A | BO349: N/A | BP349: N/A | BQ349: N/A | BR349: N/A | BS349: N/A | BT349: N/A
BB350: No | BC350: N/A | BD350: N/A | BE350: N/A | BF350: N/A | BG350: N/A | BH350: N/A | BI350: N/A | BJ350: N/A | BK350: N/A | BL350: N/A | BM350: N/A | BN350: N/A | BO350: N/A | BP350: N/A | BQ350: N/A | BR350: N/A | BS350: N/A | BT350: N/A
BA351: Use of Basic Sanitation | BB351: Yes | BC351: N/A | BD351: N/A | BE351: N/A | BF351: N/A | BG351: N/A | BH351: N/A | BI351: N/A | BJ351: N/A | BK351: N/A | BL351: N/A | BM351: N/A | BN351: N/A | BO351: N/A | BP351: N/A | BQ351: N/A | BR351: N/A | BS351: N/A | BT351: N/A
BB352: No | BC352: N/A | BD352: N/A | BE352: N/A | BF352: N/A | BG352: N/A | BH352: N/A | BI352: N/A | BJ352: N/A | BK352: N/A | BL352: N/A | BM352: N/A | BN352: N/A | BO352: N/A | BP352: N/A | BQ352: N/A | BR352: N/A | BS352: N/A | BT352: N/A
BA353: Access to Basic Hygiene | BB353: Yes | BC353: N/A | BD353: N/A | BE353: N/A | BF353: N/A | BG353: N/A | BH353: N/A | BI353: N/A | BJ353: N/A | BK353: N/A | BL353: N/A | BM353: N/A | BN353: N/A | BO353: N/A | BP353: N/A | BQ353: N/A | BR353: N/A | BS353: N/A | BT353: N/A
BB354: No | BC354: N/A | BD354: N/A | BE354: N/A | BF354: N/A | BG354: N/A | BH354: N/A | BI354: N/A | BJ354: N/A | BK354: N/A | BL354: N/A | BM354: N/A | BN354: N/A | BO354: N/A | BP354: N/A | BQ354: N/A | BR354: N/A | BS354: N/A | BT354: N/A
C399: INITIAL (national) Wealth Index | H399: URBAN Wealth Index | M399: RURAL Wealth Index
C400: Component Matrix | H400: Component Matrix | M400: Component Matrix
E401: Component | J401: Component | O401: Component
B402: Note: The INITIAL (national) Wealth Index is based on the first component of the Principal Component Analysis (PCA) which has been obtained at national level. The final national-level (NATIONAL) Wealth Index is based on the URBAN and RURAL specific wealth indexes. Regression procedures are used to establish the relationships between the two sets of scores (urban and rural) and the initial (national) wealth factors. This allows best use of the available information for each area and a better precision of the FINAL (NATIONAL) Wealth Index. For dependency reasons, all WASH variables (contained in the generic MICS and DHS scripts) have been excluded from the sets of asset variables used in the PCAs. The PCA can extracts as many components as there are asset variables in the input. Only the first of the components is used to represent the Wealth Index. The scores represent the weights of the asset variables on the Wealth Index (correlations between the variables and the component). The communalities are the proportion of each variable's variance that can be explained by the component. Proportion of explained variance is the part of the model's total variance that is explained by the component. For more information on the procedure used: The DHS Wealth Index, DHS Comparative Reports No. 6, Shea Oscar Rutstein, Kiersten Johnson, ORC Macro International Inc., 2004. The DHS Wealth Index: Approaches for Rural and Urban Areas, Shea O. Rutstein, ORC Macro International Inc., 2008. MICS Methodological Paper No. 4, Review of options for reporting water, sanitation and hygiene coverage by wealth quintile, UNICEF, 2016. | E402: 1 | J402: 1 | O402: 1
C403: fuel1 | E403: 0.7101924393 | H403: Household has chimney | J403: -0.6491024564 | M403: fuel1 | O403: 0.7677055749
C404: Household has chimney | E404: -0.7018085783 | H404: fuel1 | J404: 0.6316253146 | M404: Household has chimney | O404: -0.743517646
C405: fuel8 | E405: -0.6692416621 | H405: fuel8 | J405: -0.5725420689 | M405: fuel8 | O405: -0.7109573672
C406: Household member owns: asset9f | E406: 0.6461049301 | H406: floor21 | J406: -0.5604023194 | M406: Household member owns: asset9f | O406: 0.6599160535
C407: Household member owns: asset9g | E407: 0.634335846 | H407: Household member owns: asset9g | J407: 0.5415843445 | M407: Household member owns: asset9g | O407: 0.6250321454
C408: floor21 | E408: -0.6099849741 | H408: floor31 | J408: 0.5367005508 | M408: floor21 | O408: -0.6077033562
C409: floor31 | E409: 0.6025250443 | H409: Household member owns: asset9j | J409: 0.5246607333 | M409: floor31 | O409: 0.552610686
C410: Household member owns: asset9j | E410: 0.5219408713 | H410: Household member owns: asset9f | J410: 0.5054306241 | M410: Household member owns: asset9j | O410: 0.5128354525
C411: Household member owns: asset9e | E411: 0.4732082148 | H411: Household member owns: asset9i | J411: 0.4406915507 | M411: Household member owns: asset10e | O411: 0.5087784895
C412: Household member owns: asset9d | E412: 0.472631019 | H412: Household member owns: asset9h | J412: 0.4394753266 | M412: cattle1 | O412: -0.4897604509
C413: Household member owns: asset10e | E413: 0.4725146186 | H413: Household member owns: asset10e | J413: 0.4281490573 | M413: Household member owns: asset9d | O413: 0.4598399811
C414: Household member owns: asset9i | E414: 0.4558108809 | H414: Household member owns: asset9d | J414: 0.4108974229 | M414: Household member owns: asset9e | O414: 0.4490942997
C415: Household member owns: asset9h | E415: 0.4237888893 | H415: Household member owns: asset9e | J415: 0.4068057073 | M415: Household member owns: asset9i | O415: 0.4209041629
C416: roof35 | E416: 0.405059701 | H416: roof35 | J416: 0.3911584399 | M416: cow1 | O416: -0.4134174221
C417: roof96 | E417: -0.356869311 | H417: Dwelling owns to family | J417: -0.3824410009 | M417: roof96 | O417: -0.3831289025
C418: Household member owns: asset9c | E418: 0.343951165 | H418: roof96 | J418: -0.3686222607 | M418: roof35 | O418: 0.3798587506
C419: Household member owns: asset10a | E419: 0.3151292061 | H419: wall24 | J419: -0.3242706171 | M419: chicken1 | O419: -0.3758626705
C420: Household member owns: asset10b | E420: 0.2992214496 | H420: Household member owns dwelling | J420: 0.2871759585 | M420: Household member owns: asset10b | O420: 0.367013893
C421: wall36 | E421: -0.2777037526 | H421: floor34 | J421: -0.2671406051 | M421: Household member owns: asset9h | O421: 0.3516996229
C422: Household member owns: asset9b | E422: 0.2508439709 | H422: Persons per sleeping rooms | J422: -0.2663842544 | M422: Household member owns: asset9c | O422: 0.3487573512
C423: Household has hood | E423: -0.2328611675 | H423: Household member owns: asset10a | J423: 0.2516994644 | M423: wall34 | O423: 0.3108871717
... 284 more rows

Sheet MICS13
A2: =A1026 -> Montenegro
A3: =A1034 -> 2013
A4: Use of drinking water sources
A5: by wealth quintile and sub-national region
A6: Notes:
A7: WHO/UNICEF JMP customised wealth index excludes water,
A8: sanitation and hygiene assets.
A9: Survey used for analysis: | B9: =A1025 -> MICS13
A10: =B1028 -> 
A11: =B1027 -> 
A14: Use of drinking water sources | C14: NATIONAL wealth index quintile | H14: URBAN wealth index quintile | M14: RURAL wealth index quintile | R14: SUB-REGIONS: | BA14: Raw numbers of respondents: | BB14: Use of drinking water sources | BC14: NATIONAL wealth index quintile | BH14: URBAN wealth index quintile | BM14: RURAL wealth index quintile | BR14: SUB-REGIONS:
A15: Weighted percentage (used in graphs) | C15: Poorest | D15: Poor | E15: Middle | F15: Rich | G15: Richest | H15: Poorest | I15: Poor | J15: Middle | K15: Rich | L15: Richest | M15: Poorest | N15: Poor | O15: Middle | P15: Rich | Q15: Richest | R15: Centre | S15: North | T15: South | BA15: Water data, raw numbers (weighted) | BC15: Poorest | BD15: Poor | BE15: Middle | BF15: Rich | BG15: Richest | BH15: Poorest | BI15: Poor | BJ15: Middle | BK15: Rich | BL15: Richest | BM15: Poorest | BN15: Poor | BO15: Middle | BP15: Rich | BQ15: Richest | BR15: Centre | BS15: North | BT15: South
A16: Water | B16: Improved | C16: 98.3 | D16: 99.5 | E16: 99.7 | F16: 100 | G16: 99.9 | H16: 100 | I16: 100 | J16: 100 | K16: 100 | L16: 99.9 | M16: 96.6 | N16: 97.9 | O16: 99.6 | P16: 99.2 | Q16: 100 | R16: 99.7 | S16: 99.1 | T16: 99.7 | BA16: Water | BB16: Improved | BC16: N/A | BD16: N/A | BE16: N/A | BF16: N/A | BG16: N/A | BH16: N/A | BI16: N/A | BJ16: N/A | BK16: N/A | BL16: N/A | BM16: N/A | BN16: N/A | BO16: N/A | BP16: N/A | BQ16: N/A | BR16: N/A | BS16: N/A | BT16: N/A
B17: Not Improved | C17: 1.7 | D17: 0.5 | E17: 0.3 | F17: 0 | G17: 0.1 | H17: 0 | I17: 0 | J17: 0 | K17: 0 | L17: 0.1 | M17: 3.4 | N17: 2.1 | O17: 0.4 | P17: 0.8 | Q17: 0 | R17: 0.3 | S17: 0.9 | T17: 0.3 | BB17: Not Improved | BC17: N/A | BD17: N/A | BE17: N/A | BF17: N/A | BG17: N/A | BH17: N/A | BI17: N/A | BJ17: N/A | BK17: N/A | BL17: N/A | BM17: N/A | BN17: N/A | BO17: N/A | BP17: N/A | BQ17: N/A | BR17: N/A | BS17: N/A | BT17: N/A
A18: Water ladder | B18: Basic | C18: 97 | D18: 98.7 | E18: 98.8 | F18: 98.7 | G18: 98.6 | H18: 97.8 | I18: 98.9 | J18: 98.7 | K18: 98.7 | L18: 98.9 | M18: 95.2 | N18: 97.7 | O18: 99.5 | P18: 98.7 | Q18: 98.3 | R18: 99.7 | S18: 96.2 | T18: 98.4 | BA18: Water ladder | BB18: Basic | BC18: N/A | BD18: N/A | BE18: N/A | BF18: N/A | BG18: N/A | BH18: N/A | BI18: N/A | BJ18: N/A | BK18: N/A | BL18: N/A | BM18: N/A | BN18: N/A | BO18: N/A | BP18: N/A | BQ18: N/A | BR18: N/A | BS18: N/A | BT18: N/A
B19: Limited | C19: 1.3 | D19: 0.8 | E19: 0.9 | F19: 1.3 | G19: 1.4 | H19: 2.2 | I19: 1.1 | J19: 1.3 | K19: 1.3 | L19: 1 | M19: 1.4 | N19: 0.2 | O19: 0.1 | P19: 0.6 | Q19: 1.7 | R19: 0 | S19: 2.8 | T19: 1.2 | BB19: Limited | BC19: N/A | BD19: N/A | BE19: N/A | BF19: N/A | BG19: N/A | BH19: N/A | BI19: N/A | BJ19: N/A | BK19: N/A | BL19: N/A | BM19: N/A | BN19: N/A | BO19: N/A | BP19: N/A | BQ19: N/A | BR19: N/A | BS19: N/A | BT19: N/A
B20: Unimproved | C20: 1.6 | D20: 0.5 | E20: 0.3 | F20: 0 | G20: 0.1 | H20: 0 | I20: 0 | J20: 0 | K20: 0 | L20: 0.1 | M20: 3.3 | N20: 2.1 | O20: 0.4 | P20: 0.8 | Q20: 0 | R20: 0.3 | S20: 0.9 | T20: 0.3 | BB20: Unimproved | BC20: N/A | BD20: N/A | BE20: N/A | BF20: N/A | BG20: N/A | BH20: N/A | BI20: N/A | BJ20: N/A | BK20: N/A | BL20: N/A | BM20: N/A | BN20: N/A | BO20: N/A | BP20: N/A | BQ20: N/A | BR20: N/A | BS20: N/A | BT20: N/A
B21: Surface water | C21: 0 | D21: 0 | E21: 0 | F21: 0 | G21: 0 | H21: 0 | I21: 0 | J21: 0 | K21: 0 | L21: 0 | M21: 0.1 | N21: 0 | O21: 0 | P21: 0 | Q21: 0 | R21: 0 | S21: 0 | T21: 0 | BB21: Surface water | BC21: N/A | BD21: N/A | BE21: N/A | BF21: N/A | BG21: N/A | BH21: N/A | BI21: N/A | BJ21: N/A | BK21: N/A | BL21: N/A | BM21: N/A | BN21: N/A | BO21: N/A | BP21: N/A | BQ21: N/A | BR21: N/A | BS21: N/A | BT21: N/A
A22: Improved water point at more than 30 minutes | B22: Yes | C22: 1.4 | D22: 0.8 | E22: 0.9 | F22: 1.3 | G22: 1.4 | H22: 2.2 | I22: 1.1 | J22: 1.3 | K22: 1.3 | L22: 1 | M22: 1.4 | N22: 0.2 | O22: 0.1 | P22: 0.6 | Q22: 1.7 | R22: 0 | S22: 2.9 | T22: 1.2 | BA22: Improved water point at more than 30 minutes | BB22: Yes | BC22: N/A | BD22: N/A | BE22: N/A | BF22: N/A | BG22: N/A | BH22: N/A | BI22: N/A | BJ22: N/A | BK22: N/A | BL22: N/A | BM22: N/A | BN22: N/A | BO22: N/A | BP22: N/A | BQ22: N/A | BR22: N/A | BS22: N/A | BT22: N/A
B23: No | C23: 98.6 | D23: 99.2 | E23: 99.1 | F23: 98.7 | G23: 98.6 | H23: 97.8 | I23: 98.9 | J23: 98.7 | K23: 98.7 | L23: 99 | M23: 98.6 | N23: 99.8 | O23: 99.9 | P23: 99.4 | Q23: 98.3 | R23: 100 | S23: 97.1 | T23: 98.8 | BB23: No | BC23: N/A | BD23: N/A | BE23: N/A | BF23: N/A | BG23: N/A | BH23: N/A | BI23: N/A | BJ23: N/A | BK23: N/A | BL23: N/A | BM23: N/A | BN23: N/A | BO23: N/A | BP23: N/A | BQ23: N/A | BR23: N/A | BS23: N/A | BT23: N/A
A24: Manually calculated ratios | B24: Improved wells
B25: Improved springs
B26: Other
C27: NATIONAL wealth index quintile | H27: URBAN wealth index quintile | M27: RURAL wealth index quintile | R27: SUB-REGIONS: | BA27: Raw numbers of respondents: | BB27: Use of drinking water sources | BC27: NATIONAL wealth index quintile | BH27: URBAN wealth index quintile | BM27: RURAL wealth index quintile | BR27: SUB-REGIONS:
A28: Percentage based on weighted population | C28: Poorest | D28: Poor | E28: Middle | F28: Rich | G28: Richest | H28: Poorest | I28: Poor | J28: Middle | K28: Rich | L28: Richest | M28: Poorest | N28: Poor | O28: Middle | P28: Rich | Q28: Richest | R28: Centre | S28: North | T28: South | BA28: Water data, raw numbers (weighted) | BC28: Poorest | BD28: Poor | BE28: Middle | BF28: Rich | BG28: Richest | BH28: Poorest | BI28: Poor | BJ28: Middle | BK28: Rich | BL28: Richest | BM28: Poorest | BN28: Poor | BO28: Middle | BP28: Rich | BQ28: Richest | BR28: Centre | BS28: North | BT28: South
A29: Piped water | B29: Yes | C29: 68.9 | D29: 81.3 | E29: 90.2 | F29: 90.3 | G29: 93.3 | H29: 91.6 | I29: 94.3 | J29: 95.8 | K29: 96.1 | L29: 96.1 | M29: 51.1 | N29: 60.8 | O29: 66.5 | P29: 77.9 | Q29: 83.1 | R29: 89.5 | S29: 68.5 | T29: 96.2 | BA29: Piped water | BB29: Yes | BC29: N/A | BD29: N/A | BE29: N/A | BF29: N/A | BG29: N/A | BH29: N/A | BI29: N/A | BJ29: N/A | BK29: N/A | BL29: N/A | BM29: N/A | BN29: N/A | BO29: N/A | BP29: N/A | BQ29: N/A | BR29: N/A | BS29: N/A | BT29: N/A
B30: No | C30: 31.1 | D30: 18.7 | E30: 9.8 | F30: 9.7 | G30: 6.7 | H30: 8.4 | I30: 5.7 | J30: 4.2 | K30: 3.9 | L30: 3.9 | M30: 48.9 | N30: 39.2 | O30: 33.5 | P30: 22.1 | Q30: 16.9 | R30: 10.5 | S30: 31.5 | T30: 3.8 | BB30: No | BC30: N/A | BD30: N/A | BE30: N/A | BF30: N/A | BG30: N/A | BH30: N/A | BI30: N/A | BJ30: N/A | BK30: N/A | BL30: N/A | BM30: N/A | BN30: N/A | BO30: N/A | BP30: N/A | BQ30: N/A | BR30: N/A | BS30: N/A | BT30: N/A
A31: Piped water on premises | B31: Yes | C31: 67.6 | D31: 81.3 | E31: 90.2 | F31: 90.3 | G31: 93.3 | H31: 90.4 | I31: 94.3 | J31: 95.8 | K31: 96.1 | L31: 96.1 | M31: 49.5 | N31: 60.8 | O31: 66.5 | P31: 77.9 | Q31: 83.1 | R31: 89.2 | S31: 68.2 | T31: 96.2 | BA31: Piped water on premises | BB31: Yes | BC31: N/A | BD31: N/A | BE31: N/A | BF31: N/A | BG31: N/A | BH31: N/A | BI31: N/A | BJ31: N/A | BK31: N/A | BL31: N/A | BM31: N/A | BN31: N/A | BO31: N/A | BP31: N/A | BQ31: N/A | BR31: N/A | BS31: N/A | BT31: N/A
B32: No | C32: 32.4 | D32: 18.7 | E32: 9.8 | F32: 9.7 | G32: 6.7 | H32: 9.6 | I32: 5.7 | J32: 4.2 | K32: 3.9 | L32: 3.9 | M32: 50.5 | N32: 39.2 | O32: 33.5 | P32: 22.1 | Q32: 16.9 | R32: 10.8 | S32: 31.8 | T32: 3.8 | BB32: No | BC32: N/A | BD32: N/A | BE32: N/A | BF32: N/A | BG32: N/A | BH32: N/A | BI32: N/A | BJ32: N/A | BK32: N/A | BL32: N/A | BM32: N/A | BN32: N/A | BO32: N/A | BP32: N/A | BQ32: N/A | BR32: N/A | BS32: N/A | BT32: N/A
A33: Piped water into dwelling | B33: Yes | C33: N/A | D33: N/A | E33: N/A | F33: N/A | G33: N/A | H33: N/A | I33: N/A | J33: N/A | K33: N/A | L33: N/A | M33: N/A | N33: N/A | O33: N/A | P33: N/A | Q33: N/A | R33: N/A | S33: N/A | T33: N/A | BA33: Piped water into dwelling | BB33: Yes | BC33: N/A | BD33: N/A | BE33: N/A | BF33: N/A | BG33: N/A | BH33: N/A | BI33: N/A | BJ33: N/A | BK33: N/A | BL33: N/A | BM33: N/A | BN33: N/A | BO33: N/A | BP33: N/A | BQ33: N/A | BR33: N/A | BS33: N/A | BT33: N/A
B34: No | C34: N/A | D34: N/A | E34: N/A | F34: N/A | G34: N/A | H34: N/A | I34: N/A | J34: N/A | K34: N/A | L34: N/A | M34: N/A | N34: N/A | O34: N/A | P34: N/A | Q34: N/A | R34: N/A | S34: N/A | T34: N/A | BB34: No | BC34: N/A | BD34: N/A | BE34: N/A | BF34: N/A | BG34: N/A | BH34: N/A | BI34: N/A | BJ34: N/A | BK34: N/A | BL34: N/A | BM34: N/A | BN34: N/A | BO34: N/A | BP34: N/A | BQ34: N/A | BR34: N/A | BS34: N/A | BT34: N/A
A35: Water source on premises | B35: Yes | C35: 92.4 | D35: 96.8 | E35: 96.8 | F35: 96.4 | G35: 97.5 | H35: 94.5 | I35: 95.9 | J35: 97 | K35: 97 | L35: 97.7 | M35: 90.6 | N35: 95 | O35: 96.6 | P35: 97.7 | Q35: 96.4 | R35: 98.6 | S35: 90.9 | T35: 97.3 | BA35: Water source on premises | BB35: Yes | BC35: N/A | BD35: N/A | BE35: N/A | BF35: N/A | BG35: N/A | BH35: N/A | BI35: N/A | BJ35: N/A | BK35: N/A | BL35: N/A | BM35: N/A | BN35: N/A | BO35: N/A | BP35: N/A | BQ35: N/A | BR35: N/A | BS35: N/A | BT35: N/A
B36: No | C36: 7.6 | D36: 3.2 | E36: 3.2 | F36: 3.6 | G36: 2.5 | H36: 5.5 | I36: 4.1 | J36: 3 | K36: 3 | L36: 2.3 | M36: 9.4 | N36: 5 | O36: 3.4 | P36: 2.3 | Q36: 3.6 | R36: 1.4 | S36: 9.1 | T36: 2.7 | BB36: No | BC36: N/A | BD36: N/A | BE36: N/A | BF36: N/A | BG36: N/A | BH36: N/A | BI36: N/A | BJ36: N/A | BK36: N/A | BL36: N/A | BM36: N/A | BN36: N/A | BO36: N/A | BP36: N/A | BQ36: N/A | BR36: N/A | BS36: N/A | BT36: N/A
A37: Improved Water source on premises | B37: Yes | C37: 91.6 | D37: 96.6 | E37: 96.5 | F37: 96.4 | G37: 97.5 | H37: 94.5 | I37: 95.9 | J37: 97 | K37: 97 | L37: 97.7 | M37: 88.8 | N37: 94 | O37: 96.6 | P37: 96.9 | Q37: 96.4 | R37: 98.4 | S37: 90.3 | T37: 97.2 | BA37: Improved water source on premises | BB37: Yes | BC37: N/A | BD37: N/A | BE37: N/A | BF37: N/A | BG37: N/A | BH37: N/A | BI37: N/A | BJ37: N/A | BK37: N/A | BL37: N/A | BM37: N/A | BN37: N/A | BO37: N/A | BP37: N/A | BQ37: N/A | BR37: N/A | BS37: N/A | BT37: N/A
B38: No | C38: 8.4 | D38: 3.4 | E38: 3.5 | F38: 3.6 | G38: 2.5 | H38: 5.5 | I38: 4.1 | J38: 3 | K38: 3 | L38: 2.3 | M38: 11.2 | N38: 6 | O38: 3.4 | P38: 3.1 | Q38: 3.6 | R38: 1.6 | S38: 9.7 | T38: 2.8 | BB38: No | BC38: N/A | BD38: N/A | BE38: N/A | BF38: N/A | BG38: N/A | BH38: N/A | BI38: N/A | BJ38: N/A | BK38: N/A | BL38: N/A | BM38: N/A | BN38: N/A | BO38: N/A | BP38: N/A | BQ38: N/A | BR38: N/A | BS38: N/A | BT38: N/A
A39: Piped water on premises available when needed | B39: Yes | C39: N/A | D39: N/A | E39: N/A | F39: N/A | G39: N/A | H39: N/A | I39: N/A | J39: N/A | K39: N/A | L39: N/A | M39: N/A | N39: N/A | O39: N/A | P39: N/A | Q39: N/A | R39: N/A | S39: N/A | T39: N/A | BA39: Piped water on premises available when needed | BB39: Yes | BC39: N/A | BD39: N/A | BE39: N/A | BF39: N/A | BG39: N/A | BH39: N/A | BI39: N/A | BJ39: N/A | BK39: N/A | BL39: N/A | BM39: N/A | BN39: N/A | BO39: N/A | BP39: N/A | BQ39: N/A | BR39: N/A | BS39: N/A | BT39: N/A
B40: No | C40: N/A | D40: N/A | E40: N/A | F40: N/A | G40: N/A | H40: N/A | I40: N/A | J40: N/A | K40: N/A | L40: N/A | M40: N/A | N40: N/A | O40: N/A | P40: N/A | Q40: N/A | R40: N/A | S40: N/A | T40: N/A | BB40: No | BC40: N/A | BD40: N/A | BE40: N/A | BF40: N/A | BG40: N/A | BH40: N/A | BI40: N/A | BJ40: N/A | BK40: N/A | BL40: N/A | BM40: N/A | BN40: N/A | BO40: N/A | BP40: N/A | BQ40: N/A | BR40: N/A | BS40: N/A | BT40: N/A
A41: Water point at more than 30 minutes | B41: Yes | C41: 1.5 | D41: 0.8 | E41: 0.9 | F41: 1.3 | G41: 1.4 | H41: 2.2 | I41: 1.1 | J41: 1.3 | K41: 1.3 | L41: 1.1 | M41: 1.9 | N41: 0.2 | O41: 0.1 | P41: 0.6 | Q41: 1.7 | R41: 0 | S41: 3 | T41: 1.3 | BA41: Water point at more than 30 minutes | BB41: Yes | BC41: N/A | BD41: N/A | BE41: N/A | BF41: N/A | BG41: N/A | BH41: N/A | BI41: N/A | BJ41: N/A | BK41: N/A | BL41: N/A | BM41: N/A | BN41: N/A | BO41: N/A | BP41: N/A | BQ41: N/A | BR41: N/A | BS41: N/A | BT41: N/A
B42: No | C42: 98.5 | D42: 99.2 | E42: 99.1 | F42: 98.7 | G42: 98.6 | H42: 97.8 | I42: 98.9 | J42: 98.7 | K42: 98.7 | L42: 98.9 | M42: 98.1 | N42: 99.8 | O42: 99.9 | P42: 99.4 | Q42: 98.3 | R42: 100 | S42: 97 | T42: 98.7 | BB42: No | BC42: N/A | BD42: N/A | BE42: N/A | BF42: N/A | BG42: N/A | BH42: N/A | BI42: N/A | BJ42: N/A | BK42: N/A | BL42: N/A | BM42: N/A | BN42: N/A | BO42: N/A | BP42: N/A | BQ42: N/A | BR42: N/A | BS42: N/A | BT42: N/A
A43: Water source available when needed | B43: Yes | C43: N/A | D43: N/A | E43: N/A | F43: N/A | G43: N/A | H43: N/A | I43: N/A | J43: N/A | K43: N/A | L43: N/A | M43: N/A | N43: N/A | O43: N/A | P43: N/A | Q43: N/A | R43: N/A | S43: N/A | T43: N/A | BA43: Water source available when needed | BB43: Yes | BC43: N/A | BD43: N/A | BE43: N/A | BF43: N/A | BG43: N/A | BH43: N/A | BI43: N/A | BJ43: N/A | BK43: N/A | BL43: N/A | BM43: N/A | BN43: N/A | BO43: N/A | BP43: N/A | BQ43: N/A | BR43: N/A | BS43: N/A | BT43: N/A
B44: No | C44: N/A | D44: N/A | E44: N/A | F44: N/A | G44: N/A | H44: N/A | I44: N/A | J44: N/A | K44: N/A | L44: N/A | M44: N/A | N44: N/A | O44: N/A | P44: N/A | Q44: N/A | R44: N/A | S44: N/A | T44: N/A | BB44: No | BC44: N/A | BD44: N/A | BE44: N/A | BF44: N/A | BG44: N/A | BH44: N/A | BI44: N/A | BJ44: N/A | BK44: N/A | BL44: N/A | BM44: N/A | BN44: N/A | BO44: N/A | BP44: N/A | BQ44: N/A | BR44: N/A | BS44: N/A | BT44: N/A
A45: Improved water source available when needed | B45: Yes | C45: N/A | D45: N/A | E45: N/A | F45: N/A | G45: N/A | H45: N/A | I45: N/A | J45: N/A | K45: N/A | L45: N/A | M45: N/A | N45: N/A | O45: N/A | P45: N/A | Q45: N/A | R45: N/A | S45: N/A | T45: N/A | BA45: Improved water source available when needed | BB45: Yes | BC45: N/A | BD45: N/A | BE45: N/A | BF45: N/A | BG45: N/A | BH45: N/A | BI45: N/A | BJ45: N/A | BK45: N/A | BL45: N/A | BM45: N/A | BN45: N/A | BO45: N/A | BP45: N/A | BQ45: N/A | BR45: N/A | BS45: N/A | BT45: N/A
B46: No | C46: N/A | D46: N/A | E46: N/A | F46: N/A | G46: N/A | H46: N/A | I46: N/A | J46: N/A | K46: N/A | L46: N/A | M46: N/A | N46: N/A | O46: N/A | P46: N/A | Q46: N/A | R46: N/A | S46: N/A | T46: N/A | BB46: No | BC46: N/A | BD46: N/A | BE46: N/A | BF46: N/A | BG46: N/A | BH46: N/A | BI46: N/A | BJ46: N/A | BK46: N/A | BL46: N/A | BM46: N/A | BN46: N/A | BO46: N/A | BP46: N/A | BQ46: N/A | BR46: N/A | BS46: N/A | BT46: N/A
A47: Microbiological quality at point of collection | B47: Not contaminated (No E. coli in 100 mL) | C47: N/A | D47: N/A | E47: N/A | F47: N/A | G47: N/A | H47: N/A | I47: N/A | J47: N/A | K47: N/A | L47: N/A | M47: N/A | N47: N/A | O47: N/A | P47: N/A | Q47: N/A | R47: N/A | S47: N/A | T47: N/A | BA47: Microbiological quality at point of collection | BB47: Not contaminated (No E. coli in 100 mL) | BC47: N/A | BD47: N/A | BE47: N/A | BF47: N/A | BG47: N/A | BH47: N/A | BI47: N/A | BJ47: N/A | BK47: N/A | BL47: N/A | BM47: N/A | BN47: N/A | BO47: N/A | BP47: N/A | BQ47: N/A | BR47: N/A | BS47: N/A | BT47: N/A
B48: Contaminated (E. coli detected in 100 mL) | C48: N/A | D48: N/A | E48: N/A | F48: N/A | G48: N/A | H48: N/A | I48: N/A | J48: N/A | K48: N/A | L48: N/A | M48: N/A | N48: N/A | O48: N/A | P48: N/A | Q48: N/A | R48: N/A | S48: N/A | T48: N/A | BB48: Contaminated (E. coli detected in 100 mL) | BC48: N/A | BD48: N/A | BE48: N/A | BF48: N/A | BG48: N/A | BH48: N/A | BI48: N/A | BJ48: N/A | BK48: N/A | BL48: N/A | BM48: N/A | BN48: N/A | BO48: N/A | BP48: N/A | BQ48: N/A | BR48: N/A | BS48: N/A | BT48: N/A
B49: Highly contaminated (>100 CFU/100 mL) | C49: N/A | D49: N/A | E49: N/A | F49: N/A | G49: N/A | H49: N/A | I49: N/A | J49: N/A | K49: N/A | L49: N/A | M49: N/A | N49: N/A | O49: N/A | P49: N/A | Q49: N/A | R49: N/A | S49: N/A | T49: N/A | BB49: Highly contaminated (>100 CFU/100 mL) | BC49: N/A | BD49: N/A | BE49: N/A | BF49: N/A | BG49: N/A | BH49: N/A | BI49: N/A | BJ49: N/A | BK49: N/A | BL49: N/A | BM49: N/A | BN49: N/A | BO49: N/A | BP49: N/A | BQ49: N/A | BR49: N/A | BS49: N/A | BT49: N/A
A50: Microbiological quality of improved water sources at point of collection | B50: Not contaminated (No E. coli in 100 mL) | C50: N/A | D50: N/A | E50: N/A | F50: N/A | G50: N/A | H50: N/A | I50: N/A | J50: N/A | K50: N/A | L50: N/A | M50: N/A | N50: N/A | O50: N/A | P50: N/A | Q50: N/A | R50: N/A | S50: N/A | T50: N/A | BA50: Microbiological quality of improved water sources at point of collection | BB50: Not contaminated (No E. coli in 100 mL) | BC50: N/A | BD50: N/A | BE50: N/A | BF50: N/A | BG50: N/A | BH50: N/A | BI50: N/A | BJ50: N/A | BK50: N/A | BL50: N/A | BM50: N/A | BN50: N/A | BO50: N/A | BP50: N/A | BQ50: N/A | BR50: N/A | BS50: N/A | BT50: N/A
B51: Contaminated (E. coli detected in 100 mL) | C51: N/A | D51: N/A | E51: N/A | F51: N/A | G51: N/A | H51: N/A | I51: N/A | J51: N/A | K51: N/A | L51: N/A | M51: N/A | N51: N/A | O51: N/A | P51: N/A | Q51: N/A | R51: N/A | S51: N/A | T51: N/A | BB51: Contaminated (E. coli detected in 100 mL) | BC51: N/A | BD51: N/A | BE51: N/A | BF51: N/A | BG51: N/A | BH51: N/A | BI51: N/A | BJ51: N/A | BK51: N/A | BL51: N/A | BM51: N/A | BN51: N/A | BO51: N/A | BP51: N/A | BQ51: N/A | BR51: N/A | BS51: N/A | BT51: N/A
B52: Highly contaminated (>100 CFU/100 mL) | C52: N/A | D52: N/A | E52: N/A | F52: N/A | G52: N/A | H52: N/A | I52: N/A | J52: N/A | K52: N/A | L52: N/A | M52: N/A | N52: N/A | O52: N/A | P52: N/A | Q52: N/A | R52: N/A | S52: N/A | T52: N/A | BB52: Highly contaminated (>100 CFU/100 mL) | BC52: N/A | BD52: N/A | BE52: N/A | BF52: N/A | BG52: N/A | BH52: N/A | BI52: N/A | BJ52: N/A | BK52: N/A | BL52: N/A | BM52: N/A | BN52: N/A | BO52: N/A | BP52: N/A | BQ52: N/A | BR52: N/A | BS52: N/A | BT52: N/A
A53: Microbiological quality of piped on premises at point of collection | B53: Not contaminated (No E. coli in 100 mL) | C53: N/A | D53: N/A | E53: N/A | F53: N/A | G53: N/A | H53: N/A | I53: N/A | J53: N/A | K53: N/A | L53: N/A | M53: N/A | N53: N/A | O53: N/A | P53: N/A | Q53: N/A | R53: N/A | S53: N/A | T53: N/A | BA53: Microbiological quality of piped on premises at point of collection | BB53: Not contaminated (No E. coli in 100 mL) | BC53: N/A | BD53: N/A | BE53: N/A | BF53: N/A | BG53: N/A | BH53: N/A | BI53: N/A | BJ53: N/A | BK53: N/A | BL53: N/A | BM53: N/A | BN53: N/A | BO53: N/A | BP53: N/A | BQ53: N/A | BR53: N/A | BS53: N/A | BT53: N/A
B54: Contaminated (E. coli detected in 100 mL) | C54: N/A | D54: N/A | E54: N/A | F54: N/A | G54: N/A | H54: N/A | I54: N/A | J54: N/A | K54: N/A | L54: N/A | M54: N/A | N54: N/A | O54: N/A | P54: N/A | Q54: N/A | R54: N/A | S54: N/A | T54: N/A | BB54: Contaminated (E. coli detected in 100 mL) | BC54: N/A | BD54: N/A | BE54: N/A | BF54: N/A | BG54: N/A | BH54: N/A | BI54: N/A | BJ54: N/A | BK54: N/A | BL54: N/A | BM54: N/A | BN54: N/A | BO54: N/A | BP54: N/A | BQ54: N/A | BR54: N/A | BS54: N/A | BT54: N/A
B55: Highly contaminated (>100 CFU/100 mL) | C55: N/A | D55: N/A | E55: N/A | F55: N/A | G55: N/A | H55: N/A | I55: N/A | J55: N/A | K55: N/A | L55: N/A | M55: N/A | N55: N/A | O55: N/A | P55: N/A | Q55: N/A | R55: N/A | S55: N/A | T55: N/A | BB55: Highly contaminated (>100 CFU/100 mL) | BC55: N/A | BD55: N/A | BE55: N/A | BF55: N/A | BG55: N/A | BH55: N/A | BI55: N/A | BJ55: N/A | BK55: N/A | BL55: N/A | BM55: N/A | BN55: N/A | BO55: N/A | BP55: N/A | BQ55: N/A | BR55: N/A | BS55: N/A | BT55: N/A
C56: NATIONAL wealth index quintile | H56: URBAN wealth index quintile | M56: RURAL wealth index quintile | R56: SUB-REGIONS: | BA56: Raw numbers of respondents: | BB56: Use of drinking water sources | BC56: NATIONAL wealth index quintile | BH56: URBAN wealth index quintile | BM56: RURAL wealth index quintile | BR56: SUB-REGIONS:
A57: Percentage based on weighted population | C57: Poorest | D57: Poor | E57: Middle | F57: Rich | G57: Richest | H57: Poorest | I57: Poor | J57: Middle | K57: Rich | L57: Richest | M57: Poorest | N57: Poor | O57: Middle | P57: Rich | Q57: Richest | R57: Centre | S57: North | T57: South | BA57: Water data, raw numbers (weighted) | BC57: Poorest | BD57: Poor | BE57: Middle | BF57: Rich | BG57: Richest | BH57: Poorest | BI57: Poor | BJ57: Middle | BK57: Rich | BL57: Richest | BM57: Poorest | BN57: Poor | BO57: Middle | BP57: Rich | BQ57: Richest | BR57: Centre | BS57: North | BT57: South
A58: Main source of drinking water | B58: Piped into dwelling | C58: 65.2 | D58: 79.5 | E58: 88.3 | F58: 87.9 | G58: 89.1 | H58: 88 | I58: 91.7 | J58: 94.4 | K58: 93.7 | L58: 92.6 | M58: 47.2 | N58: 59.2 | O58: 66.1 | P58: 75.6 | Q58: 76.7 | R58: 87.5 | S58: 67 | T58: 90.3
B59: Piped into compound, yard or plot | C59: 1.6 | D59: 0.1 | E59: 0.2 | F59: 0.1 | G59: 0 | H59: 1.1 | I59: 0.2 | J59: 0 | K59: 0 | L59: 0 | M59: 2.3 | N59: 0.4 | O59: 0 | P59: 0 | Q59: 0.4 | R59: 0.4 | S59: 0.6 | T59: 0.1
B60: Piped to neighbour | C60: 1 | D60: 0 | E60: 0 | F60: 0 | G60: 0 | H60: 1.1 | I60: 0 | J60: 0 | K60: 0 | L60: 0 | M60: 0.7 | N60: 0 | O60: 0 | P60: 0 | Q60: 0 | R60: 0.3 | S60: 0.1 | T60: 0
B61: Public tap / standpipe | C61: 0.3 | D61: 0 | E61: 0 | F61: 0 | G61: 0 | H61: 0 | I61: 0 | J61: 0 | K61: 0 | L61: 0 | M61: 0.8 | N61: 0 | O61: 0 | P61: 0 | Q61: 0 | R61: 0 | S61: 0.2 | T61: 0
B62: Tube well, Borehole | C62: 0.9 | D62: 2.7 | E62: 0.4 | F62: 2.1 | G62: 1.3 | H62: 0.6 | I62: 0.4 | J62: 0.8 | K62: 0.1 | L62: 0.7 | M62: 0.7 | N62: 2.7 | O62: 5.5 | P62: 2.8 | Q62: 3.8 | R62: 3 | S62: 0.1 | T62: 0.3
B63: Protected well | C63: 10.9 | D63: 6.9 | E63: 3.3 | F63: 1.9 | G63: 1.1 | H63: 0.9 | I63: 0.4 | J63: 0 | K63: 0.3 | L63: 0 | M63: 19.7 | N63: 14.6 | O63: 13.1 | P63: 9.8 | Q63: 4.8 | R63: 4.4 | S63: 8.9 | T63: 0.4
B64: Unprotected well | C64: 0.2 | D64: 0.2 | E64: 0 | F64: 0 | G64: 0 | H64: 0 | I64: 0 | J64: 0 | K64: 0 | L64: 0 | M64: 0.3 | N64: 0.9 | O64: 0 | P64: 0 | Q64: 0 | R64: 0.1 | S64: 0.1 | T64: 0
B65: Protected spring | C65: 15.3 | D65: 7.6 | E65: 5.2 | F65: 5.1 | G65: 4 | H65: 6.7 | I65: 5 | J65: 3.4 | K65: 3.2 | L65: 3.1 | M65: 21 | N65: 17.7 | O65: 11.7 | P65: 5.9 | Q65: 7.3 | R65: 0.8 | S65: 21.4 | T65: 2.8
B66: Unprotected spring | C66: 1.4 | D66: 0.1 | E66: 0 | F66: 0 | G66: 0.1 | H66: 0 | I66: 0 | J66: 0 | K66: 0 | L66: 0.1 | M66: 3 | N66: 0.7 | O66: 0.3 | P66: 0 | Q66: 0 | R66: 0.1 | S66: 0.8 | T66: 0.1
B67: Rainwater collection | C67: 1.7 | D67: 0.6 | E67: 0.6 | F67: 0.4 | G67: 0 | H67: 0 | I67: 0 | J67: 0 | K67: 0 | L67: 0 | M67: 3.5 | N67: 1.5 | O67: 1.6 | P67: 2.4 | Q67: 0 | R67: 1.4 | S67: 0 | T67: 0
B68: Tanker-truck | C68: 0.3 | D68: 0 | E68: 0 | F68: 0 | G68: 0 | H68: 0.1 | I68: 0 | J68: 0 | K68: 0 | L68: 0 | M68: 0.5 | N68: 0 | O68: 0 | P68: 0 | Q68: 0 | R68: 0 | S68: 0.1 | T68: 0
B69: Surface water (river, stream, dam, lake, pond, canal, irrigation channel) | C69: 0 | D69: 0 | E69: 0 | F69: 0 | G69: 0 | H69: 0 | I69: 0 | J69: 0 | K69: 0 | L69: 0 | M69: 0.1 | N69: 0 | O69: 0 | P69: 0 | Q69: 0 | R69: 0 | S69: 0 | T69: 0
B70: Bottled water | C70: 1.2 | D70: 2.2 | E70: 1.7 | F70: 2.5 | G70: 4.6 | H70: 1.5 | I70: 2.3 | J70: 1.5 | K70: 2.6 | L70: 3.5 | M70: 0.1 | N70: 1.8 | O70: 1.6 | P70: 2.8 | Q70: 7 | R70: 1.8 | S70: 0.8 | T70: 5.8
B71: Other | C71: 0 | D71: 0.2 | E71: 0.3 | F71: 0 | G71: 0 | H71: 0 | I71: 0 | J71: 0 | K71: 0 | L71: 0 | M71: 0 | N71: 0.5 | O71: 0.1 | P71: 0.8 | Q71: 0 | R71: 0.1 | S71: 0 | T71: 0.3
A108: =A1026 -> Montenegro
A109: =A1034 -> 2013
A110: Use of sanitation facilities
A111: by wealth quintile and sub-national region
A112: Notes:
A113: WHO/UNICEF JMP customised wealth index excludes water,
A114: sanitation and hygiene assets.
A115: Survey used for analysis: | B115: =A1025 -> MICS13
A116: =B1030 -> 
A117: =B1029 -> 
A120: Use of sanitation facilities | C120: NATIONAL wealth index quintile | H120: URBAN wealth index quintile | M120: RURAL wealth index quintile | R120: SUB-REGIONS: | BA120: Raw numbers of respondents: | BB120: Use of sanitation facilities | BC120: NATIONAL wealth index quintile | BH120: URBAN wealth index quintile | BM120: RURAL wealth index quintile | BR120: SUB-REGIONS:
A121: Weighted percentage (used in graphs) | C121: Poorest | D121: Poor | E121: Middle | F121: Rich | G121: Richest | H121: Poorest | I121: Poor | J121: Middle | K121: Rich | L121: Richest | M121: Poorest | N121: Poor | O121: Middle | P121: Rich | Q121: Richest | R121: Centre | S121: North | T121: South | BA121: Sanitation data, raw numbers (weighted) | BC121: Poorest | BD121: Poor | BE121: Middle | BF121: Rich | BG121: Richest | BH121: Poorest | BI121: Poor | BJ121: Middle | BK121: Rich | BL121: Richest | BM121: Poorest | BN121: Poor | BO121: Middle | BP121: Rich | BQ121: Richest | BR121: Centre | BS121: North | BT121: South
A122: Sanitation | B122: Improved | C122: 88.55032827 | D122: 95.97539725 | E122: 98.47895856 | F122: 99.3993239 | G122: 99.68762573 | H122: 94.90210137 | I122: 98.13153517 | J122: 98.96812513 | K122: 99.76455047 | L122: 99.50175289 | M122: 85.18480665 | N122: 88.24641427 | O122: 94.74478663 | P122: 98.45300321 | Q122: 99.96936805 | R122: 99.60824598 | S122: 88.83256491 | T122: 99.80499305 | BA122: Sanitation | BB122: Improved | BC122: 2443.969614 | BD122: 2648.391073 | BE122: 2715.284239 | BF122: 2738.430727 | BG122: 2758.7233 | BH122: 1645.887238 | BI122: 1703.429234 | BJ122: 1713.057457 | BK122: 1731.76216 | BL122: 1726.346952 | BM122: 874.835751 | BN122: 905.7869684 | BO122: 969.3663537 | BP122: 1010.866251 | BQ122: 1023.46059 | BR122: 6421.723133 | BS122: 3680.461455 | BT122: 3202.614365
B123: Not Improved | C123: 11.44967173 | D123: 4.024602746 | E123: 1.521041439 | F123: 0.6006761 | G123: 0.3123742682 | H123: 5.097898634 | I123: 1.868464827 | J123: 1.031874867 | K123: 0.2354495279 | L123: 0.4982471137 | M123: 14.81519335 | N123: 11.75358573 | O123: 5.255213372 | P123: 1.546996788 | Q123: 0.03063194782 | R123: 0.3917540235 | S123: 11.16743509 | T123: 0.1950069482 | BB123: Not Improved | BC123: 316.0084253 | BD123: 111.0568155 | BE123: 41.93850045 | BF123: 16.54850179 | BG123: 8.644545056 | BH123: 88.41286105 | BI123: 32.43399386 | BJ123: 17.86091161 | BK123: 4.087048767 | BL123: 8.644545056 | BM123: 152.1499116 | BN123: 120.6422365 | BO123: 53.76788745 | BP123: 15.88379015 | BQ123: 0.3136019761 | BR123: 25.25630133 | BS123: 462.6829636 | BT123: 6.25752314
A124: Sanitation ladder | B124: Basic | C124: =C122*C129/100 -> 86.39750007 | D124: =D122*D129/100 -> 95.59986113 | E124: =E122*E129/100 -> 97.94600952 | F124: 98.92568324 | G124: 99.42477175 | H124: 91.71594507 | I124: 97.86103986 | J124: 98.14076766 | K124: 99.09470279 | L124: 99.33433124 | M124: 84.0673397 | N124: 88.24641427 | O124: 94.74478663 | P124: 98.45300321 | Q124: 99.53250243 | R124: 98.56337069 | S124: 88.35530436 | T124: 99.25360464 | BA124: Sanitation ladder | BB124: Basic | BC124: 2384.552028 | BD124: 2632.764506 | BE124: 2696.203167 | BF124: 2720.473544 | BG124: 2751.449164 | BH124: 1590.629726 | BI124: 1694.582994 | BJ124: 1697.111891 | BK124: 1720.134614 | BL124: 1723.4422 | BM124: 863.3595257 | BN124: 901.8927637 | BO124: 969.3663537 | BP124: 1005.934268 | BQ124: 1018.988072 | BR124: 6350.506883 | BS124: 3660.687861 | BT124: 3174.247664
B125: Limited | C125: =C122*C128/100 -> 2.152828203 | D125: =D122*D128/100 -> 0.3755361258 | E125: =E122*E128/100 -> 0.5329490372 | F125: 0.4736406556 | G125: 0.2628539814 | H125: 3.186156297 | I125: 0.2704953175 | J125: 0.8273574761 | K125: 0.6698476792 | L125: 0.1674216465 | M125: 1.117466945 | N125: 0 | O125: 0 | P125: 0 | Q125: 0.4368656256 | R125: 1.04487529 | S125: 0.4772605554 | T125: 0.5513884151 | BB125: Limited | BC125: 59.41758563 | BD125: 10.34204622 | BE125: 14.67072409 | BF125: 13.02520064 | BG125: 7.27413656 | BH125: 55.25751181 | BI125: 4.683955594 | BJ125: 14.30718593 | BK125: 11.62754564 | BL125: 2.90475133 | BM125: 11.47622531 | BN125: 0 | BO125: 0 | BP125: 0 | BQ125: 4.472517527 | BR125: 67.32204544 | BS125: 19.77359406 | BT125: 17.63405365
B126: Unimproved | C126: =100-C124-C125-C127 -> 11.13864477 | D126: =100-D124-D125-D127 -> 4.024602746 | E126: =100-E124-E125-E127 -> 1.521041439 | F126: 0.6006761 | G126: 0.3123742682 | H126: 4.803473264 | I126: 1.868464827 | J126: 1.031874867 | K126: 0.2354495279 | L126: 0.4982471137 | M126: 14.47652685 | N126: 11.75358573 | O126: 5.255213372 | P126: 1.546996788 | Q126: 0.03063194782 | R126: 0.2742455953 | S126: 11.14298246 | T126: 0.1950069482 | BB126: Unimproved | BC126: 307.4241494 | BD126: 111.0568155 | BE126: 41.93850045 | BF126: 16.54850179 | BG126: 8.644545056 | BH126: 83.30664156 | BI126: 32.43399386 | BJ126: 17.86091161 | BK126: 4.087048767 | BL126: 8.644545056 | BM126: 148.6718552 | BN126: 120.6422365 | BO126: 53.76788745 | BP126: 15.88379015 | BQ126: 0.3136019761 | BR126: 17.68513315 | BS126: 461.6698559 | BT126: 6.25752314
B127: Open defecation | C127: 0.3110269643 | D127: 0 | E127: 0 | F127: 0 | G127: 0 | H127: 0.2944253704 | I127: 0 | J127: 0 | K127: 0 | L127: 0 | M127: 0.3386665021 | N127: 0 | O127: 0 | P127: 0 | Q127: 0 | R127: 0.1175084282 | S127: 0.02445262882 | T127: 0 | BB127: Open defecation | BC127: 8.58427591 | BD127: 0 | BE127: 0 | BF127: 0 | BG127: 0 | BH127: 5.106219489 | BI127: 0 | BJ127: 0 | BK127: 0 | BL127: 0 | BM127: 3.478056421 | BN127: 0 | BO127: 0 | BP127: 0 | BQ127: 0 | BR127: 7.571168184 | BS127: 1.013107726 | BT127: 0
A128: Shared among Improved Sanitation | B128: Yes | C128: 2.431191668 | D128: 0.391283742 | E128: 0.5411806187 | F128: 0.4765028946 | G128: 0.2636776425 | H128: 3.35730848 | I128: 0.2756456597 | J128: 0.8359837827 | K128: 0.6714285546 | L128: 0.168259997 | M128: 1.311814851 | N128: 0 | O128: 0 | P128: 0 | Q128: 0.436999487 | R128: 1.04898473 | S128: 0.5372585559 | T128: 0.5524657617 | BA128: Shared among improved sanitation facilities | BB128: Yes | BC128: N/A | BD128: N/A | BE128: N/A | BF128: N/A | BG128: N/A | BH128: N/A | BI128: N/A | BJ128: N/A | BK128: N/A | BL128: N/A | BM128: N/A | BN128: N/A | BO128: N/A | BP128: N/A | BQ128: N/A | BR128: N/A | BS128: N/A | BT128: N/A
B129: No | C129: 97.56880833 | D129: 99.60871626 | E129: 99.45881938 | F129: 99.52349711 | G129: 99.73632236 | H129: 96.64269152 | I129: 99.72435434 | J129: 99.16401622 | K129: 99.32857145 | L129: 99.83174 | M129: 98.68818515 | N129: 100 | O129: 100 | P129: 100 | Q129: 99.56300051 | R129: 98.95101527 | S129: 99.46274144 | T129: 99.44753424 | BB129: No | BC129: N/A | BD129: N/A | BE129: N/A | BF129: N/A | BG129: N/A | BH129: N/A | BI129: N/A | BJ129: N/A | BK129: N/A | BL129: N/A | BM129: N/A | BN129: N/A | BO129: N/A | BP129: N/A | BQ129: N/A | BR129: N/A | BS129: N/A | BT129: N/A
A130: Manually calculated ratios | B130: Improved latrines | C130: =C159/(C159+C160)*100 -> 93.74183173 | D130: =D159/(D159+D160)*100 -> 100 | E130: 100 | F130: 100 | G130: 100 | H130: 86.01583454 | I130: 100 | J130: 100 | K130: 100 | L130: 100 | M130: 94.43053847 | N130: 100 | O130: 100 | P130: 100 | Q130: 100 | R130: 89.53504026 | S130: 96.88082195 | T130: 100
B131: Other
B132: Other
C133: NATIONAL wealth index quintile | H133: URBAN wealth index quintile | M133: RURAL wealth index quintile | R133: SUB-REGIONS: | BA133: Raw numbers of respondents: | BB133: Use of sanitation facilities | BC133: NATIONAL wealth index quintile | BH133: URBAN wealth index quintile | BM133: RURAL wealth index quintile | BR133: SUB-REGIONS:
A134: Percentage based on weighted population | C134: Poorest | D134: Poor | E134: Middle | F134: Rich | G134: Richest | H134: Poorest | I134: Poor | J134: Middle | K134: Rich | L134: Richest | M134: Poorest | N134: Poor | O134: Middle | P134: Rich | Q134: Richest | R134: Centre | S134: North | T134: South | BA134: Sanitation data, raw numbers (weighted) | BC134: Poorest | BD134: Poor | BE134: Middle | BF134: Rich | BG134: Richest | BH134: Poorest | BI134: Poor | BJ134: Middle | BK134: Rich | BL134: Richest | BM134: Poorest | BN134: Poor | BO134: Middle | BP134: Rich | BQ134: Richest | BR134: Centre | BS134: North | BT134: South
A135: Sanitation type | B135: Sewer connection | C135: 30.86552445 | D135: 40.13851613 | E135: 55.45437039 | F135: 49.98966042 | G135: 55.49217821 | H135: 57.41184443 | I135: 58.63469684 | J135: 66.93707652 | K135: 61.85236315 | L135: 72.00575394 | M135: 10.59661586 | N135: 21.28789532 | O135: 17.29806077 | P135: 22.27583945 | Q135: 16.92123078 | R135: 40.54150246 | S135: 48.99361028 | T135: 54.77883834 | BA135: Sanitation type | BB135: Sewer connection | BC135: N/A | BD135: N/A | BE135: N/A | BF135: N/A | BG135: N/A | BH135: N/A | BI135: N/A | BJ135: N/A | BK135: N/A | BL135: N/A | BM135: N/A | BN135: N/A | BO135: N/A | BP135: N/A | BQ135: N/A | BR135: N/A | BS135: N/A | BT135: N/A
B136: Septic tank connection | C136: 46.5511558 | D136: 55.0136025 | E136: 43.02458817 | F136: 49.40966348 | G136: 44.19544753 | H136: 34.59763313 | I136: 39.49683834 | J136: 32.03104861 | K136: 37.91218732 | L136: 27.49599895 | M136: 52.39085799 | N136: 62.5418253 | O136: 76.80753813 | P136: 76.17716376 | Q136: 83.04813727 | R136: 57.16449998 | S136: 34.87005985 | T136: 44.97945766 | BB136: Septic tank connection | BC136: N/A | BD136: N/A | BE136: N/A | BF136: N/A | BG136: N/A | BH136: N/A | BI136: N/A | BJ136: N/A | BK136: N/A | BL136: N/A | BM136: N/A | BN136: N/A | BO136: N/A | BP136: N/A | BQ136: N/A | BR136: N/A | BS136: N/A | BT136: N/A
B137: Improved latrines | C137: 11.13364802 | D137: 0.8232786241 | E137: 0 | F137: 0 | G137: 0 | H137: 2.892623806 | I137: 0 | J137: 0 | K137: 0 | L137: 0 | M137: 22.1973328 | N137: 4.416693659 | O137: 0.6391877296 | P137: 0 | Q137: 0 | R137: 1.902243537 | S137: 4.968894779 | T137: 0.04669705361 | BB137: Improved latrines | BC137: N/A | BD137: N/A | BE137: N/A | BF137: N/A | BG137: N/A | BH137: N/A | BI137: N/A | BJ137: N/A | BK137: N/A | BL137: N/A | BM137: N/A | BN137: N/A | BO137: N/A | BP137: N/A | BQ137: N/A | BR137: N/A | BS137: N/A | BT137: N/A
B138: Unimproved facilities | C138: 11.13864477 | D138: 4.024602746 | E138: 1.521041439 | F138: 0.6006761 | G138: 0.3123742682 | H138: 4.803473264 | I138: 1.868464827 | J138: 1.031874867 | K138: 0.2354495279 | L138: 0.4982471137 | M138: 14.47652685 | N138: 11.75358573 | O138: 5.255213372 | P138: 1.546996788 | Q138: 0.03063194782 | R138: 0.2743165746 | S138: 11.14298246 | T138: 0.1950069482 | BB138: Unimproved facilities | BC138: N/A | BD138: N/A | BE138: N/A | BF138: N/A | BG138: N/A | BH138: N/A | BI138: N/A | BJ138: N/A | BK138: N/A | BL138: N/A | BM138: N/A | BN138: N/A | BO138: N/A | BP138: N/A | BQ138: N/A | BR138: N/A | BS138: N/A | BT138: N/A
B139: Open defecation | C139: 0.3110269643 | D139: 0 | E139: 0 | F139: 0 | G139: 0 | H139: 0.2944253704 | I139: 0 | J139: 0 | K139: 0 | L139: 0 | M139: 0.3386665021 | N139: 0 | O139: 0 | P139: 0 | Q139: 0 | R139: 0.117437449 | S139: 0.02445262882 | T139: 0 | BB139: Open defecation | BC139: N/A | BD139: N/A | BE139: N/A | BF139: N/A | BG139: N/A | BH139: N/A | BI139: N/A | BJ139: N/A | BK139: N/A | BL139: N/A | BM139: N/A | BN139: N/A | BO139: N/A | BP139: N/A | BQ139: N/A | BR139: N/A | BS139: N/A | BT139: N/A
A140: Septic tank emptying practices | B140: Not emptied/treated and disposed in situ | C140: N/A | D140: N/A | E140: N/A | F140: N/A | G140: N/A | H140: N/A | I140: N/A | J140: N/A | K140: N/A | L140: N/A | M140: N/A | N140: N/A | O140: N/A | P140: N/A | Q140: N/A | R140: N/A | S140: N/A | T140: N/A | BA140: Septic tank emptying practices | BB140: Not emptied/treated and disposed in situ | BC140: N/A | BD140: N/A | BE140: N/A | BF140: N/A | BG140: N/A | BH140: N/A | BI140: N/A | BJ140: N/A | BK140: N/A | BL140: N/A | BM140: N/A | BN140: N/A | BO140: N/A | BP140: N/A | BQ140: N/A | BR140: N/A | BS140: N/A | BT140: N/A
B141: Emptied and buried on site | C141: N/A | D141: N/A | E141: N/A | F141: N/A | G141: N/A | H141: N/A | I141: N/A | J141: N/A | K141: N/A | L141: N/A | M141: N/A | N141: N/A | O141: N/A | P141: N/A | Q141: N/A | R141: N/A | S141: N/A | T141: N/A | BB141: Emptied and buried on site | BC141: N/A | BD141: N/A | BE141: N/A | BF141: N/A | BG141: N/A | BH141: N/A | BI141: N/A | BJ141: N/A | BK141: N/A | BL141: N/A | BM141: N/A | BN141: N/A | BO141: N/A | BP141: N/A | BQ141: N/A | BR141: N/A | BS141: N/A | BT141: N/A
B142: Emptied and discharged locally | C142: N/A | D142: N/A | E142: N/A | F142: N/A | G142: N/A | H142: N/A | I142: N/A | J142: N/A | K142: N/A | L142: N/A | M142: N/A | N142: N/A | O142: N/A | P142: N/A | Q142: N/A | R142: N/A | S142: N/A | T142: N/A | BB142: Emptied and discharged locally | BC142: N/A | BD142: N/A | BE142: N/A | BF142: N/A | BG142: N/A | BH142: N/A | BI142: N/A | BJ142: N/A | BK142: N/A | BL142: N/A | BM142: N/A | BN142: N/A | BO142: N/A | BP142: N/A | BQ142: N/A | BR142: N/A | BS142: N/A | BT142: N/A
B143: Emptied and removed offsite | C143: N/A | D143: N/A | E143: N/A | F143: N/A | G143: N/A | H143: N/A | I143: N/A | J143: N/A | K143: N/A | L143: N/A | M143: N/A | N143: N/A | O143: N/A | P143: N/A | Q143: N/A | R143: N/A | S143: N/A | T143: N/A | BB143: Emptied and removed offsite | BC143: N/A | BD143: N/A | BE143: N/A | BF143: N/A | BG143: N/A | BH143: N/A | BI143: N/A | BJ143: N/A | BK143: N/A | BL143: N/A | BM143: N/A | BN143: N/A | BO143: N/A | BP143: N/A | BQ143: N/A | BR143: N/A | BS143: N/A | BT143: N/A
A144: Latrine emptying practices | B144: Not emptied/treated and disposed in situ | C144: N/A | D144: N/A | E144: N/A | F144: N/A | G144: N/A | H144: N/A | I144: N/A | J144: N/A | K144: N/A | L144: N/A | M144: N/A | N144: N/A | O144: N/A | P144: N/A | Q144: N/A | R144: N/A | S144: N/A | T144: N/A | BA144: Latrine emptying practices | BB144: Not emptied/treated and disposed in situ | BC144: N/A | BD144: N/A | BE144: N/A | BF144: N/A | BG144: N/A | BH144: N/A | BI144: N/A | BJ144: N/A | BK144: N/A | BL144: N/A | BM144: N/A | BN144: N/A | BO144: N/A | BP144: N/A | BQ144: N/A | BR144: N/A | BS144: N/A | BT144: N/A
B145: Emptied and buried on site | C145: N/A | D145: N/A | E145: N/A | F145: N/A | G145: N/A | H145: N/A | I145: N/A | J145: N/A | K145: N/A | L145: N/A | M145: N/A | N145: N/A | O145: N/A | P145: N/A | Q145: N/A | R145: N/A | S145: N/A | T145: N/A | BB145: Emptied and buried on site | BC145: N/A | BD145: N/A | BE145: N/A | BF145: N/A | BG145: N/A | BH145: N/A | BI145: N/A | BJ145: N/A | BK145: N/A | BL145: N/A | BM145: N/A | BN145: N/A | BO145: N/A | BP145: N/A | BQ145: N/A | BR145: N/A | BS145: N/A | BT145: N/A
B146: Emptied and discharged locally | C146: N/A | D146: N/A | E146: N/A | F146: N/A | G146: N/A | H146: N/A | I146: N/A | J146: N/A | K146: N/A | L146: N/A | M146: N/A | N146: N/A | O146: N/A | P146: N/A | Q146: N/A | R146: N/A | S146: N/A | T146: N/A | BB146: Emptied and discharged locally | BC146: N/A | BD146: N/A | BE146: N/A | BF146: N/A | BG146: N/A | BH146: N/A | BI146: N/A | BJ146: N/A | BK146: N/A | BL146: N/A | BM146: N/A | BN146: N/A | BO146: N/A | BP146: N/A | BQ146: N/A | BR146: N/A | BS146: N/A | BT146: N/A
B147: Emptied and removed offsite | C147: N/A | D147: N/A | E147: N/A | F147: N/A | G147: N/A | H147: N/A | I147: N/A | J147: N/A | K147: N/A | L147: N/A | M147: N/A | N147: N/A | O147: N/A | P147: N/A | Q147: N/A | R147: N/A | S147: N/A | T147: N/A | BB147: Emptied and removed offsite | BC147: N/A | BD147: N/A | BE147: N/A | BF147: N/A | BG147: N/A | BH147: N/A | BI147: N/A | BJ147: N/A | BK147: N/A | BL147: N/A | BM147: N/A | BN147: N/A | BO147: N/A | BP147: N/A | BQ147: N/A | BR147: N/A | BS147: N/A | BT147: N/A
A148: Shared among improved sanitation facilities | B148: Yes | C148: 2.152828203 | D148: 0.3747867922 | E148: 0.5320833853 | F148: 0.4727876169 | G148: 0.2628539814 | H148: 3.186156297 | I148: 0.2698343694 | J148: 0.8265661856 | K148: 0.6698476792 | L148: 0.1674216465 | M148: 1.117466945 | N148: 0 | O148: 0 | P148: 0 | Q148: 0.4368656256 | R148: 1.044241666 | S148: 0.4772605554 | T148: 0.5495405944 | BA148: Shared among improved sanitation facilities | BB148: Yes | BC148: N/A | BD148: N/A | BE148: N/A | BF148: N/A | BG148: N/A | BH148: N/A | BI148: N/A | BJ148: N/A | BK148: N/A | BL148: N/A | BM148: N/A | BN148: N/A | BO148: N/A | BP148: N/A | BQ148: N/A | BR148: N/A | BS148: N/A | BT148: N/A
B149: No | C149: 86.39750007 | D149: 95.40910401 | E149: 97.78691899 | F149: 98.74751561 | G149: 99.42477175 | H149: 91.71594507 | I149: 97.621919 | J149: 98.04690513 | K149: 99.09470279 | L149: 99.33433124 | M149: 84.0673397 | N149: 87.86702087 | O149: 94.74478663 | P149: 97.97265433 | Q149: 99.53250243 | R149: 98.50360076 | S149: 88.35530436 | T149: 98.92098455 | BB149: No | BC149: N/A | BD149: N/A | BE149: N/A | BF149: N/A | BG149: N/A | BH149: N/A | BI149: N/A | BJ149: N/A | BK149: N/A | BL149: N/A | BM149: N/A | BN149: N/A | BO149: N/A | BP149: N/A | BQ149: N/A | BR149: N/A | BS149: N/A | BT149: N/A
B150: DK/missing | C150: 11.44967173 | D150: 4.216109196 | E150: 1.680997628 | F150: 0.7796967731 | G150: 0.3123742682 | H150: 5.097898634 | I150: 2.10824663 | J150: 1.126528684 | K150: 0.2354495279 | L150: 0.4982471137 | M150: 14.81519335 | N150: 12.13297913 | O150: 5.255213372 | P150: 2.027345672 | Q150: 0.03063194782 | R150: 0.4521575769 | S150: 11.16743509 | T150: 0.5294748601 | BB150: DK/missing | BC150: N/A | BD150: N/A | BE150: N/A | BF150: N/A | BG150: N/A | BH150: N/A | BI150: N/A | BJ150: N/A | BK150: N/A | BL150: N/A | BM150: N/A | BN150: N/A | BO150: N/A | BP150: N/A | BQ150: N/A | BR150: N/A | BS150: N/A | BT150: N/A
A151: Shared among all sanitation facilities | B151: Yes | C151: 2.547977878 | D151: 0.3747867922 | E151: 0.5320833853 | F151: 0.4727876169 | G151: 0.2628539814 | H151: 3.577244202 | I151: 0.2698343694 | J151: 0.8265661856 | K151: 0.6698476792 | L151: 0.1674216465 | M151: 1.520610892 | N151: 0 | O151: 0 | P151: 0 | Q151: 0.4368656256 | R151: 1.147962955 | S151: 0.5760545744 | T151: 0.5495405944 | BA151: Shared among all sanitation facilities | BB151: Yes | BC151: N/A | BD151: N/A | BE151: N/A | BF151: N/A | BG151: N/A | BH151: N/A | BI151: N/A | BJ151: N/A | BK151: N/A | BL151: N/A | BM151: N/A | BN151: N/A | BO151: N/A | BP151: N/A | BQ151: N/A | BR151: N/A | BS151: N/A | BT151: N/A
B152: No | C152: 97.45202212 | D152: 99.43370676 | E152: 99.30796043 | F152: 99.34819171 | G152: 99.73714602 | H152: 96.4227558 | I152: 99.49038383 | J152: 99.07878 | K152: 99.33015232 | L152: 99.83257835 | M152: 98.47938911 | N152: 99.6206066 | O152: 100 | P152: 99.51965112 | Q152: 99.56313437 | R152: 98.79156247 | S152: 99.42394543 | T152: 99.11599149 | BB152: No | BC152: N/A | BD152: N/A | BE152: N/A | BF152: N/A | BG152: N/A | BH152: N/A | BI152: N/A | BJ152: N/A | BK152: N/A | BL152: N/A | BM152: N/A | BN152: N/A | BO152: N/A | BP152: N/A | BQ152: N/A | BR152: N/A | BS152: N/A | BT152: N/A
A153: Type of toilet facility | B153: Flush to piped sewer system | C153: 30.86552445 | D153: 40.13851613 | E153: 55.45437039 | F153: 49.98966042 | G153: 55.49217821 | H153: 57.41184443 | I153: 58.63469684 | J153: 66.93707652 | K153: 61.85236315 | L153: 72.00575394 | M153: 10.59661586 | N153: 21.28789532 | O153: 17.29806077 | P153: 22.27583945 | Q153: 16.92123078 | R153: 40.54150246 | S153: 48.99361028 | T153: 54.77883834 | BA153: Type of toilet facility | BB153: Flush to piped sewer system | BC153: 851.8816964 | BD153: 1107.601436 | BE153: 1529.000511 | BF153: 1377.204761 | BG153: 1535.672696 | BH153: 995.6936747 | BI153: 1017.818141 | BJ153: 1158.626153 | BK153: 1073.663756 | BL153: 1249.293708 | BM153: 108.8257256 | BN153: 218.5051747 | BO153: 176.9823828 | BP153: 228.7171906 | BQ153: 173.2351936 | BR153: 2613.702326 | BS153: 2029.87603 | BT153: 1757.782744
B154: Flush to septic tank | C154: 46.5511558 | D154: 55.0136025 | E154: 43.02458817 | F154: 49.40966348 | G154: 44.19544753 | H154: 34.59763313 | I154: 39.49683834 | J154: 32.03104861 | K154: 37.91218732 | L154: 27.49599895 | M154: 52.39085799 | N154: 62.5418253 | O154: 76.80753813 | P154: 76.17716376 | Q154: 83.04813727 | R154: 57.16449998 | S154: 34.87005985 | T154: 44.97945766 | BB154: Flush to septic tank | BC154: 1284.801677 | BD154: 1518.071693 | BE154: 1186.283729 | BF154: 1361.225966 | BG154: 1223.050604 | BH154: 600.0267856 | BI154: 685.6110928 | BJ154: 554.431304 | BK154: 658.0984036 | BL154: 477.0532436 | BM154: 538.0466001 | BN154: 641.9475601 | BO154: 785.8442223 | BP154: 782.1490599 | BQ154: 850.2253961 | BR154: 3685.383557 | BS154: 1444.716939 | BT154: 1443.333172
B155: Flush to pit (latrine) | C155: 0.256644765 | D155: 0.4146883556 | E155: 0 | F155: 0 | G155: 0 | H155: 0.4898536586 | I155: 0 | J155: 0 | K155: 0 | L155: 0 | M155: 0.2604569404 | N155: 0.07952928209 | O155: 0.6391877296 | P155: 0 | Q155: 0 | R155: 0.05487793556 | S155: 0.3617657868 | T155: 0 | BB155: Flush to pit (latrine) | BC155: 7.083339154 | BD155: 11.44310907 | BE155: 0 | BF155: 0 | BG155: 0 | BH155: 8.495532486 | BI155: 0 | BJ155: 0 | BK155: 0 | BL155: 0 | BM155: 2.674855435 | BN155: 0.8163117778 | BO155: 6.539748527 | BP155: 0 | BQ155: 0 | BR155: 3.53796922 | BS155: 14.98847901 | BT155: 0
B156: Flush to somewhere else | C156: 5.73362251 | D156: 1.826383275 | E156: 0 | F156: 0.2925903104 | G156: 0 | H156: 1.0309759 | I156: 0 | J156: 0 | K156: 0 | L156: 0 | M156: 8.753423243 | N156: 7.866634017 | O156: 1.966777114 | P156: 0.7850793239 | Q156: 0 | R156: 0 | S156: 5.230462596 | T156: 0 | BB156: Flush to somewhere else | BC156: 158.2467221 | BD156: 50.39809471 | BE156: 0 | BF156: 8.060802278 | BG156: 0 | BH156: 17.88021606 | BI156: 0 | BJ156: 0 | BK156: 0 | BL156: 0 | BM156: 89.8964017 | BN156: 80.74542899 | BO156: 20.1227701 | BP156: 8.060802278 | BQ156: 0 | BR156: 0 | BS156: 216.7056191 | BT156: 0
B157: Flush to unknown place / Not sure / DK where | C157: 0.03895519838 | D157: 0 | E157: 0 | F157: 0 | G157: 0 | H157: 0.06199359161 | I157: 0 | J157: 0 | K157: 0 | L157: 0 | M157: 0 | N157: 0 | O157: 0 | P157: 0 | Q157: 0 | R157: 0 | S157: 0.02595021587 | T157: 0 | BB157: Flush to unknown place / Not sure / DK where | BC157: 1.075154921 | BD157: 0 | BE157: 0 | BF157: 0 | BG157: 0 | BH157: 1.075154921 | BI157: 0 | BJ157: 0 | BK157: 0 | BL157: 0 | BM157: 0 | BN157: 0 | BO157: 0 | BP157: 0 | BQ157: 0 | BR157: 0 | BS157: 1.075154921 | BT157: 0
B158: Ventilated Improved Pit latrine (VIP) | C158: 0.04465522297 | D158: 0 | E158: 0 | F158: 0 | G158: 0 | H158: 0 | I158: 0 | J158: 0 | K158: 0 | L158: 0 | M158: 0 | N158: 0.120073975 | O158: 0 | P158: 0 | Q158: 0 | R158: 0.01911708204 | S158: 0 | T158: 0 | BB158: Ventilated Improved Pit latrine (VIP) | BC158: 1.232474347 | BD158: 0 | BE158: 0 | BF158: 0 | BG158: 0 | BH158: 0 | BI158: 0 | BJ158: 0 | BK158: 0 | BL158: 0 | BM158: 0 | BN158: 1.232474347 | BO158: 0 | BP158: 0 | BQ158: 0 | BR158: 1.232474347 | BS158: 0 | BT158: 0
B159: Pit latrine with slab | C159: 10.79339284 | D159: 0.4085902685 | E159: 0 | F159: 0 | G159: 0 | H159: 2.340776556 | I159: 0 | J159: 0 | K159: 0 | L159: 0 | M159: 21.93687586 | N159: 4.217090402 | O159: 0 | P159: 0 | Q159: 0 | R159: 1.82824852 | S159: 4.581178776 | T159: 0.04669705361 | BB159: Pit latrine with slab | BC159: 297.895272 | BD159: 11.27483553 | BE159: 0 | BF159: 0 | BG159: 0 | BH159: 40.59609012 | BI159: 0 | BJ159: 0 | BK159: 0 | BL159: 0 | BM159: 225.2885699 | BN159: 43.28544749 | BO159: 0 | BP159: 0 | BQ159: 0 | BR159: 117.8668061 | BS159: 189.8048528 | BT159: 1.498448626
B160: Pit latrine without slab / Open pit | C160: 0.7205627132 | D160: 0 | E160: 0 | F160: 0 | G160: 0 | H160: 0.3805555899 | I160: 0 | J160: 0 | K160: 0 | L160: 0 | M160: 1.293824944 | N160: 0 | O160: 0 | P160: 0 | Q160: 0 | R160: 0.2136878154 | S160: 0.1474957788 | T160: 0 | BB160: Pit latrine without slab / Open pit | BC160: 19.88737264 | BD160: 0 | BE160: 0 | BF160: 0 | BG160: 0 | BH160: 6.599975972 | BI160: 0 | BJ160: 0 | BK160: 0 | BL160: 0 | BM160: 13.28739667 | BN160: 0 | BO160: 0 | BP160: 0 | BQ160: 0 | BR160: 13.77640951 | BS160: 6.110963128 | BT160: 0
B161: No facility, Bush, Field | C161: 0.3110269643 | D161: 0 | E161: 0 | F161: 0 | G161: 0 | H161: 0.2944253704 | I161: 0 | J161: 0 | K161: 0 | L161: 0 | M161: 0.3386665021 | N161: 0 | O161: 0 | P161: 0 | Q161: 0 | R161: 0.117437449 | S161: 0.02445262882 | T161: 0 | BB161: No facility, Bush, Field | BC161: 8.58427591 | BD161: 0 | BE161: 0 | BF161: 0 | BG161: 0 | BH161: 5.106219489 | BI161: 0 | BJ161: 0 | BK161: 0 | BL161: 0 | BM161: 3.478056421 | BN161: 0 | BO161: 0 | BP161: 0 | BQ161: 0 | BR161: 7.571168184 | BS161: 1.013107726 | BT161: 0
B162: Other | C162: 4.620290104 | D162: 2.198219471 | E162: 1.371681925 | F162: 0.2967026919 | G162: 0.3123742682 | H162: 3.391941774 | I162: 1.631224103 | J162: 1.031874867 | K162: 0.2354495279 | L162: 0.4982471137 | M162: 4.256826171 | N162: 3.88695171 | O162: 3.288436258 | P162: 0.7619174639 | Q162: 0 | R162: 0 | S162: 5.71470809 | T162: 0.1884797052 | BB162: Other | BC162: 127.5189922 | BD162: 60.65872077 | BE162: 37.82032595 | BF162: 8.174097535 | BG162: 8.644545056 | BH162: 58.82644953 | BI162: 28.31581936 | BJ162: 17.86091161 | BK162: 4.087048767 | BL162: 8.644545056 | BM162: 43.71699446 | BN162: 39.89680753 | BO162: 33.64511735 | BP162: 7.822987871 | BQ162: 0 | BR162: 0 | BS162: 236.7686093 | BT162: 6.048072275
B163: Missing | C163: 0.06416943794 | D163: 0 | E163: 0.1493595146 | F163: 0.01138309766 | G163: 0 | H163: 0 | I163: 0.2372407246 | J163: 0 | K163: 0 | L163: 0 | M163: 0.1724524947 | N163: 0 | O163: 0 | P163: 0 | Q163: 0.03063194782 | R163: 0.06062875915 | S163: 0.05031599579 | T163: 0.006527242978 | BB163: Missing | BC163: 1.771062395 | BD163: 0 | BE163: 4.118174499 | BF163: 0.3136019761 | BG163: 0 | BH163: 0 | BI163: 4.118174499 | BJ163: 0 | BK163: 0 | BL163: 0 | BM163: 1.771062395 | BN163: 0 | BO163: 0 | BP163: 0 | BQ163: 0.3136019761 | BR163: 3.908723634 | BS163: 2.084664371 | BT163: 0.209450865
BB164: Total | BC164: 2759.978039 | BD164: 2759.447888 | BE164: 2757.22274 | BF164: 2754.979229 | BG164: 2767.367845 | BH164: 1734.300099 | BI164: 1735.863228 | BJ164: 1730.918368 | BK164: 1735.849209 | BL164: 1734.991497 | BM164: 1026.985663 | BN164: 1026.429205 | BO164: 1023.134241 | BP164: 1026.750041 | BQ164: 1023.774192 | BR164: 6446.979435 | BS164: 4143.144419 | BT164: 3208.871888
A208: =A1026 -> Montenegro
A209: =A1034 -> 2013
A210: Access to hygiene facilities
A211: by wealth quintile and sub-national region
A212: Notes:
A213: WHO/UNICEF JMP customised wealth index excludes water,
A214: sanitation and hygiene assets.
A215: Survey used for analysis: | B215: =A1025 -> MICS13
A220: Access to handwashing | C220: NATIONAL wealth index quintile | H220: URBAN wealth index quintile | M220: RURAL wealth index quintile | R220: SUB-REGIONS: | BA220: Raw numbers of respondents: | BB220: Access to handwashing | BC220: NATIONAL wealth index quintile | BH220: URBAN wealth index quintile | BM220: RURAL wealth index quintile | BR220: SUB-REGIONS:
A221: Weighted percentage (used in graphs) | C221: Poorest | D221: Poor | E221: Middle | F221: Rich | G221: Richest | H221: Poorest | I221: Poor | J221: Middle | K221: Rich | L221: Richest | M221: Poorest | N221: Poor | O221: Middle | P221: Rich | Q221: Richest | R221: Centre | S221: North | T221: South | BA221: Hygiene data, raw numbers (weighted) | BC221: Poorest | BD221: Poor | BE221: Middle | BF221: Rich | BG221: Richest | BH221: Poorest | BI221: Poor | BJ221: Middle | BK221: Rich | BL221: Richest | BM221: Poorest | BN221: Poor | BO221: Middle | BP221: Rich | BQ221: Richest | BR221: Centre | BS221: North | BT221: South
A222: Hygiene ladder | B222: Basic | C222: N/A | D222: N/A | E222: N/A | F222: N/A | G222: N/A | H222: N/A | I222: N/A | J222: N/A | K222: N/A | L222: N/A | M222: N/A | N222: N/A | O222: N/A | P222: N/A | Q222: N/A | R222: N/A | S222: N/A | T222: N/A | BA222: Hygiene ladder | BB222: Basic | BC222: N/A | BD222: N/A | BE222: N/A | BF222: N/A | BG222: N/A | BH222: N/A | BI222: N/A | BJ222: N/A | BK222: N/A | BL222: N/A | BM222: N/A | BN222: N/A | BO222: N/A | BP222: N/A | BQ222: N/A | BR222: N/A | BS222: N/A | BT222: N/A
B223: Limited | C223: N/A | D223: N/A | E223: N/A | F223: N/A | G223: N/A | H223: N/A | I223: N/A | J223: N/A | K223: N/A | L223: N/A | M223: N/A | N223: N/A | O223: N/A | P223: N/A | Q223: N/A | R223: N/A | S223: N/A | T223: N/A | BB223: Limited | BC223: N/A | BD223: N/A | BE223: N/A | BF223: N/A | BG223: N/A | BH223: N/A | BI223: N/A | BJ223: N/A | BK223: N/A | BL223: N/A | BM223: N/A | BN223: N/A | BO223: N/A | BP223: N/A | BQ223: N/A | BR223: N/A | BS223: N/A | BT223: N/A
B224: No facility | C224: N/A | D224: N/A | E224: N/A | F224: N/A | G224: N/A | H224: N/A | I224: N/A | J224: N/A | K224: N/A | L224: N/A | M224: N/A | N224: N/A | O224: N/A | P224: N/A | Q224: N/A | R224: N/A | S224: N/A | T224: N/A | BB224: No facility | BC224: N/A | BD224: N/A | BE224: N/A | BF224: N/A | BG224: N/A | BH224: N/A | BI224: N/A | BJ224: N/A | BK224: N/A | BL224: N/A | BM224: N/A | BN224: N/A | BO224: N/A | BP224: N/A | BQ224: N/A | BR224: N/A | BS224: N/A | BT224: N/A
BA225: Observed handwashing place | BB225: Fixed | BC225: N/A | BD225: N/A | BE225: N/A | BF225: N/A | BG225: N/A | BH225: N/A | BI225: N/A | BJ225: N/A | BK225: N/A | BL225: N/A | BM225: N/A | BN225: N/A | BO225: N/A | BP225: N/A | BQ225: N/A | BR225: N/A | BS225: N/A | BT225: N/A
BB226: Mobile | BC226: N/A | BD226: N/A | BE226: N/A | BF226: N/A | BG226: N/A | BH226: N/A | BI226: N/A | BJ226: N/A | BK226: N/A | BL226: N/A | BM226: N/A | BN226: N/A | BO226: N/A | BP226: N/A | BQ226: N/A | BR226: N/A | BS226: N/A | BT226: N/A
BA227: Water / Soap | BB227: Water and soap | BC227: N/A | BD227: N/A | BE227: N/A | BF227: N/A | BG227: N/A | BH227: N/A | BI227: N/A | BJ227: N/A | BK227: N/A | BL227: N/A | BM227: N/A | BN227: N/A | BO227: N/A | BP227: N/A | BQ227: N/A | BR227: N/A | BS227: N/A | BT227: N/A
BB228: Water only | BC228: N/A | BD228: N/A | BE228: N/A | BF228: N/A | BG228: N/A | BH228: N/A | BI228: N/A | BJ228: N/A | BK228: N/A | BL228: N/A | BM228: N/A | BN228: N/A | BO228: N/A | BP228: N/A | BQ228: N/A | BR228: N/A | BS228: N/A | BT228: N/A
BB229: Soap only | BC229: N/A | BD229: N/A | BE229: N/A | BF229: N/A | BG229: N/A | BH229: N/A | BI229: N/A | BJ229: N/A | BK229: N/A | BL229: N/A | BM229: N/A | BN229: N/A | BO229: N/A | BP229: N/A | BQ229: N/A | BR229: N/A | BS229: N/A | BT229: N/A
BB230: Neither | BC230: N/A | BD230: N/A | BE230: N/A | BF230: N/A | BG230: N/A | BH230: N/A | BI230: N/A | BJ230: N/A | BK230: N/A | BL230: N/A | BM230: N/A | BN230: N/A | BO230: N/A | BP230: N/A | BQ230: N/A | BR230: N/A | BS230: N/A | BT230: N/A
BA259: Raw numbers of respondents: | BB259: Menstrual health and hygiene | BC259: NATIONAL wealth index quintile | BH259: URBAN wealth index quintile | BM259: RURAL wealth index quintile | BR259: SUB-REGIONS:
BA260: MHH data, raw numbers (weighted) | BC260: Poorest | BD260: Poor | BE260: Middle | BF260: Rich | BG260: Richest | BH260: Poorest | BI260: Poor | BJ260: Middle | BK260: Rich | BL260: Richest | BM260: Poorest | BN260: Poor | BO260: Middle | BP260: Rich | BQ260: Richest | BR260: Centre | BS260: North | BT260: South
BA261: Private place to wash and change | BB261: Yes | BC261: N/A | BD261: N/A | BE261: N/A | BF261: N/A | BG261: N/A | BH261: N/A | BI261: N/A | BJ261: N/A | BK261: N/A | BL261: N/A | BM261: N/A | BN261: N/A | BO261: N/A | BP261: N/A | BQ261: N/A | BR261: N/A | BS261: N/A | BT261: N/A
BB262: No | BC262: N/A | BD262: N/A | BE262: N/A | BF262: N/A | BG262: N/A | BH262: N/A | BI262: N/A | BJ262: N/A | BK262: N/A | BL262: N/A | BM262: N/A | BN262: N/A | BO262: N/A | BP262: N/A | BQ262: N/A | BR262: N/A | BS262: N/A | BT262: N/A
BB263: DK/not sure/missing | BC263: N/A | BD263: N/A | BE263: N/A | BF263: N/A | BG263: N/A | BH263: N/A | BI263: N/A | BJ263: N/A | BK263: N/A | BL263: N/A | BM263: N/A | BN263: N/A | BO263: N/A | BP263: N/A | BQ263: N/A | BR263: N/A | BS263: N/A | BT263: N/A
BA264: Use of menstrual materials | BB264: Materials reusable | BC264: N/A | BD264: N/A | BE264: N/A | BF264: N/A | BG264: N/A | BH264: N/A | BI264: N/A | BJ264: N/A | BK264: N/A | BL264: N/A | BM264: N/A | BN264: N/A | BO264: N/A | BP264: N/A | BQ264: N/A | BR264: N/A | BS264: N/A | BT264: N/A
BB265: Materials not reusable | BC265: N/A | BD265: N/A | BE265: N/A | BF265: N/A | BG265: N/A | BH265: N/A | BI265: N/A | BJ265: N/A | BK265: N/A | BL265: N/A | BM265: N/A | BN265: N/A | BO265: N/A | BP265: N/A | BQ265: N/A | BR265: N/A | BS265: N/A | BT265: N/A
BB266: No materials used | BC266: N/A | BD266: N/A | BE266: N/A | BF266: N/A | BG266: N/A | BH266: N/A | BI266: N/A | BJ266: N/A | BK266: N/A | BL266: N/A | BM266: N/A | BN266: N/A | BO266: N/A | BP266: N/A | BQ266: N/A | BR266: N/A | BS266: N/A | BT266: N/A
BB267: DK/not sure/missing | BC267: N/A | BD267: N/A | BE267: N/A | BF267: N/A | BG267: N/A | BH267: N/A | BI267: N/A | BJ267: N/A | BK267: N/A | BL267: N/A | BM267: N/A | BN267: N/A | BO267: N/A | BP267: N/A | BQ267: N/A | BR267: N/A | BS267: N/A | BT267: N/A
BA268: Use of menstrual materials with private place to wash and change | BB268: Materials reusable | BC268: N/A | BD268: N/A | BE268: N/A | BF268: N/A | BG268: N/A | BH268: N/A | BI268: N/A | BJ268: N/A | BK268: N/A | BL268: N/A | BM268: N/A | BN268: N/A | BO268: N/A | BP268: N/A | BQ268: N/A | BR268: N/A | BS268: N/A | BT268: N/A
BB269: Materials not reusable | BC269: N/A | BD269: N/A | BE269: N/A | BF269: N/A | BG269: N/A | BH269: N/A | BI269: N/A | BJ269: N/A | BK269: N/A | BL269: N/A | BM269: N/A | BN269: N/A | BO269: N/A | BP269: N/A | BQ269: N/A | BR269: N/A | BS269: N/A | BT269: N/A
BB270: No materials used | BC270: N/A | BD270: N/A | BE270: N/A | BF270: N/A | BG270: N/A | BH270: N/A | BI270: N/A | BJ270: N/A | BK270: N/A | BL270: N/A | BM270: N/A | BN270: N/A | BO270: N/A | BP270: N/A | BQ270: N/A | BR270: N/A | BS270: N/A | BT270: N/A
BA271: Awareness of menstruation before menarche | BB271: Yes | BC271: N/A | BD271: N/A | BE271: N/A | BF271: N/A | BG271: N/A | BH271: N/A | BI271: N/A | BJ271: N/A | BK271: N/A | BL271: N/A | BM271: N/A | BN271: N/A | BO271: N/A | BP271: N/A | BQ271: N/A | BR271: N/A | BS271: N/A | BT271: N/A
BB272: No | BC272: N/A | BD272: N/A | BE272: N/A | BF272: N/A | BG272: N/A | BH272: N/A | BI272: N/A | BJ272: N/A | BK272: N/A | BL272: N/A | BM272: N/A | BN272: N/A | BO272: N/A | BP272: N/A | BQ272: N/A | BR272: N/A | BS272: N/A | BT272: N/A
BB273: DK/not sure/missing | BC273: N/A | BD273: N/A | BE273: N/A | BF273: N/A | BG273: N/A | BH273: N/A | BI273: N/A | BJ273: N/A | BK273: N/A | BL273: N/A | BM273: N/A | BN273: N/A | BO273: N/A | BP273: N/A | BQ273: N/A | BR273: N/A | BS273: N/A | BT273: N/A
BA274: Participation in (all) activities during menstruation | BB274: Yes | BC274: N/A | BD274: N/A | BE274: N/A | BF274: N/A | BG274: N/A | BH274: N/A | BI274: N/A | BJ274: N/A | BK274: N/A | BL274: N/A | BM274: N/A | BN274: N/A | BO274: N/A | BP274: N/A | BQ274: N/A | BR274: N/A | BS274: N/A | BT274: N/A
BB275: No | BC275: N/A | BD275: N/A | BE275: N/A | BF275: N/A | BG275: N/A | BH275: N/A | BI275: N/A | BJ275: N/A | BK275: N/A | BL275: N/A | BM275: N/A | BN275: N/A | BO275: N/A | BP275: N/A | BQ275: N/A | BR275: N/A | BS275: N/A | BT275: N/A
BB276: DK/not sure/missing/no such activity | BC276: N/A | BD276: N/A | BE276: N/A | BF276: N/A | BG276: N/A | BH276: N/A | BI276: N/A | BJ276: N/A | BK276: N/A | BL276: N/A | BM276: N/A | BN276: N/A | BO276: N/A | BP276: N/A | BQ276: N/A | BR276: N/A | BS276: N/A | BT276: N/A
BA277: Participation in specific activities during menstruation | BB277: Did not go to school (amongst those usually attending school) | BC277: N/A | BD277: N/A | BE277: N/A | BF277: N/A | BG277: N/A | BH277: N/A | BI277: N/A | BJ277: N/A | BK277: N/A | BL277: N/A | BM277: N/A | BN277: N/A | BO277: N/A | BP277: N/A | BQ277: N/A | BR277: N/A | BS277: N/A | BT277: N/A
BB278: Did not go to work (amongst those who usually work) | BC278: N/A | BD278: N/A | BE278: N/A | BF278: N/A | BG278: N/A | BH278: N/A | BI278: N/A | BJ278: N/A | BK278: N/A | BL278: N/A | BM278: N/A | BN278: N/A | BO278: N/A | BP278: N/A | BQ278: N/A | BR278: N/A | BS278: N/A | BT278: N/A
BB279: Did not participate in social activities | BC279: N/A | BD279: N/A | BE279: N/A | BF279: N/A | BG279: N/A | BH279: N/A | BI279: N/A | BJ279: N/A | BK279: N/A | BL279: N/A | BM279: N/A | BN279: N/A | BO279: N/A | BP279: N/A | BQ279: N/A | BR279: N/A | BS279: N/A | BT279: N/A
BB280: Did not cook food | BC280: N/A | BD280: N/A | BE280: N/A | BF280: N/A | BG280: N/A | BH280: N/A | BI280: N/A | BJ280: N/A | BK280: N/A | BL280: N/A | BM280: N/A | BN280: N/A | BO280: N/A | BP280: N/A | BQ280: N/A | BR280: N/A | BS280: N/A | BT280: N/A
BB281: Did not eat with others | BC281: N/A | BD281: N/A | BE281: N/A | BF281: N/A | BG281: N/A | BH281: N/A | BI281: N/A | BJ281: N/A | BK281: N/A | BL281: N/A | BM281: N/A | BN281: N/A | BO281: N/A | BP281: N/A | BQ281: N/A | BR281: N/A | BS281: N/A | BT281: N/A
BB282: Did not bathe in regular place | BC282: N/A | BD282: N/A | BE282: N/A | BF282: N/A | BG282: N/A | BH282: N/A | BI282: N/A | BJ282: N/A | BK282: N/A | BL282: N/A | BM282: N/A | BN282: N/A | BO282: N/A | BP282: N/A | BQ282: N/A | BR282: N/A | BS282: N/A | BT282: N/A
BB283: Did not participate in other activities | BC283: N/A | BD283: N/A | BE283: N/A | BF283: N/A | BG283: N/A | BH283: N/A | BI283: N/A | BJ283: N/A | BK283: N/A | BL283: N/A | BM283: N/A | BN283: N/A | BO283: N/A | BP283: N/A | BQ283: N/A | BR283: N/A | BS283: N/A | BT283: N/A
BB284: DK/not sure/missing/no such activity | BC284: N/A | BD284: N/A | BE284: N/A | BF284: N/A | BG284: N/A | BH284: N/A | BI284: N/A | BJ284: N/A | BK284: N/A | BL284: N/A | BM284: N/A | BN284: N/A | BO284: N/A | BP284: N/A | BQ284: N/A | BR284: N/A | BS284: N/A | BT284: N/A
BA339: Raw numbers of respondents: | BB339: Basic water, sanitation and hygiene | BC339: NATIONAL wealth index quintile | BH339: URBAN wealth index quintile | BM339: RURAL wealth index quintile | BR339: SUB-REGIONS:
BA340: WatSan data, raw numbers (weighted) | BC340: Poorest | BD340: Poor | BE340: Middle | BF340: Rich | BG340: Richest | BH340: Poorest | BI340: Poor | BJ340: Middle | BK340: Rich | BL340: Richest | BM340: Poorest | BN340: Poor | BO340: Middle | BP340: Rich | BQ340: Richest | BR340: Centre | BS340: North | BT340: South
BA341: Use of Basic Water Sanitation and Hygiene | BB341: Yes | BC341: N/A | BD341: N/A | BE341: N/A | BF341: N/A | BG341: N/A | BH341: N/A | BI341: N/A | BJ341: N/A | BK341: N/A | BL341: N/A | BM341: N/A | BN341: N/A | BO341: N/A | BP341: N/A | BQ341: N/A | BR341: N/A | BS341: N/A | BT341: N/A
BB342: No | BC342: N/A | BD342: N/A | BE342: N/A | BF342: N/A | BG342: N/A | BH342: N/A | BI342: N/A | BJ342: N/A | BK342: N/A | BL342: N/A | BM342: N/A | BN342: N/A | BO342: N/A | BP342: N/A | BQ342: N/A | BR342: N/A | BS342: N/A | BT342: N/A
BA343: Use of Basic Water and Sanitation | BB343: Yes | BC343: N/A | BD343: N/A | BE343: N/A | BF343: N/A | BG343: N/A | BH343: N/A | BI343: N/A | BJ343: N/A | BK343: N/A | BL343: N/A | BM343: N/A | BN343: N/A | BO343: N/A | BP343: N/A | BQ343: N/A | BR343: N/A | BS343: N/A | BT343: N/A
BB344: No | BC344: N/A | BD344: N/A | BE344: N/A | BF344: N/A | BG344: N/A | BH344: N/A | BI344: N/A | BJ344: N/A | BK344: N/A | BL344: N/A | BM344: N/A | BN344: N/A | BO344: N/A | BP344: N/A | BQ344: N/A | BR344: N/A | BS344: N/A | BT344: N/A
BA345: Use of Basic Water and Hygiene | BB345: Yes | BC345: N/A | BD345: N/A | BE345: N/A | BF345: N/A | BG345: N/A | BH345: N/A | BI345: N/A | BJ345: N/A | BK345: N/A | BL345: N/A | BM345: N/A | BN345: N/A | BO345: N/A | BP345: N/A | BQ345: N/A | BR345: N/A | BS345: N/A | BT345: N/A
BB346: No | BC346: N/A | BD346: N/A | BE346: N/A | BF346: N/A | BG346: N/A | BH346: N/A | BI346: N/A | BJ346: N/A | BK346: N/A | BL346: N/A | BM346: N/A | BN346: N/A | BO346: N/A | BP346: N/A | BQ346: N/A | BR346: N/A | BS346: N/A | BT346: N/A
BA347: Use of Basic Sanitation and Hygiene | BB347: Yes | BC347: N/A | BD347: N/A | BE347: N/A | BF347: N/A | BG347: N/A | BH347: N/A | BI347: N/A | BJ347: N/A | BK347: N/A | BL347: N/A | BM347: N/A | BN347: N/A | BO347: N/A | BP347: N/A | BQ347: N/A | BR347: N/A | BS347: N/A | BT347: N/A
BB348: No | BC348: N/A | BD348: N/A | BE348: N/A | BF348: N/A | BG348: N/A | BH348: N/A | BI348: N/A | BJ348: N/A | BK348: N/A | BL348: N/A | BM348: N/A | BN348: N/A | BO348: N/A | BP348: N/A | BQ348: N/A | BR348: N/A | BS348: N/A | BT348: N/A
BA349: Use of Basic Water | BB349: Yes | BC349: N/A | BD349: N/A | BE349: N/A | BF349: N/A | BG349: N/A | BH349: N/A | BI349: N/A | BJ349: N/A | BK349: N/A | BL349: N/A | BM349: N/A | BN349: N/A | BO349: N/A | BP349: N/A | BQ349: N/A | BR349: N/A | BS349: N/A | BT349: N/A
BB350: No | BC350: N/A | BD350: N/A | BE350: N/A | BF350: N/A | BG350: N/A | BH350: N/A | BI350: N/A | BJ350: N/A | BK350: N/A | BL350: N/A | BM350: N/A | BN350: N/A | BO350: N/A | BP350: N/A | BQ350: N/A | BR350: N/A | BS350: N/A | BT350: N/A
BA351: Use of Basic Sanitation | BB351: Yes | BC351: N/A | BD351: N/A | BE351: N/A | BF351: N/A | BG351: N/A | BH351: N/A | BI351: N/A | BJ351: N/A | BK351: N/A | BL351: N/A | BM351: N/A | BN351: N/A | BO351: N/A | BP351: N/A | BQ351: N/A | BR351: N/A | BS351: N/A | BT351: N/A
BB352: No | BC352: N/A | BD352: N/A | BE352: N/A | BF352: N/A | BG352: N/A | BH352: N/A | BI352: N/A | BJ352: N/A | BK352: N/A | BL352: N/A | BM352: N/A | BN352: N/A | BO352: N/A | BP352: N/A | BQ352: N/A | BR352: N/A | BS352: N/A | BT352: N/A
BA353: Access to Basic Hygiene | BB353: Yes | BC353: N/A | BD353: N/A | BE353: N/A | BF353: N/A | BG353: N/A | BH353: N/A | BI353: N/A | BJ353: N/A | BK353: N/A | BL353: N/A | BM353: N/A | BN353: N/A | BO353: N/A | BP353: N/A | BQ353: N/A | BR353: N/A | BS353: N/A | BT353: N/A
BB354: No | BC354: N/A | BD354: N/A | BE354: N/A | BF354: N/A | BG354: N/A | BH354: N/A | BI354: N/A | BJ354: N/A | BK354: N/A | BL354: N/A | BM354: N/A | BN354: N/A | BO354: N/A | BP354: N/A | BQ354: N/A | BR354: N/A | BS354: N/A | BT354: N/A
C399: INITIAL (national) Wealth Index | H399: URBAN Wealth Index | M399: RURAL Wealth Index
C400: Component Matrix | H400: Component Matrix | M400: Component Matrix
E401: Component | J401: Component | O401: Component
B402: Note: The INITIAL (national) Wealth Index is based on the first component of the Principal Component Analysis (PCA) which has been obtained at national level. The final national-level (NATIONAL) Wealth Index is based on the URBAN and RURAL specific wealth indexes. Regression procedures are used to establish the relationships between the two sets of scores (urban and rural) and the initial (national) wealth factors. This allows best use of the available information for each area and a better precision of the FINAL (NATIONAL) Wealth Index. For dependency reasons, all WASH variables (contained in the generic MICS and DHS scripts) have been excluded from the sets of asset variables used in the PCAs. The PCA can extracts as many components as there are asset variables in the input. Only the first of the components is used to represent the Wealth Index. The scores represent the weights of the asset variables on the Wealth Index (correlations between the variables and the component). The communalities are the proportion of each variable's variance that can be explained by the component. Proportion of explained variance is the part of the model's total variance that is explained by the component. For more information on the procedure used: The DHS Wealth Index, DHS Comparative Reports No. 6, Shea Oscar Rutstein, Kiersten Johnson, ORC Macro International Inc., 2004. The DHS Wealth Index: Approaches for Rural and Urban Areas, Shea O. Rutstein, ORC Macro International Inc., 2008. MICS Methodological Paper No. 4, Review of options for reporting water, sanitation and hygiene coverage by wealth quintile, UNICEF, 2016. | E402: 1 | J402: 1 | O402: 1
C403: PC/Laptop | E403: 0.6769158446 | H403: Refrigetaror | J403: 0.6301116687 | M403: PC/Laptop | O403: 0.7460981853
C404: Internet | E404: 0.6595224406 | H404: Bed | J404: 0.6147404733 | M404: Internet | O404: 0.7247396209
C405: Washing machine | E405: 0.5656547553 | H405: Washing machine | J405: 0.5746681945 | M405: Car/truck | O405: 0.5953613394
C406: Vacuum cleaner | E406: 0.5589104858 | H406: Electricity | J406: 0.5696829657 | M406: Dishwashing machine | O406: 0.5833146184
C407: Electric stove | E407: 0.5446669771 | H407: Television | J407: 0.5619537845 | M407: Vacuum cleaner | O407: 0.5632194769
C408: Dishwashing machine | E408: 0.5424733406 | H408: Closet | J408: 0.5519817027 | M408: Household owns bank account | O408: 0.5494498437
C409: Car/truck | E409: 0.5345365999 | H409: Electric stove | J409: 0.5432952959 | M409: Bicycle | O409: 0.5483842148
C410: Household owns bank account | E410: 0.529225747 | H410: Vacuum cleaner | J410: 0.5330086689 | M410: Washing machine | O410: 0.5478795224
C411: Parquet or ploished wood | E411: 0.4959705355 | H411: PC/Laptop | J411: 0.5124308647 | M411: Parquet or ploished wood | O411: 0.5232638712
C412: Refrigetaror | E412: 0.4414342428 | H412: Internet | J412: 0.5001147931 | M412: Electric stove | O412: 0.5228940354
C413: Bicycle | E413: 0.4302697776 | H413: Car/truck | J413: 0.4451320861 | M413: Wood planks | O413: -0.4741999801
C414: Closet | E414: 0.4208714578 | H414: Dishwashing machine | J414: 0.4179505434 | M414: Drying machine | O414: 0.3698588902
... 179 more rows

Sheet MICS18
A2: =A1026 -> Montenegro
A3: =A1034 -> 2018
A4: Use of drinking water sources
A5: by wealth quintile and sub-national region
A6: Notes:
A7: WHO/UNICEF JMP customised wealth index excludes water,
A8: sanitation and hygiene assets.
A9: Survey used for analysis: | B9: =A1025 -> MICS18
A10: =B1028 -> 
A11: =B1027 -> 
A14: Use of drinking water sources | C14: NATIONAL wealth index quintile | H14: URBAN wealth index quintile | M14: RURAL wealth index quintile | R14: SUB-REGIONS: | BA14: Raw numbers of respondents: | BB14: Use of drinking water sources | BC14: NATIONAL wealth index quintile | BH14: URBAN wealth index quintile | BM14: RURAL wealth index quintile | BR14: SUB-REGIONS:
A15: Weighted percentage (used in graphs) | C15: Poorest | D15: Poor | E15: Middle | F15: Rich | G15: Richest | H15: Poorest | I15: Poor | J15: Middle | K15: Rich | L15: Richest | M15: Poorest | N15: Poor | O15: Middle | P15: Rich | Q15: Richest | R15: CENTRE | S15: NORTH | T15: SOUTH | BA15: Water data, raw numbers (weighted) | BC15: Poorest | BD15: Poor | BE15: Middle | BF15: Rich | BG15: Richest | BH15: Poorest | BI15: Poor | BJ15: Middle | BK15: Rich | BL15: Richest | BM15: Poorest | BN15: Poor | BO15: Middle | BP15: Rich | BQ15: Richest | BR15: CENTRE | BS15: NORTH | BT15: SOUTH
A16: Water | B16: Improved | C16: 99.06534409 | D16: 98.88639115 | E16: 99.61977155 | F16: 99.04985994 | G16: 99.29934017 | H16: 100 | I16: 99.59788443 | J16: 100 | K16: 99.69018065 | L16: 99.74183816 | M16: 97.69979624 | N16: 99.26648636 | O16: 97.30157299 | P16: 97.68074967 | Q16: 97.77811355 | R16: 99.33183498 | S16: 99.07767728 | T16: 98.90946931 | BA16: Water | BB16: Improved | BC16: 2493.293546 | BD16: 2489.831608 | BE16: 2508.309913 | BF16: 2494.693272 | BG16: 2498.749362 | BH16: 1678.706461 | BI16: 1665.543662 | BJ16: 1673.810569 | BK16: 1673.220248 | BL16: 1671.53013 | BM16: 822.382989 | BN16: 837.0258554 | BO16: 818.8713766 | BP16: 821.9819282 | BQ16: 821.8044818 | BR16: 6929.356878 | BS16: 3009.322156 | BT16: 2546.198667
B17: Not Improved | C17: 0.9346559056 | D17: 1.113608848 | E17: 0.380228446 | F17: 0.9501400646 | G17: 0.7006598297 | H17: 0 | I17: 0.4021155706 | J17: 0 | K17: 0.3098193454 | L17: 0.2581618443 | M17: 2.300203757 | N17: 0.7335136367 | O17: 2.698427006 | P17: 2.319250333 | Q17: 2.221886452 | R17: 0.6681650155 | S17: 0.9223227169 | T17: 1.09053069 | BB17: Not Improved | BC17: 23.52357991 | BD17: 28.03923247 | BE17: 9.573709769 | BF17: 23.93045308 | BG17: 17.63126824 | BH17: 0 | BI17: 6.724450462 | BJ17: 0 | BK17: 5.200070847 | BL17: 4.326422182 | BM17: 19.36184632 | BN17: 6.185067103 | BO17: 22.70944415 | BP17: 19.51645404 | BQ17: 18.67448837 | BR17: 46.6109767 | BS17: 28.01404174 | BT17: 28.07322503
A18: Water ladder | B18: Basic | C18: 98.89661245 | D18: 98.29395821 | E18: 99.5473612 | F18: 98.80984254 | G18: 98.97799019 | H18: 100 | I18: 98.97596611 | J18: 99.9667284 | K18: 99.69018065 | L18: 99.25931544 | M18: 97.19528861 | N18: 98.73084878 | O18: 97.30157299 | P18: 96.81883112 | Q18: 97.77429697 | R18: 99.13163981 | S18: 98.77981878 | T18: 98.43741951 | BA18: Water ladder | BB18: Basic | BC18: 2489.04688 | BD18: 2474.914912 | BE18: 2496.69345 | BF18: 2487.224056 | BG18: 2490.662974 | BH18: 1678.706461 | BI18: 1655.14352 | BJ18: 1663.419154 | BK18: 1673.220248 | BL18: 1663.443741 | BM18: 818.1363221 | BN18: 832.5093008 | BO18: 818.8713766 | BP18: 814.7288976 | BQ18: 820.3632483 | BR18: 6905.63897 | BS18: 3000.275192 | BT18: 2532.628109
B19: Limited | C19: 0.1687316442 | D19: 0.5924329406 | E19: 0.07091890911 | F19: 0.2394733884 | G19: 0.3213499779 | H19: 0 | I19: 0.6219183166 | J19: 0.03327159545 | K19: 0 | L19: 0.482522719 | M19: 0.50450763 | N19: 0.5356375785 | O19: 0 | P19: 0.8619185504 | Q19: 0 | R19: 0.199251573 | S19: 0.2978585031 | T19: 0.4714389116 | BB19: Limited | BC19: 4.246666919 | BD19: 14.91669626 | BE19: 1.778678748 | BF19: 6.027982203 | BG19: 8.086388599 | BH19: 0 | BI19: 10.40014169 | BJ19: 0.5536302932 | BK19: 0 | BL19: 8.086388599 | BM19: 4.246666919 | BN19: 4.516554567 | BO19: 0 | BP19: 7.253030659 | BQ19: 0 | BR19: 13.88012375 | BS19: 9.046964132 | BT19: 12.12932485
B20: Unimproved | C20: 0.9346559056 | D20: 1.113608848 | E20: 0.3817198882 | F20: 0.9506840751 | G20: 0.7006598297 | H20: 0 | I20: 0.4021155706 | J20: 0 | K20: 0.3098193454 | L20: 0.2581618443 | M20: 2.300203757 | N20: 0.7335136367 | O20: 2.698427006 | P20: 2.319250333 | Q20: 2.225703034 | R20: 0.6691086188 | S20: 0.9223227169 | T20: 1.091141577 | BB20: Unimproved | BC20: 23.52357991 | BD20: 28.03923247 | BE20: 9.573709769 | BF20: 23.93045308 | BG20: 17.63126824 | BH20: 0 | BI20: 6.724450462 | BJ20: 0 | BK20: 5.200070847 | BL20: 4.326422182 | BM20: 19.36184632 | BN20: 6.185067103 | BO20: 22.70944415 | BP20: 19.51645404 | BQ20: 18.67448837 | BR20: 46.6109767 | BS20: 28.01404174 | BT20: 28.07322503
B21: Surface water | C21: N/A | D21: N/A | E21: N/A | F21: N/A | G21: N/A | H21: N/A | I21: N/A | J21: N/A | K21: N/A | L21: N/A | M21: N/A | N21: N/A | O21: N/A | P21: N/A | Q21: N/A | R21: N/A | S21: N/A | T21: N/A | BB21: Surface water | BC21: N/A | BD21: N/A | BE21: N/A | BF21: N/A | BG21: N/A | BH21: N/A | BI21: N/A | BJ21: N/A | BK21: N/A | BL21: N/A | BM21: N/A | BN21: N/A | BO21: N/A | BP21: N/A | BQ21: N/A | BR21: N/A | BS21: N/A | BT21: N/A
A22: Improved water point at more than 30 minutes | B22: Yes | C22: 0.1703235837 | D22: 0.5991046227 | E22: 0.07119065801 | F22: 0.2417718751 | G22: 0.3236174352 | H22: 0 | I22: 0.6244292438 | J22: 0.03327159545 | K22: 0 | L22: 0.4837716327 | M22: 0.5163855498 | N22: 0.5395955857 | O22: 0 | P22: 0.8823832264 | Q22: 0 | R22: 0.2005937632 | S22: 0.3006312938 | T22: 0.4766397258 | BA22: Improved water point at more than 30 minutes | BB22: Yes | BC22: 4.246666919 | BD22: 14.91669626 | BE22: 1.778678748 | BF22: 6.027982203 | BG22: 8.086388599 | BH22: 0 | BI22: 10.40014169 | BJ22: 0.5536302932 | BK22: 0 | BL22: 8.086388599 | BM22: 4.246666919 | BN22: 4.516554567 | BO22: 0 | BP22: 7.253030659 | BQ22: 0 | BR22: 13.88012375 | BS22: 9.046964132 | BT22: 12.12932485
B23: No | C23: 99.82967642 | D23: 99.40089538 | E23: 99.92880934 | F23: 99.75822812 | G23: 99.67638256 | H23: 100 | I23: 99.37557076 | J23: 99.9667284 | K23: 100 | L23: 99.51622837 | M23: 99.48361445 | N23: 99.46040441 | O23: 100 | P23: 99.11761677 | Q23: 100 | R23: 99.79940624 | S23: 99.69936871 | T23: 99.52336027 | BB23: No | BC23: 2489.04688 | BD23: 2474.914912 | BE23: 2496.69345 | BF23: 2487.224056 | BG23: 2490.662974 | BH23: 1678.706461 | BI23: 1655.14352 | BJ23: 1663.419154 | BK23: 1673.220248 | BL23: 1663.443741 | BM23: 818.1363221 | BN23: 832.5093008 | BO23: 818.8713766 | BP23: 814.7288976 | BQ23: 820.3632483 | BR23: 6905.63897 | BS23: 3000.275192 | BT23: 2532.628109
A24: Manually calculated ratios | B24: Improved wells
B25: Improved springs
B26: Other
C27: NATIONAL wealth index quintile | H27: URBAN wealth index quintile | M27: RURAL wealth index quintile | R27: SUB-REGIONS: | BA27: Raw numbers of respondents: | BB27: Use of drinking water sources | BC27: NATIONAL wealth index quintile | BH27: URBAN wealth index quintile | BM27: RURAL wealth index quintile | BR27: SUB-REGIONS:
A28: Percentage based on weighted population | C28: Poorest | D28: Poor | E28: Middle | F28: Rich | G28: Richest | H28: Poorest | I28: Poor | J28: Middle | K28: Rich | L28: Richest | M28: Poorest | N28: Poor | O28: Middle | P28: Rich | Q28: Richest | R28: CENTRE | S28: NORTH | T28: SOUTH | BA28: Water data, raw numbers (weighted) | BC28: Poorest | BD28: Poor | BE28: Middle | BF28: Rich | BG28: Richest | BH28: Poorest | BI28: Poor | BJ28: Middle | BK28: Rich | BL28: Richest | BM28: Poorest | BN28: Poor | BO28: Middle | BP28: Rich | BQ28: Richest | BR28: CENTRE | BS28: NORTH | BT28: SOUTH
A29: Piped water | B29: Yes | C29: 84.97236907 | D29: 89.87507483 | E29: 90.6070647 | F29: 93.44358469 | G29: 96.62299439 | H29: 97.60654084 | I29: 97.69133528 | J29: 96.23753793 | K29: 98.83853476 | L29: 98.49099956 | M29: 68.66385495 | N29: 78.05828375 | O29: 73.84315335 | P29: 82.59967238 | Q29: 85.97490351 | R29: 93.27913002 | S29: 86.68727794 | T29: 90.42192866 | BA29: Piped water | BB29: Yes | BC29: 2138.599137 | BD29: 2262.938302 | BE29: 2281.380443 | BF29: 2353.492293 | BG29: 2431.402316 | BH29: 1638.527308 | BI29: 1633.661048 | BJ29: 1610.834081 | BK29: 1658.926051 | BL29: 1650.567869 | BM29: 577.9744528 | BN29: 658.1959745 | BO29: 621.449816 | BP29: 695.0749069 | BQ29: 722.6009836 | BR29: 6507.122125 | BS29: 2632.984072 | BT29: 2327.706294
B30: No | C30: 15.02763093 | D30: 10.12492517 | E30: 9.392935303 | F30: 6.556415314 | G30: 3.377005605 | H30: 2.393459163 | I30: 2.308664719 | J30: 3.762462068 | K30: 1.161465237 | L30: 1.509000442 | M30: 31.33614505 | N30: 21.94171625 | O30: 26.15684665 | P30: 17.40032762 | Q30: 14.02509649 | R30: 6.720869983 | S30: 13.31272206 | T30: 9.578071336 | BB30: No | BC30: 378.217989 | BD30: 254.9325386 | BE30: 236.5031797 | BF30: 165.1314316 | BG30: 84.97831494 | BH30: 40.17915361 | BI30: 38.60706391 | BJ30: 62.97648775 | BK30: 19.49426854 | BL30: 25.28868277 | BM30: 263.7703825 | BN30: 185.014948 | BO30: 220.1310047 | BP30: 146.4234754 | BQ30: 117.8779866 | BR30: 468.8457295 | BS30: 404.352126 | BT30: 246.5655982
A31: Piped water on premises | B31: Yes | C31: 84.36117219 | D31: 88.75825024 | E31: 90.6070647 | F31: 93.35963737 | G31: 96.22696983 | H31: 97.06019443 | I31: 96.95832109 | J31: 96.11122036 | K31: 98.24479283 | L31: 98.49099956 | M31: 67.71292907 | N31: 76.65161766 | O31: 73.58080641 | P31: 82.59967238 | Q31: 85.97490351 | R31: 92.79877635 | S31: 86.47874492 | T31: 89.81051134 | BA31: Piped water on premises | BB31: Yes | BC31: 2123.21643 | BD31: 2234.818101 | BE31: 2281.380443 | BF31: 2351.377976 | BG31: 2421.43683 | BH31: 1629.355755 | BI31: 1621.403086 | BJ31: 1608.719764 | BK31: 1648.960565 | BL31: 1650.567869 | BM31: 569.9700833 | BN31: 646.3348124 | BO31: 619.2419545 | BP31: 695.0749069 | BQ31: 722.6009836 | BR31: 6473.612808 | BS31: 2626.650223 | BT31: 2311.96675
B32: No | C32: 15.63882781 | D32: 11.24174976 | E32: 9.392935303 | F32: 6.640362627 | G32: 3.773030165 | H32: 2.939805571 | I32: 3.041678909 | J32: 3.888779645 | K32: 1.755207174 | L32: 1.509000442 | M32: 32.28707093 | N32: 23.34838234 | O32: 26.41919359 | P32: 17.40032762 | Q32: 14.02509649 | R32: 7.201223648 | S32: 13.52125508 | T32: 10.18948866 | BB32: No | BC32: 393.6006967 | BD32: 283.052739 | BE32: 236.5031797 | BF32: 167.2457485 | BG32: 94.94380026 | BH32: 49.35070607 | BI32: 50.86502647 | BJ32: 65.0908047 | BK32: 29.45975386 | BL32: 25.28868277 | BM32: 271.774752 | BN32: 196.8761101 | BO32: 222.3388662 | BP32: 146.4234754 | BQ32: 117.8779866 | BR32: 502.3550468 | BS32: 410.6859749 | BT32: 262.3051425
A33: Piped water into dwelling | B33: Yes | C33: 81.87842943 | D33: 87.64489896 | E33: 90.04065473 | F33: 92.68998265 | G33: 95.58560066 | H33: 95.24419771 | I33: 96.80238634 | J33: 96.02979055 | K33: 97.81516406 | L33: 97.94437563 | M33: 64.3766546 | N33: 74.32305307 | O33: 71.83245494 | P33: 81.26533249 | Q33: 84.39266301 | R33: 92.15382807 | S33: 83.95738312 | T33: 89.18073564 | BA33: Piped water into dwelling | BB33: Yes | BC33: 2060.730335 | BD33: 2206.785354 | BE33: 2267.118899 | BF33: 2334.511893 | BG33: 2405.297541 | BH33: 1598.870501 | BI33: 1618.795439 | BJ33: 1607.356783 | BK33: 1641.749589 | BL33: 1641.407236 | BM33: 541.8871652 | BN33: 626.7001015 | BO33: 604.5281638 | BP33: 683.8464583 | BQ33: 709.302585 | BR33: 6428.621423 | BS33: 2550.067988 | BT33: 2295.754611
B34: No | C34: 18.12157057 | D34: 12.35510104 | E34: 9.959345267 | F34: 7.310017347 | G34: 4.414399343 | H34: 4.755802289 | I34: 3.197613665 | J34: 3.970209454 | K34: 2.184835936 | L34: 2.05562437 | M34: 35.6233454 | N34: 25.67694693 | O34: 28.16754506 | P34: 18.73466751 | Q34: 15.60733699 | R34: 7.84617193 | S34: 16.04261688 | T34: 10.81926436 | BB34: No | BC34: 456.0867916 | BD34: 311.0854865 | BE34: 250.7647234 | BF34: 184.1118312 | BG34: 111.08309 | BH34: 79.83596031 | BI34: 53.47267367 | BJ34: 66.45378545 | BK34: 36.6707303 | BL34: 34.44931568 | BM34: 299.8576701 | BN34: 216.5108211 | BO34: 237.0526569 | BP34: 157.651924 | BQ34: 131.1763852 | BR34: 547.3464316 | BS34: 487.2682096 | BT34: 278.5172814
A35: Water source on premises | B35: Yes | C35: 97.57504392 | D35: 97.41338947 | E35: 98.81238515 | F35: 97.72390169 | G35: 98.74486519 | H35: 98.81762952 | I35: 98.74554882 | J35: 97.70888493 | K35: 99.33774521 | L35: 99.48815992 | M35: 95.91349255 | N35: 95.8417396 | O35: 97.73604885 | P35: 95.7380888 | Q35: 97.41502486 | R35: 99.14569139 | S35: 98.56865409 | T35: 94.48771429 | BA35: Water source on premises | BB35: Yes | BC35: 2455.785416 | BD35: 2452.743328 | BE35: 2487.980863 | BF35: 2461.297373 | BG35: 2484.796661 | BH35: 1658.857931 | BI35: 1651.290325 | BJ35: 1635.461643 | BK35: 1667.3049 | BL35: 1667.278846 | BM35: 807.3468699 | BN35: 808.1480166 | BO35: 822.5278421 | BP35: 805.6344685 | BQ35: 818.7527977 | BR35: 6916.37156 | BS35: 2993.86141 | BT35: 2432.37067
B36: No | C36: 2.424956081 | D36: 2.586610535 | E36: 1.187614846 | F36: 2.276098309 | G36: 1.255134813 | H36: 1.18237048 | I36: 1.254451177 | J36: 2.29111507 | K36: 0.6622547853 | L36: 0.5118400807 | M36: 4.086507452 | N36: 4.158260403 | O36: 2.263951145 | P36: 4.261911198 | Q36: 2.58497514 | R36: 0.8543086148 | S36: 1.431345907 | T36: 5.512285713 | BB36: No | BC36: 61.03170997 | BD36: 65.12751241 | BE36: 29.90275971 | BF36: 57.32635201 | BG36: 31.58396933 | BH36: 19.84852963 | BI36: 20.97778702 | BJ36: 38.34892618 | BK36: 11.11541888 | BL36: 8.577705526 | BM36: 34.39796543 | BN36: 35.0629059 | BO36: 19.05297863 | BP36: 35.86391378 | BQ36: 21.72617243 | BR36: 59.59629435 | BS36: 43.47478735 | BT36: 141.9012217
A37: Improved water source on premises | B37: Yes | C37: 97.73449373 | D37: 97.68006172 | E37: 98.96524321 | F37: 97.95522006 | G37: 98.81999036 | H37: 98.81762952 | I37: 99.04450114 | J37: 97.70888493 | K37: 99.33568704 | L37: 99.48683512 | M37: 96.30680667 | N37: 95.87316342 | O37: 97.95431131 | P37: 96.54267524 | Q37: 97.95452579 | R37: 99.23812891 | S37: 98.78286945 | T37: 94.84409792 | BA37: Improved water source on premises | BB37: Yes | BC37: 2436.807825 | BD37: 2432.069051 | BE37: 2482.355005 | BF37: 2443.682284 | BG37: 2469.263879 | BH37: 1658.857931 | BI37: 1649.629411 | BJ37: 1635.461643 | BK37: 1662.10483 | BL37: 1662.952424 | BM37: 792.0107954 | BN37: 802.4831662 | BO37: 802.1198174 | BP37: 793.5633435 | BQ37: 804.9946831 | BR37: 6876.564111 | BS37: 2972.694777 | BT37: 2414.919157
B38: No | C38: 2.265506266 | D38: 2.319938284 | E38: 1.03475679 | F38: 2.044779944 | G38: 1.180009643 | H38: 1.18237048 | I38: 0.9554988645 | J38: 2.29111507 | K38: 0.6643129553 | L38: 0.5131648766 | M38: 3.693193328 | N38: 4.126836583 | O38: 2.04568869 | P38: 3.457324757 | Q38: 2.045474209 | R38: 0.7618710944 | S38: 1.217130554 | T38: 5.155902077 | BB38: No | BC38: 56.48572152 | BD38: 57.76255667 | BE38: 25.95490715 | BF38: 51.01098769 | BG38: 29.48548342 | BH38: 19.84852963 | BI38: 15.91425078 | BJ38: 38.34892618 | BK38: 11.11541888 | BL38: 8.577705526 | BM38: 30.37219368 | BN38: 34.54268921 | BO38: 16.75155914 | BP38: 28.4185847 | BQ38: 16.80979873 | BR38: 52.79276708 | BS38: 36.62737942 | BT38: 131.27951
A39: Piped water on premises available when needed | B39: Yes | C39: 79.58493708 | D39: 85.89638599 | E39: 83.15162191 | F39: 90.10376201 | G39: 90.40947405 | H39: 84.85171379 | I39: 84.40771849 | J39: 87.97148549 | K39: 90.61551792 | L39: 91.23924563 | M39: 73.11441712 | N39: 79.10880061 | O39: 84.59981848 | P39: 81.46807112 | Q39: 87.42132298 | R39: 88.81824116 | S39: 81.82144667 | T39: 82.97881363 | BA39: Piped water on premises available when needed | BB39: Yes | BC39: 1665.482639 | BD39: 1907.518465 | BE39: 1887.519113 | BF39: 2118.680015 | BG39: 2159.768325 | BH39: 1353.829427 | BI39: 1359.497311 | BJ39: 1405.179109 | BK39: 1487.940109 | BL39: 1484.073983 | BM39: 416.7303042 | BN39: 511.307718 | BO39: 523.8775695 | BP39: 566.2641195 | BQ39: 630.268906 | BR39: 5674.921462 | BS39: 2146.969851 | BT39: 1917.077244
B40: No | C40: 20.41506292 | D40: 14.10361401 | E40: 16.84837809 | F40: 9.896237994 | G40: 9.590525953 | H40: 15.14828621 | I40: 15.59228151 | J40: 12.02851451 | K40: 9.384482082 | L40: 8.760754369 | M40: 26.88558288 | N40: 20.89119939 | O40: 15.40018152 | P40: 18.53192888 | Q40: 12.57867702 | R40: 11.18175884 | S40: 18.17855333 | T40: 17.02118637 | BB40: No | BC40: 427.2282434 | BD40: 313.2018167 | BE40: 382.4535823 | BF40: 232.6979607 | BG40: 229.105571 | BH40: 241.6945364 | BI40: 251.1341992 | BJ40: 192.1329077 | BK40: 154.096645 | BL40: 142.5001659 | BM40: 153.2397792 | BN40: 135.0270944 | BO40: 95.36438501 | BP40: 128.8107874 | BQ40: 90.68667387 | BR40: 714.4433666 | BS40: 476.9997052 | BT40: 393.2441021
A41: Water point at more than 30 minutes | B41: Yes | C41: 0.2329313134 | D41: 0.6838363381 | E41: 0.07091890911 | F41: 0.2394733884 | G41: 0.3213499779 | H41: 0 | I41: 0.6219183166 | J41: 0.03327159545 | K41: 0 | L41: 0.482522719 | M41: 0.696464646 | N41: 0.5356375785 | O41: 0.2734638712 | P41: 0.8619185504 | Q41: 0 | R41: 0.199251573 | S41: 0.4268270303 | T41: 0.4714389116 | BA41: Water point at more than 30 minutes | BB41: Yes | BC41: 5.862455188 | BD41: 17.21811575 | BE41: 1.778678748 | BF41: 6.027982203 | BG41: 8.086388599 | BH41: 0 | BI41: 10.40014169 | BJ41: 0.5536302932 | BK41: 0 | BL41: 8.086388599 | BM41: 5.862455188 | BN41: 4.516554567 | BO41: 2.301419492 | BP41: 7.253030659 | BQ41: 0 | BR41: 13.88012375 | BS41: 12.96417189 | BT41: 12.12932485
B42: No | C42: 99.76706869 | D42: 99.31616366 | E42: 99.92908109 | F42: 99.76052661 | G42: 99.67865002 | H42: 100 | I42: 99.37808168 | J42: 99.9667284 | K42: 100 | L42: 99.51747728 | M42: 99.30353535 | N42: 99.46436242 | O42: 99.72653613 | P42: 99.13808145 | Q42: 100 | R42: 99.80074843 | S42: 99.57317297 | T42: 99.52856109 | BB42: No | BC42: 2510.954671 | BD42: 2500.652725 | BE42: 2506.267159 | BF42: 2511.154509 | BG42: 2508.294242 | BH42: 1678.706461 | BI42: 1661.867971 | BJ42: 1663.419154 | BK42: 1678.420319 | BL42: 1667.770163 | BM42: 835.8823802 | BN42: 838.6943679 | BO42: 839.2794012 | BP42: 834.2453516 | BQ42: 839.0377367 | BR42: 6952.249947 | BS42: 3024.372026 | BT42: 2560.701334
A43: Water source available when needed | B43: Yes | C43: 79.09144378 | D43: 85.90335713 | E43: 83.22708005 | F43: 89.53852734 | G43: 89.99385483 | H43: 84.63681137 | I43: 84.19214644 | J43: 86.45521717 | K43: 90.18471594 | L43: 91.13119714 | M43: 73.31515268 | N43: 81.35479535 | O43: 85.15482425 | P43: 82.7854244 | Q43: 87.77901872 | R43: 88.34103531 | S43: 81.93401499 | T43: 82.37268697 | BA43: Water source available when needed | BB43: Yes | BC43: 1966.459725 | BD43: 2150.825079 | BE43: 2086.066683 | BF43: 2255.138592 | BG43: 2235.283291 | BH43: 1392.169471 | BI43: 1398.849598 | BJ43: 1437.23397 | BK43: 1507.434378 | BL43: 1505.362374 | BM43: 617.1265112 | BN43: 685.9925204 | BO43: 716.6466688 | BP43: 696.638007 | BQ43: 736.3198733 | BR43: 6088.216689 | BS43: 2486.415118 | BT43: 2119.141564
B44: No | C44: 20.90855622 | D44: 14.09664287 | E44: 16.77291995 | F44: 10.46147266 | G44: 10.00614517 | H44: 15.36318863 | I44: 15.80785356 | J44: 13.54478283 | K44: 9.815284058 | L44: 8.868802859 | M44: 26.68484732 | N44: 18.64520465 | O44: 14.84517575 | P44: 17.2145756 | Q44: 12.22098128 | R44: 11.65896469 | S44: 18.06598501 | T44: 17.62731303 | BB44: No | BC44: 519.8518544 | BD44: 352.947941 | BE44: 420.4091922 | BF44: 263.4851324 | BG44: 248.5344045 | BH44: 252.7051982 | BI44: 262.6469394 | BJ44: 225.1688519 | BK44: 164.0621303 | BL44: 146.5004581 | BM44: 224.6183242 | BN44: 157.2184021 | BO44: 124.9341519 | BP44: 144.8603752 | BQ44: 102.5136931 | BR44: 803.5031868 | BS44: 548.2404133 | BT44: 453.4849243
A45: Improved water source available when needed | B45: Yes | C45: 78.93397966 | D45: 85.91031969 | E45: 83.23245472 | F45: 89.47537686 | G45: 89.95995053 | H45: 84.63681137 | I45: 84.12790852 | J45: 86.45521717 | K45: 90.15408503 | L45: 91.10790771 | M45: 72.81341008 | N45: 81.21701963 | O45: 85.24686654 | P45: 82.58837825 | Q45: 87.72706884 | R45: 88.28706442 | S45: 81.87683625 | T45: 82.32282062 | BA45: Improved water source available when needed | BB45: Yes | BC45: 1943.976578 | BD45: 2126.910812 | BE45: 2078.232964 | BF45: 2232.136206 | BG45: 2218.58009 | BH45: 1392.169471 | BI45: 1392.125147 | BJ45: 1437.23397 | BK45: 1502.234307 | BL45: 1501.035952 | BM45: 598.8050983 | BN45: 679.8074533 | BO45: 698.0621896 | BP45: 678.861544 | BQ45: 719.501519 | BR45: 6043.345703 | BS45: 2461.742929 | BT45: 2094.748018
B46: No | C46: 21.06602034 | D46: 14.08968031 | E46: 16.76754528 | F46: 10.52462314 | G46: 10.04004947 | H46: 15.36318863 | I46: 15.87209148 | J46: 13.54478283 | K46: 9.845914966 | L46: 8.89209229 | M46: 27.18658992 | N46: 18.78298037 | O46: 14.75313346 | P46: 17.41162175 | Q46: 12.27293116 | R46: 11.71293558 | S46: 18.12316375 | T46: 17.67717938 | BB46: No | BC46: 518.811421 | BD46: 348.8229761 | BE46: 418.6692012 | BF46: 262.5570654 | BG46: 247.6063374 | BH46: 252.7051982 | BI46: 262.6469394 | BJ46: 225.1688519 | BK46: 164.0621303 | BL46: 146.5004581 | BM46: 223.5778908 | BN46: 157.2184021 | BO46: 120.809187 | BP46: 143.1203842 | BQ46: 100.6575591 | BR46: 801.7631958 | BS46: 544.8985604 | BT46: 449.8052449
A47: Microbiological quality at point of collection | B47: Not contaminated (No E. coli in 100 mL) | C47: N/A | D47: N/A | E47: N/A | F47: N/A | G47: N/A | H47: N/A | I47: N/A | J47: N/A | K47: N/A | L47: N/A | M47: N/A | N47: N/A | O47: N/A | P47: N/A | Q47: N/A | R47: N/A | S47: N/A | T47: N/A | BA47: Microbiological quality at point of collection | BB47: Not contaminated (No E. coli in 100 mL) | BC47: N/A | BD47: N/A | BE47: N/A | BF47: N/A | BG47: N/A | BH47: N/A | BI47: N/A | BJ47: N/A | BK47: N/A | BL47: N/A | BM47: N/A | BN47: N/A | BO47: N/A | BP47: N/A | BQ47: N/A | BR47: N/A | BS47: N/A | BT47: N/A
B48: Contaminated (E. coli detected in 100 mL) | C48: N/A | D48: N/A | E48: N/A | F48: N/A | G48: N/A | H48: N/A | I48: N/A | J48: N/A | K48: N/A | L48: N/A | M48: N/A | N48: N/A | O48: N/A | P48: N/A | Q48: N/A | R48: N/A | S48: N/A | T48: N/A | BB48: Contaminated (E. coli detected in 100 mL) | BC48: N/A | BD48: N/A | BE48: N/A | BF48: N/A | BG48: N/A | BH48: N/A | BI48: N/A | BJ48: N/A | BK48: N/A | BL48: N/A | BM48: N/A | BN48: N/A | BO48: N/A | BP48: N/A | BQ48: N/A | BR48: N/A | BS48: N/A | BT48: N/A
B49: Highly contaminated (>100 CFU/100 mL) | C49: N/A | D49: N/A | E49: N/A | F49: N/A | G49: N/A | H49: N/A | I49: N/A | J49: N/A | K49: N/A | L49: N/A | M49: N/A | N49: N/A | O49: N/A | P49: N/A | Q49: N/A | R49: N/A | S49: N/A | T49: N/A | BB49: Highly contaminated (>100 CFU/100 mL) | BC49: N/A | BD49: N/A | BE49: N/A | BF49: N/A | BG49: N/A | BH49: N/A | BI49: N/A | BJ49: N/A | BK49: N/A | BL49: N/A | BM49: N/A | BN49: N/A | BO49: N/A | BP49: N/A | BQ49: N/A | BR49: N/A | BS49: N/A | BT49: N/A
A50: Microbiological quality of improved water sources at point of collection | B50: Not contaminated (No E. coli in 100 mL) | C50: N/A | D50: N/A | E50: N/A | F50: N/A | G50: N/A | H50: N/A | I50: N/A | J50: N/A | K50: N/A | L50: N/A | M50: N/A | N50: N/A | O50: N/A | P50: N/A | Q50: N/A | R50: N/A | S50: N/A | T50: N/A | BA50: Microbiological quality of improved water sources at point of collection | BB50: Not contaminated (No E. coli in 100 mL) | BC50: N/A | BD50: N/A | BE50: N/A | BF50: N/A | BG50: N/A | BH50: N/A | BI50: N/A | BJ50: N/A | BK50: N/A | BL50: N/A | BM50: N/A | BN50: N/A | BO50: N/A | BP50: N/A | BQ50: N/A | BR50: N/A | BS50: N/A | BT50: N/A
B51: Contaminated (E. coli detected in 100 mL) | C51: N/A | D51: N/A | E51: N/A | F51: N/A | G51: N/A | H51: N/A | I51: N/A | J51: N/A | K51: N/A | L51: N/A | M51: N/A | N51: N/A | O51: N/A | P51: N/A | Q51: N/A | R51: N/A | S51: N/A | T51: N/A | BB51: Contaminated (E. coli detected in 100 mL) | BC51: N/A | BD51: N/A | BE51: N/A | BF51: N/A | BG51: N/A | BH51: N/A | BI51: N/A | BJ51: N/A | BK51: N/A | BL51: N/A | BM51: N/A | BN51: N/A | BO51: N/A | BP51: N/A | BQ51: N/A | BR51: N/A | BS51: N/A | BT51: N/A
B52: Highly contaminated (>100 CFU/100 mL) | C52: N/A | D52: N/A | E52: N/A | F52: N/A | G52: N/A | H52: N/A | I52: N/A | J52: N/A | K52: N/A | L52: N/A | M52: N/A | N52: N/A | O52: N/A | P52: N/A | Q52: N/A | R52: N/A | S52: N/A | T52: N/A | BB52: Highly contaminated (>100 CFU/100 mL) | BC52: N/A | BD52: N/A | BE52: N/A | BF52: N/A | BG52: N/A | BH52: N/A | BI52: N/A | BJ52: N/A | BK52: N/A | BL52: N/A | BM52: N/A | BN52: N/A | BO52: N/A | BP52: N/A | BQ52: N/A | BR52: N/A | BS52: N/A | BT52: N/A
A53: Microbiological quality of piped on premises at point of collection | B53: Not contaminated (No E. coli in 100 mL) | C53: N/A | D53: N/A | E53: N/A | F53: N/A | G53: N/A | H53: N/A | I53: N/A | J53: N/A | K53: N/A | L53: N/A | M53: N/A | N53: N/A | O53: N/A | P53: N/A | Q53: N/A | R53: N/A | S53: N/A | T53: N/A | BA53: Microbiological quality of piped on premises at point of collection | BB53: Not contaminated (No E. coli in 100 mL) | BC53: N/A | BD53: N/A | BE53: N/A | BF53: N/A | BG53: N/A | BH53: N/A | BI53: N/A | BJ53: N/A | BK53: N/A | BL53: N/A | BM53: N/A | BN53: N/A | BO53: N/A | BP53: N/A | BQ53: N/A | BR53: N/A | BS53: N/A | BT53: N/A
B54: Contaminated (E. coli detected in 100 mL) | C54: N/A | D54: N/A | E54: N/A | F54: N/A | G54: N/A | H54: N/A | I54: N/A | J54: N/A | K54: N/A | L54: N/A | M54: N/A | N54: N/A | O54: N/A | P54: N/A | Q54: N/A | R54: N/A | S54: N/A | T54: N/A | BB54: Contaminated (E. coli detected in 100 mL) | BC54: N/A | BD54: N/A | BE54: N/A | BF54: N/A | BG54: N/A | BH54: N/A | BI54: N/A | BJ54: N/A | BK54: N/A | BL54: N/A | BM54: N/A | BN54: N/A | BO54: N/A | BP54: N/A | BQ54: N/A | BR54: N/A | BS54: N/A | BT54: N/A
B55: Highly contaminated (>100 CFU/100 mL) | C55: N/A | D55: N/A | E55: N/A | F55: N/A | G55: N/A | H55: N/A | I55: N/A | J55: N/A | K55: N/A | L55: N/A | M55: N/A | N55: N/A | O55: N/A | P55: N/A | Q55: N/A | R55: N/A | S55: N/A | T55: N/A | BB55: Highly contaminated (>100 CFU/100 mL) | BC55: N/A | BD55: N/A | BE55: N/A | BF55: N/A | BG55: N/A | BH55: N/A | BI55: N/A | BJ55: N/A | BK55: N/A | BL55: N/A | BM55: N/A | BN55: N/A | BO55: N/A | BP55: N/A | BQ55: N/A | BR55: N/A | BS55: N/A | BT55: N/A
C56: NATIONAL wealth index quintile | H56: URBAN wealth index quintile | M56: RURAL wealth index quintile | R56: SUB-REGIONS: | BA56: Raw numbers of respondents: | BB56: Use of drinking water sources | BC56: NATIONAL wealth index quintile | BH56: URBAN wealth index quintile | BM56: RURAL wealth index quintile | BR56: SUB-REGIONS:
A57: Percentage based on weighted population | C57: Poorest | D57: Poor | E57: Middle | F57: Rich | G57: Richest | H57: Poorest | I57: Poor | J57: Middle | K57: Rich | L57: Richest | M57: Poorest | N57: Poor | O57: Middle | P57: Rich | Q57: Richest | R57: CENTRE | S57: NORTH | T57: SOUTH | BA57: Water data, raw numbers (weighted) | BC57: Poorest | BD57: Poor | BE57: Middle | BF57: Rich | BG57: Richest | BH57: Poorest | BI57: Poor | BJ57: Middle | BK57: Rich | BL57: Richest | BM57: Poorest | BN57: Poor | BO57: Middle | BP57: Rich | BQ57: Richest | BR57: CENTRE | BS57: NORTH | BT57: SOUTH
A58: Main source of drinking water | B58: PIPED WATER: PIPED INTO DWELLING | C58: 81.80435952 | D58: 86.73875092 | E58: 88.02499508 | F58: 88.63835711 | G58: 89.19831206 | H58: 94.63329875 | I58: 96.29737673 | J58: 93.63603078 | K58: 92.90487203 | L58: 92.21020807 | M58: 64.15518556 | N58: 73.95153156 | O58: 70.09864602 | P58: 78.15052546 | Q58: 77.83365873 | R58: 91.31667283 | S58: 83.62081072 | T58: 78.70853239 | BA58: Main source of drinking water | BB58: PIPED WATER: PIPED INTO DWELLING | BC58: 2058.866131 | BD58: 2183.969717 | BE58: 2216.366935 | BF58: 2232.466691 | BG58: 2244.569048 | BH58: 1588.6153 | BI58: 1610.350324 | BJ58: 1567.289779 | BK58: 1559.33425 | BL58: 1545.310813 | BM58: 540.0229611 | BN58: 623.5673914 | BO58: 589.9367605 | BP58: 657.6354075 | BQ58: 654.1755333 | BR58: 6370.221742 | BS58: 2539.845153 | BT58: 2026.171626
B59: PIPED WATER: PIPED TO YARD/PLOT | C59: 2.482742755 | D59: 1.113351289 | E59: 0.566409964 | F59: 0.6696547198 | G59: 0.6413691782 | H59: 1.815996718 | I59: 0.155934756 | J59: 0.0814298091 | K59: 0.429628762 | L59: 0.546623928 | M59: 3.336274476 | N59: 2.328564589 | O59: 1.74835147 | P59: 1.334339889 | Q59: 1.582240498 | R59: 0.644948282 | S59: 2.521361802 | T59: 0.6297757049 | BB59: PIPED WATER: PIPED TO YARD/PLOT | BC59: 62.48609487 | BD59: 28.03274746 | BE59: 14.26154372 | BF59: 16.86608265 | BG59: 16.13928977 | BH59: 30.48525425 | BI59: 2.607647201 | BJ59: 1.362980751 | BK59: 7.210976439 | BL59: 9.160632911 | BM59: 28.08291809 | BN59: 19.63471095 | BO59: 14.71379065 | BP59: 11.22844858 | BQ59: 13.29839864 | BR59: 44.99138483 | BS59: 76.58223468 | BT59: 16.21213895
B60: PIPED WATER: PIPED TO NEIGHBOUR | C60: 0.1690914547 | D60: 0.1450048624 | E60: 0 | F60: 0 | G60: 0.3960245598 | H60: 0.1068211937 | I60: 0.1110958735 | J60: 0 | K60: 0.593741937 | L60: 0 | M60: 0.5055834635 | N60: 0 | O60: 0 | P60: 0 | Q60: 0 | R60: 0.1951918464 | S60: 0.08511412314 | T60: 0.06489293637 | BB60: PIPED WATER: PIPED TO NEIGHBOUR | BC60: 4.255722692 | BD60: 3.651035147 | BE60: 0 | BF60: 0 | BG60: 9.965485316 | BH60: 1.793214281 | BI60: 1.857820866 | BJ60: 0 | BK60: 9.965485316 | BL60: 0 | BM60: 4.255722692 | BN60: 0 | BO60: 0 | BP60: 0 | BQ60: 0 | BR60: 13.61652046 | BS60: 2.585202072 | BT60: 1.670520621
B61: PIPED WATER: PUBLIC TAP/STANDPIPE | C61: 0.442105422 | D61: 0.558766693 | E61: 0 | F61: 0.08394731335 | G61: 0 | H61: 0.4395252145 | I61: 0 | J61: 0.1263175768 | K61: 0 | L61: 0 | M61: 0.445342418 | N61: 1.406666087 | O61: 0.262346941 | P61: 0 | Q61: 0 | R61: 0.1360765319 | S61: 0.123418896 | T61: 0.5465243851 | BB61: PIPED WATER: PUBLIC TAP/STANDPIPE | BC61: 11.12698498 | BD61: 14.06902363 | BE61: 0 | BF61: 2.11431695 | BG61: 0 | BH61: 7.378338174 | BI61: 0 | BJ61: 2.11431695 | BK61: 0 | BL61: 0 | BM61: 3.748646803 | BN61: 11.86116209 | BO61: 2.207861539 | BP61: 0 | BQ61: 0 | BR61: 9.492655124 | BS61: 3.748646803 | BT61: 14.06902363
B62: TUBE WELL/BOREHOLE | C62: 1.852795685 | D62: 2.999777441 | E62: 3.272426661 | F62: 2.414393062 | G62: 1.200745476 | H62: 0.4468045776 | I62: 0 | J62: 0.8038581396 | K62: 0.4647290181 | L62: 0.429160426 | M62: 3.525220183 | N62: 6.246090647 | O62: 9.929632493 | P62: 4.233319414 | Q62: 6.913272912 | R62: 3.828391395 | S62: 0.644328087 | T62: 0.3474743786 | BB62: TUBE WELL/BOREHOLE | BC62: 46.63147912 | BD62: 75.53052145 | BE62: 82.39589494 | BF62: 60.80947647 | BG62: 30.21532659 | BH62: 7.500537313 | BI62: 0 | BJ62: 13.4550625 | BK62: 7.80010627 | BL62: 7.192113116 | BM62: 29.67335882 | BN62: 52.66771856 | BO62: 83.56588263 | BP62: 35.62331438 | BQ62: 58.10460497 | BR62: 267.0673531 | BS62: 19.57041022 | BT62: 8.944935261
B63: DUG WELL: PROTECTED WELL | C63: 1.896719973 | D63: 1.601029829 | E63: 1.341710483 | F63: 0.3575103287 | G63: 0 | H63: 0.5920416316 | I63: 0.4372849293 | J63: 0.5434055329 | K63: 0 | L63: 0 | M63: 3.593829582 | N63: 2.98257805 | O63: 3.049432497 | P63: 2.20274127 | Q63: 0.5817299663 | R63: 0.8867711069 | S63: 1.424795919 | T63: 0.9983085054 | BB63: DUG WELL: PROTECTED WELL | BC63: 47.73697312 | BD63: 40.31186322 | BE63: 33.7827085 | BF63: 9.004339956 | BG63: 0 | BH63: 9.938641122 | BI63: 7.312576434 | BJ63: 9.095579241 | BK63: 0 | BL63: 0 | BM63: 30.2508749 | BN63: 25.14942389 | BO63: 25.66343904 | BP63: 18.53603215 | BQ63: 4.88931803 | BR63: 61.86086736 | BS63: 43.27584218 | BT63: 25.69917525
B64: DUG WELL: UNPROTECTED WELL | C64: 0.1469171708 | D64: 0 | E64: 0 | F64: 0.3757274237 | G64: 0 | H64: 0 | I64: 0 | J64: 0 | K64: 0 | L64: 0 | M64: 0.4392823528 | N64: 0 | O64: 0 | P64: 1.124560692 | Q64: 0 | R64: 0.1263478679 | S64: 0.02796310084 | T64: 0.1358627473 | BB64: DUG WELL: UNPROTECTED WELL | BC64: 3.697636517 | BD64: 0 | BE64: 0 | BF64: 9.463160034 | BG64: 0 | BH64: 0 | BI64: 0 | BJ64: 0 | BK64: 0 | BL64: 0 | BM64: 3.697636517 | BN64: 0 | BO64: 0 | BP64: 9.463160034 | BQ64: 0 | BR64: 8.81398665 | BS64: 0.8493333839 | BT64: 3.497476516
B65: SPRING: PROTECTED SPRING | C65: 8.95778045 | D65: 3.388088003 | E65: 2.994095292 | F65: 2.834371859 | G65: 1.152737381 | H65: 1.162405662 | I65: 1.038871091 | J65: 1.827450629 | K65: 0.3869168735 | L65: 0.5485394417 | M65: 19.0831076 | N65: 9.778367895 | O65: 7.869169767 | P65: 7.297533039 | Q65: 3.886180344 | R65: 0.301208705 | S65: 10.23738604 | T65: 6.004992554 | BB65: SPRING: PROTECTED SPRING | BC65: 225.4509525 | BD65: 85.30767988 | BE65: 75.387835 | BF65: 71.38716208 | BG65: 29.00726017 | BH65: 19.51337895 | BI65: 17.37270998 | BJ65: 30.58806177 | BK65: 6.494091425 | BL65: 9.192734173 | BM65: 160.6310727 | BN65: 82.45226613 | BO65: 66.22542351 | BP65: 61.40862247 | BQ65: 32.66252854 | BR65: 21.01222244 | BS65: 310.9438317 | BT65: 154.5848354
B66: SPRING: UNPROTECTED SPRING | C66: 0.7055609872 | D66: 0.272413832 | E66: 0.1888833006 | F66: 0.1487302281 | G66: 0 | H66: 0 | I66: 0 | J66: 0 | K66: 0 | L66: 0 | M66: 1.615209932 | N66: 0.4935578359 | O66: 1.117780772 | P66: 0.2623726421 | Q66: 0.445692866 | R66: 0 | S66: 0.894359616 | T66: 0.2312815662 | BB66: SPRING: UNPROTECTED SPRING | BC66: 17.75767976 | BD66: 6.859028442 | BE66: 4.755861691 | BF66: 3.74595481 | BG66: 0 | BH66: 0 | BI66: 0 | BJ66: 0 | BK66: 0 | BL66: 0 | BM66: 13.59594618 | BN66: 4.161733581 | BO66: 9.407028594 | BP66: 2.207861539 | BQ66: 3.74595481 | BR66: 0 | BS66: 27.16470836 | BT66: 5.95381635
B67: RAINWATER | C67: 1.152904141 | D67: 0.8575013742 | E67: 0.6353193988 | F67: 0 | G67: 0.3228629183 | H67: 0.1922072918 | I67: 0.1388698418 | J67: 0 | K67: 0 | L67: 0.2731387296 | M67: 2.137787312 | N67: 1.708707447 | O67: 2.610184884 | P67: 0.7944708346 | Q67: 0.4220268169 | R67: 0.8614120534 | S67: 0 | T67: 0.5685685751 | BB67: RAINWATER | BC67: 29.01648887 | BD67: 21.59077706 | BE67: 15.99660309 | BF67: 0 | BG67: 8.12445994 | BH67: 3.226596226 | BI67: 2.322276083 | BJ67: 0 | BK67: 0 | BL67: 4.577413296 | BM67: 17.99471429 | BN67: 14.40800783 | BO67: 21.96681537 | BP67: 6.685459221 | BQ67: 3.547046644 | BR67: 60.09182794 | BS67: 0 | BT67: 14.63650102
B68: TANKER-TRUCK | C68: 0.2327747792 | D68: 0.1649196786 | E68: 0.7691550226 | F68: 0 | G68: 0 | H68: 0 | I68: 0.2915232862 | J68: 0.5877477664 | K68: 0 | L68: 0 | M68: 0.6959966087 | N68: 0.4924585754 | O68: 0 | P68: 0.5530127278 | Q68: 0 | R68: 0.1749217062 | S68: 0.08388930253 | T68: 0.5681966326 | BB68: TANKER-TRUCK | BC68: 5.858515508 | BD68: 4.152464496 | BE68: 19.36642835 | BF68: 0 | BG68: 0 | BH68: 0 | BI68: 4.875050956 | BJ68: 9.837784232 | BK68: 0 | BL68: 0 | BM68: 5.858515508 | BN68: 4.152464496 | BO68: 0 | BP68: 4.653593158 | BQ68: 0 | BR68: 12.20248199 | BS68: 2.548000152 | BT68: 14.6269262
B69: PACKAGED WATER: BOTTLED WATER | C69: 0.07406990963 | D69: 1.971698956 | E69: 2.172452153 | F69: 4.412840701 | G69: 6.747140959 | H69: 0.6108989634 | I69: 1.417947621 | J69: 2.393759765 | K69: 5.220111378 | L69: 5.900454545 | M69: 0.2214690358 | N69: 0.371521517 | O69: 3.107702457 | P69: 4.047124035 | Q69: 7.304831861 | R69: 1.426057623 | S69: 0.3365724036 | T69: 10.77707834 | BB69: PACKAGED WATER: BOTTLED WATER | BC69: 1.864204171 | BD69: 49.64483307 | BE69: 54.69981697 | BF69: 111.1428528 | BG69: 169.7837482 | BH69: 10.25520037 | BI69: 23.71188591 | BJ69: 40.06700395 | BK69: 87.61541005 | BL69: 98.88315407 | BM69: 1.864204171 | BN69: 3.132710011 | BO69: 26.15382784 | BP69: 34.05648328 | BQ69: 61.39557559 | BR69: 99.48132134 | BS69: 10.22283544 | BT69: 277.4312985
B70: OTHER (specify) | C70: 0.0821777476 | D70: 0.1886971256 | E70: 0.0345526499 | F70: 0.06446725171 | G70: 0.3408074625 | H70: 0 | I70: 0.1110958735 | J70: 0 | K70: 0 | L70: 0.0918748613 | M70: 0.245711472 | N70: 0.2399558008 | O70: 0.2067526948 | P70: 0 | Q70: 1.030366005 | R70: 0.1020000552 | S70: 0 | T70: 0.4185112879 | BB70: OTHER (specify) | BC70: 2.068263626 | BD70: 4.751149901 | BE70: 0.8699955129 | BF70: 1.623687496 | BG70: 8.576012974 | BH70: 0 | BI70: 1.857820866 | BJ70: 0 | BK70: 0 | BL70: 1.539690883 | BM70: 2.068263626 | BN70: 2.023333522 | BO70: 1.739991026 | BP70: 0 | BQ70: 8.660009588 | BR70: 7.115491062 | BS70: 0 | BT70: 10.77361845
A108: =A1026 -> Montenegro
A109: =A1034 -> 2018
A110: Use of sanitation facilities
A111: by wealth quintile and sub-national region
A112: Notes:
A113: WHO/UNICEF JMP customised wealth index excludes water,
A114: sanitation and hygiene assets.
A115: Survey used for analysis: | B115: =A1025 -> MICS18
A116: =B1030 -> 
A117: =B1029 -> 
A120: Use of sanitation facilities | C120: NATIONAL wealth index quintile | H120: URBAN wealth index quintile | M120: RURAL wealth index quintile | R120: SUB-REGIONS: | BA120: Raw numbers of respondents: | BB120: Use of sanitation facilities | BC120: NATIONAL wealth index quintile | BH120: URBAN wealth index quintile | BM120: RURAL wealth index quintile | BR120: SUB-REGIONS:
A121: Weighted percentage (used in graphs) | C121: Poorest | D121: Poor | E121: Middle | F121: Rich | G121: Richest | H121: Poorest | I121: Poor | J121: Middle | K121: Rich | L121: Richest | M121: Poorest | N121: Poor | O121: Middle | P121: Rich | Q121: Richest | R121: CENTRE | S121: NORTH | T121: SOUTH | BA121: Sanitation data, raw numbers (weighted) | BC121: Poorest | BD121: Poor | BE121: Middle | BF121: Rich | BG121: Richest | BH121: Poorest | BI121: Poor | BJ121: Middle | BK121: Rich | BL121: Richest | BM121: Poorest | BN121: Poor | BO121: Middle | BP121: Rich | BQ121: Richest | BR121: CENTRE | BS121: NORTH | BT121: SOUTH
A122: Sanitation | B122: Improved | C122: 91.30256369 | D122: 96.6948855 | E122: 98.5583324 | F122: 99.08624297 | G122: 99.62203842 | H122: 98.01370622 | I122: 99.36526879 | J122: 99.40235169 | K122: 99.84673162 | L122: 99.43247218 | M122: 82.29816774 | N122: 92.70759541 | O122: 92.98837992 | P122: 96.84796648 | Q122: 98.94478204 | R122: 99.51164789 | S122: 89.39070803 | T122: 99.43150934 | BA122: Sanitation | BB122: Improved | BC122: 2297.91856 | BD122: 2434.652326 | BE122: 2481.58411 | BF122: 2495.609623 | BG122: 2506.869679 | BH122: 1645.362419 | BI122: 1661.653705 | BJ122: 1663.807068 | BK122: 1675.847832 | BL122: 1666.3456 | BM122: 692.7405765 | BN122: 781.7205705 | BO122: 782.5723709 | BP122: 814.9740712 | BQ122: 831.6100851 | BR122: 6941.900568 | BS122: 2715.096333 | BT122: 2559.637397
B123: Not Improved | C123: 8.697436313 | D123: 3.305114505 | E123: 1.441667596 | F123: 0.9137570289 | G123: 0.377961584 | H123: 1.986293783 | I123: 0.6347312057 | J123: 0.5976483117 | K123: 0.1532683809 | L123: 0.5675278162 | M123: 17.70183226 | N123: 7.292404593 | O123: 7.011620083 | P123: 3.152033516 | Q123: 1.055217959 | R123: 0.4883521107 | S123: 10.60929197 | T123: 0.5684906592 | BB123: Not Improved | BC123: 218.8985667 | BD123: 83.21851436 | BE123: 36.2995123 | BF123: 23.01410132 | BG123: 9.51095209 | BH123: 33.34404207 | BI123: 10.61440755 | BJ123: 10.0035006 | BK123: 2.572487647 | BL123: 9.51095209 | BM123: 149.0042588 | BN123: 61.49035204 | BO123: 59.00844984 | BP123: 26.52431104 | BQ123: 8.868885034 | BR123: 34.06728626 | BS123: 322.2398652 | BT123: 14.63449525
A124: Sanitation ladder | B124: Basic | C124: 87.36387991 | D124: 96.18250624 | E124: 98.17049584 | F124: 98.66546408 | G124: 99.62203842 | H124: 93.04665016 | I124: 99.36526879 | J124: 98.88645375 | K124: 99.7297953 | L124: 99.43247218 | M124: 79.57939539 | N124: 92.03253765 | O124: 92.98837992 | P124: 95.68750397 | Q124: 98.94478204 | R124: 98.3310648 | S124: 89.07319748 | T124: 97.86889176 | BA124: Sanitation ladder | BB124: Basic | BC124: 2197.461638 | BD124: 2421.751278 | BE124: 2471.818837 | BF124: 2485.011786 | BG124: 2506.869679 | BH124: 1561.980128 | BI124: 1661.653705 | BJ124: 1655.171914 | BK124: 1673.885149 | BL124: 1666.3456 | BM124: 669.8554507 | BN124: 774.6300174 | BO124: 782.5723709 | BP124: 805.2087979 | BQ124: 831.6100851 | BR124: 6858.049376 | BS124: 2705.45247 | BT124: 2519.411372
B125: Limited | C125: 3.933429782 | D125: 0.5123792532 | E125: 0.3878365635 | F125: 0.420778893 | G125: 0 | H125: 4.967056057 | I125: 0 | J125: 0.515897934 | K125: 0.1169363157 | L125: 0 | M125: 2.71877235 | N125: 0.6618932197 | O125: 0 | P125: 1.160462518 | Q125: 0 | R125: 1.180476694 | S125: 0.3175105521 | T125: 1.562617577 | BB125: Limited | BC125: 98.93746774 | BD125: 12.90104781 | BE125: 9.765273314 | BF125: 10.59783703 | BG125: 0 | BH125: 83.38229096 | BI125: 0 | BJ125: 8.635154143 | BK125: 1.962682883 | BL125: 0 | BM125: 22.88512584 | BN125: 5.571098759 | BO125: 0 | BP125: 9.765273314 | BQ125: 0 | BR125: 82.33173791 | BS125: 9.64386293 | BT125: 40.22602506
B126: Unimproved | C126: 8.286236201 | D126: 3.305114505 | E126: 1.441667596 | F126: 0.9137570289 | G126: 0.377961584 | H126: 1.7475895 | I126: 0.6347312057 | J126: 0.5976483117 | K126: 0.1532683809 | L126: 0.5675278162 | M126: 16.93343833 | N126: 7.305569126 | O126: 7.011620083 | P126: 3.152033516 | Q126: 1.055217959 | R126: 0.4310038632 | S126: 10.4513445 | T126: 0.5035977228 | BB126: Unimproved | BC126: 208.4235063 | BD126: 83.21851436 | BE126: 36.2995123 | BF126: 23.01410132 | BG126: 9.51095209 | BH126: 29.33689785 | BI126: 10.61440755 | BJ126: 10.0035006 | BK126: 2.572487647 | BL126: 9.51095209 | BM126: 142.5363426 | BN126: 61.49035204 | BO126: 59.00844984 | BP126: 26.52431104 | BQ126: 8.868885034 | BR126: 30.06014204 | BS126: 317.4424697 | BT126: 12.96397463
B127: Open defecation | C127: 0.4164541056 | D127: 0 | E127: 0 | F127: 0 | G127: 0 | H127: 0.2387042829 | I127: 0 | J127: 0 | K127: 0 | L127: 0 | M127: 0.7683939279 | N127: 0 | O127: 0 | P127: 0 | Q127: 0 | R127: 0.05745463999 | S127: 0.1579474668 | T127: 0.06489293637 | BB127: Open defecation | BC127: 10.47506042 | BD127: 0 | BE127: 0 | BF127: 0 | BG127: 0 | BH127: 4.00714422 | BI127: 0 | BJ127: 0 | BK127: 0 | BL127: 0 | BM127: 6.467916203 | BN127: 0 | BO127: 0 | BP127: 0 | BQ127: 0 | BR127: 4.00714422 | BS127: 4.797395582 | BT127: 1.670520621
A128: Shared among improved sanitation facilities | B128: Yes | C128: 4.30837425 | D128: 0.5298928176 | E128: 0.3935096648 | F128: 0.4246592467 | G128: 0 | H128: 5.06771578 | I128: 0 | J128: 0.5189997271 | K128: 0.1171158172 | L128: 0 | M128: 3.303563645 | N128: 0.7140593167 | O128: 0 | P128: 1.198231166 | Q128: 0 | R128: 1.186271136 | S128: 0.3551941349 | T128: 1.571551701 | BA128: Shared among improved sanitation facilities | BB128: Yes | BC128: 98.93746774 | BD128: 12.90104781 | BE128: 9.765273314 | BF128: 10.59783703 | BG128: 0 | BH128: 83.38229096 | BI128: 0 | BJ128: 8.635154143 | BK128: 1.962682883 | BL128: 0 | BM128: 22.88512584 | BN128: 5.571098759 | BO128: 0 | BP128: 9.765273314 | BQ128: 0 | BR128: 82.33173791 | BS128: 9.64386293 | BT128: 40.22602506
B129: No | C129: 95.69162575 | D129: 99.47010718 | E129: 99.60649034 | F129: 99.57534075 | G129: 100 | H129: 94.93228422 | I129: 100 | J129: 99.48100027 | K129: 99.88288418 | L129: 100 | M129: 96.69643636 | N129: 99.28594068 | O129: 100 | P129: 98.80176883 | Q129: 100 | R129: 98.81372886 | S129: 99.64480587 | T129: 98.4284483 | BB129: No | BC129: 2197.461638 | BD129: 2421.751278 | BE129: 2471.818837 | BF129: 2485.011786 | BG129: 2506.869679 | BH129: 1561.980128 | BI129: 1661.653705 | BJ129: 1655.171914 | BK129: 1673.885149 | BL129: 1666.3456 | BM129: 669.8554507 | BN129: 774.6300174 | BO129: 782.5723709 | BP129: 805.2087979 | BQ129: 831.6100851 | BR129: 6858.049376 | BS129: 2705.45247 | BT129: 2519.411372
A130: Manually calculated ratios | B130: Improved latrines
B131: Other
B132: Other
C133: NATIONAL wealth index quintile | H133: URBAN wealth index quintile | M133: RURAL wealth index quintile | R133: SUB-REGIONS: | BA133: Raw numbers of respondents: | BB133: Use of sanitation facilities | BC133: NATIONAL wealth index quintile | BH133: URBAN wealth index quintile | BM133: RURAL wealth index quintile | BR133: SUB-REGIONS:
A134: Percentage based on weighted population | C134: Poorest | D134: Poor | E134: Middle | F134: Rich | G134: Richest | H134: Poorest | I134: Poor | J134: Middle | K134: Rich | L134: Richest | M134: Poorest | N134: Poor | O134: Middle | P134: Rich | Q134: Richest | R134: CENTRE | S134: NORTH | T134: SOUTH | BA134: Sanitation data, raw numbers (weighted) | BC134: Poorest | BD134: Poor | BE134: Middle | BF134: Rich | BG134: Richest | BH134: Poorest | BI134: Poor | BJ134: Middle | BK134: Rich | BL134: Richest | BM134: Poorest | BN134: Poor | BO134: Middle | BP134: Rich | BQ134: Richest | BR134: CENTRE | BS134: NORTH | BT134: SOUTH
A135: Sanitation type | B135: Sewer connection | C135: 33.65878711 | D135: 42.65545496 | E135: 43.09298992 | F135: 49.59476714 | G135: 64.85782411 | H135: 46.14971642 | I135: 59.00320992 | J135: 56.4874703 | K135: 62.84041835 | L135: 74.08460327 | M135: 21.74872649 | N135: 22.31606689 | O135: 18.41218219 | P135: 19.27035871 | Q135: 23.29756718 | R135: 37.11402197 | S135: 59.85117933 | T135: 57.50760977 | BA135: Sanitation type | BB135: Sewer connection | BC135: 847.1301185 | BD135: 1074.009262 | BE135: 1085.031336 | BF135: 1249.105571 | BG135: 1632.069723 | BH135: 774.7182713 | BI135: 986.6918648 | BJ135: 945.493248 | BK135: 1054.72635 | BL135: 1241.551678 | BM135: 183.068782 | BN135: 188.1715135 | BO135: 154.953394 | BP135: 162.1597568 | BQ135: 195.8111527 | BR135: 2589.062242 | BS135: 1817.881535 | BT135: 1480.402234
B136: Septic tank connection | C136: 49.37159661 | D136: 52.81707061 | E136: 55.13152061 | F136: 49.06159939 | G136: 33.84372416 | H136: 44.97435899 | I136: 39.98018541 | J136: 42.91488139 | K136: 36.33249844 | L136: 24.58197457 | M136: 49.71626751 | N136: 67.58989076 | O136: 73.91070688 | P136: 76.47001373 | Q136: 74.99894744 | R136: 59.69537371 | S136: 27.08410903 | T136: 41.21376704 | BB136: Septic tank connection | BC136: 1242.592799 | BD136: 1329.86562 | BE136: 1388.147528 | BF136: 1235.677082 | BG136: 851.6369195 | BH136: 754.9874701 | BI136: 668.5758919 | BJ136: 718.3138202 | BK136: 609.8120363 | BL136: 411.9586314 | BM136: 418.4841141 | BN136: 569.9253414 | BO136: 622.0183335 | BP136: 643.4939284 | BQ136: 630.3503811 | BR136: 4164.33008 | BS136: 822.6354475 | BT136: 1060.954421
B137: Improved latrines | C137: 8.272179967 | D137: 1.222359924 | E137: 0.3338218682 | F137: 0.4298764407 | G137: 0.9204901429 | H137: 6.889630813 | I137: 0.3818734629 | J137: 0 | K137: 0.6738148262 | L137: 0.7658943459 | M137: 10.83317374 | N137: 2.801637764 | O137: 0.6654908466 | P137: 1.107594051 | Q137: 0.6482674216 | R137: 2.702252211 | S137: 2.455419667 | T137: 0.7101325294 | BB137: Improved latrines | BC137: 208.1956421 | BD137: 30.77744408 | BE137: 8.405246146 | BF137: 10.82697002 | BG137: 23.16303566 | BH137: 115.6566776 | BI137: 6.38594815 | BJ137: 0 | BK137: 11.30944496 | BL137: 12.83529058 | BM137: 91.18768043 | BN137: 23.62371563 | BO137: 5.600643329 | BP137: 9.320386019 | BQ137: 5.448551349 | BR137: 188.5082456 | BS137: 74.57935035 | BT137: 18.2807421
B138: Unimproved facilities | C138: 8.28123363 | D138: 3.305114505 | E138: 1.441667596 | F138: 0.9137570289 | G138: 0.377961584 | H138: 1.7475895 | I138: 0.6347312057 | J138: 0.5976483117 | K138: 0.1532683809 | L138: 0.5675278162 | M138: 16.93343833 | N138: 7.292404593 | O138: 7.011620083 | P138: 3.152033516 | Q138: 1.055217959 | R138: 0.4309099851 | S138: 10.4513445 | T138: 0.5035977228 | BB138: Unimproved facilities | BC138: 208.4235063 | BD138: 83.21851436 | BE138: 36.2995123 | BF138: 23.01410132 | BG138: 9.51095209 | BH138: 29.33689785 | BI138: 10.61440755 | BJ138: 10.0035006 | BK138: 2.572487647 | BL138: 9.51095209 | BM138: 142.5363426 | BN138: 61.49035204 | BO138: 59.00844984 | BP138: 26.52431104 | BQ138: 8.868885034 | BR138: 30.06014204 | BS138: 317.4424697 | BT138: 12.96397463
B139: Open defecation | C139: 0.4162026837 | D139: 0 | E139: 0 | F139: 0 | G139: 0 | H139: 0.2387042829 | I139: 0 | J139: 0 | K139: 0 | L139: 0 | M139: 0.7683939279 | N139: 0 | O139: 0 | P139: 0 | Q139: 0 | R139: 0.05744212564 | S139: 0.1579474668 | T139: 0.06489293637 | BB139: Open defecation | BC139: 10.47506042 | BD139: 0 | BE139: 0 | BF139: 0 | BG139: 0 | BH139: 4.00714422 | BI139: 0 | BJ139: 0 | BK139: 0 | BL139: 0 | BM139: 6.467916203 | BN139: 0 | BO139: 0 | BP139: 0 | BQ139: 0 | BR139: 4.00714422 | BS139: 4.797395582 | BT139: 1.670520621
A140: Septic tank emptying practices | B140: Not emptied/treated and disposed in situ | C140: 70.66217338 | D140: 73.32406615 | E140: 73.53961917 | F140: 70.66421504 | G140: 64.82064338 | H140: 61.68614237 | I140: 78.28343003 | J140: 76.4274531 | K140: 68.15327594 | L140: 64.00918312 | M140: 82.24766161 | N140: 74.66236296 | O140: 69.41152383 | P140: 74.76323812 | Q140: 63.31203748 | R140: 72.75662658 | S140: 79.87905376 | T140: 57.63277459 | BA140: Septic tank emptying practices | BB140: Not emptied/treated and disposed in situ | BC140: 878.0430781 | BD140: 974.2759603 | BE140: 1020.838406 | BF140: 869.736594 | BG140: 552.0365305 | BH140: 465.7226457 | BI140: 523.3841405 | BJ140: 548.9889581 | BK140: 412.2843729 | BL140: 263.6913547 | BM140: 344.193398 | BN140: 425.519727 | BO140: 430.961404 | BP140: 481.096898 | BQ140: 399.0876696 | BR140: 3029.826086 | BS140: 657.1134114 | BT140: 607.991071
B141: Emptied and buried on site | C141: 1.213239986 | D141: 1.5922594 | E141: 1.732179056 | F141: 3.139408055 | G141: 0.9487517196 | H141: 0.4918271776 | I141: 0 | J141: 1.628843859 | K141: 2.374350381 | L141: 0 | M141: 1.436409859 | N141: 1.446598152 | O141: 3.591650183 | P141: 2.004012529 | Q141: 4.405403958 | R141: 0.7887049476 | S141: 6.287389491 | T141: 2.126267764 | BB141: Emptied and buried on site | BC141: 15.0756327 | BD141: 21.15676527 | BE141: 24.04520075 | BF141: 38.6398981 | BG141: 8.079919918 | BH141: 3.713233566 | BI141: 0 | BJ141: 11.70021055 | BK141: 14.36332362 | BL141: 0 | BM141: 6.011147072 | BN141: 8.244529456 | BO141: 22.29979289 | BP141: 12.89569895 | BQ141: 27.76948064 | BR141: 32.84427738 | BS141: 51.72229468 | BT141: 22.43084468
B142: Emptied and discharged locally | C142: 3.52868614 | D142: 1.998240661 | E142: 1.411218636 | F142: 3.868466439 | G142: 1.685510659 | H142: 3.893782762 | I142: 0.1072856083 | J142: 1.356739892 | K142: 2.996562981 | L142: 2.700246462 | M142: 2.275815605 | N142: 3.901364471 | O142: 2.193726644 | P142: 1.635049195 | Q142: 4.274352073 | R142: 2.294112143 | S142: 5.378830355 | T142: 1.153920627 | BB142: Emptied and discharged locally | BC142: 43.84719988 | BD142: 26.55114399 | BE142: 19.58979661 | BF142: 47.6131635 | BG142: 14.35443105 | BH142: 29.39757197 | BI142: 0.7172857124 | BJ142: 9.745650151 | BK142: 18.12731776 | BL142: 11.12389837 | BM142: 9.523926774 | BN142: 22.23486478 | BO142: 13.62038264 | BP142: 10.52144229 | BQ142: 26.94339458 | BR142: 95.53440203 | BS142: 44.24816516 | BT142: 12.17316784
B143: Emptied and removed offsite | C143: 24.5959005 | D143: 23.08543379 | E143: 23.31698314 | F143: 22.32791046 | G143: 32.54509424 | H143: 33.92824769 | I143: 21.60928437 | J143: 20.58696315 | K143: 26.47581069 | L143: 33.29057042 | M143: 14.04011293 | N143: 19.98967442 | O143: 24.80309934 | P143: 21.59770016 | Q143: 28.00820648 | R143: 24.16055633 | S143: 8.45472639 | T143: 39.08703702 | BB143: Emptied and removed offsite | BC143: 305.6268885 | BD143: 306.7421701 | BE143: 323.6741252 | BF143: 274.8123755 | BG143: 277.166038 | BH143: 256.1540189 | BI143: 144.4744657 | BJ143: 147.8790014 | BK143: 160.1619711 | BL143: 137.1433783 | BM143: 58.75564222 | BN143: 113.9262202 | BO143: 153.997174 | BP143: 138.9798892 | BQ143: 176.5498363 | BR143: 1006.125315 | BS143: 69.55157627 | BT143: 412.3447062
A144: Latrine emptying practices | B144: Not emptied/treated and disposed in situ | C144: 86.65078878 | D144: 80.8503931 | E144: 100 | F144: 79.17754937 | G144: 100 | H144: 97.42257524 | I144: 0 | J144: 0 | K144: 0 | L144: 100 | M144: 73.02653225 | N144: 90.57086325 | O144: 52.71848429 | P144: 100 | Q144: 38.95264044 | R144: 96.29521077 | S144: 62.88533939 | T144: 100 | BA144: Latrine emptying practices | BB144: Not emptied/treated and disposed in situ | BC144: 174.8417236 | BD144: 18.80513328 | BE144: 4.923667217 | BF144: 5.283267026 | BG144: 3.834050653 | BH144: 105.0004469 | BI144: 0 | BJ144: 0 | BK144: 0 | BL144: 3.834050653 | BM144: 65.40350969 | BN144: 20.67683722 | BO144: 2.566062984 | BP144: 9.320386019 | BQ144: 0.8865482242 | BR144: 148.230384 | BS144: 45.87672106 | BT144: 13.5807367
B145: Emptied and buried on site | C145: 6.487760045 | D145: 19.1496069 | E145: 0 | F145: 0 | G145: 0 | H145: 0 | I145: 0 | J145: 0 | K145: 0 | L145: 0 | M145: 14.61662017 | N145: 9.429136749 | O145: 47.28151571 | P145: 0 | Q145: 0 | R145: 1.536183496 | S145: 20.80816966 | T145: 0 | BB145: Emptied and buried on site | BC145: 13.09083465 | BD145: 4.45404031 | BE145: 0 | BF145: 0 | BG145: 0 | BH145: 0 | BI145: 0 | BJ145: 0 | BK145: 0 | BL145: 0 | BM145: 13.09083465 | BN145: 2.152620818 | BO145: 2.301419492 | BP145: 0 | BQ145: 0 | BR145: 2.364697763 | BS145: 15.1801772 | BT145: 0
B146: Emptied and discharged locally | C146: 5.484733209 | D146: 0 | E146: 0 | F146: 0 | G146: 0 | H146: 0 | I146: 0 | J146: 0 | K146: 0 | L146: 0 | M146: 12.35684758 | N146: 0 | O146: 0 | P146: 0 | Q146: 0 | R146: 1.265996443 | S146: 12.49868703 | T146: 0 | BB146: Emptied and discharged locally | BC146: 11.06695301 | BD146: 0 | BE146: 0 | BF146: 0 | BG146: 0 | BH146: 0 | BI146: 0 | BJ146: 0 | BK146: 0 | BL146: 0 | BM146: 11.06695301 | BN146: 0 | BO146: 0 | BP146: 0 | BQ146: 0 | BR146: 1.948789949 | BS146: 9.118163059 | BT146: 0
B147: Emptied and removed offsite | C147: 1.376717965 | D147: 0 | E147: 0 | F147: 20.82245063 | G147: 0 | H147: 2.577424759 | I147: 0 | J147: 0 | K147: 0 | L147: 0 | M147: 0 | N147: 0 | O147: 0 | P147: 0 | Q147: 61.04735956 | R147: 0.9026092938 | S147: 3.807803927 | T147: 0 | BB147: Emptied and removed offsite | BC147: 2.777905952 | BD147: 0 | BE147: 0 | BF147: 1.389416163 | BG147: 0 | BH147: 2.777905952 | BI147: 0 | BJ147: 0 | BK147: 0 | BL147: 0 | BM147: 0 | BN147: 0 | BO147: 0 | BP147: 0 | BQ147: 1.389416163 | BR147: 1.389416163 | BS147: 2.777905952 | BT147: 0
A148: Shared among improved sanitation facilities | B148: Yes | C148: 3.93105509 | D148: 0.5123792532 | E148: 0.3878365635 | F148: 0.420778893 | G148: 0 | H148: 4.967056057 | I148: 0 | J148: 0.515897934 | K148: 0.1169363157 | L148: 0 | M148: 2.71877235 | N148: 0.6607004974 | O148: 0 | P148: 1.160462518 | Q148: 0 | R148: 1.180219571 | S148: 0.3175105521 | T148: 1.562617577 | BA148: Shared among improved sanitation facilities | BB148: Yes | BC148: 98.93746774 | BD148: 12.90104781 | BE148: 9.765273314 | BF148: 10.59783703 | BG148: 0 | BH148: 83.38229096 | BI148: 0 | BJ148: 8.635154143 | BK148: 1.962682883 | BL148: 0 | BM148: 22.88512584 | BN148: 5.571098759 | BO148: 0 | BP148: 9.765273314 | BQ148: 0 | BR148: 82.33173791 | BS148: 9.64386293 | BT148: 40.22602506
B149: No | C149: 87.31113654 | D149: 96.18250624 | E149: 98.17049584 | F149: 98.66546408 | G149: 99.62203842 | H149: 93.04665016 | I149: 99.36526879 | J149: 98.88645375 | K149: 99.7297953 | L149: 99.43247218 | M149: 79.57939539 | N149: 91.86669631 | O149: 92.98837992 | P149: 95.68750397 | Q149: 98.94478204 | R149: 98.30964705 | S149: 89.07319748 | T149: 97.86889176 | BB149: No | BC149: 2197.461638 | BD149: 2421.751278 | BE149: 2471.818837 | BF149: 2485.011786 | BG149: 2506.869679 | BH149: 1561.980128 | BI149: 1661.653705 | BJ149: 1655.171914 | BK149: 1673.885149 | BL149: 1666.3456 | BM149: 669.8554507 | BN149: 774.6300174 | BO149: 782.5723709 | BP149: 805.2087979 | BQ149: 831.6100851 | BR149: 6858.049376 | BS149: 2705.45247 | BT149: 2519.411372
B150: DK/missing | C150: 8.757808371 | D150: 3.305114505 | E150: 1.441667596 | F150: 0.9137570289 | G150: 0.377961584 | H150: 1.986293783 | I150: 0.6347312057 | J150: 0.5976483117 | K150: 0.1532683809 | L150: 0.5675278162 | M150: 17.70183226 | N150: 7.472603194 | O150: 7.011620083 | P150: 3.152033516 | Q150: 1.055217959 | R150: 0.5101333793 | S150: 10.60929197 | T150: 0.5684906592 | BB150: DK/missing | BC150: 220.418021 | BD150: 83.21851436 | BE150: 36.2995123 | BF150: 23.01410132 | BG150: 9.51095209 | BH150: 33.34404207 | BI150: 10.61440755 | BJ150: 10.0035006 | BK150: 2.572487647 | BL150: 9.51095209 | BM150: 149.0042588 | BN150: 63.00980633 | BO150: 59.00844984 | BP150: 26.52431104 | BQ150: 8.868885034 | BR150: 35.58674055 | BS150: 322.2398652 | BT150: 14.63449525
A151: Shared among all sanitation facilities | B151: Yes | C151: 4.019733547 | D151: 0.5123792532 | E151: 0.3878365635 | F151: 0.420778893 | G151: 0 | H151: 4.978941002 | I151: 0 | J151: 0.515897934 | K151: 0.1169363157 | L151: 0 | M151: 2.895323781 | N151: 0.7154617368 | O151: 0 | P151: 1.160462518 | Q151: 0 | R151: 1.181155323 | S151: 0.3458203596 | T151: 1.59886716 | BA151: Shared among all sanitation facilities | BB151: Yes | BC151: 100.6871948 | BD151: 12.90104781 | BE151: 9.765273314 | BF151: 10.59783703 | BG151: 0 | BH151: 83.38229096 | BI151: 0 | BJ151: 8.635154143 | BK151: 1.962682883 | BL151: 0 | BM151: 24.18397128 | BN151: 6.021980397 | BO151: 0 | BP151: 9.765273314 | BQ151: 0 | BR151: 82.33173791 | BS151: 10.48713659 | BT151: 41.13247847
B152: No | C152: 95.98026645 | D152: 99.48762075 | E152: 99.61216344 | F152: 99.57922111 | G152: 100 | H152: 95.021059 | I152: 100 | J152: 99.48410207 | K152: 99.88306368 | L152: 100 | M152: 97.10467622 | N152: 99.28453826 | O152: 100 | P152: 98.83953748 | Q152: 100 | R152: 98.81884468 | S152: 99.65417964 | T152: 98.40113284 | BB152: No | BC152: 2404.135417 | BD152: 2504.969793 | BE152: 2508.118349 | BF152: 2508.025888 | BG152: 2516.380631 | BH152: 1591.317026 | BI152: 1672.268112 | BJ152: 1665.175415 | BK152: 1676.457636 | BL152: 1675.856552 | BM152: 811.0929479 | BN152: 835.6694878 | BO152: 841.5808207 | BP152: 831.733109 | BQ152: 840.4789702 | BR152: 6888.109518 | BS152: 3022.051666 | BT152: 2531.468893
A153: Type of toilet facility | B153: FLUSH/POUR FLUSH: FLUSH TO PIPED SEWER SYSTEM | C153: 33.65878711 | D153: 42.65545496 | E153: 43.09298992 | F153: 49.59476714 | G153: 64.85782411 | H153: 46.14971642 | I153: 59.00320992 | J153: 56.4874703 | K153: 62.84041835 | L153: 74.08460327 | M153: 21.74872649 | N153: 22.31606689 | O153: 18.41218219 | P153: 19.27035871 | Q153: 23.29756718 | R153: 37.11402197 | S153: 59.85117933 | T153: 57.50760977 | BA153: Type of toilet facility | BB153: FLUSH/POUR FLUSH: FLUSH TO PIPED SEWER SYSTEM | BC153: 847.1301185 | BD153: 1074.009262 | BE153: 1085.031336 | BF153: 1249.105571 | BG153: 1632.069723 | BH153: 774.7182713 | BI153: 986.6918648 | BJ153: 945.493248 | BK153: 1054.72635 | BL153: 1241.551678 | BM153: 183.068782 | BN153: 188.1715135 | BO153: 154.953394 | BP153: 162.1597568 | BQ153: 195.8111527 | BR153: 2589.062242 | BS153: 1817.881535 | BT153: 1480.402234
B154: FLUSH/POUR FLUSH: FLUSH TO SEPTIC TANK | C154: 49.37159661 | D154: 52.81707061 | E154: 55.13152061 | F154: 49.06159939 | G154: 33.84372416 | H154: 44.97435899 | I154: 39.98018541 | J154: 42.91488139 | K154: 36.33249844 | L154: 24.58197457 | M154: 49.71626751 | N154: 67.58989076 | O154: 73.91070688 | P154: 76.47001373 | Q154: 74.99894744 | R154: 59.69537371 | S154: 27.08410903 | T154: 41.21376704 | BB154: FLUSH/POUR FLUSH: FLUSH TO SEPTIC TANK | BC154: 1242.592799 | BD154: 1329.86562 | BE154: 1388.147528 | BF154: 1235.677082 | BG154: 851.6369195 | BH154: 754.9874701 | BI154: 668.5758919 | BJ154: 718.3138202 | BK154: 609.8120363 | BL154: 411.9586314 | BM154: 418.4841141 | BN154: 569.9253414 | BO154: 622.0183335 | BP154: 643.4939284 | BQ154: 630.3503811 | BR154: 4164.33008 | BS154: 822.6354475 | BT154: 1060.954421
B155: FLUSH/POUR FLUSH: FLUSH TO PIT LATRINE | C155: 3.584220049 | D155: 0.2272887359 | E155: 0.1955478471 | F155: 0.03519970909 | G155: 0 | H155: 2.629997302 | I155: 0 | J155: 0 | K155: 0 | L155: 0 | M155: 5.409966393 | N155: 0.163134868 | O155: 0.578373741 | P155: 0.5851071518 | Q155: 0.1054813095 | R155: 0.8947166667 | S155: 1.152924846 | T155: 0.1673469516 | BB155: FLUSH/POUR FLUSH: FLUSH TO PIT LATRINE | BC155: 90.20826404 | BD155: 5.722836804 | BE155: 4.923667217 | BF155: 0.8865482242 | BG155: 0 | BH155: 44.14993464 | BI155: 0 | BJ155: 0 | BK155: 0 | BL155: 0 | BM155: 45.53811271 | BN155: 1.375571026 | BO155: 4.867482476 | BP155: 4.923667217 | BQ155: 0.8865482242 | BR155: 62.41514706 | BS155: 35.01820369 | BT155: 4.307965537
B156: FLUSH/POUR FLUSH: FLUSH TO OPEN DRAIN | C156: 7.384847586 | D156: 3.059944753 | E156: 1.298624601 | F156: 0.8116184037 | G156: 0 | H156: 1.019103988 | I156: 0.487633275 | J156: 0.3824712651 | K156: 0 | L156: 0 | M156: 15.55645902 | N156: 7.001398195 | O156: 7.011620083 | P156: 3.152033516 | Q156: 1.055217959 | R156: 0.01561779445 | S156: 10.02353201 | T156: 0.4082776544 | BB156: FLUSH/POUR FLUSH: FLUSH TO OPEN DRAIN | BC156: 185.8631088 | BD156: 77.04545666 | BE156: 32.69785615 | BF156: 20.44161367 | BG156: 0 | BH156: 17.10776449 | BI156: 8.154535763 | BJ156: 6.401844458 | BK156: 0 | BL156: 0 | BM156: 130.9456903 | BN156: 59.03655431 | BO156: 59.00844984 | BP156: 26.52431104 | BQ156: 8.868885034 | BR156: 1.08949232 | BS156: 304.4483661 | BT156: 10.5101769
B157: FLUSH/POUR FLUSH: FLUSH TO DK WHERE | C157: 0.2550135596 | D157: 0.2985963526 | E157: 0.138274021 | F157: 0.1649427342 | G157: 0.7681264422 | H157: 0.4693092497 | I157: 0.3818734629 | J157: 0 | K157: 0.6738148262 | L157: 0.5371127925 | M157: 0.1932156881 | N157: 0.09419441437 | O157: 0.08711710564 | P157: 0 | Q157: 0.3774736876 | R157: 0.4956295449 | S157: 0.05354636331 | T157: 0.182576107 | BB157: FLUSH/POUR FLUSH: FLUSH TO DK WHERE | BC157: 6.418224943 | BD157: 7.518270493 | BE157: 3.481578929 | BF157: 4.154286835 | BG157: 19.32898501 | BH157: 7.878324697 | BI157: 6.38594815 | BJ157: 0 | BK157: 11.30944496 | BL157: 9.001239923 | BM157: 1.626383076 | BN157: 0.7942575904 | BO157: 0.7331608526 | BP157: 0 | BQ157: 3.172586962 | BR157: 34.57495773 | BS157: 1.626383076 | BT157: 4.700005405
B158: PIT LATRINE: VENTILATED IMPROVED PIT LATRINE | C158: 1.08565753 | D158: 0.1955488398 | E158: 0 | F158: 0 | G158: 0 | H158: 1.188859969 | I158: 0 | J158: 0 | K158: 0 | L158: 0 | M158: 0.4715457489 | N158: 0.9868231697 | O158: 0 | P158: 0 | Q158: 0 | R158: 0.3566693089 | S158: 0.2425330962 | T158: 0 | BB158: PIT LATRINE: VENTILATED IMPROVED PIT LATRINE | BC158: 27.32401464 | BD158: 4.923667217 | BE158: 0 | BF158: 0 | BG158: 0 | BH158: 19.95746912 | BI158: 0 | BJ158: 0 | BK158: 0 | BL158: 0 | BM158: 3.969211988 | BN158: 8.321000753 | BO158: 0 | BP158: 0 | BQ158: 0 | BR158: 24.88113633 | BS158: 7.366545524 | BT158: 0
B159: PIT LATRINE: PIT LATRINE WITH SLAB | C159: 3.347288828 | D159: 0.5009259952 | E159: 0 | F159: 0.2297339975 | G159: 0 | H159: 2.601464292 | I159: 0 | J159: 0 | K159: 0 | L159: 0 | M159: 4.758445906 | N159: 1.557485311 | O159: 0 | P159: 0.5224868989 | Q159: 0.1653124244 | R159: 0.9552366905 | S159: 1.006415361 | T159: 0.2112721863 | BB159: PIT LATRINE: PIT LATRINE WITH SLAB | BC159: 84.2451385 | BD159: 12.61266956 | BE159: 0 | BF159: 5.786134964 | BG159: 0 | BH159: 43.67094915 | BI159: 0 | BJ159: 0 | BK159: 0 | BL159: 0 | BM159: 40.05397266 | BN159: 13.13288626 | BO159: 0 | BP159: 4.396718802 | BQ159: 1.389416163 | BR159: 66.63700447 | BS159: 30.56821806 | BT159: 5.438720507
B160: PIT LATRINE: PIT LATRINE WITHOUT SLAB/OPEN PIT | C160: 0.4605281872 | D160: 0.09745526614 | E160: 0 | F160: 0 | G160: 0 | H160: 0 | I160: 0 | J160: 0 | K160: 0 | L160: 0 | M160: 1.376979317 | N160: 0.2910063975 | O160: 0 | P160: 0 | Q160: 0 | R160: 0 | S160: 0.3816058392 | T160: 0.09532006841 | BB160: PIT LATRINE: PIT LATRINE WITHOUT SLAB/OPEN PIT | BC160: 11.59065229 | BD160: 2.453797729 | BE160: 0 | BF160: 0 | BG160: 0 | BH160: 0 | BI160: 0 | BJ160: 0 | BK160: 0 | BL160: 0 | BM160: 11.59065229 | BN160: 2.453797729 | BO160: 0 | BP160: 0 | BQ160: 0 | BR160: 0 | BS160: 11.59065229 | BT160: 2.453797729
